Workbook

Sheet Introduction
C4: Joint Monitoring Programme for Water Supply, Sanitation and Hygiene
C6: Estimates on household water, sanitation and hygiene by wealth quintile and sub-national region in
C7: =+Water!B5 -> Tunisia
C9: Updated May 2021
C11: Follow the links below to find the following information:
C13: JMP Estimates
C14: WASH status and trends by wealth quintile (customized quintiles made without water and sanitation assets)
C15: Water
C16: Sanitation
C17: Hygiene
C19: Data inputs
C20: customized wealth quintiles and subnational data:
C21: =IF(INDIRECT(CONCATENATE("Water","!B105"))=0,"",INDIRECT(CONCATENATE("Water","!B105"))) -> WHS03
C22: =IF(INDIRECT(CONCATENATE("Water","!B106"))=0,"",INDIRECT(CONCATENATE("Water","!B106"))) -> MICS12
C23: =IF(INDIRECT(CONCATENATE("Water","!B107"))=0,"",INDIRECT(CONCATENATE("Water","!B107"))) -> MICS18
C24: =IF(INDIRECT(CONCATENATE("Water","!B108"))=0,"",INDIRECT(CONCATENATE("Water","!B108"))) -> 
C25: =IF(INDIRECT(CONCATENATE("Water","!B109"))=0,"",INDIRECT(CONCATENATE("Water","!B109"))) -> 
C26: =IF(INDIRECT(CONCATENATE("Water","!B110"))=0,"",INDIRECT(CONCATENATE("Water","!B110"))) -> 
C27: =IF(INDIRECT(CONCATENATE("Water","!B111"))=0,"",INDIRECT(CONCATENATE("Water","!B111"))) -> 
C28: =IF(INDIRECT(CONCATENATE("Water","!B112"))=0,"",INDIRECT(CONCATENATE("Water","!B112"))) -> 
C29: =IF(INDIRECT(CONCATENATE("Water","!B113"))=0,"",INDIRECT(CONCATENATE("Water","!B113"))) -> 
C30: =IF(INDIRECT(CONCATENATE("Water","!B114"))=0,"",INDIRECT(CONCATENATE("Water","!B114"))) -> 
C31: =IF(INDIRECT(CONCATENATE("Water","!B115"))=0,"",INDIRECT(CONCATENATE("Water","!B115"))) -> 
C32: =IF(INDIRECT(CONCATENATE("Water","!B116"))=0,"",INDIRECT(CONCATENATE("Water","!B116"))) -> 
L55: =+IF(ISNUMBER(M48), "", "Insufficient data to estimate safely managed sanitation services at national level") -> Insufficient data to estimate safely managed sanitation services at national level

Sheet Water
A1: BGD
B4: Summary of trends in use of drinking water by wealth quintile (%)
B5: =IF(ISERROR(INDIRECT(CONCATENATE($B105,"!A2"))),"",INDIRECT(CONCATENATE($B105,"!A2"))) -> Tunisia
B7: =B118 -> National use of drinking water sources, 2000–2020 | J7: =B218 -> Urban use of drinking water sources, 2000–2020 | R7: =B318 -> Rural use of drinking water sources, 2000–2020
B31: =IF(ISERROR(INDIRECT(CONCATENATE($B105,"!A2"))),"",INDIRECT(CONCATENATE($B105,"!A2"))) -> Tunisia | F31: Poorest | J31: Poor | N31: Middle | R31: Rich | V31: Richest
F32: Basic | G32: Limited | H32: Unimproved | I32: Surface water | J32: Basic | K32: Limited | L32: Unimproved | M32: Surface water | N32: Basic | O32: Limited | P32: Unimproved | Q32: Surface water | R32: Basic | S32: Limited | T32: Unimproved | U32: Surface water | V32: Basic | W32: Limited | X32: Unimproved | Y32: Surface water
B33: NATIONAL | D33: Estimate | E33: =C99 -> 2000 | F33: =E99 -> 79.4490328 | G33: =F99 -> 7.457717693 | H33: 11.16918125 | I33: 1.924068256 | J33: =J99 -> 91.05459815 | K33: =K99 -> 2.988234741 | L33: 4.980043918 | M33: 0.9771231929 | N33: =O99 -> 97.59295967 | O33: =P99 -> 1.185948761 | P33: 0.6760885992 | Q33: 0.5450029713 | R33: =T99 -> 99.259585 | S33: =U99 -> 0.5483287351 | T33: 0.1920862613 | U33: 0 | V33: =Y99 -> 99.49910134 | W33: =Z99 -> 0.4802903476 | X33: 0.02060831606 | Y33: 0
E34: =C100 -> 2020 | F34: =E100 -> 87.35878607 | G34: 8.200190003 | H34: 4.441023928 | I34: 0 | J34: =J100 -> 95.82390319 | K34: 3.144754052 | L34: 1.031342754 | M34: 0 | N34: =O100 -> 97.96974469 | O34: 1.190527449 | P34: 0.8397278628 | Q34: 0 | R34: =T100 -> 98.43282306 | S34: 0.5437615456 | T34: 1.023415397 | U34: 0 | V34: =Y100 -> 98.57733955 | W34: 0.4758409276 | X34: 0.9468195256 | Y34: 0
B36: URBAN | D36: Estimate | E36: =C199 -> 2000 | F36: =E199 -> 99.37065177 | G36: =F199 -> 0.5473309294 | H36: 0.0491615689 | I36: 0.03285573256 | J36: =J199 -> 99.11763762 | K36: =K199 -> 0.8823623828 | L36: 0 | M36: 0 | N36: =O199 -> 99.5919434 | O36: =P199 -> 0.4080565963 | P36: 0 | Q36: 0 | R36: =T199 -> 99.69063289 | S36: =U199 -> 0.3093671115 | T36: 0 | U36: 0 | V36: =Y199 -> 99.44264106 | W36: =Z199 -> 0.5573589386 | X36: 0 | Y36: 0
E37: =C200 -> 2020 | F37: =E200 -> 98.85520541 | G37: 0.5444918645 | H37: 0.5451520288 | I37: 0.05515069393 | J37: =J200 -> 98.36142312 | K37: 0.8756304303 | L37: 0.7629464476 | M37: 0 | N37: =O200 -> 98.33970727 | O37: 0.4029258277 | P37: 1.257366901 | Q37: 0 | R37: =T200 -> 98.66402883 | S37: 0.3061812803 | T37: 1.02978989 | U37: 0 | V37: =Y200 -> 98.41892115 | W37: 0.5516211642 | X37: 1.029457683 | Y37: 0
B39: RURAL | D39: Estimate | E39: =C299 -> 2000 | F39: =E299 -> 72.90621725 | G39: =F299 -> 10.7272457 | H39: 13.64558438 | I39: 2.720952667 | J39: =J299 -> 76.45500307 | K39: =K299 -> 7.653252206 | L39: 13.84234445 | M39: 2.049400281 | N39: =O299 -> 76.70526957 | O39: =P299 -> 7.092302425 | P39: 13.22756898 | Q39: 2.974859025 | R39: =T299 -> 84.8967234 | S39: =U299 -> 4.691755022 | T39: 8.548019374 | U39: 1.863502207 | V39: =Y299 -> 93.37972189 | W39: =Z299 -> 1.793039087 | X39: 4.154693634 | Y39: 0.6725453896
E40: =C300 -> 2020 | F40: =E300 -> 79.52433781 | G40: 11.70102007 | H40: 8.77464212 | I40: 0 | J40: =J300 -> 87.68978579 | K40: 8.777869592 | L40: 3.532344613 | M40: 0 | N40: =O300 -> 89.96340153 | O40: 8.318172329 | P40: 1.718426137 | Q40: 0 | R40: =T300 -> 94.25514886 | S40: 5.208941528 | T40: 0.5359096104 | U40: 0 | V40: =Y300 -> 96.85057211 | W40: 1.859684928 | X40: 1.289742967 | Y40: 0
A97: NATIONAL | D97: Poorest | I97: Poor | N97: Middle | S97: Rich | X97: Richest
D98: Improved | E98: Basic | F98: Limited | G98: Unimproved | H98: Surface water | I98: Improved | J98: Basic | K98: Limited | L98: Unimproved | M98: Surface water | N98: Improved | O98: Basic | P98: Limited | Q98: Unimproved | R98: Surface water | S98: Improved | T98: Basic | U98: Limited | V98: Unimproved | W98: Surface water | X98: Improved | Y98: Basic | Z98: Limited | AA98: Unimproved | AB98: Surface water
A99: Forecast period: | C99: 2000 | D99: =IF((D101+H101)>100,D101*100/(D101+H101),D101) -> 86.90675049 | E99: =D99*AVERAGEIF(E105:E116,">0")/100 -> 79.4490328 | F99: =D99*(100-AVERAGEIF(E105:E116,">0"))/100 -> 7.457717693 | G99: =100-(E99+F99+H99) -> 11.16918125 | H99: =IF((D101+H101)>100,H101*100/(D101+H101),H101) -> 1.924068256 | I99: =IF((I101+M101)>100,I101*100/(I101+M101),I101) -> 94.04283289 | J99: =I99*AVERAGEIF(J105:J116,">0")/100 -> 91.05459815 | K99: =I99*(100-AVERAGEIF(J105:J116,">0"))/100 -> 2.988234741 | L99: =100-(J99+K99+M99) -> 4.980043918 | M99: =IF((I101+M101)>100,M101*100/(I101+M101),M101) -> 0.9771231929 | N99: =IF((N101+R101)>100,N101*100/(N101+R101),N101) -> 98.77890843 | O99: =N99*AVERAGEIF(O105:O116,">0")/100 -> 97.59295967 | P99: =N99*(100-AVERAGEIF(O105:O116,">0"))/100 -> 1.185948761 | Q99: =100-(O99+P99+R99) -> 0.6760885992 | R99: =IF((N101+R101)>100,R101*100/(N101+R101),R101) -> 0.5450029713 | S99: =IF((S101+W101)>100,S101*100/(S101+W101),S101) -> 99.80791374 | T99: =S99*AVERAGEIF(T105:T116,">0")/100 -> 99.259585 | U99: =S99*(100-AVERAGEIF(T105:T116,">0"))/100 -> 0.5483287351 | V99: =100-(T99+U99+W99) -> 0.1920862613 | W99: =IF((S101+W101)>100,W101*100/(S101+W101),W101) -> 0 | X99: =IF((X101+AB101)>100,X101*100/(X101+AB101),X101) -> 99.97939168 | Y99: =X99*AVERAGEIF(Y105:Y116,">0")/100 -> 99.49910134 | Z99: =X99*(100-AVERAGEIF(Y105:Y116,">0"))/100 -> 0.4802903476 | AA99: =100-(Y99+Z99+AB99) -> 0.02060831606 | AB99: =IF((X101+AB101)>100,AB101*100/(X101+AB101),AB101) -> 0
C100: 2020 | D100: =IF((D102+H102)>100,D102*100/(D102+H102),D102) -> 95.55897607 | E100: =D100*AVERAGEIF(E105:E116,">0")/100 -> 87.35878607 | F100: =D100*(100-AVERAGEIF(E105:E116,">0"))/100 -> 8.200190003 | G100: =100-(E100+F100+H100) -> 4.441023928 | H100: =IF((D102+H102)>100,H102*100/(D102+H102),H102) -> 0 | I100: =IF((I102+M102)>100,I102*100/(I102+M102),I102) -> 98.96865725 | J100: =I100*AVERAGEIF(J105:J116,">0")/100 -> 95.82390319 | K100: =I100*(100-AVERAGEIF(J105:J116,">0"))/100 -> 3.144754052 | L100: =100-(J100+K100+M100) -> 1.031342754 | M100: =IF((I102+M102)>100,M102*100/(I102+M102),M102) -> 0 | N100: =IF((N102+R102)>100,N102*100/(N102+R102),N102) -> 99.16027214 | O100: =N100*AVERAGEIF(O105:O116,">0")/100 -> 97.96974469 | P100: =N100*(100-AVERAGEIF(O105:O116,">0"))/100 -> 1.190527449 | Q100: =100-(O100+P100+R100) -> 0.8397278628 | R100: =IF((N102+R102)>100,R102*100/(N102+R102),R102) -> 0 | S100: =IF((S102+W102)>100,S102*100/(S102+W102),S102) -> 98.9765846 | T100: =S100*AVERAGEIF(T105:T116,">0")/100 -> 98.43282306 | U100: =S100*(100-AVERAGEIF(T105:T116,">0"))/100 -> 0.5437615456 | V100: =100-(T100+U100+W100) -> 1.023415397 | W100: =IF((S102+W102)>100,W102*100/(S102+W102),W102) -> 0 | X100: =IF((X102+AB102)>100,X102*100/(X102+AB102),X102) -> 99.05318047 | Y100: =X100*AVERAGEIF(Y105:Y116,">0")/100 -> 98.57733955 | Z100: =X100*(100-AVERAGEIF(Y105:Y116,">0"))/100 -> 0.4758409276 | AA100: =100-(Y100+Z100+AB100) -> 0.9468195256 | AB100: =IF((X102+AB102)>100,AB102*100/(X102+AB102),AB102) -> 0
A101: Regression period: | C101: =MinRegYear(C99,C105:C116) -> 2001 | D101: =IF(MAX(C105:C116)-MIN(C105:C116)<5,AVERAGEIF(C105:C116,">0",D105:D116), IF(FORECAST($C101,D$105:D$116,$C$105:$C$116)<0,0, IF(FORECAST($C101,D$105:D$116,$C$105:$C$116)>100,100, FORECAST($C101,D$105:D$116,$C$105:$C$116)))) -> 86.90675049 | H101: =IF(MAX(C105:C116)-MIN(C105:C116)<5,AVERAGEIF(C105:C116,">0",H105:H116), IF(FORECAST($C101,H$105:H$116,$C$105:$C$116)<0,0, IF(FORECAST($C101,H$105:H$116,$C$105:$C$116)>100,100, FORECAST($C101,H$105:H$116,$C$105:$C$116)))) -> 1.924068256 | I101: =IF(MAX(C105:C116)-MIN(C105:C116)<5,AVERAGEIF(C105:C116,">0",I105:I116), IF(FORECAST($C101,I$105:I$116,$C$105:$C$116)<0,0, IF(FORECAST($C101,I$105:I$116,$C$105:$C$116)>100,100, FORECAST($C101,I$105:I$116,$C$105:$C$116)))) -> 94.04283289 | M101: =IF(MAX(C105:C116)-MIN(C105:C116)<5,AVERAGEIF(C105:C116,">0",M105:M116), IF(FORECAST($C101,M$105:M$116,$C$105:$C$116)<0,0, IF(FORECAST($C101,M$105:M$116,$C$105:$C$116)>100,100, FORECAST($C101,M$105:M$116,$C$105:$C$116)))) -> 0.9771231929 | N101: =IF(MAX(C105:C116)-MIN(C105:C116)<5,AVERAGEIF(C105:C116,">0",N105:N116), IF(FORECAST($C101,N$105:N$116,$C$105:$C$116)<0,0, IF(FORECAST($C101,N$105:N$116,$C$105:$C$116)>100,100, FORECAST($C101,N$105:N$116,$C$105:$C$116)))) -> 98.77890843 | R101: =IF(MAX(C105:C116)-MIN(C105:C116)<5,AVERAGEIF(C105:C116,">0",R105:R116), IF(FORECAST($C101,R$105:R$116,$C$105:$C$116)<0,0, IF(FORECAST($C101,R$105:R$116,$C$105:$C$116)>100,100, FORECAST($C101,R$105:R$116,$C$105:$C$116)))) -> 0.5450029713 | S101: =IF(MAX(C105:C116)-MIN(C105:C116)<5,AVERAGEIF(C105:C116,">0",S105:S116), IF(FORECAST($C101,S$105:S$116,$C$105:$C$116)<0,0, IF(FORECAST($C101,S$105:S$116,$C$105:$C$116)>100,100, FORECAST($C101,S$105:S$116,$C$105:$C$116)))) -> 99.80791374 | W101: =IF(MAX(C105:C116)-MIN(C105:C116)<5,AVERAGEIF(C105:C116,">0",W105:W116), IF(FORECAST($C101,W$105:W$116,$C$105:$C$116)<0,0, IF(FORECAST($C101,W$105:W$116,$C$105:$C$116)>100,100, FORECAST($C101,W$105:W$116,$C$105:$C$116)))) -> 0 | X101: =IF(MAX(C105:C116)-MIN(C105:C116)<5,AVERAGEIF(C105:C116,">0",X105:X116), IF(FORECAST($C101,X$105:X$116,$C$105:$C$116)<0,0, IF(FORECAST($C101,X$105:X$116,$C$105:$C$116)>100,100, FORECAST($C101,X$105:X$116,$C$105:$C$116)))) -> 99.97939168 | AB101: =IF(MAX(C105:C116)-MIN(C105:C116)<5,AVERAGEIF(C105:C116,">0",AB105:AB116), IF(FORECAST($C101,AB$105:AB$116,$C$105:$C$116)<0,0, IF(FORECAST($C101,AB$105:AB$116,$C$105:$C$116)>100,100, FORECAST($C101,AB$105:AB$116,$C$105:$C$116)))) -> 0
C102: =MaxRegYear(C100,C105:C116) -> 2020 | D102: =IF(MAX(C105:C116)-MIN(C105:C116)<5,AVERAGEIF(C105:C116,">0",D105:D116), IF(FORECAST($C102,D$105:D$116,$C$105:$C$116)<0,0, IF(FORECAST($C102,D$105:D$116,$C$105:$C$116)>100,100, FORECAST($C102,D$105:D$116,$C$105:$C$116)))) -> 95.55897607 | H102: =IF(MAX(C105:C116)-MIN(C105:C116)<5,AVERAGEIF(C105:C116,">0",H105:H116), IF(FORECAST($C102,H$105:H$116,$C$105:$C$116)<0,0, IF(FORECAST($C102,H$105:H$116,$C$105:$C$116)>100,100, FORECAST($C102,H$105:H$116,$C$105:$C$116)))) -> 0 | I102: =IF(MAX(C105:C116)-MIN(C105:C116)<5,AVERAGEIF(C105:C116,">0",I105:I116), IF(FORECAST($C102,I$105:I$116,$C$105:$C$116)<0,0, IF(FORECAST($C102,I$105:I$116,$C$105:$C$116)>100,100, FORECAST($C102,I$105:I$116,$C$105:$C$116)))) -> 98.96865725 | M102: =IF(MAX(C105:C116)-MIN(C105:C116)<5,AVERAGEIF(C105:C116,">0",M105:M116), IF(FORECAST($C102,M$105:M$116,$C$105:$C$116)<0,0, IF(FORECAST($C102,M$105:M$116,$C$105:$C$116)>100,100, FORECAST($C102,M$105:M$116,$C$105:$C$116)))) -> 0 | N102: =IF(MAX(C105:C116)-MIN(C105:C116)<5,AVERAGEIF(C105:C116,">0",N105:N116), IF(FORECAST($C102,N$105:N$116,$C$105:$C$116)<0,0, IF(FORECAST($C102,N$105:N$116,$C$105:$C$116)>100,100, FORECAST($C102,N$105:N$116,$C$105:$C$116)))) -> 99.16027214 | R102: =IF(MAX(C105:C116)-MIN(C105:C116)<5,AVERAGEIF(C105:C116,">0",R105:R116), IF(FORECAST($C102,R$105:R$116,$C$105:$C$116)<0,0, IF(FORECAST($C102,R$105:R$116,$C$105:$C$116)>100,100, FORECAST($C102,R$105:R$116,$C$105:$C$116)))) -> 0 | S102: =IF(MAX(C105:C116)-MIN(C105:C116)<5,AVERAGEIF(C105:C116,">0",S105:S116), IF(FORECAST($C102,S$105:S$116,$C$105:$C$116)<0,0, IF(FORECAST($C102,S$105:S$116,$C$105:$C$116)>100,100, FORECAST($C102,S$105:S$116,$C$105:$C$116)))) -> 98.9765846 | W102: =IF(MAX(C105:C116)-MIN(C105:C116)<5,AVERAGEIF(C105:C116,">0",W105:W116), IF(FORECAST($C102,W$105:W$116,$C$105:$C$116)<0,0, IF(FORECAST($C102,W$105:W$116,$C$105:$C$116)>100,100, FORECAST($C102,W$105:W$116,$C$105:$C$116)))) -> 0 | X102: =IF(MAX(C105:C116)-MIN(C105:C116)<5,AVERAGEIF(C105:C116,">0",X105:X116), IF(FORECAST($C102,X$105:X$116,$C$105:$C$116)<0,0, IF(FORECAST($C102,X$105:X$116,$C$105:$C$116)>100,100, FORECAST($C102,X$105:X$116,$C$105:$C$116)))) -> 99.05318047 | AB102: =IF(MAX(C105:C116)-MIN(C105:C116)<5,AVERAGEIF(C105:C116,">0",AB105:AB116), IF(FORECAST($C102,AB$105:AB$116,$C$105:$C$116)<0,0, IF(FORECAST($C102,AB$105:AB$116,$C$105:$C$116)>100,100, FORECAST($C102,AB$105:AB$116,$C$105:$C$116)))) -> 0
B104: Survey | C104: Year | D104: Improved | E104: % Improved < = 30min | H104: Surface water | I104: Improved | J104: % Improved < = 30min | M104: Surface water | N104: Improved | O104: % Improved < = 30min | R104: Surface water | S104: Improved | T104: % Improved < = 30min | W104: Surface water | X104: Improved | Y104: % Improved < = 30min | AB104: Surface water
B105: WHS03 | C105: 2003 | D105: =IF(ISERROR(INDIRECT(CONCATENATE($B105,"!C16"))),"",INDIRECT(CONCATENATE($B105,"!C16"))) -> 88.150371 | E105: =IF(ISERROR(INDIRECT(CONCATENATE($B105,"!C23"))),"",INDIRECT(CONCATENATE($B105,"!C23"))) -> N/A | H105: =IF(ISERROR(INDIRECT(CONCATENATE($B105,"!C21"))),"",INDIRECT(CONCATENATE($B105,"!C21"))) -> 1.858182094 | I105: =IF(ISERROR(INDIRECT(CONCATENATE($B105,"!D16"))),"",INDIRECT(CONCATENATE($B105,"!D16"))) -> 94.49365997 | J105: =IF(ISERROR(INDIRECT(CONCATENATE($B105,"!D23"))),"",INDIRECT(CONCATENATE($B105,"!D23"))) -> N/A | M105: =IF(ISERROR(INDIRECT(CONCATENATE($B105,"!D21"))),"",INDIRECT(CONCATENATE($B105,"!D21"))) -> 0.9180652581 | N105: =IF(ISERROR(INDIRECT(CONCATENATE($B105,"!E16"))),"",INDIRECT(CONCATENATE($B105,"!E16"))) -> 98.6963434 | O105: =IF(ISERROR(INDIRECT(CONCATENATE($B105,"!E23"))),"",INDIRECT(CONCATENATE($B105,"!E23"))) -> N/A | R105: =IF(ISERROR(INDIRECT(CONCATENATE($B105,"!E21"))),"",INDIRECT(CONCATENATE($B105,"!E21"))) -> 0.5100596841 | S105: =IF(ISERROR(INDIRECT(CONCATENATE($B105,"!F16"))),"",INDIRECT(CONCATENATE($B105,"!F16"))) -> 99.53417216 | T105: =IF(ISERROR(INDIRECT(CONCATENATE($B105,"!F23"))),"",INDIRECT(CONCATENATE($B105,"!F23"))) -> N/A | W105: =IF(ISERROR(INDIRECT(CONCATENATE($B105,"!F21"))),"",INDIRECT(CONCATENATE($B105,"!F21"))) -> 0 | X105: =IF(ISERROR(INDIRECT(CONCATENATE($B105,"!G16"))),"",INDIRECT(CONCATENATE($B105,"!G16"))) -> 99.65916142 | Y105: =IF(ISERROR(INDIRECT(CONCATENATE($B105,"!G23"))),"",INDIRECT(CONCATENATE($B105,"!G23"))) -> N/A | AB105: =IF(ISERROR(INDIRECT(CONCATENATE($B105,"!G221"))),"",INDIRECT(CONCATENATE($B105,"!G21"))) -> 0
B106: MICS12 | C106: 2012 | D106: 91.08378392 | E106: 90.2 | H106: 0.2170364189 | I106: 97.06382781 | J106: 96.1 | M106: 0.1554987918 | N106: 99.30646939 | O106: 99 | R106: 0.06940342894 | S106: 99.79220104 | T106: 99.5 | W106: 0 | X106: 100 | Y106: 99.4 | AB106: 0
B107: MICS18 | C107: 2018 | D107: 95.14750537 | E107: 92.63742597 | H107: 0.187460174 | I107: 98.34862829 | J107: 97.54494954 | M107: 0.04042570738 | N107: 98.93606572 | O107: 98.5987814 | R107: 0 | S107: 98.78474306 | T107: 99.40123195 | W107: 0 | X107: 98.81657488 | Y107: 99.6392213 | AB107: 0
D111: =IF(ISERROR(INDIRECT(CONCATENATE($B111,"!C16"))),"",INDIRECT(CONCATENATE($B111,"!C16"))) ->  | E111: =IF(ISERROR(INDIRECT(CONCATENATE($B111,"!C23"))),"",INDIRECT(CONCATENATE($B111,"!C23"))) ->  | H111: =IF(ISERROR(INDIRECT(CONCATENATE($B111,"!C21"))),"",INDIRECT(CONCATENATE($B111,"!C21"))) ->  | I111: =IF(ISERROR(INDIRECT(CONCATENATE($B111,"!D16"))),"",INDIRECT(CONCATENATE($B111,"!D16"))) ->  | J111: =IF(ISERROR(INDIRECT(CONCATENATE($B111,"!D23"))),"",INDIRECT(CONCATENATE($B111,"!D23"))) ->  | M111: =IF(ISERROR(INDIRECT(CONCATENATE($B111,"!D21"))),"",INDIRECT(CONCATENATE($B111,"!D21"))) ->  | N111: =IF(ISERROR(INDIRECT(CONCATENATE($B111,"!E16"))),"",INDIRECT(CONCATENATE($B111,"!E16"))) ->  | O111: =IF(ISERROR(INDIRECT(CONCATENATE($B111,"!E23"))),"",INDIRECT(CONCATENATE($B111,"!E23"))) ->  | R111: =IF(ISERROR(INDIRECT(CONCATENATE($B111,"!E21"))),"",INDIRECT(CONCATENATE($B111,"!E21"))) ->  | S111: =IF(ISERROR(INDIRECT(CONCATENATE($B111,"!F16"))),"",INDIRECT(CONCATENATE($B111,"!F16"))) ->  | T111: =IF(ISERROR(INDIRECT(CONCATENATE($B111,"!F23"))),"",INDIRECT(CONCATENATE($B111,"!F23"))) ->  | W111: =IF(ISERROR(INDIRECT(CONCATENATE($B111,"!F21"))),"",INDIRECT(CONCATENATE($B111,"!F21"))) ->  | X111: =IF(ISERROR(INDIRECT(CONCATENATE($B111,"!G16"))),"",INDIRECT(CONCATENATE($B111,"!G16"))) ->  | Y111: =IF(ISERROR(INDIRECT(CONCATENATE($B111,"!G23"))),"",INDIRECT(CONCATENATE($B111,"!G23"))) ->  | AB111: =IF(ISERROR(INDIRECT(CONCATENATE($B111,"!G221"))),"",INDIRECT(CONCATENATE($B111,"!G21"))) -> 
D112: =IF(ISERROR(INDIRECT(CONCATENATE($B112,"!C16"))),"",INDIRECT(CONCATENATE($B112,"!C16"))) ->  | E112: =IF(ISERROR(INDIRECT(CONCATENATE($B112,"!C23"))),"",INDIRECT(CONCATENATE($B112,"!C23"))) ->  | H112: =IF(ISERROR(INDIRECT(CONCATENATE($B112,"!C21"))),"",INDIRECT(CONCATENATE($B112,"!C21"))) ->  | I112: =IF(ISERROR(INDIRECT(CONCATENATE($B112,"!D16"))),"",INDIRECT(CONCATENATE($B112,"!D16"))) ->  | J112: =IF(ISERROR(INDIRECT(CONCATENATE($B112,"!D23"))),"",INDIRECT(CONCATENATE($B112,"!D23"))) ->  | M112: =IF(ISERROR(INDIRECT(CONCATENATE($B112,"!D21"))),"",INDIRECT(CONCATENATE($B112,"!D21"))) ->  | N112: =IF(ISERROR(INDIRECT(CONCATENATE($B112,"!E16"))),"",INDIRECT(CONCATENATE($B112,"!E16"))) ->  | O112: =IF(ISERROR(INDIRECT(CONCATENATE($B112,"!E23"))),"",INDIRECT(CONCATENATE($B112,"!E23"))) ->  | R112: =IF(ISERROR(INDIRECT(CONCATENATE($B112,"!E21"))),"",INDIRECT(CONCATENATE($B112,"!E21"))) ->  | S112: =IF(ISERROR(INDIRECT(CONCATENATE($B112,"!F16"))),"",INDIRECT(CONCATENATE($B112,"!F16"))) ->  | T112: =IF(ISERROR(INDIRECT(CONCATENATE($B112,"!F23"))),"",INDIRECT(CONCATENATE($B112,"!F23"))) ->  | W112: =IF(ISERROR(INDIRECT(CONCATENATE($B112,"!F21"))),"",INDIRECT(CONCATENATE($B112,"!F21"))) ->  | X112: =IF(ISERROR(INDIRECT(CONCATENATE($B112,"!G16"))),"",INDIRECT(CONCATENATE($B112,"!G16"))) ->  | Y112: =IF(ISERROR(INDIRECT(CONCATENATE($B112,"!G23"))),"",INDIRECT(CONCATENATE($B112,"!G23"))) ->  | AB112: =IF(ISERROR(INDIRECT(CONCATENATE($B112,"!G221"))),"",INDIRECT(CONCATENATE($B112,"!G21"))) -> 
B118: =CONCATENATE("National use of drinking water sources, ",C99,"–",C100) -> National use of drinking water sources, 2000–2020 | S118: Data points used for regression
E153: =IF(ISERROR(INDIRECT(CONCATENATE($B153,"!M18"))),"",INDIRECT(CONCATENATE($B153,"!M18"))) ->  | F153: =IF(ISERROR(INDIRECT(CONCATENATE($B153,"!M19"))),"",INDIRECT(CONCATENATE($B153,"!M19"))) ->  | G153: =IF(ISERROR(INDIRECT(CONCATENATE($B153,"!M20"))),"",INDIRECT(CONCATENATE($B153,"!M20"))) ->  | H153: =IF(ISERROR(INDIRECT(CONCATENATE($B153,"!M21"))),"",INDIRECT(CONCATENATE($B153,"!M21"))) ->  | J153: =IF(ISERROR(INDIRECT(CONCATENATE($B153,"!N18"))),"",INDIRECT(CONCATENATE($B153,"!N18"))) ->  | K153: =IF(ISERROR(INDIRECT(CONCATENATE($B153,"!N19"))),"",INDIRECT(CONCATENATE($B153,"!N19"))) ->  | L153: =IF(ISERROR(INDIRECT(CONCATENATE($B153,"!N20"))),"",INDIRECT(CONCATENATE($B153,"!N20"))) ->  | M153: =IF(ISERROR(INDIRECT(CONCATENATE($B153,"!N21"))),"",INDIRECT(CONCATENATE($B153,"!N21"))) ->  | O153: =IF(ISERROR(INDIRECT(CONCATENATE($B153,"!O18"))),"",INDIRECT(CONCATENATE($B153,"!O18"))) ->  | P153: =IF(ISERROR(INDIRECT(CONCATENATE($B153,"!O19"))),"",INDIRECT(CONCATENATE($B153,"!O19"))) ->  | Q153: =IF(ISERROR(INDIRECT(CONCATENATE($B153,"!O20"))),"",INDIRECT(CONCATENATE($B153,"!O20"))) ->  | R153: =IF(ISERROR(INDIRECT(CONCATENATE($B153,"!O21"))),"",INDIRECT(CONCATENATE($B153,"!O21"))) ->  | T153: =IF(ISERROR(INDIRECT(CONCATENATE($B153,"!P18"))),"",INDIRECT(CONCATENATE($B153,"!P18"))) ->  | U153: =IF(ISERROR(INDIRECT(CONCATENATE($B153,"!P19"))),"",INDIRECT(CONCATENATE($B153,"!P19"))) ->  | V153: =IF(ISERROR(INDIRECT(CONCATENATE($B153,"!P20"))),"",INDIRECT(CONCATENATE($B153,"!P20"))) ->  | W153: =IF(ISERROR(INDIRECT(CONCATENATE($B153,"!P21"))),"",INDIRECT(CONCATENATE($B153,"!P21"))) ->  | Y153: =IF(ISERROR(INDIRECT(CONCATENATE($B153,"!Q18"))),"",INDIRECT(CONCATENATE($B153,"!Q18"))) ->  | Z153: =IF(ISERROR(INDIRECT(CONCATENATE($B153,"!Q19"))),"",INDIRECT(CONCATENATE($B153,"!Q19"))) ->  | AA153: =IF(ISERROR(INDIRECT(CONCATENATE($B153,"!Q20"))),"",INDIRECT(CONCATENATE($B153,"!Q20"))) ->  | AB153: =IF(ISERROR(INDIRECT(CONCATENATE($B153,"!Q21"))),"",INDIRECT(CONCATENATE($B153,"!Q1"))) -> 
A197: URBAN | D197: Poorest | I197: Poor | N197: Middle | S197: Rich | X197: Richest
D198: Improved | E198: Basic | F198: Limited | G198: Unimproved | H198: Surface water | I198: Improved | J198: Basic | K198: Limited | L198: Unimproved | M198: Surface water | N198: Improved | O198: Basic | P198: Limited | Q198: Unimproved | R198: Surface water | S198: Improved | T198: Basic | U198: Limited | V198: Unimproved | W198: Surface water | X198: Improved | Y198: Basic | Z198: Limited | AA198: Unimproved | AB198: Surface water
A199: Forecast period: | C199: 2000 | D199: =IF((D201+H201)>100,D201*100/(D201+H201),D201) -> 99.9179827 | E199: =D199*AVERAGEIF(E205:E216,">0")/100 -> 99.37065177 | F199: =D199*(100-AVERAGEIF(E205:E216,">0"))/100 -> 0.5473309294 | G199: =100-(E199+F199+H199) -> 0.0491615689 | H199: =IF((D201+H201)>100,H201*100/(D201+H201),H201) -> 0.03285573256 | I199: =IF((I201+M201)>100,I201*100/(I201+M201),I201) -> 100 | J199: =I199*AVERAGEIF(J205:J216,">0")/100 -> 99.11763762 | K199: =I199*(100-AVERAGEIF(J205:J216,">0"))/100 -> 0.8823623828 | L199: =100-(J199+K199+M199) -> 0 | M199: =IF((I201+M201)>100,M201*100/(I201+M201),M201) -> 0 | N199: =IF((N201+R201)>100,N201*100/(N201+R201),N201) -> 100 | O199: =N199*AVERAGEIF(O205:O216,">0")/100 -> 99.5919434 | P199: =N199*(100-AVERAGEIF(O205:O216,">0"))/100 -> 0.4080565963 | Q199: =100-(O199+P199+R199) -> 0 | R199: =IF((N201+R201)>100,R201*100/(N201+R201),R201) -> 0 | S199: =IF((S201+W201)>100,S201*100/(S201+W201),S201) -> 100 | T199: =S199*AVERAGEIF(T205:T216,">0")/100 -> 99.69063289 | U199: =S199*(100-AVERAGEIF(T205:T216,">0"))/100 -> 0.3093671115 | V199: =100-(T199+U199+W199) -> 0 | W199: =IF((S201+W201)>100,W201*100/(S201+W201),W201) -> 0 | X199: =IF((X201+AB201)>100,X201*100/(X201+AB201),X201) -> 100 | Y199: =X199*AVERAGEIF(Y205:Y216,">0")/100 -> 99.44264106 | Z199: =X199*(100-AVERAGEIF(Y205:Y216,">0"))/100 -> 0.5573589386 | AA199: =100-(Y199+Z199+AB199) -> 0 | AB199: =IF((X201+AB201)>100,AB201*100/(X201+AB201),AB201) -> 0
C200: 2020 | D200: =IF((D202+H202)>100,D202*100/(D202+H202),D202) -> 99.39969728 | E200: =D200*AVERAGEIF(E205:E216,">0")/100 -> 98.85520541 | F200: =D200*(100-AVERAGEIF(E205:E216,">0"))/100 -> 0.5444918645 | G200: =100-(E200+F200+H200) -> 0.5451520288 | H200: =IF((D202+H202)>100,H202*100/(D202+H202),H202) -> 0.05515069393 | I200: =IF((I202+M202)>100,I202*100/(I202+M202),I202) -> 99.23705355 | J200: =I200*AVERAGEIF(J205:J216,">0")/100 -> 98.36142312 | K200: =I200*(100-AVERAGEIF(J205:J216,">0"))/100 -> 0.8756304303 | L200: =100-(J200+K200+M200) -> 0.7629464476 | M200: =IF((I202+M202)>100,M202*100/(I202+M202),M202) -> 0 | N200: =IF((N202+R202)>100,N202*100/(N202+R202),N202) -> 98.7426331 | O200: =N200*AVERAGEIF(O205:O216,">0")/100 -> 98.33970727 | P200: =N200*(100-AVERAGEIF(O205:O216,">0"))/100 -> 0.4029258277 | Q200: =100-(O200+P200+R200) -> 1.257366901 | R200: =IF((N202+R202)>100,R202*100/(N202+R202),R202) -> 0 | S200: =IF((S202+W202)>100,S202*100/(S202+W202),S202) -> 98.97021011 | T200: =S200*AVERAGEIF(T205:T216,">0")/100 -> 98.66402883 | U200: =S200*(100-AVERAGEIF(T205:T216,">0"))/100 -> 0.3061812803 | V200: =100-(T200+U200+W200) -> 1.02978989 | W200: =IF((S202+W202)>100,W202*100/(S202+W202),W202) -> 0 | X200: =IF((X202+AB202)>100,X202*100/(X202+AB202),X202) -> 98.97054232 | Y200: =X200*AVERAGEIF(Y205:Y216,">0")/100 -> 98.41892115 | Z200: =X200*(100-AVERAGEIF(Y205:Y216,">0"))/100 -> 0.5516211642 | AA200: =100-(Y200+Z200+AB200) -> 1.029457683 | AB200: =IF((X202+AB202)>100,AB202*100/(X202+AB202),AB202) -> 0
A201: Regression period: | C201: =MinRegYear(C199,C205:C216) -> 2001 | D201: =IF(MAX(C205:C216)-MIN(C205:C216)<5,AVERAGEIF(C205:C216,">0",D205:D216), IF(FORECAST($C201,D$205:D$216,$C$205:$C$216)<0,0, IF(FORECAST($C201,D$205:D$216,$C$205:$C$216)>100,100, FORECAST($C201,D$205:D$216,$C$205:$C$216)))) -> 99.9179827 | H201: =IF(MAX(C205:C216)-MIN(C205:C216)<5,AVERAGEIF(C205:C216,">0",H205:H216), IF(FORECAST($C201,H$205:H$216,$C$205:$C$216)<0,0, IF(FORECAST($C201,H$205:H$216,$C$205:$C$216)>100,100, FORECAST($C201,H$205:H$216,$C$205:$C$216)))) -> 0.03285573256 | I201: =IF(MAX(C205:C216)-MIN(C205:C216)<5,AVERAGEIF(C205:C216,">0",I205:I216), IF(FORECAST($C201,I$205:I$216,$C$205:$C$216)<0,0, IF(FORECAST($C201,I$205:I$216,$C$205:$C$216)>100,100, FORECAST($C201,I$205:I$216,$C$205:$C$216)))) -> 100 | M201: =IF(MAX(C205:C216)-MIN(C205:C216)<5,AVERAGEIF(C205:C216,">0",M205:M216), IF(FORECAST($C201,M$205:M$216,$C$205:$C$216)<0,0, IF(FORECAST($C201,M$205:M$216,$C$205:$C$216)>100,100, FORECAST($C201,M$205:M$216,$C$205:$C$216)))) -> 0 | N201: =IF(MAX(C205:C216)-MIN(C205:C216)<5,AVERAGEIF(C205:C216,">0",N205:N216), IF(FORECAST($C201,N$205:N$216,$C$205:$C$216)<0,0, IF(FORECAST($C201,N$205:N$216,$C$205:$C$216)>100,100, FORECAST($C201,N$205:N$216,$C$205:$C$216)))) -> 100 | R201: =IF(MAX(C205:C216)-MIN(C205:C216)<5,AVERAGEIF(C205:C216,">0",R205:R216), IF(FORECAST($C201,R$205:R$216,$C$205:$C$216)<0,0, IF(FORECAST($C201,R$205:R$216,$C$205:$C$216)>100,100, FORECAST($C201,R$205:R$216,$C$205:$C$216)))) -> 0 | S201: =IF(MAX(C205:C216)-MIN(C205:C216)<5,AVERAGEIF(C205:C216,">0",S205:S216), IF(FORECAST($C201,S$205:S$216,$C$205:$C$216)<0,0, IF(FORECAST($C201,S$205:S$216,$C$205:$C$216)>100,100, FORECAST($C201,S$205:S$216,$C$205:$C$216)))) -> 100 | W201: =IF(MAX(C205:C216)-MIN(C205:C216)<5,AVERAGEIF(C205:C216,">0",W205:W216), IF(FORECAST($C201,W$205:W$216,$C$205:$C$216)<0,0, IF(FORECAST($C201,W$205:W$216,$C$205:$C$216)>100,100, FORECAST($C201,W$205:W$216,$C$205:$C$216)))) -> 0 | X201: =IF(MAX(C205:C216)-MIN(C205:C216)<5,AVERAGEIF(C205:C216,">0",X205:X216), IF(FORECAST($C201,X$205:X$216,$C$205:$C$216)<0,0, IF(FORECAST($C201,X$205:X$216,$C$205:$C$216)>100,100, FORECAST($C201,X$205:X$216,$C$205:$C$216)))) -> 100 | AB201: =IF(MAX(C205:C216)-MIN(C205:C216)<5,AVERAGEIF(C205:C216,">0",AB205:AB216), IF(FORECAST($C201,AB$205:AB$216,$C$205:$C$216)<0,0, IF(FORECAST($C201,AB$205:AB$216,$C$205:$C$216)>100,100, FORECAST($C201,AB$205:AB$216,$C$205:$C$216)))) -> 0
C202: =MaxRegYear(C200,C205:C216) -> 2020 | D202: =IF(MAX(C205:C216)-MIN(C205:C216)<5,AVERAGEIF(C205:C216,">0",D205:D216), IF(FORECAST($C202,D$205:D$216,$C$205:$C$216)<0,0, IF(FORECAST($C202,D$205:D$216,$C$205:$C$216)>100,100, FORECAST($C202,D$205:D$216,$C$205:$C$216)))) -> 99.39969728 | H202: =IF(MAX(C205:C216)-MIN(C205:C216)<5,AVERAGEIF(C205:C216,">0",H205:H216), IF(FORECAST($C202,H$205:H$216,$C$205:$C$216)<0,0, IF(FORECAST($C202,H$205:H$216,$C$205:$C$216)>100,100, FORECAST($C202,H$205:H$216,$C$205:$C$216)))) -> 0.05515069393 | I202: =IF(MAX(C205:C216)-MIN(C205:C216)<5,AVERAGEIF(C205:C216,">0",I205:I216), IF(FORECAST($C202,I$205:I$216,$C$205:$C$216)<0,0, IF(FORECAST($C202,I$205:I$216,$C$205:$C$216)>100,100, FORECAST($C202,I$205:I$216,$C$205:$C$216)))) -> 99.23705355 | M202: =IF(MAX(C205:C216)-MIN(C205:C216)<5,AVERAGEIF(C205:C216,">0",M205:M216), IF(FORECAST($C202,M$205:M$216,$C$205:$C$216)<0,0, IF(FORECAST($C202,M$205:M$216,$C$205:$C$216)>100,100, FORECAST($C202,M$205:M$216,$C$205:$C$216)))) -> 0 | N202: =IF(MAX(C205:C216)-MIN(C205:C216)<5,AVERAGEIF(C205:C216,">0",N205:N216), IF(FORECAST($C202,N$205:N$216,$C$205:$C$216)<0,0, IF(FORECAST($C202,N$205:N$216,$C$205:$C$216)>100,100, FORECAST($C202,N$205:N$216,$C$205:$C$216)))) -> 98.7426331 | R202: =IF(MAX(C205:C216)-MIN(C205:C216)<5,AVERAGEIF(C205:C216,">0",R205:R216), IF(FORECAST($C202,R$205:R$216,$C$205:$C$216)<0,0, IF(FORECAST($C202,R$205:R$216,$C$205:$C$216)>100,100, FORECAST($C202,R$205:R$216,$C$205:$C$216)))) -> 0 | S202: =IF(MAX(C205:C216)-MIN(C205:C216)<5,AVERAGEIF(C205:C216,">0",S205:S216), IF(FORECAST($C202,S$205:S$216,$C$205:$C$216)<0,0, IF(FORECAST($C202,S$205:S$216,$C$205:$C$216)>100,100, FORECAST($C202,S$205:S$216,$C$205:$C$216)))) -> 98.97021011 | W202: =IF(MAX(C205:C216)-MIN(C205:C216)<5,AVERAGEIF(C205:C216,">0",W205:W216), IF(FORECAST($C202,W$205:W$216,$C$205:$C$216)<0,0, IF(FORECAST($C202,W$205:W$216,$C$205:$C$216)>100,100, FORECAST($C202,W$205:W$216,$C$205:$C$216)))) -> 0 | X202: =IF(MAX(C205:C216)-MIN(C205:C216)<5,AVERAGEIF(C205:C216,">0",X205:X216), IF(FORECAST($C202,X$205:X$216,$C$205:$C$216)<0,0, IF(FORECAST($C202,X$205:X$216,$C$205:$C$216)>100,100, FORECAST($C202,X$205:X$216,$C$205:$C$216)))) -> 98.97054232 | AB202: =IF(MAX(C205:C216)-MIN(C205:C216)<5,AVERAGEIF(C205:C216,">0",AB205:AB216), IF(FORECAST($C202,AB$205:AB$216,$C$205:$C$216)<0,0, IF(FORECAST($C202,AB$205:AB$216,$C$205:$C$216)>100,100, FORECAST($C202,AB$205:AB$216,$C$205:$C$216)))) -> 0
B204: Survey | C204: Year | D204: Improved | E204: % Improved < = 30min | H204: Surface water | I204: Improved | J204: % Improved < = 30min | M204: Surface water | N204: Improved | O204: % Improved < = 30min | R204: Surface water | S204: Improved | T204: % Improved < = 30min | W204: Surface water | X204: Improved | Y204: % Improved < = 30min | AB204: Surface water
B205: WHS03 | C205: 2003 | D205: =IF(ISERROR(INDIRECT(CONCATENATE($B205,"!H16"))),"",INDIRECT(CONCATENATE($B205,"!H16"))) -> 99.82661393 | E205: =IF(ISERROR(INDIRECT(CONCATENATE($B205,"!H23"))),"",INDIRECT(CONCATENATE($B205,"!H23"))) -> N/A | H205: =IF(ISERROR(INDIRECT(CONCATENATE($B205,"!H21"))),"",INDIRECT(CONCATENATE($B205,"!H21"))) -> 0 | I205: =IF(ISERROR(INDIRECT(CONCATENATE($B205,"!I16"))),"",INDIRECT(CONCATENATE($B205,"!I16"))) -> 100 | J205: =IF(ISERROR(INDIRECT(CONCATENATE($B205,"!I23"))),"",INDIRECT(CONCATENATE($B205,"!I23"))) -> N/A | M205: =IF(ISERROR(INDIRECT(CONCATENATE($B205,"!I21"))),"",INDIRECT(CONCATENATE($B205,"!I21"))) -> 0 | N205: =IF(ISERROR(INDIRECT(CONCATENATE($B205,"!J16"))),"",INDIRECT(CONCATENATE($B205,"!J16"))) -> 100 | O205: =IF(ISERROR(INDIRECT(CONCATENATE($B205,"!J23"))),"",INDIRECT(CONCATENATE($B205,"!J23"))) -> N/A | R205: =IF(ISERROR(INDIRECT(CONCATENATE($B205,"!J21"))),"",INDIRECT(CONCATENATE($B205,"!J21"))) -> 0 | S205: =IF(ISERROR(INDIRECT(CONCATENATE($B205,"!K16"))),"",INDIRECT(CONCATENATE($B205,"!K16"))) -> 100 | T205: =IF(ISERROR(INDIRECT(CONCATENATE($B205,"!K23"))),"",INDIRECT(CONCATENATE($B205,"!K23"))) -> N/A | W205: =IF(ISERROR(INDIRECT(CONCATENATE($B205,"!K21"))),"",INDIRECT(CONCATENATE($B205,"!K21"))) -> 0 | X205: =IF(ISERROR(INDIRECT(CONCATENATE($B205,"!L16"))),"",INDIRECT(CONCATENATE($B205,"!L16"))) -> 100 | Y205: =IF(ISERROR(INDIRECT(CONCATENATE($B205,"!L23"))),"",INDIRECT(CONCATENATE($B205,"!L23"))) -> N/A | AB205: =IF(ISERROR(INDIRECT(CONCATENATE($B205,"!L221"))),"",INDIRECT(CONCATENATE($B205,"!L21"))) -> 0
B206: MICS12 | C206: 2012 | D206: 99.70995375 | E206: 99.8 | H206: 0.1337697683 | I206: 100 | J206: 99.6 | M206: 0 | N206: 99.98936977 | O206: 100 | R206: 0 | S206: 100 | T206: 99.5 | W206: 0 | X206: 100 | Y206: 99.4 | AB206: 0
B207: MICS18 | C207: 2018 | D207: 99.39903502 | E207: 99.10443959 | H207: 0 | I207: 99.13885252 | J207: 98.63527523 | M207: 0 | N207: 98.58574054 | O207: 99.18388681 | R207: 0 | S207: 98.8376629 | T207: 99.88126578 | W207: 0 | X207: 98.83803786 | Y207: 99.48528212 | AB207: 0
B218: =CONCATENATE("Urban use of drinking water sources, ",C199,"–",C200) -> Urban use of drinking water sources, 2000–2020 | S218: Data points used for regression
E253: =IF(ISERROR(INDIRECT(CONCATENATE($B253,"!M18"))),"",INDIRECT(CONCATENATE($B253,"!M18"))) ->  | F253: =IF(ISERROR(INDIRECT(CONCATENATE($B253,"!M19"))),"",INDIRECT(CONCATENATE($B253,"!M19"))) ->  | G253: =IF(ISERROR(INDIRECT(CONCATENATE($B253,"!M20"))),"",INDIRECT(CONCATENATE($B253,"!M20"))) ->  | H253: =IF(ISERROR(INDIRECT(CONCATENATE($B253,"!M21"))),"",INDIRECT(CONCATENATE($B253,"!M21"))) ->  | J253: =IF(ISERROR(INDIRECT(CONCATENATE($B253,"!N18"))),"",INDIRECT(CONCATENATE($B253,"!N18"))) ->  | K253: =IF(ISERROR(INDIRECT(CONCATENATE($B253,"!N19"))),"",INDIRECT(CONCATENATE($B253,"!N19"))) ->  | L253: =IF(ISERROR(INDIRECT(CONCATENATE($B253,"!N20"))),"",INDIRECT(CONCATENATE($B253,"!N20"))) ->  | M253: =IF(ISERROR(INDIRECT(CONCATENATE($B253,"!N21"))),"",INDIRECT(CONCATENATE($B253,"!N21"))) ->  | O253: =IF(ISERROR(INDIRECT(CONCATENATE($B253,"!O18"))),"",INDIRECT(CONCATENATE($B253,"!O18"))) ->  | P253: =IF(ISERROR(INDIRECT(CONCATENATE($B253,"!O19"))),"",INDIRECT(CONCATENATE($B253,"!O19"))) ->  | Q253: =IF(ISERROR(INDIRECT(CONCATENATE($B253,"!O20"))),"",INDIRECT(CONCATENATE($B253,"!O20"))) ->  | R253: =IF(ISERROR(INDIRECT(CONCATENATE($B253,"!O21"))),"",INDIRECT(CONCATENATE($B253,"!O21"))) ->  | T253: =IF(ISERROR(INDIRECT(CONCATENATE($B253,"!P18"))),"",INDIRECT(CONCATENATE($B253,"!P18"))) ->  | U253: =IF(ISERROR(INDIRECT(CONCATENATE($B253,"!P19"))),"",INDIRECT(CONCATENATE($B253,"!P19"))) ->  | V253: =IF(ISERROR(INDIRECT(CONCATENATE($B253,"!P20"))),"",INDIRECT(CONCATENATE($B253,"!P20"))) ->  | W253: =IF(ISERROR(INDIRECT(CONCATENATE($B253,"!P21"))),"",INDIRECT(CONCATENATE($B253,"!P21"))) ->  | Y253: =IF(ISERROR(INDIRECT(CONCATENATE($B253,"!Q18"))),"",INDIRECT(CONCATENATE($B253,"!Q18"))) ->  | Z253: =IF(ISERROR(INDIRECT(CONCATENATE($B253,"!Q19"))),"",INDIRECT(CONCATENATE($B253,"!Q19"))) ->  | AA253: =IF(ISERROR(INDIRECT(CONCATENATE($B253,"!Q20"))),"",INDIRECT(CONCATENATE($B253,"!Q20"))) ->  | AB253: =IF(ISERROR(INDIRECT(CONCATENATE($B253,"!Q21"))),"",INDIRECT(CONCATENATE($B253,"!Q1"))) -> 
E254: =IF(ISERROR(INDIRECT(CONCATENATE($B254,"!M18"))),"",INDIRECT(CONCATENATE($B254,"!M18"))) ->  | F254: =IF(ISERROR(INDIRECT(CONCATENATE($B254,"!M19"))),"",INDIRECT(CONCATENATE($B254,"!M19"))) ->  | G254: =IF(ISERROR(INDIRECT(CONCATENATE($B254,"!M20"))),"",INDIRECT(CONCATENATE($B254,"!M20"))) ->  | H254: =IF(ISERROR(INDIRECT(CONCATENATE($B254,"!M21"))),"",INDIRECT(CONCATENATE($B254,"!M21"))) ->  | J254: =IF(ISERROR(INDIRECT(CONCATENATE($B254,"!N18"))),"",INDIRECT(CONCATENATE($B254,"!N18"))) ->  | K254: =IF(ISERROR(INDIRECT(CONCATENATE($B254,"!N19"))),"",INDIRECT(CONCATENATE($B254,"!N19"))) ->  | L254: =IF(ISERROR(INDIRECT(CONCATENATE($B254,"!N20"))),"",INDIRECT(CONCATENATE($B254,"!N20"))) ->  | M254: =IF(ISERROR(INDIRECT(CONCATENATE($B254,"!N21"))),"",INDIRECT(CONCATENATE($B254,"!N21"))) ->  | O254: =IF(ISERROR(INDIRECT(CONCATENATE($B254,"!O18"))),"",INDIRECT(CONCATENATE($B254,"!O18"))) ->  | P254: =IF(ISERROR(INDIRECT(CONCATENATE($B254,"!O19"))),"",INDIRECT(CONCATENATE($B254,"!O19"))) ->  | Q254: =IF(ISERROR(INDIRECT(CONCATENATE($B254,"!O20"))),"",INDIRECT(CONCATENATE($B254,"!O20"))) ->  | R254: =IF(ISERROR(INDIRECT(CONCATENATE($B254,"!O21"))),"",INDIRECT(CONCATENATE($B254,"!O21"))) ->  | T254: =IF(ISERROR(INDIRECT(CONCATENATE($B254,"!P18"))),"",INDIRECT(CONCATENATE($B254,"!P18"))) ->  | U254: =IF(ISERROR(INDIRECT(CONCATENATE($B254,"!P19"))),"",INDIRECT(CONCATENATE($B254,"!P19"))) ->  | V254: =IF(ISERROR(INDIRECT(CONCATENATE($B254,"!P20"))),"",INDIRECT(CONCATENATE($B254,"!P20"))) ->  | W254: =IF(ISERROR(INDIRECT(CONCATENATE($B254,"!P21"))),"",INDIRECT(CONCATENATE($B254,"!P21"))) ->  | Y254: =IF(ISERROR(INDIRECT(CONCATENATE($B254,"!Q18"))),"",INDIRECT(CONCATENATE($B254,"!Q18"))) ->  | Z254: =IF(ISERROR(INDIRECT(CONCATENATE($B254,"!Q19"))),"",INDIRECT(CONCATENATE($B254,"!Q19"))) ->  | AA254: =IF(ISERROR(INDIRECT(CONCATENATE($B254,"!Q20"))),"",INDIRECT(CONCATENATE($B254,"!Q20"))) ->  | AB254: =IF(ISERROR(INDIRECT(CONCATENATE($B254,"!Q21"))),"",INDIRECT(CONCATENATE($B254,"!Q1"))) -> 
E255: =IF(ISERROR(INDIRECT(CONCATENATE($B255,"!M18"))),"",INDIRECT(CONCATENATE($B255,"!M18"))) ->  | F255: =IF(ISERROR(INDIRECT(CONCATENATE($B255,"!M19"))),"",INDIRECT(CONCATENATE($B255,"!M19"))) ->  | G255: =IF(ISERROR(INDIRECT(CONCATENATE($B255,"!M20"))),"",INDIRECT(CONCATENATE($B255,"!M20"))) ->  | H255: =IF(ISERROR(INDIRECT(CONCATENATE($B255,"!M21"))),"",INDIRECT(CONCATENATE($B255,"!M21"))) ->  | J255: =IF(ISERROR(INDIRECT(CONCATENATE($B255,"!N18"))),"",INDIRECT(CONCATENATE($B255,"!N18"))) ->  | K255: =IF(ISERROR(INDIRECT(CONCATENATE($B255,"!N19"))),"",INDIRECT(CONCATENATE($B255,"!N19"))) ->  | L255: =IF(ISERROR(INDIRECT(CONCATENATE($B255,"!N20"))),"",INDIRECT(CONCATENATE($B255,"!N20"))) ->  | M255: =IF(ISERROR(INDIRECT(CONCATENATE($B255,"!N21"))),"",INDIRECT(CONCATENATE($B255,"!N21"))) ->  | O255: =IF(ISERROR(INDIRECT(CONCATENATE($B255,"!O18"))),"",INDIRECT(CONCATENATE($B255,"!O18"))) ->  | P255: =IF(ISERROR(INDIRECT(CONCATENATE($B255,"!O19"))),"",INDIRECT(CONCATENATE($B255,"!O19"))) ->  | Q255: =IF(ISERROR(INDIRECT(CONCATENATE($B255,"!O20"))),"",INDIRECT(CONCATENATE($B255,"!O20"))) ->  | R255: =IF(ISERROR(INDIRECT(CONCATENATE($B255,"!O21"))),"",INDIRECT(CONCATENATE($B255,"!O21"))) ->  | T255: =IF(ISERROR(INDIRECT(CONCATENATE($B255,"!P18"))),"",INDIRECT(CONCATENATE($B255,"!P18"))) ->  | U255: =IF(ISERROR(INDIRECT(CONCATENATE($B255,"!P19"))),"",INDIRECT(CONCATENATE($B255,"!P19"))) ->  | V255: =IF(ISERROR(INDIRECT(CONCATENATE($B255,"!P20"))),"",INDIRECT(CONCATENATE($B255,"!P20"))) ->  | W255: =IF(ISERROR(INDIRECT(CONCATENATE($B255,"!P21"))),"",INDIRECT(CONCATENATE($B255,"!P21"))) ->  | Y255: =IF(ISERROR(INDIRECT(CONCATENATE($B255,"!Q18"))),"",INDIRECT(CONCATENATE($B255,"!Q18"))) ->  | Z255: =IF(ISERROR(INDIRECT(CONCATENATE($B255,"!Q19"))),"",INDIRECT(CONCATENATE($B255,"!Q19"))) ->  | AA255: =IF(ISERROR(INDIRECT(CONCATENATE($B255,"!Q20"))),"",INDIRECT(CONCATENATE($B255,"!Q20"))) ->  | AB255: =IF(ISERROR(INDIRECT(CONCATENATE($B255,"!Q21"))),"",INDIRECT(CONCATENATE($B255,"!Q1"))) -> 
E256: =IF(ISERROR(INDIRECT(CONCATENATE($B256,"!M18"))),"",INDIRECT(CONCATENATE($B256,"!M18"))) ->  | F256: =IF(ISERROR(INDIRECT(CONCATENATE($B256,"!M19"))),"",INDIRECT(CONCATENATE($B256,"!M19"))) ->  | G256: =IF(ISERROR(INDIRECT(CONCATENATE($B256,"!M20"))),"",INDIRECT(CONCATENATE($B256,"!M20"))) ->  | H256: =IF(ISERROR(INDIRECT(CONCATENATE($B256,"!M21"))),"",INDIRECT(CONCATENATE($B256,"!M21"))) ->  | J256: =IF(ISERROR(INDIRECT(CONCATENATE($B256,"!N18"))),"",INDIRECT(CONCATENATE($B256,"!N18"))) ->  | K256: =IF(ISERROR(INDIRECT(CONCATENATE($B256,"!N19"))),"",INDIRECT(CONCATENATE($B256,"!N19"))) ->  | L256: =IF(ISERROR(INDIRECT(CONCATENATE($B256,"!N20"))),"",INDIRECT(CONCATENATE($B256,"!N20"))) ->  | M256: =IF(ISERROR(INDIRECT(CONCATENATE($B256,"!N21"))),"",INDIRECT(CONCATENATE($B256,"!N21"))) ->  | O256: =IF(ISERROR(INDIRECT(CONCATENATE($B256,"!O18"))),"",INDIRECT(CONCATENATE($B256,"!O18"))) ->  | P256: =IF(ISERROR(INDIRECT(CONCATENATE($B256,"!O19"))),"",INDIRECT(CONCATENATE($B256,"!O19"))) ->  | Q256: =IF(ISERROR(INDIRECT(CONCATENATE($B256,"!O20"))),"",INDIRECT(CONCATENATE($B256,"!O20"))) ->  | R256: =IF(ISERROR(INDIRECT(CONCATENATE($B256,"!O21"))),"",INDIRECT(CONCATENATE($B256,"!O21"))) ->  | T256: =IF(ISERROR(INDIRECT(CONCATENATE($B256,"!P18"))),"",INDIRECT(CONCATENATE($B256,"!P18"))) ->  | U256: =IF(ISERROR(INDIRECT(CONCATENATE($B256,"!P19"))),"",INDIRECT(CONCATENATE($B256,"!P19"))) ->  | V256: =IF(ISERROR(INDIRECT(CONCATENATE($B256,"!P20"))),"",INDIRECT(CONCATENATE($B256,"!P20"))) ->  | W256: =IF(ISERROR(INDIRECT(CONCATENATE($B256,"!P21"))),"",INDIRECT(CONCATENATE($B256,"!P21"))) ->  | Y256: =IF(ISERROR(INDIRECT(CONCATENATE($B256,"!Q18"))),"",INDIRECT(CONCATENATE($B256,"!Q18"))) ->  | Z256: =IF(ISERROR(INDIRECT(CONCATENATE($B256,"!Q19"))),"",INDIRECT(CONCATENATE($B256,"!Q19"))) ->  | AA256: =IF(ISERROR(INDIRECT(CONCATENATE($B256,"!Q20"))),"",INDIRECT(CONCATENATE($B256,"!Q20"))) ->  | AB256: =IF(ISERROR(INDIRECT(CONCATENATE($B256,"!Q21"))),"",INDIRECT(CONCATENATE($B256,"!Q1"))) -> 
E257: =IF(ISERROR(INDIRECT(CONCATENATE($B257,"!M18"))),"",INDIRECT(CONCATENATE($B257,"!M18"))) ->  | F257: =IF(ISERROR(INDIRECT(CONCATENATE($B257,"!M19"))),"",INDIRECT(CONCATENATE($B257,"!M19"))) ->  | G257: =IF(ISERROR(INDIRECT(CONCATENATE($B257,"!M20"))),"",INDIRECT(CONCATENATE($B257,"!M20"))) ->  | H257: =IF(ISERROR(INDIRECT(CONCATENATE($B257,"!M21"))),"",INDIRECT(CONCATENATE($B257,"!M21"))) ->  | J257: =IF(ISERROR(INDIRECT(CONCATENATE($B257,"!N18"))),"",INDIRECT(CONCATENATE($B257,"!N18"))) ->  | K257: =IF(ISERROR(INDIRECT(CONCATENATE($B257,"!N19"))),"",INDIRECT(CONCATENATE($B257,"!N19"))) ->  | L257: =IF(ISERROR(INDIRECT(CONCATENATE($B257,"!N20"))),"",INDIRECT(CONCATENATE($B257,"!N20"))) ->  | M257: =IF(ISERROR(INDIRECT(CONCATENATE($B257,"!N21"))),"",INDIRECT(CONCATENATE($B257,"!N21"))) ->  | O257: =IF(ISERROR(INDIRECT(CONCATENATE($B257,"!O18"))),"",INDIRECT(CONCATENATE($B257,"!O18"))) ->  | P257: =IF(ISERROR(INDIRECT(CONCATENATE($B257,"!O19"))),"",INDIRECT(CONCATENATE($B257,"!O19"))) ->  | Q257: =IF(ISERROR(INDIRECT(CONCATENATE($B257,"!O20"))),"",INDIRECT(CONCATENATE($B257,"!O20"))) ->  | R257: =IF(ISERROR(INDIRECT(CONCATENATE($B257,"!O21"))),"",INDIRECT(CONCATENATE($B257,"!O21"))) ->  | T257: =IF(ISERROR(INDIRECT(CONCATENATE($B257,"!P18"))),"",INDIRECT(CONCATENATE($B257,"!P18"))) ->  | U257: =IF(ISERROR(INDIRECT(CONCATENATE($B257,"!P19"))),"",INDIRECT(CONCATENATE($B257,"!P19"))) ->  | V257: =IF(ISERROR(INDIRECT(CONCATENATE($B257,"!P20"))),"",INDIRECT(CONCATENATE($B257,"!P20"))) ->  | W257: =IF(ISERROR(INDIRECT(CONCATENATE($B257,"!P21"))),"",INDIRECT(CONCATENATE($B257,"!P21"))) ->  | Y257: =IF(ISERROR(INDIRECT(CONCATENATE($B257,"!Q18"))),"",INDIRECT(CONCATENATE($B257,"!Q18"))) ->  | Z257: =IF(ISERROR(INDIRECT(CONCATENATE($B257,"!Q19"))),"",INDIRECT(CONCATENATE($B257,"!Q19"))) ->  | AA257: =IF(ISERROR(INDIRECT(CONCATENATE($B257,"!Q20"))),"",INDIRECT(CONCATENATE($B257,"!Q20"))) ->  | AB257: =IF(ISERROR(INDIRECT(CONCATENATE($B257,"!Q21"))),"",INDIRECT(CONCATENATE($B257,"!Q1"))) -> 
A297: RURAL | D297: Poorest | I297: Poor | N297: Middle | S297: Rich | X297: Richest
D298: Improved | E298: Basic | F298: Limited | G298: Unimproved | H298: Surface water | I298: Improved | J298: Basic | K298: Limited | L298: Unimproved | M298: Surface water | N298: Improved | O298: Basic | P298: Limited | Q298: Unimproved | R298: Surface water | S298: Improved | T298: Basic | U298: Limited | V298: Unimproved | W298: Surface water | X298: Improved | Y298: Basic | Z298: Limited | AA298: Unimproved | AB298: Surface water
A299: Forecast period: | C299: 2000 | D299: =IF((D301+H301)>100,D301*100/(D301+H301),D301) -> 83.63346296 | E299: =D299*AVERAGEIF(E305:E316,">0")/100 -> 72.90621725 | F299: =D299*(100-AVERAGEIF(E305:E316,">0"))/100 -> 10.7272457 | G299: =100-(E299+F299+H299) -> 13.64558438 | H299: =IF((D301+H301)>100,H301*100/(D301+H301),H301) -> 2.720952667 | I299: =IF((I301+M301)>100,I301*100/(I301+M301),I301) -> 84.10825527 | J299: =I299*AVERAGEIF(J305:J316,">0")/100 -> 76.45500307 | K299: =I299*(100-AVERAGEIF(J305:J316,">0"))/100 -> 7.653252206 | L299: =100-(J299+K299+M299) -> 13.84234445 | M299: =IF((I301+M301)>100,M301*100/(I301+M301),M301) -> 2.049400281 | N299: =IF((N301+R301)>100,N301*100/(N301+R301),N301) -> 83.797572 | O299: =N299*AVERAGEIF(O305:O316,">0")/100 -> 76.70526957 | P299: =N299*(100-AVERAGEIF(O305:O316,">0"))/100 -> 7.092302425 | Q299: =100-(O299+P299+R299) -> 13.22756898 | R299: =IF((N301+R301)>100,R301*100/(N301+R301),R301) -> 2.974859025 | S299: =IF((S301+W301)>100,S301*100/(S301+W301),S301) -> 89.58847842 | T299: =S299*AVERAGEIF(T305:T316,">0")/100 -> 84.8967234 | U299: =S299*(100-AVERAGEIF(T305:T316,">0"))/100 -> 4.691755022 | V299: =100-(T299+U299+W299) -> 8.548019374 | W299: =IF((S301+W301)>100,W301*100/(S301+W301),W301) -> 1.863502207 | X299: =IF((X301+AB301)>100,X301*100/(X301+AB301),X301) -> 95.17276098 | Y299: =X299*AVERAGEIF(Y305:Y316,">0")/100 -> 93.37972189 | Z299: =X299*(100-AVERAGEIF(Y305:Y316,">0"))/100 -> 1.793039087 | AA299: =100-(Y299+Z299+AB299) -> 4.154693634 | AB299: =IF((X301+AB301)>100,AB301*100/(X301+AB301),AB301) -> 0.6725453896
C300: 2020 | D300: =IF((D302+H302)>100,D302*100/(D302+H302),D302) -> 91.22535788 | E300: =D300*AVERAGEIF(E305:E316,">0")/100 -> 79.52433781 | F300: =D300*(100-AVERAGEIF(E305:E316,">0"))/100 -> 11.70102007 | G300: =100-(E300+F300+H300) -> 8.77464212 | H300: =IF((D302+H302)>100,H302*100/(D302+H302),H302) -> 0 | I300: =IF((I302+M302)>100,I302*100/(I302+M302),I302) -> 96.46765539 | J300: =I300*AVERAGEIF(J305:J316,">0")/100 -> 87.68978579 | K300: =I300*(100-AVERAGEIF(J305:J316,">0"))/100 -> 8.777869592 | L300: =100-(J300+K300+M300) -> 3.532344613 | M300: =IF((I302+M302)>100,M302*100/(I302+M302),M302) -> 0 | N300: =IF((N302+R302)>100,N302*100/(N302+R302),N302) -> 98.28157386 | O300: =N300*AVERAGEIF(O305:O316,">0")/100 -> 89.96340153 | P300: =N300*(100-AVERAGEIF(O305:O316,">0"))/100 -> 8.318172329 | Q300: =100-(O300+P300+R300) -> 1.718426137 | R300: =IF((N302+R302)>100,R302*100/(N302+R302),R302) -> 0 | S300: =IF((S302+W302)>100,S302*100/(S302+W302),S302) -> 99.46409039 | T300: =S300*AVERAGEIF(T305:T316,">0")/100 -> 94.25514886 | U300: =S300*(100-AVERAGEIF(T305:T316,">0"))/100 -> 5.208941528 | V300: =100-(T300+U300+W300) -> 0.5359096104 | W300: =IF((S302+W302)>100,W302*100/(S302+W302),W302) -> 0 | X300: =IF((X302+AB302)>100,X302*100/(X302+AB302),X302) -> 98.71025703 | Y300: =X300*AVERAGEIF(Y305:Y316,">0")/100 -> 96.85057211 | Z300: =X300*(100-AVERAGEIF(Y305:Y316,">0"))/100 -> 1.859684928 | AA300: =100-(Y300+Z300+AB300) -> 1.289742967 | AB300: =IF((X302+AB302)>100,AB302*100/(X302+AB302),AB302) -> 0
A301: Regression period: | C301: =MinRegYear(C299,C305:C316) -> 2001 | D301: =IF(MAX(C305:C316)-MIN(C305:C316)<5,AVERAGEIF(C305:C316,">0",D305:D316), IF(FORECAST($C301,D$305:D$316,$C$305:$C$316)<0,0, IF(FORECAST($C301,D$305:D$316,$C$305:$C$316)>100,100, FORECAST($C301,D$305:D$316,$C$305:$C$316)))) -> 83.63346296 | H301: =IF(MAX(C305:C316)-MIN(C305:C316)<5,AVERAGEIF(C305:C316,">0",H305:H316), IF(FORECAST($C301,H$305:H$316,$C$305:$C$316)<0,0, IF(FORECAST($C301,H$305:H$316,$C$305:$C$316)>100,100, FORECAST($C301,H$305:H$316,$C$305:$C$316)))) -> 2.720952667 | I301: =IF(MAX(C305:C316)-MIN(C305:C316)<5,AVERAGEIF(C305:C316,">0",I305:I316), IF(FORECAST($C301,I$305:I$316,$C$305:$C$316)<0,0, IF(FORECAST($C301,I$305:I$316,$C$305:$C$316)>100,100, FORECAST($C301,I$305:I$316,$C$305:$C$316)))) -> 84.10825527 | M301: =IF(MAX(C305:C316)-MIN(C305:C316)<5,AVERAGEIF(C305:C316,">0",M305:M316), IF(FORECAST($C301,M$305:M$316,$C$305:$C$316)<0,0, IF(FORECAST($C301,M$305:M$316,$C$305:$C$316)>100,100, FORECAST($C301,M$305:M$316,$C$305:$C$316)))) -> 2.049400281 | N301: =IF(MAX(C305:C316)-MIN(C305:C316)<5,AVERAGEIF(C305:C316,">0",N305:N316), IF(FORECAST($C301,N$305:N$316,$C$305:$C$316)<0,0, IF(FORECAST($C301,N$305:N$316,$C$305:$C$316)>100,100, FORECAST($C301,N$305:N$316,$C$305:$C$316)))) -> 83.797572 | R301: =IF(MAX(C305:C316)-MIN(C305:C316)<5,AVERAGEIF(C305:C316,">0",R305:R316), IF(FORECAST($C301,R$305:R$316,$C$305:$C$316)<0,0, IF(FORECAST($C301,R$305:R$316,$C$305:$C$316)>100,100, FORECAST($C301,R$305:R$316,$C$305:$C$316)))) -> 2.974859025 | S301: =IF(MAX(C305:C316)-MIN(C305:C316)<5,AVERAGEIF(C305:C316,">0",S305:S316), IF(FORECAST($C301,S$305:S$316,$C$305:$C$316)<0,0, IF(FORECAST($C301,S$305:S$316,$C$305:$C$316)>100,100, FORECAST($C301,S$305:S$316,$C$305:$C$316)))) -> 89.58847842 | W301: =IF(MAX(C305:C316)-MIN(C305:C316)<5,AVERAGEIF(C305:C316,">0",W305:W316), IF(FORECAST($C301,W$305:W$316,$C$305:$C$316)<0,0, IF(FORECAST($C301,W$305:W$316,$C$305:$C$316)>100,100, FORECAST($C301,W$305:W$316,$C$305:$C$316)))) -> 1.863502207 | X301: =IF(MAX(C305:C316)-MIN(C305:C316)<5,AVERAGEIF(C305:C316,">0",X305:X316), IF(FORECAST($C301,X$305:X$316,$C$305:$C$316)<0,0, IF(FORECAST($C301,X$305:X$316,$C$305:$C$316)>100,100, FORECAST($C301,X$305:X$316,$C$305:$C$316)))) -> 95.17276098 | AB301: =IF(MAX(C305:C316)-MIN(C305:C316)<5,AVERAGEIF(C305:C316,">0",AB305:AB316), IF(FORECAST($C301,AB$305:AB$316,$C$305:$C$316)<0,0, IF(FORECAST($C301,AB$305:AB$316,$C$305:$C$316)>100,100, FORECAST($C301,AB$305:AB$316,$C$305:$C$316)))) -> 0.6725453896
C302: =MaxRegYear(C300,C305:C316) -> 2020 | D302: =IF(MAX(C305:C316)-MIN(C305:C316)<5,AVERAGEIF(C305:C316,">0",D305:D316), IF(FORECAST($C302,D$305:D$316,$C$305:$C$316)<0,0, IF(FORECAST($C302,D$305:D$316,$C$305:$C$316)>100,100, FORECAST($C302,D$305:D$316,$C$305:$C$316)))) -> 91.22535788 | H302: =IF(MAX(C305:C316)-MIN(C305:C316)<5,AVERAGEIF(C305:C316,">0",H305:H316), IF(FORECAST($C302,H$305:H$316,$C$305:$C$316)<0,0, IF(FORECAST($C302,H$305:H$316,$C$305:$C$316)>100,100, FORECAST($C302,H$305:H$316,$C$305:$C$316)))) -> 0 | I302: =IF(MAX(C305:C316)-MIN(C305:C316)<5,AVERAGEIF(C305:C316,">0",I305:I316), IF(FORECAST($C302,I$305:I$316,$C$305:$C$316)<0,0, IF(FORECAST($C302,I$305:I$316,$C$305:$C$316)>100,100, FORECAST($C302,I$305:I$316,$C$305:$C$316)))) -> 96.46765539 | M302: =IF(MAX(C305:C316)-MIN(C305:C316)<5,AVERAGEIF(C305:C316,">0",M305:M316), IF(FORECAST($C302,M$305:M$316,$C$305:$C$316)<0,0, IF(FORECAST($C302,M$305:M$316,$C$305:$C$316)>100,100, FORECAST($C302,M$305:M$316,$C$305:$C$316)))) -> 0 | N302: =IF(MAX(C305:C316)-MIN(C305:C316)<5,AVERAGEIF(C305:C316,">0",N305:N316), IF(FORECAST($C302,N$305:N$316,$C$305:$C$316)<0,0, IF(FORECAST($C302,N$305:N$316,$C$305:$C$316)>100,100, FORECAST($C302,N$305:N$316,$C$305:$C$316)))) -> 98.28157386 | R302: =IF(MAX(C305:C316)-MIN(C305:C316)<5,AVERAGEIF(C305:C316,">0",R305:R316), IF(FORECAST($C302,R$305:R$316,$C$305:$C$316)<0,0, IF(FORECAST($C302,R$305:R$316,$C$305:$C$316)>100,100, FORECAST($C302,R$305:R$316,$C$305:$C$316)))) -> 0 | S302: =IF(MAX(C305:C316)-MIN(C305:C316)<5,AVERAGEIF(C305:C316,">0",S305:S316), IF(FORECAST($C302,S$305:S$316,$C$305:$C$316)<0,0, IF(FORECAST($C302,S$305:S$316,$C$305:$C$316)>100,100, FORECAST($C302,S$305:S$316,$C$305:$C$316)))) -> 99.46409039 | W302: =IF(MAX(C305:C316)-MIN(C305:C316)<5,AVERAGEIF(C305:C316,">0",W305:W316), IF(FORECAST($C302,W$305:W$316,$C$305:$C$316)<0,0, IF(FORECAST($C302,W$305:W$316,$C$305:$C$316)>100,100, FORECAST($C302,W$305:W$316,$C$305:$C$316)))) -> 0 | X302: =IF(MAX(C305:C316)-MIN(C305:C316)<5,AVERAGEIF(C305:C316,">0",X305:X316), IF(FORECAST($C302,X$305:X$316,$C$305:$C$316)<0,0, IF(FORECAST($C302,X$305:X$316,$C$305:$C$316)>100,100, FORECAST($C302,X$305:X$316,$C$305:$C$316)))) -> 98.71025703 | AB302: =IF(MAX(C305:C316)-MIN(C305:C316)<5,AVERAGEIF(C305:C316,">0",AB305:AB316), IF(FORECAST($C302,AB$305:AB$316,$C$305:$C$316)<0,0, IF(FORECAST($C302,AB$305:AB$316,$C$305:$C$316)>100,100, FORECAST($C302,AB$305:AB$316,$C$305:$C$316)))) -> 0
B304: Survey | C304: Year | D304: Improved | E304: % Improved < = 30min | H304: Surface water | I304: Improved | J304: % Improved < = 30min | M304: Surface water | N304: Improved | O304: % Improved < = 30min | R304: Surface water | S304: Improved | T304: % Improved < = 30min | W304: Surface water | X304: Improved | Y304: % Improved < = 30min | AB304: Surface water
B305: WHS03 | C305: 2003 | D305: =IF(ISERROR(INDIRECT(CONCATENATE($B305,"!M16"))),"",INDIRECT(CONCATENATE($B305,"!M16"))) -> 86.01648346 | E305: =IF(ISERROR(INDIRECT(CONCATENATE($B305,"!M23"))),"",INDIRECT(CONCATENATE($B305,"!M23"))) -> N/A | H305: =IF(ISERROR(INDIRECT(CONCATENATE($B305,"!M21"))),"",INDIRECT(CONCATENATE($B305,"!M21"))) -> 2.613022227 | I305: =IF(ISERROR(INDIRECT(CONCATENATE($B305,"!N16"))),"",INDIRECT(CONCATENATE($B305,"!N16"))) -> 85.42569475 | J305: =IF(ISERROR(INDIRECT(CONCATENATE($B305,"!N23"))),"",INDIRECT(CONCATENATE($B305,"!N23"))) -> N/A | M305: =IF(ISERROR(INDIRECT(CONCATENATE($B305,"!N21"))),"",INDIRECT(CONCATENATE($B305,"!N21"))) -> 2.000645672 | N305: =IF(ISERROR(INDIRECT(CONCATENATE($B305,"!O16"))),"",INDIRECT(CONCATENATE($B305,"!O16"))) -> 84.86713149 | O305: =IF(ISERROR(INDIRECT(CONCATENATE($B305,"!O23"))),"",INDIRECT(CONCATENATE($B305,"!O23"))) -> N/A | R305: =IF(ISERROR(INDIRECT(CONCATENATE($B305,"!O21"))),"",INDIRECT(CONCATENATE($B305,"!O21"))) -> 2.85577504 | S305: =IF(ISERROR(INDIRECT(CONCATENATE($B305,"!P16"))),"",INDIRECT(CONCATENATE($B305,"!P16"))) -> 90.2110794 | T305: =IF(ISERROR(INDIRECT(CONCATENATE($B305,"!P23"))),"",INDIRECT(CONCATENATE($B305,"!P23"))) -> N/A | W305: =IF(ISERROR(INDIRECT(CONCATENATE($B305,"!P21"))),"",INDIRECT(CONCATENATE($B305,"!P21"))) -> 1.804804521 | X305: =IF(ISERROR(INDIRECT(CONCATENATE($B305,"!Q16"))),"",INDIRECT(CONCATENATE($B305,"!Q16"))) -> 95.21775732 | Y305: =IF(ISERROR(INDIRECT(CONCATENATE($B305,"!Q23"))),"",INDIRECT(CONCATENATE($B305,"!Q23"))) -> N/A | AB305: =IF(ISERROR(INDIRECT(CONCATENATE($B305,"!Q221"))),"",INDIRECT(CONCATENATE($B305,"!Q21"))) -> 0.6010996394
B306: MICS12 | C306: 2012 | D306: 84.06908635 | E306: 84.2 | H306: 0.5581452396 | I306: 91.22257247 | J306: 88.9 | M306: 0.08439008189 | N306: 93.32072747 | O306: 90.3 | R306: 0.07687407593 | S306: 96.34828078 | T306: 93.6 | W306: 0.1232035414 | X306: 98.03921417 | Y306: 98.1 | AB306: 0.2050148915
B307: MICS18 | C307: 2018 | D307: 92.80202156 | E307: 90.14700101 | H307: 0.430502671 | I307: 95.19134089 | J307: 92.90142441 | M307: 0.1502337331 | N307: 96.07433366 | O307: 92.77277346 | R307: 0 | S307: 97.79914661 | T307: 95.9259857 | W307: 0.1242931571 | X307: 97.84683153 | Y307: 98.13203306 | AB307: 0
B318: =CONCATENATE("Rural use of drinking water sources, ",C299,"–",C300) -> Rural use of drinking water sources, 2000–2020 | S318: Data points used for regression

Sheet Sanitation
B4: Summary of trends in use of sanitation facilities by wealth quintile (%)
B5: =IF(ISERROR(INDIRECT(CONCATENATE($B105,"!A2"))),"",INDIRECT(CONCATENATE($B105,"!A2"))) -> Tunisia
B7: =B118 -> National use of sanitation facilities, 2000–2020 | J7: =B218 -> Urban use of sanitation facilities, 2000–2020 | R7: =B318 -> Rural use of sanitation facilities, 2000–2020
B31: =IF(ISERROR(INDIRECT(CONCATENATE($B105,"!A2"))),"",INDIRECT(CONCATENATE($B105,"!A2"))) -> Tunisia | F31: Poorest | J31: Poor | N31: Middle | R31: Rich | V31: Richest
F32: Basic | G32: Limited | H32: Unimproved | I32: Open defecation | J32: Basic | K32: Limited | L32: Unimproved | M32: Open defecation | N32: Basic | O32: Limited | P32: Unimproved | Q32: Open defecation | R32: Basic | S32: Limited | T32: Unimproved | U32: Open defecation | V32: Basic | W32: Limited | X32: Unimproved | Y32: Open defecation
B33: NATIONAL | D33: Estimate | E33: =C99 -> 2000 | F33: =E99 -> 48.73164635 | G33: =F99 -> 4.317330105 | H33: 13.55793903 | I33: 33.39308452 | J33: =J99 -> 79.97847305 | K33: =K99 -> 4.713517022 | L33: 10.78921532 | M33: 4.518794611 | N33: =O99 -> 93.0153146 | O33: =P99 -> 1.929725488 | P33: 4.650018609 | Q33: 0.4049413008 | R33: =T99 -> 96.39523817 | S33: =U99 -> 1.210463731 | T33: 2.394298099 | U33: 0 | V33: =Y99 -> 96.829238 | W33: =Z99 -> 0.2621745896 | X33: 2.781434452 | Y33: 0.127152958
E34: =C100 -> 2020 | F34: =E100 -> 91.86161469 | G34: 8.138385306 | H34: 0 | I34: 0 | J34: =J100 -> 94.43451852 | K34: 5.565481479 | L34: 0 | M34: 0 | N34: =O100 -> 97.96753418 | O34: 2.03246582 | P34: 0 | Q34: 0 | R34: =T100 -> 98.75021741 | S34: 1.240035907 | T34: 0 | U34: 0.00974667825 | V34: =Y100 -> 99.72997139 | W34: 0.2700286077 | X34: 0 | Y34: 0
B36: URBAN | D36: Estimate | E36: =C199 -> 2000 | F36: =E199 -> 85.72964328 | G36: =F199 -> 4.410802947 | H36: 8.82290554 | I36: 1.036648228 | J36: =J199 -> 94.3372457 | K36: =K199 -> 1.80998589 | L36: 3.852768405 | M36: 0 | N36: =O199 -> 97.61637945 | O36: =P199 -> 0.821733689 | P36: 1.561886863 | Q36: 0 | R36: =T199 -> 96.49121337 | S36: =U199 -> 0.5265834265 | T36: 2.982203203 | U36: 0 | V36: =Y199 -> 97.23221931 | W36: =Z199 -> 0.2283490776 | X36: 2.352107063 | Y36: 0.1873245518
E37: =C200 -> 2020 | F37: =E200 -> 95.04300713 | G37: 4.889976908 | H37: 0 | I37: 0.06701596237 | J37: =J200 -> 98.11748517 | K37: 1.882514827 | L37: 0 | M37: 0 | N37: =O200 -> 99.15109172 | O37: 0.8346528813 | P37: 0 | Q37: 0.01425539536 | R37: =T200 -> 99.45723007 | S37: 0.5427699287 | T37: 0 | U37: 0 | V37: =Y200 -> 99.76570106 | W37: 0.234298939 | X37: 0 | Y37: 0
B39: RURAL | D39: Estimate | E39: =C299 -> 2000 | F39: =E299 -> 26.07500291 | G39: =F299 -> 2.680985622 | H39: 17.14315906 | I39: 54.10085242 | J39: =J299 -> 47.16072241 | K39: =K299 -> 4.59316777 | L39: 13.92850487 | M39: 34.31760494 | N39: =O299 -> 62.01249307 | O39: =P299 -> 5.113687373 | P39: 12.27611147 | Q39: 20.59770809 | R39: =T299 -> 77.33678838 | S39: =U299 -> 5.380284331 | T39: 13.37889613 | U39: 3.904031165 | V39: =Y299 -> 88.19161509 | W39: =Z299 -> 3.565973443 | X39: 7.113078389 | Y39: 1.129333074
E40: =C300 -> 2020 | F40: =E300 -> 90.59238225 | G40: 9.314548311 | H40: 0.09306944315 | I40: 0 | J40: =J300 -> 91.12498065 | K40: 8.875019354 | L40: 0 | M40: 0 | N40: =O300 -> 92.38197773 | O40: 7.618022267 | P40: 0 | Q40: 0 | R40: =T300 -> 93.49555762 | S40: 6.504442378 | T40: 0 | U40: 0 | V40: =Y300 -> 96.11270501 | W40: 3.886257817 | X40: 0 | Y40: 0.001037172813
A97: NATIONAL | D97: Poorest | I97: Poor | N97: Middle | S97: Rich | X97: Richest
D98: Improved | E98: Basic | F98: Limited | G98: Unimproved | H98: Open defecation | I98: Improved | J98: Basic | K98: Limited | L98: Unimproved | M98: Open defecation | N98: Improved | O98: Basic | P98: Limited | Q98: Unimproved | R98: Open defecation | S98: Improved | T98: Basic | U98: Limited | V98: Unimproved | W98: Open defecation | X98: Improved | Y98: Basic | Z98: Limited | AA98: Unimproved | AB98: Open defecation
A99: Forecast period: | C99: 2000 | D99: =IF((D101+H101)>100,D101*100/(D101+H101),D101) -> 53.04897645 | E99: =D99*AVERAGEIF(E105:E116,">0")/100 -> 48.73164635 | F99: =D99*(100-AVERAGEIF(E105:E116,">0"))/100 -> 4.317330105 | G99: =100-(E99+F99+H99) -> 13.55793903 | H99: =IF((D101+H101)>100,H101*100/(D101+H101),H101) -> 33.39308452 | I99: =IF((I101+M101)>100,I101*100/(I101+M101),I101) -> 84.69199007 | J99: =I99*AVERAGEIF(J105:J116,">0")/100 -> 79.97847305 | K99: =I99*(100-AVERAGEIF(J105:J116,">0"))/100 -> 4.713517022 | L99: =100-(J99+K99+M99) -> 10.78921532 | M99: =IF((I101+M101)>100,M101*100/(I101+M101),M101) -> 4.518794611 | N99: =IF((N101+R101)>100,N101*100/(N101+R101),N101) -> 94.94504009 | O99: =N99*AVERAGEIF(O105:O116,">0")/100 -> 93.0153146 | P99: =N99*(100-AVERAGEIF(O105:O116,">0"))/100 -> 1.929725488 | Q99: =100-(O99+P99+R99) -> 4.650018609 | R99: =IF((N101+R101)>100,R101*100/(N101+R101),R101) -> 0.4049413008 | S99: =IF((S101+W101)>100,S101*100/(S101+W101),S101) -> 97.6057019 | T99: =S99*AVERAGEIF(T105:T116,">0")/100 -> 96.39523817 | U99: =S99*(100-AVERAGEIF(T105:T116,">0"))/100 -> 1.210463731 | V99: =100-(T99+U99+W99) -> 2.394298099 | W99: =IF((S101+W101)>100,W101*100/(S101+W101),W101) -> 0 | X99: =IF((X101+AB101)>100,X101*100/(X101+AB101),X101) -> 97.09141259 | Y99: =X99*AVERAGEIF(Y105:Y116,">0")/100 -> 96.829238 | Z99: =X99*(100-AVERAGEIF(Y105:Y116,">0"))/100 -> 0.2621745896 | AA99: =100-(Y99+Z99+AB99) -> 2.781434452 | AB99: =IF((X101+AB101)>100,AB101*100/(X101+AB101),AB101) -> 0.127152958
C100: 2020 | D100: =IF((D102+H102)>100,D102*100/(D102+H102),D102) -> 100 | E100: =D100*AVERAGEIF(E105:E116,">0")/100 -> 91.86161469 | F100: =D100*(100-AVERAGEIF(E105:E116,">0"))/100 -> 8.138385306 | G100: =100-(E100+F100+H100) -> 0 | H100: =IF((D102+H102)>100,H102*100/(D102+H102),H102) -> 0 | I100: =IF((I102+M102)>100,I102*100/(I102+M102),I102) -> 100 | J100: =I100*AVERAGEIF(J105:J116,">0")/100 -> 94.43451852 | K100: =I100*(100-AVERAGEIF(J105:J116,">0"))/100 -> 5.565481479 | L100: =100-(J100+K100+M100) -> 0 | M100: =IF((I102+M102)>100,M102*100/(I102+M102),M102) -> 0 | N100: =IF((N102+R102)>100,N102*100/(N102+R102),N102) -> 100 | O100: =N100*AVERAGEIF(O105:O116,">0")/100 -> 97.96753418 | P100: =N100*(100-AVERAGEIF(O105:O116,">0"))/100 -> 2.03246582 | Q100: =100-(O100+P100+R100) -> 0 | R100: =IF((N102+R102)>100,R102*100/(N102+R102),R102) -> 0 | S100: =IF((S102+W102)>100,S102*100/(S102+W102),S102) -> 99.99025332 | T100: =S100*AVERAGEIF(T105:T116,">0")/100 -> 98.75021741 | U100: =S100*(100-AVERAGEIF(T105:T116,">0"))/100 -> 1.240035907 | V100: =100-(T100+U100+W100) -> 0 | W100: =IF((S102+W102)>100,W102*100/(S102+W102),W102) -> 0.00974667825 | X100: =IF((X102+AB102)>100,X102*100/(X102+AB102),X102) -> 100 | Y100: =X100*AVERAGEIF(Y105:Y116,">0")/100 -> 99.72997139 | Z100: =X100*(100-AVERAGEIF(Y105:Y116,">0"))/100 -> 0.2700286077 | AA100: =100-(Y100+Z100+AB100) -> 0 | AB100: =IF((X102+AB102)>100,AB102*100/(X102+AB102),AB102) -> 0
A101: Regression period: | C101: =MinRegYear(C99,C105:C116) -> 2001 | D101: =IF(MAX(C105:C116)-MIN(C105:C116)<5,AVERAGEIF(C105:C116,">0",D105:D116), IF(FORECAST($C101,D$105:D$116,$C$105:$C$116)<0,0, IF(FORECAST($C101,D$105:D$116,$C$105:$C$116)>100,100, FORECAST($C101,D$105:D$116,$C$105:$C$116)))) -> 53.04897645 | H101: =IF(MAX(C105:C116)-MIN(C105:C116)<5,AVERAGEIF(C105:C116,">0",H105:H116), IF(FORECAST($C101,H$105:H$116,$C$105:$C$116)<0,0, IF(FORECAST($C101,H$105:H$116,$C$105:$C$116)>100,100, FORECAST($C101,H$105:H$116,$C$105:$C$116)))) -> 33.39308452 | I101: =IF(MAX(C105:C116)-MIN(C105:C116)<5,AVERAGEIF(C105:C116,">0",I105:I116), IF(FORECAST($C101,I$105:I$116,$C$105:$C$116)<0,0, IF(FORECAST($C101,I$105:I$116,$C$105:$C$116)>100,100, FORECAST($C101,I$105:I$116,$C$105:$C$116)))) -> 84.69199007 | M101: =IF(MAX(C105:C116)-MIN(C105:C116)<5,AVERAGEIF(C105:C116,">0",M105:M116), IF(FORECAST($C101,M$105:M$116,$C$105:$C$116)<0,0, IF(FORECAST($C101,M$105:M$116,$C$105:$C$116)>100,100, FORECAST($C101,M$105:M$116,$C$105:$C$116)))) -> 4.518794611 | N101: =IF(MAX(C105:C116)-MIN(C105:C116)<5,AVERAGEIF(C105:C116,">0",N105:N116), IF(FORECAST($C101,N$105:N$116,$C$105:$C$116)<0,0, IF(FORECAST($C101,N$105:N$116,$C$105:$C$116)>100,100, FORECAST($C101,N$105:N$116,$C$105:$C$116)))) -> 94.94504009 | R101: =IF(MAX(C105:C116)-MIN(C105:C116)<5,AVERAGEIF(C105:C116,">0",R105:R116), IF(FORECAST($C101,R$105:R$116,$C$105:$C$116)<0,0, IF(FORECAST($C101,R$105:R$116,$C$105:$C$116)>100,100, FORECAST($C101,R$105:R$116,$C$105:$C$116)))) -> 0.4049413008 | S101: =IF(MAX(C105:C116)-MIN(C105:C116)<5,AVERAGEIF(C105:C116,">0",S105:S116), IF(FORECAST($C101,S$105:S$116,$C$105:$C$116)<0,0, IF(FORECAST($C101,S$105:S$116,$C$105:$C$116)>100,100, FORECAST($C101,S$105:S$116,$C$105:$C$116)))) -> 97.6057019 | W101: =IF(MAX(C105:C116)-MIN(C105:C116)<5,AVERAGEIF(C105:C116,">0",W105:W116), IF(FORECAST($C101,W$105:W$116,$C$105:$C$116)<0,0, IF(FORECAST($C101,W$105:W$116,$C$105:$C$116)>100,100, FORECAST($C101,W$105:W$116,$C$105:$C$116)))) -> 0 | X101: =IF(MAX(C105:C116)-MIN(C105:C116)<5,AVERAGEIF(C105:C116,">0",X105:X116), IF(FORECAST($C101,X$105:X$116,$C$105:$C$116)<0,0, IF(FORECAST($C101,X$105:X$116,$C$105:$C$116)>100,100, FORECAST($C101,X$105:X$116,$C$105:$C$116)))) -> 97.09141259 | AB101: =IF(MAX(C105:C116)-MIN(C105:C116)<5,AVERAGEIF(C105:C116,">0",AB105:AB116), IF(FORECAST($C101,AB$105:AB$116,$C$105:$C$116)<0,0, IF(FORECAST($C101,AB$105:AB$116,$C$105:$C$116)>100,100, FORECAST($C101,AB$105:AB$116,$C$105:$C$116)))) -> 0.127152958
C102: =MaxRegYear(C100,C105:C116) -> 2020 | D102: =IF(MAX(C105:C116)-MIN(C105:C116)<5,AVERAGEIF(C105:C116,">0",D105:D116), IF(FORECAST($C102,D$105:D$116,$C$105:$C$116)<0,0, IF(FORECAST($C102,D$105:D$116,$C$105:$C$116)>100,100, FORECAST($C102,D$105:D$116,$C$105:$C$116)))) -> 100 | H102: =IF(MAX(C105:C116)-MIN(C105:C116)<5,AVERAGEIF(C105:C116,">0",H105:H116), IF(FORECAST($C102,H$105:H$116,$C$105:$C$116)<0,0, IF(FORECAST($C102,H$105:H$116,$C$105:$C$116)>100,100, FORECAST($C102,H$105:H$116,$C$105:$C$116)))) -> 0 | I102: =IF(MAX(C105:C116)-MIN(C105:C116)<5,AVERAGEIF(C105:C116,">0",I105:I116), IF(FORECAST($C102,I$105:I$116,$C$105:$C$116)<0,0, IF(FORECAST($C102,I$105:I$116,$C$105:$C$116)>100,100, FORECAST($C102,I$105:I$116,$C$105:$C$116)))) -> 100 | M102: =IF(MAX(C105:C116)-MIN(C105:C116)<5,AVERAGEIF(C105:C116,">0",M105:M116), IF(FORECAST($C102,M$105:M$116,$C$105:$C$116)<0,0, IF(FORECAST($C102,M$105:M$116,$C$105:$C$116)>100,100, FORECAST($C102,M$105:M$116,$C$105:$C$116)))) -> 0 | N102: =IF(MAX(C105:C116)-MIN(C105:C116)<5,AVERAGEIF(C105:C116,">0",N105:N116), IF(FORECAST($C102,N$105:N$116,$C$105:$C$116)<0,0, IF(FORECAST($C102,N$105:N$116,$C$105:$C$116)>100,100, FORECAST($C102,N$105:N$116,$C$105:$C$116)))) -> 100 | R102: =IF(MAX(C105:C116)-MIN(C105:C116)<5,AVERAGEIF(C105:C116,">0",R105:R116), IF(FORECAST($C102,R$105:R$116,$C$105:$C$116)<0,0, IF(FORECAST($C102,R$105:R$116,$C$105:$C$116)>100,100, FORECAST($C102,R$105:R$116,$C$105:$C$116)))) -> 0 | S102: =IF(MAX(C105:C116)-MIN(C105:C116)<5,AVERAGEIF(C105:C116,">0",S105:S116), IF(FORECAST($C102,S$105:S$116,$C$105:$C$116)<0,0, IF(FORECAST($C102,S$105:S$116,$C$105:$C$116)>100,100, FORECAST($C102,S$105:S$116,$C$105:$C$116)))) -> 100 | W102: =IF(MAX(C105:C116)-MIN(C105:C116)<5,AVERAGEIF(C105:C116,">0",W105:W116), IF(FORECAST($C102,W$105:W$116,$C$105:$C$116)<0,0, IF(FORECAST($C102,W$105:W$116,$C$105:$C$116)>100,100, FORECAST($C102,W$105:W$116,$C$105:$C$116)))) -> 0.00974762832 | X102: =IF(MAX(C105:C116)-MIN(C105:C116)<5,AVERAGEIF(C105:C116,">0",X105:X116), IF(FORECAST($C102,X$105:X$116,$C$105:$C$116)<0,0, IF(FORECAST($C102,X$105:X$116,$C$105:$C$116)>100,100, FORECAST($C102,X$105:X$116,$C$105:$C$116)))) -> 100 | AB102: =IF(MAX(C105:C116)-MIN(C105:C116)<5,AVERAGEIF(C105:C116,">0",AB105:AB116), IF(FORECAST($C102,AB$105:AB$116,$C$105:$C$116)<0,0, IF(FORECAST($C102,AB$105:AB$116,$C$105:$C$116)>100,100, FORECAST($C102,AB$105:AB$116,$C$105:$C$116)))) -> 0
B104: Survey | C104: Year | D104: Improved | E104: Not shared | H104: Open defecation | I104: Improved | J104: Not shared | M104: Open defecation | N104: Improved | O104: Not shared | R104: Open defecation | S104: Improved | T104: Not shared | W104: Open defecation | X104: Improved | Y104: Not shared | AB104: Open defecation
B105: WHS03 | C105: 2003 | D105: =IF(ISERROR(INDIRECT(CONCATENATE($B105,"!C122"))),"",INDIRECT(CONCATENATE($B105,"!C122"))) -> 57.14011389 | E105: =IF(ISERROR(INDIRECT(CONCATENATE($B105,"!C129"))),"",INDIRECT(CONCATENATE($B105,"!C129"))) -> 86.29665483 | H105: =IF(ISERROR(INDIRECT(CONCATENATE($B105,"!C127"))),"",INDIRECT(CONCATENATE($B105,"!C127"))) -> 30.60668327 | I105: =IF(ISERROR(INDIRECT(CONCATENATE($B105,"!D122"))),"",INDIRECT(CONCATENATE($B105,"!D122"))) -> 85.16404834 | J105: =IF(ISERROR(INDIRECT(CONCATENATE($B105,"!D129"))),"",INDIRECT(CONCATENATE($B105,"!D129"))) -> 92.18530525 | M105: =IF(ISERROR(INDIRECT(CONCATENATE($B105,"!D127"))),"",INDIRECT(CONCATENATE($B105,"!D127"))) -> 4.484844063 | N105: =IF(ISERROR(INDIRECT(CONCATENATE($B105,"!E122"))),"",INDIRECT(CONCATENATE($B105,"!E122"))) -> 95.21534742 | O105: =IF(ISERROR(INDIRECT(CONCATENATE($B105,"!E129"))),"",INDIRECT(CONCATENATE($B105,"!E129"))) -> 97.66107642 | R105: =IF(ISERROR(INDIRECT(CONCATENATE($B105,"!E127"))),"",INDIRECT(CONCATENATE($B105,"!E127"))) -> 0.3912144771 | S105: =IF(ISERROR(INDIRECT(CONCATENATE($B105,"!F122"))),"",INDIRECT(CONCATENATE($B105,"!F122"))) -> 97.64579408 | T105: =IF(ISERROR(INDIRECT(CONCATENATE($B105,"!F129"))),"",INDIRECT(CONCATENATE($B105,"!F129"))) -> 98.44884002 | W105: =IF(ISERROR(INDIRECT(CONCATENATE($B105,"!F127"))),"",INDIRECT(CONCATENATE($B105,"!F127"))) -> 0 | X105: =IF(ISERROR(INDIRECT(CONCATENATE($B105,"!G122"))),"",INDIRECT(CONCATENATE($B105,"!G122"))) -> 97.16031277 | Y105: =IF(ISERROR(INDIRECT(CONCATENATE($B105,"!G129"))),"",INDIRECT(CONCATENATE($B105,"!G129"))) -> 99.88078159 | AB105: =IF(ISERROR(INDIRECT(CONCATENATE($B105,"!G2127"))),"",INDIRECT(CONCATENATE($B105,"!G127"))) -> 0.1228426882
B106: MICS12 | C106: 2012 | D106: 83.31015296 | E106: 92.81970303 | H106: 10.98877612 | I106: 98.45140652 | J106: 95.01787762 | M106: 0.439851495 | N106: 99.35758498 | O106: 98.06504504 | R106: 0 | S106: 99.91077175 | T106: 98.33379183 | W106: 0 | X106: 99.87656503 | Y106: 99.52921176 | AB106: 0
B107: MICS18 | C107: 2018 | D107: 94.61357519 | E107: 96.46848621 | H107: 3.514460062 | I107: 98.47219435 | J107: 96.10037269 | M107: 0.8245267386 | N107: 99.80277514 | O107: 98.17648108 | R107: 0 | S107: 99.77047795 | T107: 99.4968978 | W107: 0.01100227355 | X107: 99.78249039 | Y107: 99.77992083 | AB107: 0
B118: =CONCATENATE("National use of sanitation facilities, ",C99,"–",C100) -> National use of sanitation facilities, 2000–2020 | S118: Data points used for regression
A197: URBAN | D197: Poorest | I197: Poor | N197: Middle | S197: Rich | X197: Richest
D198: Improved | E198: Basic | F198: Limited | G198: Unimproved | H198: Open defecation | I198: Improved | J198: Basic | K198: Limited | L198: Unimproved | M198: Open defecation | N198: Improved | O198: Basic | P198: Limited | Q198: Unimproved | R198: Open defecation | S198: Improved | T198: Basic | U198: Limited | V198: Unimproved | W198: Open defecation | X198: Improved | Y198: Basic | Z198: Limited | AA198: Unimproved | AB198: Open defecation
A199: Forecast period: | C199: 2000 | D199: =IF((D201+H201)>100,D201*100/(D201+H201),D201) -> 90.14044623 | E199: =D199*AVERAGEIF(E205:E216,">0")/100 -> 85.72964328 | F199: =D199*(100-AVERAGEIF(E205:E216,">0"))/100 -> 4.410802947 | G199: =100-(E199+F199+H199) -> 8.82290554 | H199: =IF((D201+H201)>100,H201*100/(D201+H201),H201) -> 1.036648228 | I199: =IF((I201+M201)>100,I201*100/(I201+M201),I201) -> 96.1472316 | J199: =I199*AVERAGEIF(J205:J216,">0")/100 -> 94.3372457 | K199: =I199*(100-AVERAGEIF(J205:J216,">0"))/100 -> 1.80998589 | L199: =100-(J199+K199+M199) -> 3.852768405 | M199: =IF((I201+M201)>100,M201*100/(I201+M201),M201) -> 0 | N199: =IF((N201+R201)>100,N201*100/(N201+R201),N201) -> 98.43811314 | O199: =N199*AVERAGEIF(O205:O216,">0")/100 -> 97.61637945 | P199: =N199*(100-AVERAGEIF(O205:O216,">0"))/100 -> 0.821733689 | Q199: =100-(O199+P199+R199) -> 1.561886863 | R199: =IF((N201+R201)>100,R201*100/(N201+R201),R201) -> 0 | S199: =IF((S201+W201)>100,S201*100/(S201+W201),S201) -> 97.0177968 | T199: =S199*AVERAGEIF(T205:T216,">0")/100 -> 96.49121337 | U199: =S199*(100-AVERAGEIF(T205:T216,">0"))/100 -> 0.5265834265 | V199: =100-(T199+U199+W199) -> 2.982203203 | W199: =IF((S201+W201)>100,W201*100/(S201+W201),W201) -> 0 | X199: =IF((X201+AB201)>100,X201*100/(X201+AB201),X201) -> 97.46056839 | Y199: =X199*AVERAGEIF(Y205:Y216,">0")/100 -> 97.23221931 | Z199: =X199*(100-AVERAGEIF(Y205:Y216,">0"))/100 -> 0.2283490776 | AA199: =100-(Y199+Z199+AB199) -> 2.352107063 | AB199: =IF((X201+AB201)>100,AB201*100/(X201+AB201),AB201) -> 0.1873245518
C200: 2020 | D200: =IF((D202+H202)>100,D202*100/(D202+H202),D202) -> 99.93298404 | E200: =D200*AVERAGEIF(E205:E216,">0")/100 -> 95.04300713 | F200: =D200*(100-AVERAGEIF(E205:E216,">0"))/100 -> 4.889976908 | G200: =100-(E200+F200+H200) -> 0 | H200: =IF((D202+H202)>100,H202*100/(D202+H202),H202) -> 0.06701596237 | I200: =IF((I202+M202)>100,I202*100/(I202+M202),I202) -> 100 | J200: =I200*AVERAGEIF(J205:J216,">0")/100 -> 98.11748517 | K200: =I200*(100-AVERAGEIF(J205:J216,">0"))/100 -> 1.882514827 | L200: =100-(J200+K200+M200) -> 0 | M200: =IF((I202+M202)>100,M202*100/(I202+M202),M202) -> 0 | N200: =IF((N202+R202)>100,N202*100/(N202+R202),N202) -> 99.9857446 | O200: =N200*AVERAGEIF(O205:O216,">0")/100 -> 99.15109172 | P200: =N200*(100-AVERAGEIF(O205:O216,">0"))/100 -> 0.8346528813 | Q200: =100-(O200+P200+R200) -> 0 | R200: =IF((N202+R202)>100,R202*100/(N202+R202),R202) -> 0.01425539536 | S200: =IF((S202+W202)>100,S202*100/(S202+W202),S202) -> 100 | T200: =S200*AVERAGEIF(T205:T216,">0")/100 -> 99.45723007 | U200: =S200*(100-AVERAGEIF(T205:T216,">0"))/100 -> 0.5427699287 | V200: =100-(T200+U200+W200) -> 0 | W200: =IF((S202+W202)>100,W202*100/(S202+W202),W202) -> 0 | X200: =IF((X202+AB202)>100,X202*100/(X202+AB202),X202) -> 100 | Y200: =X200*AVERAGEIF(Y205:Y216,">0")/100 -> 99.76570106 | Z200: =X200*(100-AVERAGEIF(Y205:Y216,">0"))/100 -> 0.234298939 | AA200: =100-(Y200+Z200+AB200) -> 0 | AB200: =IF((X202+AB202)>100,AB202*100/(X202+AB202),AB202) -> 0
A201: Regression period: | C201: =MinRegYear(C199,C205:C216) -> 2001 | D201: =IF(MAX(C205:C216)-MIN(C205:C216)<5,AVERAGEIF(C205:C216,">0",D205:D216), IF(FORECAST($C201,D$205:D$216,$C$205:$C$216)<0,0, IF(FORECAST($C201,D$205:D$216,$C$205:$C$216)>100,100, FORECAST($C201,D$205:D$216,$C$205:$C$216)))) -> 90.14044623 | H201: =IF(MAX(C205:C216)-MIN(C205:C216)<5,AVERAGEIF(C205:C216,">0",H205:H216), IF(FORECAST($C201,H$205:H$216,$C$205:$C$216)<0,0, IF(FORECAST($C201,H$205:H$216,$C$205:$C$216)>100,100, FORECAST($C201,H$205:H$216,$C$205:$C$216)))) -> 1.036648228 | I201: =IF(MAX(C205:C216)-MIN(C205:C216)<5,AVERAGEIF(C205:C216,">0",I205:I216), IF(FORECAST($C201,I$205:I$216,$C$205:$C$216)<0,0, IF(FORECAST($C201,I$205:I$216,$C$205:$C$216)>100,100, FORECAST($C201,I$205:I$216,$C$205:$C$216)))) -> 96.1472316 | M201: =IF(MAX(C205:C216)-MIN(C205:C216)<5,AVERAGEIF(C205:C216,">0",M205:M216), IF(FORECAST($C201,M$205:M$216,$C$205:$C$216)<0,0, IF(FORECAST($C201,M$205:M$216,$C$205:$C$216)>100,100, FORECAST($C201,M$205:M$216,$C$205:$C$216)))) -> 0 | N201: =IF(MAX(C205:C216)-MIN(C205:C216)<5,AVERAGEIF(C205:C216,">0",N205:N216), IF(FORECAST($C201,N$205:N$216,$C$205:$C$216)<0,0, IF(FORECAST($C201,N$205:N$216,$C$205:$C$216)>100,100, FORECAST($C201,N$205:N$216,$C$205:$C$216)))) -> 98.43811314 | R201: =IF(MAX(C205:C216)-MIN(C205:C216)<5,AVERAGEIF(C205:C216,">0",R205:R216), IF(FORECAST($C201,R$205:R$216,$C$205:$C$216)<0,0, IF(FORECAST($C201,R$205:R$216,$C$205:$C$216)>100,100, FORECAST($C201,R$205:R$216,$C$205:$C$216)))) -> 0 | S201: =IF(MAX(C205:C216)-MIN(C205:C216)<5,AVERAGEIF(C205:C216,">0",S205:S216), IF(FORECAST($C201,S$205:S$216,$C$205:$C$216)<0,0, IF(FORECAST($C201,S$205:S$216,$C$205:$C$216)>100,100, FORECAST($C201,S$205:S$216,$C$205:$C$216)))) -> 97.0177968 | W201: =IF(MAX(C205:C216)-MIN(C205:C216)<5,AVERAGEIF(C205:C216,">0",W205:W216), IF(FORECAST($C201,W$205:W$216,$C$205:$C$216)<0,0, IF(FORECAST($C201,W$205:W$216,$C$205:$C$216)>100,100, FORECAST($C201,W$205:W$216,$C$205:$C$216)))) -> 0 | X201: =IF(MAX(C205:C216)-MIN(C205:C216)<5,AVERAGEIF(C205:C216,">0",X205:X216), IF(FORECAST($C201,X$205:X$216,$C$205:$C$216)<0,0, IF(FORECAST($C201,X$205:X$216,$C$205:$C$216)>100,100, FORECAST($C201,X$205:X$216,$C$205:$C$216)))) -> 97.46056839 | AB201: =IF(MAX(C205:C216)-MIN(C205:C216)<5,AVERAGEIF(C205:C216,">0",AB205:AB216), IF(FORECAST($C201,AB$205:AB$216,$C$205:$C$216)<0,0, IF(FORECAST($C201,AB$205:AB$216,$C$205:$C$216)>100,100, FORECAST($C201,AB$205:AB$216,$C$205:$C$216)))) -> 0.1873245518
C202: =MaxRegYear(C200,C205:C216) -> 2020 | D202: =IF(MAX(C205:C216)-MIN(C205:C216)<5,AVERAGEIF(C205:C216,">0",D205:D216), IF(FORECAST($C202,D$205:D$216,$C$205:$C$216)<0,0, IF(FORECAST($C202,D$205:D$216,$C$205:$C$216)>100,100, FORECAST($C202,D$205:D$216,$C$205:$C$216)))) -> 100 | H202: =IF(MAX(C205:C216)-MIN(C205:C216)<5,AVERAGEIF(C205:C216,">0",H205:H216), IF(FORECAST($C202,H$205:H$216,$C$205:$C$216)<0,0, IF(FORECAST($C202,H$205:H$216,$C$205:$C$216)>100,100, FORECAST($C202,H$205:H$216,$C$205:$C$216)))) -> 0.06706090388 | I202: =IF(MAX(C205:C216)-MIN(C205:C216)<5,AVERAGEIF(C205:C216,">0",I205:I216), IF(FORECAST($C202,I$205:I$216,$C$205:$C$216)<0,0, IF(FORECAST($C202,I$205:I$216,$C$205:$C$216)>100,100, FORECAST($C202,I$205:I$216,$C$205:$C$216)))) -> 100 | M202: =IF(MAX(C205:C216)-MIN(C205:C216)<5,AVERAGEIF(C205:C216,">0",M205:M216), IF(FORECAST($C202,M$205:M$216,$C$205:$C$216)<0,0, IF(FORECAST($C202,M$205:M$216,$C$205:$C$216)>100,100, FORECAST($C202,M$205:M$216,$C$205:$C$216)))) -> 0 | N202: =IF(MAX(C205:C216)-MIN(C205:C216)<5,AVERAGEIF(C205:C216,">0",N205:N216), IF(FORECAST($C202,N$205:N$216,$C$205:$C$216)<0,0, IF(FORECAST($C202,N$205:N$216,$C$205:$C$216)>100,100, FORECAST($C202,N$205:N$216,$C$205:$C$216)))) -> 100 | R202: =IF(MAX(C205:C216)-MIN(C205:C216)<5,AVERAGEIF(C205:C216,">0",R205:R216), IF(FORECAST($C202,R$205:R$216,$C$205:$C$216)<0,0, IF(FORECAST($C202,R$205:R$216,$C$205:$C$216)>100,100, FORECAST($C202,R$205:R$216,$C$205:$C$216)))) -> 0.01425742781 | S202: =IF(MAX(C205:C216)-MIN(C205:C216)<5,AVERAGEIF(C205:C216,">0",S205:S216), IF(FORECAST($C202,S$205:S$216,$C$205:$C$216)<0,0, IF(FORECAST($C202,S$205:S$216,$C$205:$C$216)>100,100, FORECAST($C202,S$205:S$216,$C$205:$C$216)))) -> 100 | W202: =IF(MAX(C205:C216)-MIN(C205:C216)<5,AVERAGEIF(C205:C216,">0",W205:W216), IF(FORECAST($C202,W$205:W$216,$C$205:$C$216)<0,0, IF(FORECAST($C202,W$205:W$216,$C$205:$C$216)>100,100, FORECAST($C202,W$205:W$216,$C$205:$C$216)))) -> 0 | X202: =IF(MAX(C205:C216)-MIN(C205:C216)<5,AVERAGEIF(C205:C216,">0",X205:X216), IF(FORECAST($C202,X$205:X$216,$C$205:$C$216)<0,0, IF(FORECAST($C202,X$205:X$216,$C$205:$C$216)>100,100, FORECAST($C202,X$205:X$216,$C$205:$C$216)))) -> 100 | AB202: =IF(MAX(C205:C216)-MIN(C205:C216)<5,AVERAGEIF(C205:C216,">0",AB205:AB216), IF(FORECAST($C202,AB$205:AB$216,$C$205:$C$216)<0,0, IF(FORECAST($C202,AB$205:AB$216,$C$205:$C$216)>100,100, FORECAST($C202,AB$205:AB$216,$C$205:$C$216)))) -> 0
B204: Survey | C204: Year | D204: Improved | E204: Not shared | H204: Open defecation | I204: Improved | J204: Not shared | M204: Open defecation | N204: Improved | O204: Not shared | R204: Open defecation | S204: Improved | T204: Not shared | W204: Open defecation | X204: Improved | Y204: Not shared | AB204: Open defecation
B205: WHS03 | C205: 2003 | D205: =IF(ISERROR(INDIRECT(CONCATENATE($B205,"!H122"))),"",INDIRECT(CONCATENATE($B205,"!H122"))) -> 90.51920866 | E205: =IF(ISERROR(INDIRECT(CONCATENATE($B205,"!H129"))),"",INDIRECT(CONCATENATE($B205,"!H129"))) -> 94.02560495 | H205: =IF(ISERROR(INDIRECT(CONCATENATE($B205,"!H127"))),"",INDIRECT(CONCATENATE($B205,"!H127"))) -> 1.011655878 | I205: =IF(ISERROR(INDIRECT(CONCATENATE($B205,"!I122"))),"",INDIRECT(CONCATENATE($B205,"!I122"))) -> 96.22654258 | J205: =IF(ISERROR(INDIRECT(CONCATENATE($B205,"!I129"))),"",INDIRECT(CONCATENATE($B205,"!I129"))) -> 98.0602758 | M205: =IF(ISERROR(INDIRECT(CONCATENATE($B205,"!I127"))),"",INDIRECT(CONCATENATE($B205,"!I127"))) -> 0 | N205: =IF(ISERROR(INDIRECT(CONCATENATE($B205,"!J122"))),"",INDIRECT(CONCATENATE($B205,"!J122"))) -> 98.43648593 | O205: =IF(ISERROR(INDIRECT(CONCATENATE($B205,"!J129"))),"",INDIRECT(CONCATENATE($B205,"!J129"))) -> 99.21055156 | R205: =IF(ISERROR(INDIRECT(CONCATENATE($B205,"!J127"))),"",INDIRECT(CONCATENATE($B205,"!J127"))) -> 0 | S205: =IF(ISERROR(INDIRECT(CONCATENATE($B205,"!K122"))),"",INDIRECT(CONCATENATE($B205,"!K122"))) -> 97.06220948 | T205: =IF(ISERROR(INDIRECT(CONCATENATE($B205,"!K129"))),"",INDIRECT(CONCATENATE($B205,"!K129"))) -> 99.33642079 | W205: =IF(ISERROR(INDIRECT(CONCATENATE($B205,"!K127"))),"",INDIRECT(CONCATENATE($B205,"!K127"))) -> 0 | X205: =IF(ISERROR(INDIRECT(CONCATENATE($B205,"!L122"))),"",INDIRECT(CONCATENATE($B205,"!L122"))) -> 97.52417348 | Y205: =IF(ISERROR(INDIRECT(CONCATENATE($B205,"!L129"))),"",INDIRECT(CONCATENATE($B205,"!L129"))) -> 99.92557282 | AB205: =IF(ISERROR(INDIRECT(CONCATENATE($B205,"!L2127"))),"",INDIRECT(CONCATENATE($B205,"!L127"))) -> 0.180974567
B206: MICS12 | C206: 2012 | D206: 99.18445709 | E206: 94.17906641 | H206: 0.2826345127 | I206: 99.88672433 | J206: 98.17473947 | M206: 0 | N206: 100 | O206: 99.10136205 | R206: 0 | S206: 100 | T206: 99.25519468 | W206: 0 | X206: 100 | Y206: 99.60373555 | AB206: 0
B207: MICS18 | C207: 2018 | D207: 99.4506422 | E207: 97.11556012 | H207: 0.2847269387 | I207: 99.71174699 | J207: 98.11744025 | M207: 0 | N207: 99.7987638 | O207: 99.18377075 | R207: 0.01609254228 | S207: 99.79099636 | T207: 99.78007474 | W207: 0 | X207: 99.91711483 | Y207: 99.76779481 | AB207: 0
B218: =CONCATENATE("Urban use of sanitation facilities, ",C199,"–",C200) -> Urban use of sanitation facilities, 2000–2020 | S218: Data points used for regression
A297: RURAL | D297: Poorest | I297: Poor | N297: Middle | S297: Rich | X297: Richest
D298: Improved | E298: Basic | F298: Limited | G298: Unimproved | H298: Open defecation | I298: Improved | J298: Basic | K298: Limited | L298: Unimproved | M298: Open defecation | N298: Improved | O298: Basic | P298: Limited | Q298: Unimproved | R298: Open defecation | S298: Improved | T298: Basic | U298: Limited | V298: Unimproved | W298: Open defecation | X298: Improved | Y298: Basic | Z298: Limited | AA298: Unimproved | AB298: Open defecation
A299: Forecast period: | C299: 2000 | D299: =IF((D301+H301)>100,D301*100/(D301+H301),D301) -> 28.75598853 | E299: =D299*AVERAGEIF(E305:E316,">0")/100 -> 26.07500291 | F299: =D299*(100-AVERAGEIF(E305:E316,">0"))/100 -> 2.680985622 | G299: =100-(E299+F299+H299) -> 17.14315906 | H299: =IF((D301+H301)>100,H301*100/(D301+H301),H301) -> 54.10085242 | I299: =IF((I301+M301)>100,I301*100/(I301+M301),I301) -> 51.75389018 | J299: =I299*AVERAGEIF(J305:J316,">0")/100 -> 47.16072241 | K299: =I299*(100-AVERAGEIF(J305:J316,">0"))/100 -> 4.59316777 | L299: =100-(J299+K299+M299) -> 13.92850487 | M299: =IF((I301+M301)>100,M301*100/(I301+M301),M301) -> 34.31760494 | N299: =IF((N301+R301)>100,N301*100/(N301+R301),N301) -> 67.12618044 | O299: =N299*AVERAGEIF(O305:O316,">0")/100 -> 62.01249307 | P299: =N299*(100-AVERAGEIF(O305:O316,">0"))/100 -> 5.113687373 | Q299: =100-(O299+P299+R299) -> 12.27611147 | R299: =IF((N301+R301)>100,R301*100/(N301+R301),R301) -> 20.59770809 | S299: =IF((S301+W301)>100,S301*100/(S301+W301),S301) -> 82.71707271 | T299: =S299*AVERAGEIF(T305:T316,">0")/100 -> 77.33678838 | U299: =S299*(100-AVERAGEIF(T305:T316,">0"))/100 -> 5.380284331 | V299: =100-(T299+U299+W299) -> 13.37889613 | W299: =IF((S301+W301)>100,W301*100/(S301+W301),W301) -> 3.904031165 | X299: =IF((X301+AB301)>100,X301*100/(X301+AB301),X301) -> 91.75758854 | Y299: =X299*AVERAGEIF(Y305:Y316,">0")/100 -> 88.19161509 | Z299: =X299*(100-AVERAGEIF(Y305:Y316,">0"))/100 -> 3.565973443 | AA299: =100-(Y299+Z299+AB299) -> 7.113078389 | AB299: =IF((X301+AB301)>100,AB301*100/(X301+AB301),AB301) -> 1.129333074
C300: 2020 | D300: =IF((D302+H302)>100,D302*100/(D302+H302),D302) -> 99.90693056 | E300: =D300*AVERAGEIF(E305:E316,">0")/100 -> 90.59238225 | F300: =D300*(100-AVERAGEIF(E305:E316,">0"))/100 -> 9.314548311 | G300: =100-(E300+F300+H300) -> 0.09306944315 | H300: =IF((D302+H302)>100,H302*100/(D302+H302),H302) -> 0 | I300: =IF((I302+M302)>100,I302*100/(I302+M302),I302) -> 100 | J300: =I300*AVERAGEIF(J305:J316,">0")/100 -> 91.12498065 | K300: =I300*(100-AVERAGEIF(J305:J316,">0"))/100 -> 8.875019354 | L300: =100-(J300+K300+M300) -> 0 | M300: =IF((I302+M302)>100,M302*100/(I302+M302),M302) -> 0 | N300: =IF((N302+R302)>100,N302*100/(N302+R302),N302) -> 100 | O300: =N300*AVERAGEIF(O305:O316,">0")/100 -> 92.38197773 | P300: =N300*(100-AVERAGEIF(O305:O316,">0"))/100 -> 7.618022267 | Q300: =100-(O300+P300+R300) -> 0 | R300: =IF((N302+R302)>100,R302*100/(N302+R302),R302) -> 0 | S300: =IF((S302+W302)>100,S302*100/(S302+W302),S302) -> 100 | T300: =S300*AVERAGEIF(T305:T316,">0")/100 -> 93.49555762 | U300: =S300*(100-AVERAGEIF(T305:T316,">0"))/100 -> 6.504442378 | V300: =100-(T300+U300+W300) -> 0 | W300: =IF((S302+W302)>100,W302*100/(S302+W302),W302) -> 0 | X300: =IF((X302+AB302)>100,X302*100/(X302+AB302),X302) -> 99.99896283 | Y300: =X300*AVERAGEIF(Y305:Y316,">0")/100 -> 96.11270501 | Z300: =X300*(100-AVERAGEIF(Y305:Y316,">0"))/100 -> 3.886257817 | AA300: =100-(Y300+Z300+AB300) -> 0 | AB300: =IF((X302+AB302)>100,AB302*100/(X302+AB302),AB302) -> 0.001037172813
A301: Regression period: | C301: =MinRegYear(C299,C305:C316) -> 2001 | D301: =IF(MAX(C305:C316)-MIN(C305:C316)<5,AVERAGEIF(C305:C316,">0",D305:D316), IF(FORECAST($C301,D$305:D$316,$C$305:$C$316)<0,0, IF(FORECAST($C301,D$305:D$316,$C$305:$C$316)>100,100, FORECAST($C301,D$305:D$316,$C$305:$C$316)))) -> 28.75598853 | H301: =IF(MAX(C305:C316)-MIN(C305:C316)<5,AVERAGEIF(C305:C316,">0",H305:H316), IF(FORECAST($C301,H$305:H$316,$C$305:$C$316)<0,0, IF(FORECAST($C301,H$305:H$316,$C$305:$C$316)>100,100, FORECAST($C301,H$305:H$316,$C$305:$C$316)))) -> 54.10085242 | I301: =IF(MAX(C305:C316)-MIN(C305:C316)<5,AVERAGEIF(C305:C316,">0",I305:I316), IF(FORECAST($C301,I$305:I$316,$C$305:$C$316)<0,0, IF(FORECAST($C301,I$305:I$316,$C$305:$C$316)>100,100, FORECAST($C301,I$305:I$316,$C$305:$C$316)))) -> 51.75389018 | M301: =IF(MAX(C305:C316)-MIN(C305:C316)<5,AVERAGEIF(C305:C316,">0",M305:M316), IF(FORECAST($C301,M$305:M$316,$C$305:$C$316)<0,0, IF(FORECAST($C301,M$305:M$316,$C$305:$C$316)>100,100, FORECAST($C301,M$305:M$316,$C$305:$C$316)))) -> 34.31760494 | N301: =IF(MAX(C305:C316)-MIN(C305:C316)<5,AVERAGEIF(C305:C316,">0",N305:N316), IF(FORECAST($C301,N$305:N$316,$C$305:$C$316)<0,0, IF(FORECAST($C301,N$305:N$316,$C$305:$C$316)>100,100, FORECAST($C301,N$305:N$316,$C$305:$C$316)))) -> 67.12618044 | R301: =IF(MAX(C305:C316)-MIN(C305:C316)<5,AVERAGEIF(C305:C316,">0",R305:R316), IF(FORECAST($C301,R$305:R$316,$C$305:$C$316)<0,0, IF(FORECAST($C301,R$305:R$316,$C$305:$C$316)>100,100, FORECAST($C301,R$305:R$316,$C$305:$C$316)))) -> 20.59770809 | S301: =IF(MAX(C305:C316)-MIN(C305:C316)<5,AVERAGEIF(C305:C316,">0",S305:S316), IF(FORECAST($C301,S$305:S$316,$C$305:$C$316)<0,0, IF(FORECAST($C301,S$305:S$316,$C$305:$C$316)>100,100, FORECAST($C301,S$305:S$316,$C$305:$C$316)))) -> 82.71707271 | W301: =IF(MAX(C305:C316)-MIN(C305:C316)<5,AVERAGEIF(C305:C316,">0",W305:W316), IF(FORECAST($C301,W$305:W$316,$C$305:$C$316)<0,0, IF(FORECAST($C301,W$305:W$316,$C$305:$C$316)>100,100, FORECAST($C301,W$305:W$316,$C$305:$C$316)))) -> 3.904031165 | X301: =IF(MAX(C305:C316)-MIN(C305:C316)<5,AVERAGEIF(C305:C316,">0",X305:X316), IF(FORECAST($C301,X$305:X$316,$C$305:$C$316)<0,0, IF(FORECAST($C301,X$305:X$316,$C$305:$C$316)>100,100, FORECAST($C301,X$305:X$316,$C$305:$C$316)))) -> 91.75758854 | AB301: =IF(MAX(C305:C316)-MIN(C305:C316)<5,AVERAGEIF(C305:C316,">0",AB305:AB316), IF(FORECAST($C301,AB$305:AB$316,$C$305:$C$316)<0,0, IF(FORECAST($C301,AB$305:AB$316,$C$305:$C$316)>100,100, FORECAST($C301,AB$305:AB$316,$C$305:$C$316)))) -> 1.129333074
C302: =MaxRegYear(C300,C305:C316) -> 2020 | D302: =IF(MAX(C305:C316)-MIN(C305:C316)<5,AVERAGEIF(C305:C316,">0",D305:D316), IF(FORECAST($C302,D$305:D$316,$C$305:$C$316)<0,0, IF(FORECAST($C302,D$305:D$316,$C$305:$C$316)>100,100, FORECAST($C302,D$305:D$316,$C$305:$C$316)))) -> 99.90693056 | H302: =IF(MAX(C305:C316)-MIN(C305:C316)<5,AVERAGEIF(C305:C316,">0",H305:H316), IF(FORECAST($C302,H$305:H$316,$C$305:$C$316)<0,0, IF(FORECAST($C302,H$305:H$316,$C$305:$C$316)>100,100, FORECAST($C302,H$305:H$316,$C$305:$C$316)))) -> 0 | I302: =IF(MAX(C305:C316)-MIN(C305:C316)<5,AVERAGEIF(C305:C316,">0",I305:I316), IF(FORECAST($C302,I$305:I$316,$C$305:$C$316)<0,0, IF(FORECAST($C302,I$305:I$316,$C$305:$C$316)>100,100, FORECAST($C302,I$305:I$316,$C$305:$C$316)))) -> 100 | M302: =IF(MAX(C305:C316)-MIN(C305:C316)<5,AVERAGEIF(C305:C316,">0",M305:M316), IF(FORECAST($C302,M$305:M$316,$C$305:$C$316)<0,0, IF(FORECAST($C302,M$305:M$316,$C$305:$C$316)>100,100, FORECAST($C302,M$305:M$316,$C$305:$C$316)))) -> 0 | N302: =IF(MAX(C305:C316)-MIN(C305:C316)<5,AVERAGEIF(C305:C316,">0",N305:N316), IF(FORECAST($C302,N$305:N$316,$C$305:$C$316)<0,0, IF(FORECAST($C302,N$305:N$316,$C$305:$C$316)>100,100, FORECAST($C302,N$305:N$316,$C$305:$C$316)))) -> 100 | R302: =IF(MAX(C305:C316)-MIN(C305:C316)<5,AVERAGEIF(C305:C316,">0",R305:R316), IF(FORECAST($C302,R$305:R$316,$C$305:$C$316)<0,0, IF(FORECAST($C302,R$305:R$316,$C$305:$C$316)>100,100, FORECAST($C302,R$305:R$316,$C$305:$C$316)))) -> 0 | S302: =IF(MAX(C305:C316)-MIN(C305:C316)<5,AVERAGEIF(C305:C316,">0",S305:S316), IF(FORECAST($C302,S$305:S$316,$C$305:$C$316)<0,0, IF(FORECAST($C302,S$305:S$316,$C$305:$C$316)>100,100, FORECAST($C302,S$305:S$316,$C$305:$C$316)))) -> 100 | W302: =IF(MAX(C305:C316)-MIN(C305:C316)<5,AVERAGEIF(C305:C316,">0",W305:W316), IF(FORECAST($C302,W$305:W$316,$C$305:$C$316)<0,0, IF(FORECAST($C302,W$305:W$316,$C$305:$C$316)>100,100, FORECAST($C302,W$305:W$316,$C$305:$C$316)))) -> 0 | X302: =IF(MAX(C305:C316)-MIN(C305:C316)<5,AVERAGEIF(C305:C316,">0",X305:X316), IF(FORECAST($C302,X$305:X$316,$C$305:$C$316)<0,0, IF(FORECAST($C302,X$305:X$316,$C$305:$C$316)>100,100, FORECAST($C302,X$305:X$316,$C$305:$C$316)))) -> 100 | AB302: =IF(MAX(C305:C316)-MIN(C305:C316)<5,AVERAGEIF(C305:C316,">0",AB305:AB316), IF(FORECAST($C302,AB$305:AB$316,$C$305:$C$316)<0,0, IF(FORECAST($C302,AB$305:AB$316,$C$305:$C$316)>100,100, FORECAST($C302,AB$305:AB$316,$C$305:$C$316)))) -> 0.00103718357
B304: Survey | C304: Year | D304: Improved | E304: Not shared | H304: Open defecation | I304: Improved | J304: Not shared | M304: Open defecation | N304: Improved | O304: Not shared | R304: Open defecation | S304: Improved | T304: Not shared | W304: Open defecation | X304: Improved | Y304: Not shared | AB304: Open defecation
B305: WHS03 | C305: 2003 | D305: =IF(ISERROR(INDIRECT(CONCATENATE($B305,"!M122"))),"",INDIRECT(CONCATENATE($B305,"!M122"))) -> 36.97452298 | E305: =IF(ISERROR(INDIRECT(CONCATENATE($B305,"!M129"))),"",INDIRECT(CONCATENATE($B305,"!M129"))) -> 83.52699046 | H305: =IF(ISERROR(INDIRECT(CONCATENATE($B305,"!M127"))),"",INDIRECT(CONCATENATE($B305,"!M127"))) -> 48.09712971 | I305: =IF(ISERROR(INDIRECT(CONCATENATE($B305,"!N122"))),"",INDIRECT(CONCATENATE($B305,"!N122"))) -> 55.2590711 | J305: =IF(ISERROR(INDIRECT(CONCATENATE($B305,"!N129"))),"",INDIRECT(CONCATENATE($B305,"!N129"))) -> 83.48026607 | M305: =IF(ISERROR(INDIRECT(CONCATENATE($B305,"!N127"))),"",INDIRECT(CONCATENATE($B305,"!N127"))) -> 32.14919548 | N305: =IF(ISERROR(INDIRECT(CONCATENATE($B305,"!O122"))),"",INDIRECT(CONCATENATE($B305,"!O122"))) -> 67.64089814 | O305: =IF(ISERROR(INDIRECT(CONCATENATE($B305,"!O129"))),"",INDIRECT(CONCATENATE($B305,"!O129"))) -> 89.88926029 | R305: =IF(ISERROR(INDIRECT(CONCATENATE($B305,"!O127"))),"",INDIRECT(CONCATENATE($B305,"!O127"))) -> 20.53833515 | S305: =IF(ISERROR(INDIRECT(CONCATENATE($B305,"!P122"))),"",INDIRECT(CONCATENATE($B305,"!P122"))) -> 83.52429101 | T305: =IF(ISERROR(INDIRECT(CONCATENATE($B305,"!P129"))),"",INDIRECT(CONCATENATE($B305,"!P129"))) -> 88.60585618 | W305: =IF(ISERROR(INDIRECT(CONCATENATE($B305,"!P127"))),"",INDIRECT(CONCATENATE($B305,"!P127"))) -> 3.888633385 | X305: =IF(ISERROR(INDIRECT(CONCATENATE($B305,"!Q122"))),"",INDIRECT(CONCATENATE($B305,"!Q122"))) -> 91.95538177 | Y305: =IF(ISERROR(INDIRECT(CONCATENATE($B305,"!Q129"))),"",INDIRECT(CONCATENATE($B305,"!Q129"))) -> 93.70817281 | AB305: =IF(ISERROR(INDIRECT(CONCATENATE($B305,"!Q2127"))),"",INDIRECT(CONCATENATE($B305,"!Q127"))) -> 1.20100874
B306: MICS12 | C306: 2012 | D306: 68.12623516 | E306: 91.86550007 | H306: 23.09548295 | I306: 86.56517666 | J306: 94.0349723 | M306: 7.257615269 | N306: 95.20204013 | O306: 92.5148934 | R306: 2.327908839 | S306: 96.39362266 | T306: 96.1982058 | W306: 0.4709579038 | X306: 99.26169924 | Y306: 96.18967079 | AB306: 0
B307: MICS18 | C307: 2018 | D307: 93.51080012 | E307: 96.63783331 | H307: 4.832426661 | I307: 95.13912049 | J307: 95.85970357 | M307: 2.644104096 | N307: 93.59057918 | O307: 94.74177951 | R307: 4.392696022 | S307: 97.66067139 | T307: 95.68261088 | W307: 0.8433127484 | X307: 99.05304795 | Y307: 98.44326203 | AB307: 0.4054706545
B318: =CONCATENATE("Rural use of sanitation facilities, ",C299,"–",C300) -> Rural use of sanitation facilities, 2000–2020 | S318: Data points used for regression

Sheet Hygiene
B4: Access to hygiene facilities by wealth quintile (%)
B5: =IF(ISERROR(INDIRECT(CONCATENATE($E$32,"!A2"))),"",INDIRECT(CONCATENATE($E$32,"!A2"))) -> Tunisia
B7: =CONCATENATE("National ",IF(ISERROR(INDIRECT(CONCATENATE($E$32,"!A2"))),"",INDIRECT(CONCATENATE($E$32,"!A210")))) -> National Access to hygiene facilities | K7: =CONCATENATE("Urban ",IF(ISERROR(INDIRECT(CONCATENATE($E$32,"!A2"))),"",INDIRECT(CONCATENATE($E$32,"!A210")))) -> Urban Access to hygiene facilities | S7: =CONCATENATE("Rural ",IF(ISERROR(INDIRECT(CONCATENATE($E$32,"!A2"))),"",INDIRECT(CONCATENATE($E$32,"!A210")))) -> Rural Access to hygiene facilities
E32: =INDEX(B88:B100,A88) -> MICS18 | G32: =IF(ISERROR(INDIRECT(CONCATENATE($E$32,"!A2"))),"",INDIRECT(CONCATENATE($E$32,"!A2"))) -> Tunisia | K32: Poorest | N32: Poor | Q32: Middle | T32: Rich | W32: Richest
K33: Basic | L33: Limited | M33: No facility | N33: Basic | O33: Limited | P33: No facility | Q33: Basic | R33: Limited | S33: No facility | T33: Basic | U33: Limited | V33: No facility | W33: Basic | X33: Limited | Y33: No facility
B34: >>> Select Survey : | G34: NATIONAL | J34: =IF(ISERROR(INDIRECT(CONCATENATE(#REF!,"!A2"))),"",INDIRECT(CONCATENATE(#REF!,"!A210"))) ->  | K34: =IF(ISERROR(INDIRECT(CONCATENATE($E$32,"!C222"))),"",INDIRECT(CONCATENATE($E$32,"!C222"))) -> 78.94101283 | L34: =IF(ISERROR(INDIRECT(CONCATENATE($E$32,"!C223"))),"",INDIRECT(CONCATENATE($E$32,"!C223"))) -> 14.36458864 | M34: =IF(ISERROR(INDIRECT(CONCATENATE($E$32,"!C224"))),"",INDIRECT(CONCATENATE($E$32,"!C224"))) -> 6.694398524 | N34: =IF(ISERROR(INDIRECT(CONCATENATE($E$32,"!D222"))),"",INDIRECT(CONCATENATE($E$32,"!D222"))) -> 88.10126308 | O34: =IF(ISERROR(INDIRECT(CONCATENATE($E$32,"!D223"))),"",INDIRECT(CONCATENATE($E$32,"!D223"))) -> 8.717717891 | P34: =IF(ISERROR(INDIRECT(CONCATENATE($E$32,"!D224"))),"",INDIRECT(CONCATENATE($E$32,"!D224"))) -> 3.181019027 | Q34: =IF(ISERROR(INDIRECT(CONCATENATE($E$32,"!E222"))),"",INDIRECT(CONCATENATE($E$32,"!E222"))) -> 96.61927154 | R34: =IF(ISERROR(INDIRECT(CONCATENATE($E$32,"!E223"))),"",INDIRECT(CONCATENATE($E$32,"!E223"))) -> 2.974755869 | S34: =IF(ISERROR(INDIRECT(CONCATENATE($E$32,"!E224"))),"",INDIRECT(CONCATENATE($E$32,"!E224"))) -> 0.4059725907 | T34: =IF(ISERROR(INDIRECT(CONCATENATE($E$32,"!F222"))),"",INDIRECT(CONCATENATE($E$32,"!F222"))) -> 98.43207125 | U34: =IF(ISERROR(INDIRECT(CONCATENATE($E$32,"!F223"))),"",INDIRECT(CONCATENATE($E$32,"!F223"))) -> 1.438878501 | V34: =IF(ISERROR(INDIRECT(CONCATENATE($E$32,"!F224"))),"",INDIRECT(CONCATENATE($E$32,"!F224"))) -> 0.1290502532 | W34: =IF(ISERROR(INDIRECT(CONCATENATE($E$32,"!G222"))),"",INDIRECT(CONCATENATE($E$32,"!G222"))) -> 99.02712514 | X34: =IF(ISERROR(INDIRECT(CONCATENATE($E$32,"!G223"))),"",INDIRECT(CONCATENATE($E$32,"!G223"))) -> 0.8332974222 | Y34: =IF(ISERROR(INDIRECT(CONCATENATE($E$32,"!G224"))),"",INDIRECT(CONCATENATE($E$32,"!G224"))) -> 0.1395774428
G37: URBAN | J37: =IF(ISERROR(INDIRECT(CONCATENATE(#REF!,"!A2"))),"",INDIRECT(CONCATENATE(#REF!,"!A210"))) ->  | K37: =IF(ISERROR(INDIRECT(CONCATENATE($E$32,"!H222"))),"",INDIRECT(CONCATENATE($E$32,"!H222"))) -> 88.86236883 | L37: =IF(ISERROR(INDIRECT(CONCATENATE($E$32,"!H223"))),"",INDIRECT(CONCATENATE($E$32,"!H223"))) -> 8.292978677 | M37: =IF(ISERROR(INDIRECT(CONCATENATE($E$32,"!H224"))),"",INDIRECT(CONCATENATE($E$32,"!H224"))) -> 2.844652489 | N37: =IF(ISERROR(INDIRECT(CONCATENATE($E$32,"!I222"))),"",INDIRECT(CONCATENATE($E$32,"!I222"))) -> 96.48926937 | O37: =IF(ISERROR(INDIRECT(CONCATENATE($E$32,"!I223"))),"",INDIRECT(CONCATENATE($E$32,"!I223"))) -> 2.922795887 | P37: =IF(ISERROR(INDIRECT(CONCATENATE($E$32,"!I224"))),"",INDIRECT(CONCATENATE($E$32,"!I224"))) -> 0.5879347398 | Q37: =IF(ISERROR(INDIRECT(CONCATENATE($E$32,"!J222"))),"",INDIRECT(CONCATENATE($E$32,"!J222"))) -> 98.81092629 | R37: =IF(ISERROR(INDIRECT(CONCATENATE($E$32,"!J223"))),"",INDIRECT(CONCATENATE($E$32,"!J223"))) -> 1.067203389 | S37: =IF(ISERROR(INDIRECT(CONCATENATE($E$32,"!J224"))),"",INDIRECT(CONCATENATE($E$32,"!J224"))) -> 0.1218703179 | T37: =IF(ISERROR(INDIRECT(CONCATENATE($E$32,"!K222"))),"",INDIRECT(CONCATENATE($E$32,"!K222"))) -> 98.21064105 | U37: =IF(ISERROR(INDIRECT(CONCATENATE($E$32,"!K223"))),"",INDIRECT(CONCATENATE($E$32,"!K223"))) -> 1.721842433 | V37: =IF(ISERROR(INDIRECT(CONCATENATE($E$32,"!K224"))),"",INDIRECT(CONCATENATE($E$32,"!K224"))) -> 0.06751651594 | W37: =IF(ISERROR(INDIRECT(CONCATENATE($E$32,"!L222"))),"",INDIRECT(CONCATENATE($E$32,"!L222"))) -> 99.29617017 | X37: =IF(ISERROR(INDIRECT(CONCATENATE($E$32,"!L223"))),"",INDIRECT(CONCATENATE($E$32,"!L223"))) -> 0.5728623987 | Y37: =IF(ISERROR(INDIRECT(CONCATENATE($E$32,"!L224"))),"",INDIRECT(CONCATENATE($E$32,"!L224"))) -> 0.1309674346
G40: RURAL | J40: =IF(ISERROR(INDIRECT(CONCATENATE(#REF!,"!A2"))),"",INDIRECT(CONCATENATE(#REF!,"!A210"))) ->  | K40: =IF(ISERROR(INDIRECT(CONCATENATE($E$32,"!M222"))),"",INDIRECT(CONCATENATE($E$32,"!M222"))) -> 76.92153508 | L40: =IF(ISERROR(INDIRECT(CONCATENATE($E$32,"!M223"))),"",INDIRECT(CONCATENATE($E$32,"!M223"))) -> 16.59269772 | M40: =IF(ISERROR(INDIRECT(CONCATENATE($E$32,"!M224"))),"",INDIRECT(CONCATENATE($E$32,"!M224"))) -> 6.485767193 | N40: =IF(ISERROR(INDIRECT(CONCATENATE($E$32,"!N222"))),"",INDIRECT(CONCATENATE($E$32,"!N222"))) -> 80.31106989 | O40: =IF(ISERROR(INDIRECT(CONCATENATE($E$32,"!N223"))),"",INDIRECT(CONCATENATE($E$32,"!N223"))) -> 14.38805504 | P40: =IF(ISERROR(INDIRECT(CONCATENATE($E$32,"!N224"))),"",INDIRECT(CONCATENATE($E$32,"!N224"))) -> 5.300875067 | Q40: =IF(ISERROR(INDIRECT(CONCATENATE($E$32,"!O222"))),"",INDIRECT(CONCATENATE($E$32,"!O222"))) -> 76.34617472 | R40: =IF(ISERROR(INDIRECT(CONCATENATE($E$32,"!O223"))),"",INDIRECT(CONCATENATE($E$32,"!O223"))) -> 14.30360243 | S40: =IF(ISERROR(INDIRECT(CONCATENATE($E$32,"!O224"))),"",INDIRECT(CONCATENATE($E$32,"!O224"))) -> 9.350222842 | T40: =IF(ISERROR(INDIRECT(CONCATENATE($E$32,"!P222"))),"",INDIRECT(CONCATENATE($E$32,"!P222"))) -> 86.40485163 | U40: =IF(ISERROR(INDIRECT(CONCATENATE($E$32,"!P223"))),"",INDIRECT(CONCATENATE($E$32,"!P223"))) -> 10.24855636 | V40: =IF(ISERROR(INDIRECT(CONCATENATE($E$32,"!P224"))),"",INDIRECT(CONCATENATE($E$32,"!P224"))) -> 3.346592005 | W40: =IF(ISERROR(INDIRECT(CONCATENATE($E$32,"!Q222"))),"",INDIRECT(CONCATENATE($E$32,"!Q222"))) -> 96.6500123 | X40: =IF(ISERROR(INDIRECT(CONCATENATE($E$32,"!Q223"))),"",INDIRECT(CONCATENATE($E$32,"!Q223"))) -> 2.535624297 | Y40: =IF(ISERROR(INDIRECT(CONCATENATE($E$32,"!Q224"))),"",INDIRECT(CONCATENATE($E$32,"!Q224"))) -> 0.8143634052
A88: 3 | B88: WHS03
B89: MICS12
B90: MICS18
B91: Input
B92: Template

Sheet WHS03
A2: =A1026 -> Tunisia
A3: =A1034 -> 2003
A4: Use of drinking water sources
A5: by wealth quintile and sub-national region
A6: Notes:
A7: WHO/UNICEF JMP customised wealth index excludes water,
A8: sanitation and hygiene assets.
A9: Survey used for analysis: | B9: =A1025 -> WHS03
A10: Time to source based on: | B10: MICS12
A11: =B1027 -> 
A14: Use of drinking water sources | C14: NATIONAL wealth index quintile | H14: URBAN wealth index quintile | M14: RURAL wealth index quintile | BA14: Raw numbers of respondents: | BB14: Use of drinking water sources | BC14: NATIONAL wealth index quintile | BH14: URBAN wealth index quintile | BM14: RURAL wealth index quintile
A15: Weighted percentage (used in graphs) | C15: Poorest | D15: Poor | E15: Middle | F15: Rich | G15: Richest | H15: Poorest | I15: Poor | J15: Middle | K15: Rich | L15: Richest | M15: Poorest | N15: Poor | O15: Middle | P15: Rich | Q15: Richest | BA15: Water data, raw numbers (weighted) | BC15: Poorest | BD15: Poor | BE15: Middle | BF15: Rich | BG15: Richest | BH15: Poorest | BI15: Poor | BJ15: Middle | BK15: Rich | BL15: Richest | BM15: Poorest | BN15: Poor | BO15: Middle | BP15: Rich | BQ15: Richest
A16: Water | B16: Improved | C16: =C58+C59+C60+C61+C63+C65 -> 88.150371 | D16: 94.49365997 | E16: 98.6963434 | F16: 99.53417216 | G16: 99.65916142 | H16: 99.82661393 | I16: 100 | J16: 100 | K16: 100 | L16: 100 | M16: 86.01648346 | N16: 85.42569475 | O16: 84.86713149 | P16: 90.2110794 | Q16: 95.21775732 | BA16: Water | BB16: Improved | BC16: N/A | BD16: N/A | BE16: N/A | BF16: N/A | BG16: N/A | BH16: N/A | BI16: N/A | BJ16: N/A | BK16: N/A | BL16: N/A | BM16: N/A | BN16: N/A | BO16: N/A | BP16: N/A | BQ16: N/A
B17: Not Improved | C17: =100-C16 -> 11.849629 | D17: =100-D16 -> 5.506340034 | E17: 1.303656601 | F17: 0.4658278397 | G17: 0.3408385762 | H17: 0.1733860734 | I17: 0 | J17: 0 | K17: 0 | L17: 0 | M17: 13.98351654 | N17: 14.57430525 | O17: 15.13286851 | P17: 9.788920597 | Q17: 4.782242684 | BB17: Not Improved | BC17: N/A | BD17: N/A | BE17: N/A | BF17: N/A | BG17: N/A | BH17: N/A | BI17: N/A | BJ17: N/A | BK17: N/A | BL17: N/A | BM17: N/A | BN17: N/A | BO17: N/A | BP17: N/A | BQ17: N/A
A18: Water ladder | B18: Basic | C18: =C16*MICS12!C23/100 -> 79.51163464 | D18: =D16*MICS12!D23/100 -> 90.80840723 | E18: =E16*MICS12!E23/100 -> 97.70937996 | F18: =F16*MICS12!F23/100 -> 99.0365013 | G18: =G16*MICS12!G23/100 -> 99.06120646 | H18: =H16*MICS12!H23/100 -> 99.6269607 | I18: =I16*MICS12!I23/100 -> 99.6 | J18: =J16*MICS12!J23/100 -> 100 | K18: =K16*MICS12!K23/100 -> 99.5 | L18: =L16*MICS12!L23/100 -> 99.4 | M18: =M16*MICS12!M23/100 -> 72.42587908 | N18: =N16*MICS12!N23/100 -> 75.94344263 | O18: =O16*MICS12!O23/100 -> 76.63501974 | P18: =P16*MICS12!P23/100 -> 84.43757032 | Q18: =Q16*MICS12!Q23/100 -> 93.40861993 | BA18: Water ladder | BB18: Basic | BC18: N/A | BD18: N/A | BE18: N/A | BF18: N/A | BG18: N/A | BH18: N/A | BI18: N/A | BJ18: N/A | BK18: N/A | BL18: N/A | BM18: N/A | BN18: N/A | BO18: N/A | BP18: N/A | BQ18: N/A
B19: Limited | C19: =C16*MICS12!C22/100 -> 8.638736358 | D19: =D16*MICS12!D22/100 -> 3.685252739 | E19: =E16*MICS12!E22/100 -> 0.986963434 | F19: =F16*MICS12!F22/100 -> 0.4976708608 | G19: =G16*MICS12!G22/100 -> 0.5979549685 | H19: =H16*MICS12!H22/100 -> 0.1996532279 | I19: =I16*MICS12!I22/100 -> 0.4 | J19: =J16*MICS12!J22/100 -> 0 | K19: =K16*MICS12!K22/100 -> 0.5 | L19: =L16*MICS12!L22/100 -> 0.6 | M19: =M16*MICS12!M22/100 -> 13.59060439 | N19: =N16*MICS12!N22/100 -> 9.482252117 | O19: =O16*MICS12!O22/100 -> 8.232111754 | P19: =P16*MICS12!P22/100 -> 5.773509082 | Q19: =Q16*MICS12!Q22/100 -> 1.809137389 | BB19: Limited | BC19: N/A | BD19: N/A | BE19: N/A | BF19: N/A | BG19: N/A | BH19: N/A | BI19: N/A | BJ19: N/A | BK19: N/A | BL19: N/A | BM19: N/A | BN19: N/A | BO19: N/A | BP19: N/A | BQ19: N/A
B20: Unimproved | C20: =100-(C18+C19+C21) -> 9.991446908 | D20: =100-(D18+D19+D21) -> 4.588274776 | E20: 0.793596917 | F20: 0.4658278397 | G20: 0.3408385762 | H20: 0.1733860734 | I20: 0 | J20: 0 | K20: 0 | L20: 0 | M20: 11.37049431 | N20: 12.57365958 | O20: 12.27709347 | P20: 7.984116076 | Q20: 4.181143044 | BB20: Unimproved | BC20: N/A | BD20: N/A | BE20: N/A | BF20: N/A | BG20: N/A | BH20: N/A | BI20: N/A | BJ20: N/A | BK20: N/A | BL20: N/A | BM20: N/A | BN20: N/A | BO20: N/A | BP20: N/A | BQ20: N/A
B21: Surface water | C21: =C64 -> 1.858182094 | D21: 0.9180652581 | E21: 0.5100596841 | F21: 0 | G21: 0 | H21: 0 | I21: 0 | J21: 0 | K21: 0 | L21: 0 | M21: 2.613022227 | N21: 2.000645672 | O21: 2.85577504 | P21: 1.804804521 | Q21: 0.6010996394 | BB21: Surface water | BC21: N/A | BD21: N/A | BE21: N/A | BF21: N/A | BG21: N/A | BH21: N/A | BI21: N/A | BJ21: N/A | BK21: N/A | BL21: N/A | BM21: N/A | BN21: N/A | BO21: N/A | BP21: N/A | BQ21: N/A
A22: Improved water point at more than 30 minutes | B22: Yes | C22: N/A | D22: N/A | E22: N/A | F22: N/A | G22: N/A | H22: N/A | I22: N/A | J22: N/A | K22: N/A | L22: N/A | M22: N/A | N22: N/A | O22: N/A | P22: N/A | Q22: N/A | BA22: Improved water point at more than 30 minutes | BB22: Yes | BC22: N/A | BD22: N/A | BE22: N/A | BF22: N/A | BG22: N/A | BH22: N/A | BI22: N/A | BJ22: N/A | BK22: N/A | BL22: N/A | BM22: N/A | BN22: N/A | BO22: N/A | BP22: N/A | BQ22: N/A
B23: No | C23: N/A | D23: N/A | E23: N/A | F23: N/A | G23: N/A | H23: N/A | I23: N/A | J23: N/A | K23: N/A | L23: N/A | M23: N/A | N23: N/A | O23: N/A | P23: N/A | Q23: N/A | BB23: No | BC23: N/A | BD23: N/A | BE23: N/A | BF23: N/A | BG23: N/A | BH23: N/A | BI23: N/A | BJ23: N/A | BK23: N/A | BL23: N/A | BM23: N/A | BN23: N/A | BO23: N/A | BP23: N/A | BQ23: N/A
A24: Manually calculated ratios | B24: Improved wells
B25: Improved springs
B26: Other
C27: NATIONAL wealth index quintile | H27: URBAN wealth index quintile | M27: RURAL wealth index quintile | BA27: Raw numbers of respondents: | BB27: Use of drinking water sources | BC27: NATIONAL wealth index quintile | BH27: URBAN wealth index quintile | BM27: RURAL wealth index quintile
A28: Percentage based on weighted population | C28: Poorest | D28: Poor | E28: Middle | F28: Rich | G28: Richest | H28: Poorest | I28: Poor | J28: Middle | K28: Rich | L28: Richest | M28: Poorest | N28: Poor | O28: Middle | P28: Rich | Q28: Richest | BA28: Water data, raw numbers (weighted) | BC28: Poorest | BD28: Poor | BE28: Middle | BF28: Rich | BG28: Richest | BH28: Poorest | BI28: Poor | BJ28: Middle | BK28: Rich | BL28: Richest | BM28: Poorest | BN28: Poor | BO28: Middle | BP28: Rich | BQ28: Richest
A29: Piped water | B29: Yes | C29: 55.27934198 | D29: 77.00024717 | E29: 87.78746342 | F29: 93.56048364 | G29: 95.18804189 | H29: 86.51333852 | I29: 90.71455271 | J29: 95.41554663 | K29: 94.94438934 | L29: 96.08222405 | M29: 42.42880278 | N29: 49.30458353 | O29: 58.95939732 | P29: 68.52043176 | Q29: 77.57315715 | BA29: Piped water | BB29: Yes | BC29: N/A | BD29: N/A | BE29: N/A | BF29: N/A | BG29: N/A | BH29: N/A | BI29: N/A | BJ29: N/A | BK29: N/A | BL29: N/A | BM29: N/A | BN29: N/A | BO29: N/A | BP29: N/A | BQ29: N/A
B30: No | C30: 44.72065802 | D30: 22.99975283 | E30: 12.21253658 | F30: 6.439516363 | G30: 4.811958115 | H30: 13.48666148 | I30: 9.285447293 | J30: 4.584453373 | K30: 5.055610659 | L30: 3.917775946 | M30: 57.57119722 | N30: 50.69541647 | O30: 41.04060268 | P30: 31.47956824 | Q30: 22.42684285 | BB30: No | BC30: N/A | BD30: N/A | BE30: N/A | BF30: N/A | BG30: N/A | BH30: N/A | BI30: N/A | BJ30: N/A | BK30: N/A | BL30: N/A | BM30: N/A | BN30: N/A | BO30: N/A | BP30: N/A | BQ30: N/A
A31: Piped water on premises | B31: Yes | C31: 34.7945472 | D31: 63.1992617 | E31: 83.40370356 | F31: 92.4047512 | G31: 94.30208481 | H31: 85.28586423 | I31: 89.8378121 | J31: 95.27078942 | K31: 94.73408213 | L31: 95.96055124 | M31: 13.40364775 | N31: 27.21948474 | O31: 28.82289012 | P31: 47.54661184 | Q31: 61.21407721 | BA31: Piped water on premises | BB31: Yes | BC31: N/A | BD31: N/A | BE31: N/A | BF31: N/A | BG31: N/A | BH31: N/A | BI31: N/A | BJ31: N/A | BK31: N/A | BL31: N/A | BM31: N/A | BN31: N/A | BO31: N/A | BP31: N/A | BQ31: N/A
B32: No | C32: 65.2054528 | D32: 36.8007383 | E32: 16.59629644 | F32: 7.595248798 | G32: 5.697915187 | H32: 14.71413577 | I32: 10.1621879 | J32: 4.729210578 | K32: 5.26591787 | L32: 4.039448756 | M32: 86.59635225 | N32: 72.78051526 | O32: 71.17710988 | P32: 52.45338816 | Q32: 38.78592279 | BB32: No | BC32: N/A | BD32: N/A | BE32: N/A | BF32: N/A | BG32: N/A | BH32: N/A | BI32: N/A | BJ32: N/A | BK32: N/A | BL32: N/A | BM32: N/A | BN32: N/A | BO32: N/A | BP32: N/A | BQ32: N/A
A33: Piped water into dwelling | B33: Yes | C33: N/A | D33: N/A | E33: N/A | F33: N/A | G33: N/A | H33: N/A | I33: N/A | J33: N/A | K33: N/A | L33: N/A | M33: N/A | N33: N/A | O33: N/A | P33: N/A | Q33: N/A | BA33: Piped water into dwelling | BB33: Yes | BC33: N/A | BD33: N/A | BE33: N/A | BF33: N/A | BG33: N/A | BH33: N/A | BI33: N/A | BJ33: N/A | BK33: N/A | BL33: N/A | BM33: N/A | BN33: N/A | BO33: N/A | BP33: N/A | BQ33: N/A
B34: No | C34: N/A | D34: N/A | E34: N/A | F34: N/A | G34: N/A | H34: N/A | I34: N/A | J34: N/A | K34: N/A | L34: N/A | M34: N/A | N34: N/A | O34: N/A | P34: N/A | Q34: N/A | BB34: No | BC34: N/A | BD34: N/A | BE34: N/A | BF34: N/A | BG34: N/A | BH34: N/A | BI34: N/A | BJ34: N/A | BK34: N/A | BL34: N/A | BM34: N/A | BN34: N/A | BO34: N/A | BP34: N/A | BQ34: N/A
A35: Water source on premises | B35: Yes | C35: N/A | D35: N/A | E35: N/A | F35: N/A | G35: N/A | H35: N/A | I35: N/A | J35: N/A | K35: N/A | L35: N/A | M35: N/A | N35: N/A | O35: N/A | P35: N/A | Q35: N/A | BA35: Water source on premises | BB35: Yes | BC35: N/A | BD35: N/A | BE35: N/A | BF35: N/A | BG35: N/A | BH35: N/A | BI35: N/A | BJ35: N/A | BK35: N/A | BL35: N/A | BM35: N/A | BN35: N/A | BO35: N/A | BP35: N/A | BQ35: N/A
B36: No | C36: N/A | D36: N/A | E36: N/A | F36: N/A | G36: N/A | H36: N/A | I36: N/A | J36: N/A | K36: N/A | L36: N/A | M36: N/A | N36: N/A | O36: N/A | P36: N/A | Q36: N/A | BB36: No | BC36: N/A | BD36: N/A | BE36: N/A | BF36: N/A | BG36: N/A | BH36: N/A | BI36: N/A | BJ36: N/A | BK36: N/A | BL36: N/A | BM36: N/A | BN36: N/A | BO36: N/A | BP36: N/A | BQ36: N/A
A37: Improved Water source on premises | B37: Yes | C37: N/A | D37: N/A | E37: N/A | F37: N/A | G37: N/A | H37: N/A | I37: N/A | J37: N/A | K37: N/A | L37: N/A | M37: N/A | N37: N/A | O37: N/A | P37: N/A | Q37: N/A | BA37: Improved water source on premises | BB37: Yes | BC37: N/A | BD37: N/A | BE37: N/A | BF37: N/A | BG37: N/A | BH37: N/A | BI37: N/A | BJ37: N/A | BK37: N/A | BL37: N/A | BM37: N/A | BN37: N/A | BO37: N/A | BP37: N/A | BQ37: N/A
B38: No | C38: N/A | D38: N/A | E38: N/A | F38: N/A | G38: N/A | H38: N/A | I38: N/A | J38: N/A | K38: N/A | L38: N/A | M38: N/A | N38: N/A | O38: N/A | P38: N/A | Q38: N/A | BB38: No | BC38: N/A | BD38: N/A | BE38: N/A | BF38: N/A | BG38: N/A | BH38: N/A | BI38: N/A | BJ38: N/A | BK38: N/A | BL38: N/A | BM38: N/A | BN38: N/A | BO38: N/A | BP38: N/A | BQ38: N/A
A39: Piped water on premises available when needed | B39: Yes | C39: N/A | D39: N/A | E39: N/A | F39: N/A | G39: N/A | H39: N/A | I39: N/A | J39: N/A | K39: N/A | L39: N/A | M39: N/A | N39: N/A | O39: N/A | P39: N/A | Q39: N/A | BA39: Piped water on premises available when needed | BB39: Yes | BC39: N/A | BD39: N/A | BE39: N/A | BF39: N/A | BG39: N/A | BH39: N/A | BI39: N/A | BJ39: N/A | BK39: N/A | BL39: N/A | BM39: N/A | BN39: N/A | BO39: N/A | BP39: N/A | BQ39: N/A
B40: No | C40: N/A | D40: N/A | E40: N/A | F40: N/A | G40: N/A | H40: N/A | I40: N/A | J40: N/A | K40: N/A | L40: N/A | M40: N/A | N40: N/A | O40: N/A | P40: N/A | Q40: N/A | BB40: No | BC40: N/A | BD40: N/A | BE40: N/A | BF40: N/A | BG40: N/A | BH40: N/A | BI40: N/A | BJ40: N/A | BK40: N/A | BL40: N/A | BM40: N/A | BN40: N/A | BO40: N/A | BP40: N/A | BQ40: N/A
A41: Water point at more than 30 minutes | B41: Yes | C41: N/A | D41: N/A | E41: N/A | F41: N/A | G41: N/A | H41: N/A | I41: N/A | J41: N/A | K41: N/A | L41: N/A | M41: N/A | N41: N/A | O41: N/A | P41: N/A | Q41: N/A | BA41: Water point at more than 30 minutes | BB41: Yes | BC41: N/A | BD41: N/A | BE41: N/A | BF41: N/A | BG41: N/A | BH41: N/A | BI41: N/A | BJ41: N/A | BK41: N/A | BL41: N/A | BM41: N/A | BN41: N/A | BO41: N/A | BP41: N/A | BQ41: N/A
B42: No | C42: N/A | D42: N/A | E42: N/A | F42: N/A | G42: N/A | H42: N/A | I42: N/A | J42: N/A | K42: N/A | L42: N/A | M42: N/A | N42: N/A | O42: N/A | P42: N/A | Q42: N/A | BB42: No | BC42: N/A | BD42: N/A | BE42: N/A | BF42: N/A | BG42: N/A | BH42: N/A | BI42: N/A | BJ42: N/A | BK42: N/A | BL42: N/A | BM42: N/A | BN42: N/A | BO42: N/A | BP42: N/A | BQ42: N/A
A43: Water source available when needed | B43: Yes | C43: N/A | D43: N/A | E43: N/A | F43: N/A | G43: N/A | H43: N/A | I43: N/A | J43: N/A | K43: N/A | L43: N/A | M43: N/A | N43: N/A | O43: N/A | P43: N/A | Q43: N/A | BA43: Water source available when needed | BB43: Yes | BC43: N/A | BD43: N/A | BE43: N/A | BF43: N/A | BG43: N/A | BH43: N/A | BI43: N/A | BJ43: N/A | BK43: N/A | BL43: N/A | BM43: N/A | BN43: N/A | BO43: N/A | BP43: N/A | BQ43: N/A
B44: No | C44: N/A | D44: N/A | E44: N/A | F44: N/A | G44: N/A | H44: N/A | I44: N/A | J44: N/A | K44: N/A | L44: N/A | M44: N/A | N44: N/A | O44: N/A | P44: N/A | Q44: N/A | BB44: No | BC44: N/A | BD44: N/A | BE44: N/A | BF44: N/A | BG44: N/A | BH44: N/A | BI44: N/A | BJ44: N/A | BK44: N/A | BL44: N/A | BM44: N/A | BN44: N/A | BO44: N/A | BP44: N/A | BQ44: N/A
A45: Improved water source available when needed | B45: Yes | C45: N/A | D45: N/A | E45: N/A | F45: N/A | G45: N/A | H45: N/A | I45: N/A | J45: N/A | K45: N/A | L45: N/A | M45: N/A | N45: N/A | O45: N/A | P45: N/A | Q45: N/A | BA45: Improved water source available when needed | BB45: Yes | BC45: N/A | BD45: N/A | BE45: N/A | BF45: N/A | BG45: N/A | BH45: N/A | BI45: N/A | BJ45: N/A | BK45: N/A | BL45: N/A | BM45: N/A | BN45: N/A | BO45: N/A | BP45: N/A | BQ45: N/A
B46: No | C46: N/A | D46: N/A | E46: N/A | F46: N/A | G46: N/A | H46: N/A | I46: N/A | J46: N/A | K46: N/A | L46: N/A | M46: N/A | N46: N/A | O46: N/A | P46: N/A | Q46: N/A | BB46: No | BC46: N/A | BD46: N/A | BE46: N/A | BF46: N/A | BG46: N/A | BH46: N/A | BI46: N/A | BJ46: N/A | BK46: N/A | BL46: N/A | BM46: N/A | BN46: N/A | BO46: N/A | BP46: N/A | BQ46: N/A
A47: Microbiological quality at point of collection | B47: Not contaminated (No E. coli in 100 mL) | C47: N/A | D47: N/A | E47: N/A | F47: N/A | G47: N/A | H47: N/A | I47: N/A | J47: N/A | K47: N/A | L47: N/A | M47: N/A | N47: N/A | O47: N/A | P47: N/A | Q47: N/A | BA47: Microbiological quality at point of collection | BB47: Not contaminated (No E. coli in 100 mL) | BC47: N/A | BD47: N/A | BE47: N/A | BF47: N/A | BG47: N/A | BH47: N/A | BI47: N/A | BJ47: N/A | BK47: N/A | BL47: N/A | BM47: N/A | BN47: N/A | BO47: N/A | BP47: N/A | BQ47: N/A
B48: Contaminated (E. coli detected in 100 mL) | C48: N/A | D48: N/A | E48: N/A | F48: N/A | G48: N/A | H48: N/A | I48: N/A | J48: N/A | K48: N/A | L48: N/A | M48: N/A | N48: N/A | O48: N/A | P48: N/A | Q48: N/A | BB48: Contaminated (E. coli detected in 100 mL) | BC48: N/A | BD48: N/A | BE48: N/A | BF48: N/A | BG48: N/A | BH48: N/A | BI48: N/A | BJ48: N/A | BK48: N/A | BL48: N/A | BM48: N/A | BN48: N/A | BO48: N/A | BP48: N/A | BQ48: N/A
B49: Highly contaminated (>100 CFU/100 mL) | C49: N/A | D49: N/A | E49: N/A | F49: N/A | G49: N/A | H49: N/A | I49: N/A | J49: N/A | K49: N/A | L49: N/A | M49: N/A | N49: N/A | O49: N/A | P49: N/A | Q49: N/A | BB49: Highly contaminated (>100 CFU/100 mL) | BC49: N/A | BD49: N/A | BE49: N/A | BF49: N/A | BG49: N/A | BH49: N/A | BI49: N/A | BJ49: N/A | BK49: N/A | BL49: N/A | BM49: N/A | BN49: N/A | BO49: N/A | BP49: N/A | BQ49: N/A
A50: Microbiological quality of improved water sources at point of collection | B50: Not contaminated (No E. coli in 100 mL) | C50: N/A | D50: N/A | E50: N/A | F50: N/A | G50: N/A | H50: N/A | I50: N/A | J50: N/A | K50: N/A | L50: N/A | M50: N/A | N50: N/A | O50: N/A | P50: N/A | Q50: N/A | BA50: Microbiological quality of improved water sources at point of collection | BB50: Not contaminated (No E. coli in 100 mL) | BC50: N/A | BD50: N/A | BE50: N/A | BF50: N/A | BG50: N/A | BH50: N/A | BI50: N/A | BJ50: N/A | BK50: N/A | BL50: N/A | BM50: N/A | BN50: N/A | BO50: N/A | BP50: N/A | BQ50: N/A
B51: Contaminated (E. coli detected in 100 mL) | C51: N/A | D51: N/A | E51: N/A | F51: N/A | G51: N/A | H51: N/A | I51: N/A | J51: N/A | K51: N/A | L51: N/A | M51: N/A | N51: N/A | O51: N/A | P51: N/A | Q51: N/A | BB51: Contaminated (E. coli detected in 100 mL) | BC51: N/A | BD51: N/A | BE51: N/A | BF51: N/A | BG51: N/A | BH51: N/A | BI51: N/A | BJ51: N/A | BK51: N/A | BL51: N/A | BM51: N/A | BN51: N/A | BO51: N/A | BP51: N/A | BQ51: N/A
B52: Highly contaminated (>100 CFU/100 mL) | C52: N/A | D52: N/A | E52: N/A | F52: N/A | G52: N/A | H52: N/A | I52: N/A | J52: N/A | K52: N/A | L52: N/A | M52: N/A | N52: N/A | O52: N/A | P52: N/A | Q52: N/A | BB52: Highly contaminated (>100 CFU/100 mL) | BC52: N/A | BD52: N/A | BE52: N/A | BF52: N/A | BG52: N/A | BH52: N/A | BI52: N/A | BJ52: N/A | BK52: N/A | BL52: N/A | BM52: N/A | BN52: N/A | BO52: N/A | BP52: N/A | BQ52: N/A
A53: Microbiological quality of piped on premises at point of collection | B53: Not contaminated (No E. coli in 100 mL) | C53: N/A | D53: N/A | E53: N/A | F53: N/A | G53: N/A | H53: N/A | I53: N/A | J53: N/A | K53: N/A | L53: N/A | M53: N/A | N53: N/A | O53: N/A | P53: N/A | Q53: N/A | BA53: Microbiological quality of piped on premises at point of collection | BB53: Not contaminated (No E. coli in 100 mL) | BC53: N/A | BD53: N/A | BE53: N/A | BF53: N/A | BG53: N/A | BH53: N/A | BI53: N/A | BJ53: N/A | BK53: N/A | BL53: N/A | BM53: N/A | BN53: N/A | BO53: N/A | BP53: N/A | BQ53: N/A
B54: Contaminated (E. coli detected in 100 mL) | C54: N/A | D54: N/A | E54: N/A | F54: N/A | G54: N/A | H54: N/A | I54: N/A | J54: N/A | K54: N/A | L54: N/A | M54: N/A | N54: N/A | O54: N/A | P54: N/A | Q54: N/A | BB54: Contaminated (E. coli detected in 100 mL) | BC54: N/A | BD54: N/A | BE54: N/A | BF54: N/A | BG54: N/A | BH54: N/A | BI54: N/A | BJ54: N/A | BK54: N/A | BL54: N/A | BM54: N/A | BN54: N/A | BO54: N/A | BP54: N/A | BQ54: N/A
B55: Highly contaminated (>100 CFU/100 mL) | C55: N/A | D55: N/A | E55: N/A | F55: N/A | G55: N/A | H55: N/A | I55: N/A | J55: N/A | K55: N/A | L55: N/A | M55: N/A | N55: N/A | O55: N/A | P55: N/A | Q55: N/A | BB55: Highly contaminated (>100 CFU/100 mL) | BC55: N/A | BD55: N/A | BE55: N/A | BF55: N/A | BG55: N/A | BH55: N/A | BI55: N/A | BJ55: N/A | BK55: N/A | BL55: N/A | BM55: N/A | BN55: N/A | BO55: N/A | BP55: N/A | BQ55: N/A
C56: NATIONAL wealth index quintile | H56: URBAN wealth index quintile | M56: RURAL wealth index quintile | BA56: Raw numbers of respondents: | BB56: Use of drinking water sources | BC56: NATIONAL wealth index quintile | BH56: URBAN wealth index quintile | BM56: RURAL wealth index quintile
A57: Percentage based on weighted population | C57: Poorest | D57: Poor | E57: Middle | F57: Rich | G57: Richest | H57: Poorest | I57: Poor | J57: Middle | K57: Rich | L57: Richest | M57: Poorest | N57: Poor | O57: Middle | P57: Rich | Q57: Richest | BA57: Water data, raw numbers (weighted) | BC57: Poorest | BD57: Poor | BE57: Middle | BF57: Rich | BG57: Richest | BH57: Poorest | BI57: Poor | BJ57: Middle | BK57: Rich | BL57: Richest | BM57: Poorest | BN57: Poor | BO57: Middle | BP57: Rich | BQ57: Richest
A58: main source of drinking water | B58: Piped water through house connection or yard | C58: 36.28072996 | D58: 66.04069401 | E58: 86.07638501 | F58: 94.20598337 | G58: 96.84991814 | H58: 91.10944844 | I58: 93.4846387 | J58: 97.10862906 | K58: 97.66651993 | L58: 98.28721832 | M58: 13.97573992 | N58: 28.59111353 | O58: 29.38445119 | P58: 48.20862959 | Q58: 61.70129038
B59: Public standpipe | C59: 21.35976374 | D59: 14.42147635 | E59: 4.524237955 | F59: 1.178260956 | G59: 0.9098936695 | H59: 1.311290048 | I59: 0.9123305321 | J59: 0.1475496719 | K59: 0.216817147 | L59: 0.124622899 | M59: 30.26400164 | N59: 23.19799852 | O59: 30.72366169 | P59: 21.26585 | Q59: 16.48928462
B60: Protected tube well or bore hole | C60: 3.377324263 | D60: 2.311553994 | E60: 1.024568658 | F60: 0.4022432929 | G60: 0.1058626499 | H60: 0.4202939672 | I60: 0.1984992912 | J60: 0 | K60: 0 | L60: 0 | M60: 5.45766746 | N60: 3.519910212 | O60: 1.96846775 | P60: 5.660887752 | Q60: 3.844415201
B61: Protected dug well or protected spring | C61: 6.420612837 | D61: 3.64012009 | E61: 1.626258267 | F61: 1.001705407 | G61: 0.196892152 | H61: 0.1251889235 | I61: 0.9647735031 | J61: 0.2350968197 | K61: 0.23840812 | L61: 0 | M61: 7.458356402 | N61: 8.782607138 | O61: 7.942748683 | P61: 6.176474587 | Q61: 5.272242491
B62: Unprotected dug well or spring | C62: 9.991446908 | D62: 4.588274776 | E62: 0.793596917 | F62: 0.4658278397 | G62: 0.3408385762 | H62: 0.1733860734 | I62: 0 | J62: 0 | K62: 0 | L62: 0 | M62: 11.37049431 | N62: 12.57365958 | O62: 12.27709347 | P62: 7.984116076 | Q62: 4.181143044
B63: Rainwater (into tank or cistern ) | C63: 11.24924983 | D63: 5.93108401 | E63: 4.409485376 | F63: 2.588851034 | G63: 1.59659481 | H63: 5.512859485 | I63: 3.103954962 | J63: 2.273627627 | K63: 1.878254803 | L63: 1.588158782 | M63: 10.78721377 | N63: 15.53700581 | O63: 9.236620063 | P63: 6.41778077 | Q63: 6.989745025
B64: Water taken directly from pond-water or stream | C64: 1.858182094 | D64: 0.9180652581 | E64: 0.5100596841 | F64: 0 | G64: 0 | H64: 0 | I64: 0 | J64: 0 | K64: 0 | L64: 0 | M64: 2.613022227 | N64: 2.000645672 | O64: 2.85577504 | P64: 1.804804521 | Q64: 0.6010996394
B65: Tanker-truck, vendor | C65: 9.462690375 | D65: 2.148731507 | E65: 1.035408133 | F65: 0.1571281044 | G65: 0 | H65: 1.347533059 | I65: 1.335803014 | J65: 0.2350968197 | K65: 0 | L65: 0 | M65: 18.07350428 | N65: 5.797059532 | O65: 5.611182118 | P65: 2.481456698 | Q65: 0.920779603
A108: =A1026 -> Tunisia
A109: =A1034 -> 2003
A110: Use of sanitation facilities
A111: by wealth quintile and sub-national region
A112: Notes:
A113: WHO/UNICEF JMP customised wealth index excludes water,
A114: sanitation and hygiene assets.
A115: Survey used for analysis: | B115: =A1025 -> WHS03
A116: =B1030 -> 
A117: =B1029 -> 
A120: Use of sanitation facilities | C120: NATIONAL wealth index quintile | H120: URBAN wealth index quintile | M120: RURAL wealth index quintile | BA120: Raw numbers of respondents: | BB120: Use of sanitation facilities | BC120: NATIONAL wealth index quintile | BH120: URBAN wealth index quintile | BM120: RURAL wealth index quintile
A121: Weighted percentage (used in graphs) | C121: Poorest | D121: Poor | E121: Middle | F121: Rich | G121: Richest | H121: Poorest | I121: Poor | J121: Middle | K121: Rich | L121: Richest | M121: Poorest | N121: Poor | O121: Middle | P121: Rich | Q121: Richest | BA121: Sanitation data, raw numbers (weighted) | BC121: Poorest | BD121: Poor | BE121: Middle | BF121: Rich | BG121: Richest | BH121: Poorest | BI121: Poor | BJ121: Middle | BK121: Rich | BL121: Richest | BM121: Poorest | BN121: Poor | BO121: Middle | BP121: Rich | BQ121: Richest
A122: Sanitation | B122: Improved | C122: 57.14011389 | D122: 85.16404834 | E122: 95.21534742 | F122: 97.64579408 | G122: 97.16031277 | H122: 90.51920866 | I122: 96.22654258 | J122: 98.43648593 | K122: 97.06220948 | L122: 97.52417348 | M122: 36.97452298 | N122: 55.2590711 | O122: 67.64089814 | P122: 83.52429101 | Q122: 91.95538177 | BA122: Sanitation | BB122: Improved | BC122: 194472.3636 | BD122: 290294.1486 | BE122: 320529.5328 | BF122: 334275.9265 | BG122: 330152.0085 | BH122: 206639.5189 | BI122: 219044.2406 | BJ122: 225179.3971 | BK122: 221457.2166 | BL122: 222426.5356 | BM122: 41363.9968 | BN122: 61710.99935 | BO122: 75604.40586 | BP122: 93681.21041 | BQ122: 102616.4588
B123: Not Improved | C123: 42.85988611 | D123: 14.83595166 | E123: 4.784652584 | F123: 2.354205916 | G123: 2.839687229 | H123: 9.480791335 | I123: 3.77345742 | J123: 1.563514074 | K123: 2.937790521 | L123: 2.47582652 | M123: 63.02547702 | N123: 44.7409289 | O123: 32.35910186 | P123: 16.47570899 | Q123: 8.044618228 | BB123: Not Improved | BC123: 145870.6115 | BD123: 50570.51701 | BE123: 16106.88297 | BF123: 8059.275581 | BG123: 9649.294197 | BH123: 21642.98815 | BI123: 8589.66864 | BJ123: 3576.632721 | BK123: 6702.865257 | BL123: 5646.697594 | BM123: 70507.62038 | BN123: 49964.78188 | BO123: 36168.80818 | BP123: 18479.22733 | BQ123: 8977.291153
A124: Sanitation ladder | B124: Basic | C124: 47.63740439 | D124: 77.27274358 | E124: 92.63085817 | F124: 95.96564895 | G124: 96.89445545 | H124: 84.33868618 | I124: 94.03741446 | J124: 97.47676185 | K124: 96.18196598 | L124: 97.29248072 | M124: 29.13032339 | N124: 44.08513337 | O124: 58.06300198 | P124: 72.93871789 | Q124: 85.8230734 | BA124: Sanitation ladder | BB124: Basic | BC124: 155222.7327 | BD124: 241157.3355 | BE124: 284917.5227 | BF124: 299735.3817 | BG124: 305925.9773 | BH124: 177967.8014 | BI124: 197229.3421 | BJ124: 199497.2352 | BK124: 203152.7596 | BL124: 208510.7605 | BM124: 31444.9799 | BN124: 46914.33554 | BO124: 60569.66954 | BP124: 75684.37557 | BQ124: 85987.69049
B125: Limited | C125: 7.595329954 | D125: 6.523218567 | E125: 2.13255835 | F125: 1.454029683 | G125: 0.0493702551 | H125: 5.404732735 | I125: 1.867098415 | J125: 0.7756521505 | K125: 0.6445858277 | L125: 0.07273335245 | M125: 5.552103222 | N125: 8.963246248 | O125: 7.265031059 | P125: 9.252439284 | Q125: 5.216821809 | BB125: Limited | BC125: 24748.78483 | BD125: 20358.04523 | BE125: 6559.404221 | BF125: 4541.459854 | BG125: 155.8772736 | BH125: 11404.83028 | BI125: 3915.958282 | BJ125: 1587.459991 | BK125: 1361.475494 | BL125: 155.8772736 | BM125: 5993.265915 | BN125: 9538.470451 | BO125: 7578.673431 | BP125: 9600.732094 | BQ125: 5226.828186
B126: Unimproved | C126: 14.16058239 | D126: 11.71919379 | E126: 4.845369 | F126: 2.580321371 | G126: 2.933331603 | H126: 9.244925205 | I126: 4.09548712 | J126: 1.747586003 | K126: 3.173448195 | L126: 2.453811357 | M126: 17.22044368 | N126: 14.8024249 | O126: 14.13363181 | P126: 13.92020944 | Q126: 7.759096051 | BB126: Unimproved | BC126: 46141.14314 | BD126: 36573.95115 | BE126: 14903.57057 | BF126: 8059.275581 | BG126: 9261.441566 | BH126: 19508.23623 | BI126: 8589.66864 | BJ126: 3576.632721 | BK126: 6702.865257 | BL126: 5258.844963 | BM126: 18588.7571 | BN126: 15752.38352 | BO126: 14743.80206 | BP126: 14444.21275 | BQ126: 7773.97876
B127: Open defecation | C127: 30.60668327 | D127: 4.484844063 | E127: 0.3912144771 | F127: 0 | G127: 0.1228426882 | H127: 1.011655878 | I127: 0 | J127: 0 | K127: 0 | L127: 0.180974567 | M127: 48.09712971 | N127: 32.14919548 | O127: 20.53833515 | P127: 3.888633385 | Q127: 1.20100874 | BB127: Open defecation | BC127: 99729.46839 | BD127: 13996.56586 | BE127: 1203.312393 | BF127: 0 | BG127: 387.8526306 | BH127: 2134.751923 | BI127: 0 | BJ127: 0 | BK127: 0 | BL127: 387.8526306 | BM127: 51918.86328 | BN127: 34212.39835 | BO127: 21425.00612 | BP127: 4035.014572 | BQ127: 1203.312393
A128: Shared among Improved Sanitation | B128: Yes | C128: 13.70334517 | D128: 7.814694749 | E128: 2.338923584 | F128: 1.551159976 | G128: 0.1192184063 | H128: 5.974395048 | I128: 1.939724199 | J128: 0.7894484409 | K128: 0.663579207 | L128: 0.07442718231 | M128: 16.47300954 | N128: 16.51973393 | O128: 10.11073971 | P128: 11.39414382 | Q128: 6.291827192 | BA128: Shared among improved sanitation facilities | BB128: Yes | BC128: N/A | BD128: N/A | BE128: N/A | BF128: N/A | BG128: N/A | BH128: N/A | BI128: N/A | BJ128: N/A | BK128: N/A | BL128: N/A | BM128: N/A | BN128: N/A | BO128: N/A | BP128: N/A | BQ128: N/A
B129: No | C129: 86.29665483 | D129: 92.18530525 | E129: 97.66107642 | F129: 98.44884002 | G129: 99.88078159 | H129: 94.02560495 | I129: 98.0602758 | J129: 99.21055156 | K129: 99.33642079 | L129: 99.92557282 | M129: 83.52699046 | N129: 83.48026607 | O129: 89.88926029 | P129: 88.60585618 | Q129: 93.70817281 | BB129: No | BC129: N/A | BD129: N/A | BE129: N/A | BF129: N/A | BG129: N/A | BH129: N/A | BI129: N/A | BJ129: N/A | BK129: N/A | BL129: N/A | BM129: N/A | BN129: N/A | BO129: N/A | BP129: N/A | BQ129: N/A
A130: Manually calculated ratios | B130: Improved latrines
B131: Other
B132: Other
C133: NATIONAL wealth index quintile | H133: URBAN wealth index quintile | M133: RURAL wealth index quintile | BA133: Raw numbers of respondents: | BB133: Use of sanitation facilities | BC133: NATIONAL wealth index quintile | BH133: URBAN wealth index quintile | BM133: RURAL wealth index quintile
A134: Percentage based on weighted population | C134: Poorest | D134: Poor | E134: Middle | F134: Rich | G134: Richest | H134: Poorest | I134: Poor | J134: Middle | K134: Rich | L134: Richest | M134: Poorest | N134: Poor | O134: Middle | P134: Rich | Q134: Richest | BA134: Sanitation data, raw numbers (weighted) | BC134: Poorest | BD134: Poor | BE134: Middle | BF134: Rich | BG134: Richest | BH134: Poorest | BI134: Poor | BJ134: Middle | BK134: Rich | BL134: Richest | BM134: Poorest | BN134: Poor | BO134: Middle | BP134: Rich | BQ134: Richest
A135: Sanitation type | B135: Sewer connection | C135: 16.73763999 | D135: 40.46194321 | E135: 63.396591 | F135: 71.5132461 | G135: 78.77277701 | H135: 69.0341662 | I135: 73.41778938 | J135: 76.29462011 | K135: 79.58980477 | L135: 83.91707432 | M135: 1.81145016 | N135: 5.046872405 | O135: 6.062787609 | P135: 11.831033 | Q135: 18.68299406 | BA135: Sanitation type | BB135: Sewer connection | BC135: N/A | BD135: N/A | BE135: N/A | BF135: N/A | BG135: N/A | BH135: N/A | BI135: N/A | BJ135: N/A | BK135: N/A | BL135: N/A | BM135: N/A | BN135: N/A | BO135: N/A | BP135: N/A | BQ135: N/A
B136: Septic tank connection | C136: 22.85375722 | D136: 31.17900185 | E136: 25.35185561 | F136: 22.35918961 | G136: 16.2395617 | H136: 15.77809346 | I136: 19.13874104 | J136: 20.55819807 | K136: 16.26390477 | L136: 12.90400067 | M136: 16.98314701 | N136: 27.42288447 | O136: 40.27150453 | P136: 49.50664785 | Q136: 51.80717191 | BB136: Septic tank connection | BC136: N/A | BD136: N/A | BE136: N/A | BF136: N/A | BG136: N/A | BH136: N/A | BI136: N/A | BJ136: N/A | BK136: N/A | BL136: N/A | BM136: N/A | BN136: N/A | BO136: N/A | BP136: N/A | BQ136: N/A
B137: Improved latrines | C137: 17.54871668 | D137: 13.52310328 | E137: 6.466900801 | F137: 3.77335837 | G137: 2.147974061 | H137: 5.706949003 | I137: 3.670012161 | J137: 1.583667752 | K137: 1.20849994 | L137: 0.7030984872 | M137: 18.17992581 | N137: 22.78931423 | O137: 21.306606 | P137: 22.18661016 | Q137: 21.4652158 | BB137: Improved latrines | BC137: N/A | BD137: N/A | BE137: N/A | BF137: N/A | BG137: N/A | BH137: N/A | BI137: N/A | BJ137: N/A | BK137: N/A | BL137: N/A | BM137: N/A | BN137: N/A | BO137: N/A | BP137: N/A | BQ137: N/A
B138: Unimproved facilities | C138: 13.55724857 | D138: 10.72975724 | E138: 4.427200942 | F138: 2.354205916 | G138: 2.725546221 | H138: 8.545655328 | I138: 3.77345742 | J138: 1.563514074 | K138: 2.937790521 | L138: 2.305770339 | M138: 16.61615123 | N138: 14.10546078 | O138: 13.19081874 | P138: 12.87817081 | Q138: 6.966320928 | BB138: Unimproved facilities | BC138: N/A | BD138: N/A | BE138: N/A | BF138: N/A | BG138: N/A | BH138: N/A | BI138: N/A | BJ138: N/A | BK138: N/A | BL138: N/A | BM138: N/A | BN138: N/A | BO138: N/A | BP138: N/A | BQ138: N/A
B139: Open defecation | C139: 29.30263754 | D139: 4.106194413 | E139: 0.3574516412 | F139: 0 | G139: 0.1141410076 | H139: 0.9351360075 | I139: 0 | J139: 0 | K139: 0 | L139: 0.1700561811 | M139: 46.40932579 | N139: 30.63546812 | O139: 19.16828312 | P139: 3.597538182 | Q139: 1.0782973 | BB139: Open defecation | BC139: N/A | BD139: N/A | BE139: N/A | BF139: N/A | BG139: N/A | BH139: N/A | BI139: N/A | BJ139: N/A | BK139: N/A | BL139: N/A | BM139: N/A | BN139: N/A | BO139: N/A | BP139: N/A | BQ139: N/A
A140: Septic tank emptying practices | B140: Not emptied/treated and disposed in situ | C140: N/A | D140: N/A | E140: N/A | F140: N/A | G140: N/A | H140: N/A | I140: N/A | J140: N/A | K140: N/A | L140: N/A | M140: N/A | N140: N/A | O140: N/A | P140: N/A | Q140: N/A | BA140: Septic tank emptying practices | BB140: Not emptied/treated and disposed in situ | BC140: N/A | BD140: N/A | BE140: N/A | BF140: N/A | BG140: N/A | BH140: N/A | BI140: N/A | BJ140: N/A | BK140: N/A | BL140: N/A | BM140: N/A | BN140: N/A | BO140: N/A | BP140: N/A | BQ140: N/A
B141: Emptied and buried on site | C141: N/A | D141: N/A | E141: N/A | F141: N/A | G141: N/A | H141: N/A | I141: N/A | J141: N/A | K141: N/A | L141: N/A | M141: N/A | N141: N/A | O141: N/A | P141: N/A | Q141: N/A | BB141: Emptied and buried on site | BC141: N/A | BD141: N/A | BE141: N/A | BF141: N/A | BG141: N/A | BH141: N/A | BI141: N/A | BJ141: N/A | BK141: N/A | BL141: N/A | BM141: N/A | BN141: N/A | BO141: N/A | BP141: N/A | BQ141: N/A
B142: Emptied and discharged locally | C142: N/A | D142: N/A | E142: N/A | F142: N/A | G142: N/A | H142: N/A | I142: N/A | J142: N/A | K142: N/A | L142: N/A | M142: N/A | N142: N/A | O142: N/A | P142: N/A | Q142: N/A | BB142: Emptied and discharged locally | BC142: N/A | BD142: N/A | BE142: N/A | BF142: N/A | BG142: N/A | BH142: N/A | BI142: N/A | BJ142: N/A | BK142: N/A | BL142: N/A | BM142: N/A | BN142: N/A | BO142: N/A | BP142: N/A | BQ142: N/A
B143: Emptied and removed offsite | C143: N/A | D143: N/A | E143: N/A | F143: N/A | G143: N/A | H143: N/A | I143: N/A | J143: N/A | K143: N/A | L143: N/A | M143: N/A | N143: N/A | O143: N/A | P143: N/A | Q143: N/A | BB143: Emptied and removed offsite | BC143: N/A | BD143: N/A | BE143: N/A | BF143: N/A | BG143: N/A | BH143: N/A | BI143: N/A | BJ143: N/A | BK143: N/A | BL143: N/A | BM143: N/A | BN143: N/A | BO143: N/A | BP143: N/A | BQ143: N/A
A144: Latrine emptying practices | B144: Not emptied/treated and disposed in situ | C144: N/A | D144: N/A | E144: N/A | F144: N/A | G144: N/A | H144: N/A | I144: N/A | J144: N/A | K144: N/A | L144: N/A | M144: N/A | N144: N/A | O144: N/A | P144: N/A | Q144: N/A | BA144: Latrine emptying practices | BB144: Not emptied/treated and disposed in situ | BC144: N/A | BD144: N/A | BE144: N/A | BF144: N/A | BG144: N/A | BH144: N/A | BI144: N/A | BJ144: N/A | BK144: N/A | BL144: N/A | BM144: N/A | BN144: N/A | BO144: N/A | BP144: N/A | BQ144: N/A
B145: Emptied and buried on site | C145: N/A | D145: N/A | E145: N/A | F145: N/A | G145: N/A | H145: N/A | I145: N/A | J145: N/A | K145: N/A | L145: N/A | M145: N/A | N145: N/A | O145: N/A | P145: N/A | Q145: N/A | BB145: Emptied and buried on site | BC145: N/A | BD145: N/A | BE145: N/A | BF145: N/A | BG145: N/A | BH145: N/A | BI145: N/A | BJ145: N/A | BK145: N/A | BL145: N/A | BM145: N/A | BN145: N/A | BO145: N/A | BP145: N/A | BQ145: N/A
B146: Emptied and discharged locally | C146: N/A | D146: N/A | E146: N/A | F146: N/A | G146: N/A | H146: N/A | I146: N/A | J146: N/A | K146: N/A | L146: N/A | M146: N/A | N146: N/A | O146: N/A | P146: N/A | Q146: N/A | BB146: Emptied and discharged locally | BC146: N/A | BD146: N/A | BE146: N/A | BF146: N/A | BG146: N/A | BH146: N/A | BI146: N/A | BJ146: N/A | BK146: N/A | BL146: N/A | BM146: N/A | BN146: N/A | BO146: N/A | BP146: N/A | BQ146: N/A
B147: Emptied and removed offsite | C147: N/A | D147: N/A | E147: N/A | F147: N/A | G147: N/A | H147: N/A | I147: N/A | J147: N/A | K147: N/A | L147: N/A | M147: N/A | N147: N/A | O147: N/A | P147: N/A | Q147: N/A | BB147: Emptied and removed offsite | BC147: N/A | BD147: N/A | BE147: N/A | BF147: N/A | BG147: N/A | BH147: N/A | BI147: N/A | BJ147: N/A | BK147: N/A | BL147: N/A | BM147: N/A | BN147: N/A | BO147: N/A | BP147: N/A | BQ147: N/A
A148: Shared among improved sanitation facilities | B148: Yes | C148: 7.860459383 | D148: 6.306294136 | E148: 2.04822554 | F148: 1.388198358 | G148: 0.1079186876 | H148: 4.99592826 | I148: 1.720287762 | J148: 0.6939532886 | K148: 0.59671941 | L148: 0.06834527286 | M148: 6.587702879 | N148: 9.102871729 | O148: 6.780402171 | P148: 9.574334324 | Q148: 5.362451432 | BA148: Shared among improved sanitation facilities | BB148: Yes | BC148: N/A | BD148: N/A | BE148: N/A | BF148: N/A | BG148: N/A | BH148: N/A | BI148: N/A | BJ148: N/A | BK148: N/A | BL148: N/A | BM148: N/A | BN148: N/A | BO148: N/A | BP148: N/A | BQ148: N/A
B149: No | C149: 49.50115042 | D149: 74.39160052 | E149: 85.52306384 | F149: 88.10601116 | G149: 90.41391509 | H149: 78.62640036 | I149: 86.96694737 | J149: 87.2096073 | K149: 89.32764889 | L149: 91.76003078 | M149: 33.40318563 | N149: 46.00014486 | O149: 60.28098367 | P149: 74.45421998 | Q149: 79.86639018 | BB149: No | BC149: N/A | BD149: N/A | BE149: N/A | BF149: N/A | BG149: N/A | BH149: N/A | BI149: N/A | BJ149: N/A | BK149: N/A | BL149: N/A | BM149: N/A | BN149: N/A | BO149: N/A | BP149: N/A | BQ149: N/A
B150: DK/missing | C150: 42.6383902 | D150: 19.30210534 | E150: 12.42871062 | F150: 10.50579049 | G150: 9.478166218 | H150: 16.37767138 | I150: 11.31276487 | J150: 12.09643941 | K150: 10.0756317 | L150: 8.171623947 | M150: 60.00911149 | N150: 44.89698342 | O150: 32.93861416 | P150: 15.9714457 | Q150: 14.77115839 | BB150: DK/missing | BC150: N/A | BD150: N/A | BE150: N/A | BF150: N/A | BG150: N/A | BH150: N/A | BI150: N/A | BJ150: N/A | BK150: N/A | BL150: N/A | BM150: N/A | BN150: N/A | BO150: N/A | BP150: N/A | BQ150: N/A
A151: Shared among all sanitation facilities | B151: Yes | C151: 85.45330338 | D151: 93.12071473 | E151: 98.44040884 | F151: 98.89139237 | G151: 99.88004594 | H151: 95.10904163 | I151: 98.71468437 | J151: 99.27470218 | K151: 99.61776839 | L151: 99.92557282 | M151: 77.4062162 | N151: 79.32716858 | O151: 89.03571211 | P151: 89.69464617 | Q151: 95.28633419 | BA151: Shared among all sanitation facilities | BB151: Yes | BC151: N/A | BD151: N/A | BE151: N/A | BF151: N/A | BG151: N/A | BH151: N/A | BI151: N/A | BJ151: N/A | BK151: N/A | BL151: N/A | BM151: N/A | BN151: N/A | BO151: N/A | BP151: N/A | BQ151: N/A
B152: No | C152: 14.54669662 | D152: 6.879285268 | E152: 1.559591162 | F152: 1.108607626 | G152: 0.1199540566 | H152: 4.890958369 | I152: 1.285315628 | J152: 0.7252978151 | K152: 0.3822316114 | L152: 0.07442718231 | M152: 22.5937838 | N152: 20.67283142 | O152: 10.96428789 | P152: 10.30535383 | Q152: 4.713665813 | BB152: No | BC152: N/A | BD152: N/A | BE152: N/A | BF152: N/A | BG152: N/A | BH152: N/A | BI152: N/A | BJ152: N/A | BK152: N/A | BL152: N/A | BM152: N/A | BN152: N/A | BO152: N/A | BP152: N/A | BQ152: N/A
A153: What type of toilet facilities | B153: Flush to piped sewage system | C153: 17.39652847 | D153: 42.14174232 | E153: 65.16629711 | F153: 72.69050102 | G153: 80.83042393 | H153: 73.4806602 | I153: 75.94306576 | J153: 77.50644427 | K153: 81.9525353 | L153: 85.84955333 | M153: 1.883609817 | N153: 5.288423396 | O153: 6.167479807 | P153: 11.9349894 | Q153: 18.83169516 | BA153: What type of toilet facilities | BB153: Flush to piped sewage system | BC153: 56965.3819 | BD153: 137920.4674 | BE153: 213416.0117 | BF153: 244815.0156 | BG153: 267670.9225 | BH153: 157592.9253 | BI153: 167123.7841 | BJ153: 174528.5439 | BK153: 181592.1637 | BL153: 191392.3846 | BM153: 2026.498589 | BN153: 5636.134186 | BO153: 6776.572571 | BP153: 13269.7384 | BQ153: 20849.05368
B154: Flush to septic tank | C154: 23.75341078 | D154: 32.47341471 | E154: 26.05954877 | F154: 22.7272678 | G154: 16.66376007 | H154: 16.79436123 | I154: 19.79703668 | J154: 20.88473382 | K154: 16.74672068 | L154: 13.20115963 | M154: 17.65967573 | N154: 28.73538544 | O154: 40.96691275 | P154: 49.94165069 | Q154: 52.21951393 | BB154: Flush to septic tank | BC154: 77781.15724 | BD154: 106278.2004 | BE154: 85343.57807 | BF154: 76543.37695 | BG154: 55182.2422 | BH154: 36018.62732 | BI154: 43566.26441 | BJ154: 47028.11769 | BK154: 37107.73843 | BL154: 29430.57154 | BM154: 18999.32121 | BN154: 30624.72047 | BO154: 45012.75496 | BP154: 55526.87293 | BQ154: 57813.5659
B155: Pour flush latrine | C155: 7.4676339 | D155: 8.480005632 | E155: 3.874524388 | F155: 2.896508371 | G155: 1.381538104 | H155: 4.358333287 | I155: 2.919755394 | J155: 1.33240588 | K155: 1.244375888 | L155: 0.7192897461 | M155: 6.789418836 | N155: 8.704770642 | O155: 10.90165767 | P155: 13.0333514 | Q155: 11.77873185 | BB155: Pour flush latrine | BC155: 24452.96012 | BD155: 27753.15581 | BE155: 12688.85265 | BF155: 9755.177528 | BG155: 4574.980072 | BH155: 9347.255325 | BI155: 6425.347267 | BJ155: 3000.303528 | BK155: 2757.314453 | BL155: 1603.579453 | BM155: 7304.457413 | BN155: 9277.104294 | BO155: 11978.29205 | BP155: 14490.93567 | BQ155: 13040.53674
B156: Covered dry latrine (with privacy) | C156: 10.77189985 | D156: 5.604516482 | E156: 2.772898957 | F156: 0.9389672283 | G156: 0.8225438205 | H156: 1.716200579 | I156: 0.8764904104 | J156: 0.2764160283 | K156: 0 | L156: 0 | M156: 12.11470973 | N156: 15.17527483 | O156: 10.77287074 | P156: 9.348207089 | Q156: 9.85732923 | BB156: Covered dry latrine (with privacy) | BC156: 35272.86433 | BD156: 18342.32498 | BE156: 9081.090416 | BF156: 3162.356476 | BG156: 2723.86377 | BH156: 3680.710938 | BI156: 1928.844887 | BJ156: 622.4319458 | BK156: 0 | BL156: 0 | BM156: 13033.71959 | BN156: 16173.04041 | BO156: 11836.78629 | BP156: 10393.66341 | BQ156: 10913.30252
B157: Uncovered dry latrine (without privacy) | C157: 4.595492124 | D157: 1.588483597 | E157: 0.1125087714 | F157: 0.03708582492 | G157: 0.03771742139 | H157: 0.6360466583 | I157: 0.1674326699 | J157: 0 | K157: 0.05636812944 | L157: 0.05602498119 | M157: 8.212918489 | N157: 4.182308604 | O157: 3.392082953 | P157: 1.675043256 | Q157: 0 | BB157: Uncovered dry latrine (without privacy) | BC157: 15048.05768 | BD157: 5198.750412 | BE157: 368.4599915 | BF157: 124.9016953 | BG157: 124.9016953 | BH157: 1364.120209 | BI157: 368.4599915 | BJ157: 0 | BK157: 124.9016953 | BL157: 124.9016953 | BM157: 8835.942337 | BN157: 4457.292984 | BO157: 3727.080917 | BP157: 1862.371643 | BQ157: 0
B158: Bucket latrine (where fresh excreta are manually removed) | C158: 2.204690243 | D158: 3.912690115 | E158: 0.6862204992 | F158: 0.5218691407 | G158: 0.08322780032 | H158: 0 | I158: 0 | J158: 0 | K158: 0 | L158: 0 | M158: 1.872333916 | N158: 2.899397075 | O158: 5.828350135 | P158: 8.439252433 | Q158: 3.083497343 | BB158: Bucket latrine (where fresh excreta are manually removed) | BC158: 7219.315155 | BD158: 12805.35687 | BE158: 2247.334106 | BF158: 1757.607941 | BG158: 275.6098633 | BH158: 0 | BI158: 0 | BJ158: 0 | BK158: 0 | BL158: 0 | BM158: 2014.36731 | BN158: 3090.030762 | BO158: 6403.950867 | BP158: 9383.055847 | BQ158: 3413.819153
B159: No facilities (open defecation) | C159: 30.45615563 | D159: 4.27666526 | E159: 0.3674298489 | F159: 0 | G159: 0.1171225184 | H159: 0.9953681633 | I159: 0 | J159: 0 | K159: 0 | L159: 0.1739723091 | M159: 48.2580551 | N159: 32.10172823 | O159: 19.49928098 | P159: 3.629148872 | Q159: 1.08687965 | BB159: No facilities (open defecation) | BC159: 99729.46839 | BD159: 13996.56586 | BE159: 1203.312393 | BF159: 0 | BG159: 387.8526306 | BH159: 2134.751923 | BI159: 0 | BJ159: 0 | BK159: 0 | BL159: 387.8526306 | BM159: 51918.86328 | BN159: 34212.39835 | BO159: 21425.00612 | BP159: 4035.014572 | BQ159: 1203.312393
B160: Other | C160: 3.354189003 | D160: 1.522481887 | E160: 0.9605716601 | F160: 0.187800614 | G160: 0.06366633429 | H160: 2.019029882 | I160: 0.296219082 | J160: 0 | K160: 0 | L160: 0 | M160: 3.209278389 | N160: 2.912711781 | O160: 2.471364963 | P160: 1.998356854 | Q160: 3.142352837 | BB160: Other | BC160: 10983.37854 | BD160: 4982.741623 | BE160: 3145.818954 | BF160: 632.4954376 | BG160: 210.8318329 | BH160: 4330.184631 | BI160: 651.8732605 | BJ160: 0 | BK160: 0 | BL160: 0 | BM160: 3452.731064 | BN160: 3104.220901 | BO160: 2715.433945 | BP160: 2221.843002 | BQ160: 3478.979584
BB161: Total | BC161: 327452.5834 | BD161: 327277.5634 | BE161: 327494.4583 | BF161: 336790.9316 | BG161: 331151.2045 | BH161: 214468.5757 | BI161: 220064.5739 | BJ161: 225179.3971 | BK161: 221582.1183 | BL161: 222939.2899 | BM161: 107585.9008 | BN161: 106574.9424 | BO161: 109875.8777 | BP161: 111183.4955 | BQ161: 110712.57
A208: =A1026 -> Tunisia
A209: =A1034 -> 2003
A210: Access to hygiene facilities
A211: by wealth quintile and sub-national region
A212: Notes:
A213: WHO/UNICEF JMP customised wealth index excludes water,
A214: sanitation and hygiene assets.
A215: Survey used for analysis: | B215: =A1025 -> WHS03
A220: Access to handwashing | C220: NATIONAL wealth index quintile | H220: URBAN wealth index quintile | M220: RURAL wealth index quintile | BA220: Raw numbers of respondents: | BB220: Access to handwashing | BC220: NATIONAL wealth index quintile | BH220: URBAN wealth index quintile | BM220: RURAL wealth index quintile
A221: Weighted percentage (used in graphs) | C221: Poorest | D221: Poor | E221: Middle | F221: Rich | G221: Richest | H221: Poorest | I221: Poor | J221: Middle | K221: Rich | L221: Richest | M221: Poorest | N221: Poor | O221: Middle | P221: Rich | Q221: Richest | BA221: Hygiene data, raw numbers (weighted) | BC221: Poorest | BD221: Poor | BE221: Middle | BF221: Rich | BG221: Richest | BH221: Poorest | BI221: Poor | BJ221: Middle | BK221: Rich | BL221: Richest | BM221: Poorest | BN221: Poor | BO221: Middle | BP221: Rich | BQ221: Richest
A222: Hygiene ladder | B222: Basic | C222: N/A | D222: N/A | E222: N/A | F222: N/A | G222: N/A | H222: N/A | I222: N/A | J222: N/A | K222: N/A | L222: N/A | M222: N/A | N222: N/A | O222: N/A | P222: N/A | Q222: N/A | BA222: Hygiene ladder | BB222: Basic | BC222: N/A | BD222: N/A | BE222: N/A | BF222: N/A | BG222: N/A | BH222: N/A | BI222: N/A | BJ222: N/A | BK222: N/A | BL222: N/A | BM222: N/A | BN222: N/A | BO222: N/A | BP222: N/A | BQ222: N/A
B223: Limited | C223: N/A | D223: N/A | E223: N/A | F223: N/A | G223: N/A | H223: N/A | I223: N/A | J223: N/A | K223: N/A | L223: N/A | M223: N/A | N223: N/A | O223: N/A | P223: N/A | Q223: N/A | BB223: Limited | BC223: N/A | BD223: N/A | BE223: N/A | BF223: N/A | BG223: N/A | BH223: N/A | BI223: N/A | BJ223: N/A | BK223: N/A | BL223: N/A | BM223: N/A | BN223: N/A | BO223: N/A | BP223: N/A | BQ223: N/A
B224: No facility | C224: N/A | D224: N/A | E224: N/A | F224: N/A | G224: N/A | H224: N/A | I224: N/A | J224: N/A | K224: N/A | L224: N/A | M224: N/A | N224: N/A | O224: N/A | P224: N/A | Q224: N/A | BB224: No facility | BC224: N/A | BD224: N/A | BE224: N/A | BF224: N/A | BG224: N/A | BH224: N/A | BI224: N/A | BJ224: N/A | BK224: N/A | BL224: N/A | BM224: N/A | BN224: N/A | BO224: N/A | BP224: N/A | BQ224: N/A
BA225: Observed handwashing place | BB225: Fixed | BC225: N/A | BD225: N/A | BE225: N/A | BF225: N/A | BG225: N/A | BH225: N/A | BI225: N/A | BJ225: N/A | BK225: N/A | BL225: N/A | BM225: N/A | BN225: N/A | BO225: N/A | BP225: N/A | BQ225: N/A
BB226: Mobile | BC226: N/A | BD226: N/A | BE226: N/A | BF226: N/A | BG226: N/A | BH226: N/A | BI226: N/A | BJ226: N/A | BK226: N/A | BL226: N/A | BM226: N/A | BN226: N/A | BO226: N/A | BP226: N/A | BQ226: N/A
BA227: Water / Soap | BB227: Water and soap | BC227: N/A | BD227: N/A | BE227: N/A | BF227: N/A | BG227: N/A | BH227: N/A | BI227: N/A | BJ227: N/A | BK227: N/A | BL227: N/A | BM227: N/A | BN227: N/A | BO227: N/A | BP227: N/A | BQ227: N/A
BB228: Water only | BC228: N/A | BD228: N/A | BE228: N/A | BF228: N/A | BG228: N/A | BH228: N/A | BI228: N/A | BJ228: N/A | BK228: N/A | BL228: N/A | BM228: N/A | BN228: N/A | BO228: N/A | BP228: N/A | BQ228: N/A
BB229: Soap only | BC229: N/A | BD229: N/A | BE229: N/A | BF229: N/A | BG229: N/A | BH229: N/A | BI229: N/A | BJ229: N/A | BK229: N/A | BL229: N/A | BM229: N/A | BN229: N/A | BO229: N/A | BP229: N/A | BQ229: N/A
BB230: Neither | BC230: N/A | BD230: N/A | BE230: N/A | BF230: N/A | BG230: N/A | BH230: N/A | BI230: N/A | BJ230: N/A | BK230: N/A | BL230: N/A | BM230: N/A | BN230: N/A | BO230: N/A | BP230: N/A | BQ230: N/A
BA259: Raw numbers of respondents: | BB259: Menstrual health and hygiene | BC259: NATIONAL wealth index quintile | BH259: URBAN wealth index quintile | BM259: RURAL wealth index quintile
BA260: MHH data, raw numbers (weighted) | BC260: Poorest | BD260: Poor | BE260: Middle | BF260: Rich | BG260: Richest | BH260: Poorest | BI260: Poor | BJ260: Middle | BK260: Rich | BL260: Richest | BM260: Poorest | BN260: Poor | BO260: Middle | BP260: Rich | BQ260: Richest
BA261: Private place to wash and change | BB261: Yes | BC261: N/A | BD261: N/A | BE261: N/A | BF261: N/A | BG261: N/A | BH261: N/A | BI261: N/A | BJ261: N/A | BK261: N/A | BL261: N/A | BM261: N/A | BN261: N/A | BO261: N/A | BP261: N/A | BQ261: N/A
BB262: No | BC262: N/A | BD262: N/A | BE262: N/A | BF262: N/A | BG262: N/A | BH262: N/A | BI262: N/A | BJ262: N/A | BK262: N/A | BL262: N/A | BM262: N/A | BN262: N/A | BO262: N/A | BP262: N/A | BQ262: N/A
BB263: DK/not sure/missing | BC263: N/A | BD263: N/A | BE263: N/A | BF263: N/A | BG263: N/A | BH263: N/A | BI263: N/A | BJ263: N/A | BK263: N/A | BL263: N/A | BM263: N/A | BN263: N/A | BO263: N/A | BP263: N/A | BQ263: N/A
BA264: Use of menstrual materials | BB264: Materials reusable | BC264: N/A | BD264: N/A | BE264: N/A | BF264: N/A | BG264: N/A | BH264: N/A | BI264: N/A | BJ264: N/A | BK264: N/A | BL264: N/A | BM264: N/A | BN264: N/A | BO264: N/A | BP264: N/A | BQ264: N/A
BB265: Materials not reusable | BC265: N/A | BD265: N/A | BE265: N/A | BF265: N/A | BG265: N/A | BH265: N/A | BI265: N/A | BJ265: N/A | BK265: N/A | BL265: N/A | BM265: N/A | BN265: N/A | BO265: N/A | BP265: N/A | BQ265: N/A
BB266: No materials used | BC266: N/A | BD266: N/A | BE266: N/A | BF266: N/A | BG266: N/A | BH266: N/A | BI266: N/A | BJ266: N/A | BK266: N/A | BL266: N/A | BM266: N/A | BN266: N/A | BO266: N/A | BP266: N/A | BQ266: N/A
BB267: DK/not sure/missing | BC267: N/A | BD267: N/A | BE267: N/A | BF267: N/A | BG267: N/A | BH267: N/A | BI267: N/A | BJ267: N/A | BK267: N/A | BL267: N/A | BM267: N/A | BN267: N/A | BO267: N/A | BP267: N/A | BQ267: N/A
BA268: Use of menstrual materials with private place to wash and change | BB268: Materials reusable | BC268: N/A | BD268: N/A | BE268: N/A | BF268: N/A | BG268: N/A | BH268: N/A | BI268: N/A | BJ268: N/A | BK268: N/A | BL268: N/A | BM268: N/A | BN268: N/A | BO268: N/A | BP268: N/A | BQ268: N/A
BB269: Materials not reusable | BC269: N/A | BD269: N/A | BE269: N/A | BF269: N/A | BG269: N/A | BH269: N/A | BI269: N/A | BJ269: N/A | BK269: N/A | BL269: N/A | BM269: N/A | BN269: N/A | BO269: N/A | BP269: N/A | BQ269: N/A
BB270: No materials used | BC270: N/A | BD270: N/A | BE270: N/A | BF270: N/A | BG270: N/A | BH270: N/A | BI270: N/A | BJ270: N/A | BK270: N/A | BL270: N/A | BM270: N/A | BN270: N/A | BO270: N/A | BP270: N/A | BQ270: N/A
BA271: Awareness of menstruation before menarche | BB271: Yes | BC271: N/A | BD271: N/A | BE271: N/A | BF271: N/A | BG271: N/A | BH271: N/A | BI271: N/A | BJ271: N/A | BK271: N/A | BL271: N/A | BM271: N/A | BN271: N/A | BO271: N/A | BP271: N/A | BQ271: N/A
BB272: No | BC272: N/A | BD272: N/A | BE272: N/A | BF272: N/A | BG272: N/A | BH272: N/A | BI272: N/A | BJ272: N/A | BK272: N/A | BL272: N/A | BM272: N/A | BN272: N/A | BO272: N/A | BP272: N/A | BQ272: N/A
BB273: DK/not sure/missing | BC273: N/A | BD273: N/A | BE273: N/A | BF273: N/A | BG273: N/A | BH273: N/A | BI273: N/A | BJ273: N/A | BK273: N/A | BL273: N/A | BM273: N/A | BN273: N/A | BO273: N/A | BP273: N/A | BQ273: N/A
BA274: Participation in (all) activities during menstruation | BB274: Yes | BC274: N/A | BD274: N/A | BE274: N/A | BF274: N/A | BG274: N/A | BH274: N/A | BI274: N/A | BJ274: N/A | BK274: N/A | BL274: N/A | BM274: N/A | BN274: N/A | BO274: N/A | BP274: N/A | BQ274: N/A
BB275: No | BC275: N/A | BD275: N/A | BE275: N/A | BF275: N/A | BG275: N/A | BH275: N/A | BI275: N/A | BJ275: N/A | BK275: N/A | BL275: N/A | BM275: N/A | BN275: N/A | BO275: N/A | BP275: N/A | BQ275: N/A
BB276: DK/not sure/missing/no such activity | BC276: N/A | BD276: N/A | BE276: N/A | BF276: N/A | BG276: N/A | BH276: N/A | BI276: N/A | BJ276: N/A | BK276: N/A | BL276: N/A | BM276: N/A | BN276: N/A | BO276: N/A | BP276: N/A | BQ276: N/A
BA277: Participation in specific activities during menstruation | BB277: Did not go to school (amongst those usually attending school) | BC277: N/A | BD277: N/A | BE277: N/A | BF277: N/A | BG277: N/A | BH277: N/A | BI277: N/A | BJ277: N/A | BK277: N/A | BL277: N/A | BM277: N/A | BN277: N/A | BO277: N/A | BP277: N/A | BQ277: N/A
BB278: Did not go to work (amongst those who usually work) | BC278: N/A | BD278: N/A | BE278: N/A | BF278: N/A | BG278: N/A | BH278: N/A | BI278: N/A | BJ278: N/A | BK278: N/A | BL278: N/A | BM278: N/A | BN278: N/A | BO278: N/A | BP278: N/A | BQ278: N/A
BB279: Did not participate in social activities | BC279: N/A | BD279: N/A | BE279: N/A | BF279: N/A | BG279: N/A | BH279: N/A | BI279: N/A | BJ279: N/A | BK279: N/A | BL279: N/A | BM279: N/A | BN279: N/A | BO279: N/A | BP279: N/A | BQ279: N/A
BB280: Did not cook food | BC280: N/A | BD280: N/A | BE280: N/A | BF280: N/A | BG280: N/A | BH280: N/A | BI280: N/A | BJ280: N/A | BK280: N/A | BL280: N/A | BM280: N/A | BN280: N/A | BO280: N/A | BP280: N/A | BQ280: N/A
BB281: Did not eat with others | BC281: N/A | BD281: N/A | BE281: N/A | BF281: N/A | BG281: N/A | BH281: N/A | BI281: N/A | BJ281: N/A | BK281: N/A | BL281: N/A | BM281: N/A | BN281: N/A | BO281: N/A | BP281: N/A | BQ281: N/A
BB282: Did not bathe in regular place | BC282: N/A | BD282: N/A | BE282: N/A | BF282: N/A | BG282: N/A | BH282: N/A | BI282: N/A | BJ282: N/A | BK282: N/A | BL282: N/A | BM282: N/A | BN282: N/A | BO282: N/A | BP282: N/A | BQ282: N/A
BB283: Did not participate in other activities | BC283: N/A | BD283: N/A | BE283: N/A | BF283: N/A | BG283: N/A | BH283: N/A | BI283: N/A | BJ283: N/A | BK283: N/A | BL283: N/A | BM283: N/A | BN283: N/A | BO283: N/A | BP283: N/A | BQ283: N/A
BB284: DK/not sure/missing/no such activity | BC284: N/A | BD284: N/A | BE284: N/A | BF284: N/A | BG284: N/A | BH284: N/A | BI284: N/A | BJ284: N/A | BK284: N/A | BL284: N/A | BM284: N/A | BN284: N/A | BO284: N/A | BP284: N/A | BQ284: N/A
BA339: Raw numbers of respondents: | BB339: Basic water, sanitation and hygiene | BC339: NATIONAL wealth index quintile | BH339: URBAN wealth index quintile | BM339: RURAL wealth index quintile
BA340: WatSan data, raw numbers (weighted) | BC340: Poorest | BD340: Poor | BE340: Middle | BF340: Rich | BG340: Richest | BH340: Poorest | BI340: Poor | BJ340: Middle | BK340: Rich | BL340: Richest | BM340: Poorest | BN340: Poor | BO340: Middle | BP340: Rich | BQ340: Richest
BA341: Use of Basic Water Sanitation and Hygiene | BB341: Yes | BC341: N/A | BD341: N/A | BE341: N/A | BF341: N/A | BG341: N/A | BH341: N/A | BI341: N/A | BJ341: N/A | BK341: N/A | BL341: N/A | BM341: N/A | BN341: N/A | BO341: N/A | BP341: N/A | BQ341: N/A
BB342: No | BC342: N/A | BD342: N/A | BE342: N/A | BF342: N/A | BG342: N/A | BH342: N/A | BI342: N/A | BJ342: N/A | BK342: N/A | BL342: N/A | BM342: N/A | BN342: N/A | BO342: N/A | BP342: N/A | BQ342: N/A
BA343: Use of Basic Water and Sanitation | BB343: Yes | BC343: N/A | BD343: N/A | BE343: N/A | BF343: N/A | BG343: N/A | BH343: N/A | BI343: N/A | BJ343: N/A | BK343: N/A | BL343: N/A | BM343: N/A | BN343: N/A | BO343: N/A | BP343: N/A | BQ343: N/A
BB344: No | BC344: N/A | BD344: N/A | BE344: N/A | BF344: N/A | BG344: N/A | BH344: N/A | BI344: N/A | BJ344: N/A | BK344: N/A | BL344: N/A | BM344: N/A | BN344: N/A | BO344: N/A | BP344: N/A | BQ344: N/A
BA345: Use of Basic Water and Hygiene | BB345: Yes | BC345: N/A | BD345: N/A | BE345: N/A | BF345: N/A | BG345: N/A | BH345: N/A | BI345: N/A | BJ345: N/A | BK345: N/A | BL345: N/A | BM345: N/A | BN345: N/A | BO345: N/A | BP345: N/A | BQ345: N/A
BB346: No | BC346: N/A | BD346: N/A | BE346: N/A | BF346: N/A | BG346: N/A | BH346: N/A | BI346: N/A | BJ346: N/A | BK346: N/A | BL346: N/A | BM346: N/A | BN346: N/A | BO346: N/A | BP346: N/A | BQ346: N/A
BA347: Use of Basic Sanitation and Hygiene | BB347: Yes | BC347: N/A | BD347: N/A | BE347: N/A | BF347: N/A | BG347: N/A | BH347: N/A | BI347: N/A | BJ347: N/A | BK347: N/A | BL347: N/A | BM347: N/A | BN347: N/A | BO347: N/A | BP347: N/A | BQ347: N/A
BB348: No | BC348: N/A | BD348: N/A | BE348: N/A | BF348: N/A | BG348: N/A | BH348: N/A | BI348: N/A | BJ348: N/A | BK348: N/A | BL348: N/A | BM348: N/A | BN348: N/A | BO348: N/A | BP348: N/A | BQ348: N/A
BA349: Use of Basic Water | BB349: Yes | BC349: N/A | BD349: N/A | BE349: N/A | BF349: N/A | BG349: N/A | BH349: N/A | BI349: N/A | BJ349: N/A | BK349: N/A | BL349: N/A | BM349: N/A | BN349: N/A | BO349: N/A | BP349: N/A | BQ349: N/A
BB350: No | BC350: N/A | BD350: N/A | BE350: N/A | BF350: N/A | BG350: N/A | BH350: N/A | BI350: N/A | BJ350: N/A | BK350: N/A | BL350: N/A | BM350: N/A | BN350: N/A | BO350: N/A | BP350: N/A | BQ350: N/A
BA351: Use of Basic Sanitation | BB351: Yes | BC351: N/A | BD351: N/A | BE351: N/A | BF351: N/A | BG351: N/A | BH351: N/A | BI351: N/A | BJ351: N/A | BK351: N/A | BL351: N/A | BM351: N/A | BN351: N/A | BO351: N/A | BP351: N/A | BQ351: N/A
BB352: No | BC352: N/A | BD352: N/A | BE352: N/A | BF352: N/A | BG352: N/A | BH352: N/A | BI352: N/A | BJ352: N/A | BK352: N/A | BL352: N/A | BM352: N/A | BN352: N/A | BO352: N/A | BP352: N/A | BQ352: N/A
BA353: Access to Basic Hygiene | BB353: Yes | BC353: N/A | BD353: N/A | BE353: N/A | BF353: N/A | BG353: N/A | BH353: N/A | BI353: N/A | BJ353: N/A | BK353: N/A | BL353: N/A | BM353: N/A | BN353: N/A | BO353: N/A | BP353: N/A | BQ353: N/A
BB354: No | BC354: N/A | BD354: N/A | BE354: N/A | BF354: N/A | BG354: N/A | BH354: N/A | BI354: N/A | BJ354: N/A | BK354: N/A | BL354: N/A | BM354: N/A | BN354: N/A | BO354: N/A | BP354: N/A | BQ354: N/A
C399: INITIAL (national) Wealth Index | H399: URBAN Wealth Index | M399: RURAL Wealth Index
C400: Component Matrix | H400: Component Matrix | M400: Component Matrix
E401: Component | J401: Component | O401: Component
B402: Note: The INITIAL (national) Wealth Index is based on the first component of the Principal Component Analysis (PCA) which has been obtained at national level. The final national-level (NATIONAL) Wealth Index is based on the URBAN and RURAL specific wealth indexes. Regression procedures are used to establish the relationships between the two sets of scores (urban and rural) and the initial (national) wealth factors. This allows best use of the available information for each area and a better precision of the FINAL (NATIONAL) Wealth Index. For dependency reasons, all WASH variables (contained in the generic MICS and DHS scripts) have been excluded from the sets of asset variables used in the PCAs. The PCA can extracts as many components as there are asset variables in the input. Only the first of the components is used to represent the Wealth Index. The scores represent the weights of the asset variables on the Wealth Index (correlations between the variables and the component). The communalities are the proportion of each variable's variance that can be explained by the component. Proportion of explained variance is the part of the model's total variance that is explained by the component. For more information on the procedure used: The DHS Wealth Index, DHS Comparative Reports No. 6, Shea Oscar Rutstein, Kiersten Johnson, ORC Macro International Inc., 2004. The DHS Wealth Index: Approaches for Rural and Urban Areas, Shea O. Rutstein, ORC Macro International Inc., 2008. MICS Methodological Paper No. 4, Review of options for reporting water, sanitation and hygiene coverage by wealth quintile, UNICEF, 2016. | E402: 1 | J402: 1 | O402: 1
C403: Has Clothes washing machine | E403: 0.6442322108 | H403: Has Clothes washing machine | J403: 0.6354466556 | M403: Has Vacuum cleaner | O403: 0.6147702635
C404: Has Vacuum cleaner | E404: 0.6327604222 | H404: Has Magazine | J404: 0.5939004722 | M404: Has DVD | O404: 0.5963611069
C405: Has Magazine | E405: 0.6305044777 | H405: Has Telephone | J405: 0.5454377925 | M405: Has TV | O405: 0.5849194761
C406: Has TV | E406: 0.6068646399 | H406: Has Bicycle | J406: 0.5345133854 | M406: Has Car | O406: 0.5823699311
C407: Has Refrigerator | E407: 0.5864455168 | H407: Has TV | J407: 0.5215041943 | M407: Has Cellular phone | O407: 0.539787958
C408: Has Car | E408: 0.5846194196 | H408: Has Refrigerator | J408: 0.5139635943 | M408: Has Employee | O408: 0.4947117708
C409: Has DVD | E409: 0.5582937379 | H409: Has Computer | J409: 0.4965555591 | M409: Has Magazine | O409: 0.4939007663
C410: Has Cellular phone | E410: 0.5213630721 | H410: Has Car | J410: 0.4752946813 | M410: Uses wood fuel | O410: 0.4186511916
C411: Has Telephone | E411: 0.5127139224 | H411: Has Security system | J411: 0.4654084187 | M411: Has Clothes washing machine | O411: 0.4132140054
C412: Has Employee | E412: 0.4909999856 | H412: Has Vacuum cleaner | J412: 0.4590376788 | M412: Uses gaz fuel | O412: -0.4084291919
C413: Has Bicycle | E413: 0.467997211 | H413: Has Employee | J413: 0.4210174468 | M413: Has Telephone | O413: 0.396160163
C414: Uses wood heating | E414: 0.4263490232 | H414: Has Second home | J414: 0.3987779602 | M414: Has Refrigerator | O414: 0.3865907031
C415: Has Computer | E415: 0.4224924624 | H415: Has Cellular phone | J415: 0.3709582617 | M415: Uses wood heating | O415: 0.3844036993
C416: Uses open fire without chimney | E416: 0.3932603984 | H416: Has DVD | J416: 0.3689381032 | M416: Uses open fire without chimney | O416: 0.381400461
C417: Has Security system | E417: 0.3899343607 | H417: Uses gaz heating | J417: -0.3683608238 | M417: Has Bicycle | O417: 0.36603183
C418: Has Second home | E418: 0.3432883961 | H418: Uses open fire without chimney | J418: 0.3539772939 | M418: Uses living or sleeping room as kitchen | O418: 0.3238538825
C419: Uses wood fuel | E419: 0.3409717519 | H419: Has Internet | J419: 0.3277004456 | M419: Uses kerozene heating | O419: -0.3022013112
C420: Uses gaz heating | E420: -0.335291513 | H420: Uses electricity heating | J420: -0.3022883528 | M420: Has Stereo | O420: 0.2769276532
C421: Uses open fire without chimney | E421: 0.3058622906 | H421: Uses charcoal heating | J421: 0.2762236755 | M421: Has Video | O421: 0.2643695452
C422: Uses gaz fuel | E422: -0.2963376928 | H422: Uses closed stove with chimney | J422: 0.2353442828 | M422: Kooks outdoor | O422: 0.2632246996
C423: Uses living or sleeping room as kitchen | E423: 0.2780455564 | H423: Uses wood fuel | J423: 0.2238664681 | M423: Uses open fire with chimney | O423: -0.2416011419
... 197 more rows

Sheet MICS12
A2: =A1026 -> Tunisia
A3: =A1034 -> 2012
A4: Use of drinking water sources
A5: by wealth quintile and sub-national region
A6: Notes:
A7: WHO/UNICEF JMP customised wealth index excludes water,
A8: sanitation and hygiene assets.
A9: Survey used for analysis: | B9: =A1025 -> MICS12
A10: =B1028 -> 
A11: =B1027 -> 
A14: Use of drinking water sources | C14: NATIONAL wealth index quintile | H14: URBAN wealth index quintile | M14: RURAL wealth index quintile | R14: SUB-REGIONS: | BA14: Raw numbers of respondents: | BB14: Use of drinking water sources | BC14: NATIONAL wealth index quintile | BH14: URBAN wealth index quintile | BM14: RURAL wealth index quintile | BR14: SUB-REGIONS:
A15: Weighted percentage (used in graphs) | C15: Poorest | D15: Poor | E15: Middle | F15: Rich | G15: Richest | H15: Poorest | I15: Poor | J15: Middle | K15: Rich | L15: Richest | M15: Poorest | N15: Poor | O15: Middle | P15: Rich | Q15: Richest | R15: Centre Est | S15: District Tunis | T15: Kairouan | U15: Kasserine | V15: Nord Est | W15: Nord Ouest | X15: Sidi Bouzid | Y15: Sud Est | Z15: Sud Ouest | BA15: Water data, raw numbers (weighted) | BC15: Poorest | BD15: Poor | BE15: Middle | BF15: Rich | BG15: Richest | BH15: Poorest | BI15: Poor | BJ15: Middle | BK15: Rich | BL15: Richest | BM15: Poorest | BN15: Poor | BO15: Middle | BP15: Rich | BQ15: Richest | BR15: Centre Est | BS15: District Tunis | BT15: Kairouan | BU15: Kasserine | BV15: Nord Est | BW15: Nord Ouest | BX15: Sidi Bouzid | BY15: Sud Est | BZ15: Sud Ouest
A16: Water | B16: Improved | C16: 91.08378392 | D16: 97.06382781 | E16: 99.30646939 | F16: 99.79220104 | G16: 100 | H16: 99.70995375 | I16: 100 | J16: 99.98936977 | K16: 100 | L16: 100 | M16: 84.06908635 | N16: 91.22257247 | O16: 93.32072747 | P16: 96.34828078 | Q16: 98.03921417 | R16: 100 | S16: 100 | T16: 96.47013083 | U16: 97.45650382 | V16: 96.72239406 | W16: 85.72465555 | X16: 92.98013077 | Y16: 100 | Z16: 99.97357295 | BA16: Water | BB16: Improved | BC16: N/A | BD16: N/A | BE16: N/A | BF16: N/A | BG16: N/A | BH16: N/A | BI16: N/A | BJ16: N/A | BK16: N/A | BL16: N/A | BM16: N/A | BN16: N/A | BO16: N/A | BP16: N/A | BQ16: N/A | BR16: N/A | BS16: N/A | BT16: N/A | BU16: N/A | BV16: N/A | BW16: N/A | BX16: N/A | BY16: N/A | BZ16: N/A
B17: Not Improved | C17: 8.916216079 | D17: 2.936172187 | E17: 0.6935306087 | F17: 0.2077989559 | G17: 0 | H17: 0.2900462527 | I17: 0 | J17: 0.01063023382 | K17: 0 | L17: 0 | M17: 15.93091365 | N17: 8.777427532 | O17: 6.67927253 | P17: 3.651719225 | Q17: 1.960785825 | R17: 0 | S17: 0 | T17: 3.529869169 | U17: 2.54349618 | V17: 3.277605943 | W17: 14.27534445 | X17: 7.019869231 | Y17: 0 | Z17: 0.02642704659 | BB17: Not Improved | BC17: N/A | BD17: N/A | BE17: N/A | BF17: N/A | BG17: N/A | BH17: N/A | BI17: N/A | BJ17: N/A | BK17: N/A | BL17: N/A | BM17: N/A | BN17: N/A | BO17: N/A | BP17: N/A | BQ17: N/A | BR17: N/A | BS17: N/A | BT17: N/A | BU17: N/A | BV17: N/A | BW17: N/A | BX17: N/A | BY17: N/A | BZ17: N/A
A18: Water ladder | B18: Basic | C18: =C16*C23/100 -> 82.1575731 | D18: =D16*D23/100 -> 93.27833853 | E18: =E16*E23/100 -> 98.3134047 | F18: 99.29324004 | G18: 99.4 | H18: 99.51053384 | I18: 99.6 | J18: 99.98936977 | K18: 99.5 | L18: 99.4 | M18: 70.78617071 | N18: 81.09686692 | O18: 84.26861691 | P18: 90.18199081 | Q18: 96.17646911 | R18: 99.4 | S18: 100 | T18: 95.119549 | U18: 76.5033555 | V18: 95.9486149 | W18: 77.32363931 | X18: 79.59099194 | Y18: 99.9 | Z18: 97.17431291 | BA18: Water ladder | BB18: Basic | BC18: N/A | BD18: N/A | BE18: N/A | BF18: N/A | BG18: N/A | BH18: N/A | BI18: N/A | BJ18: N/A | BK18: N/A | BL18: N/A | BM18: N/A | BN18: N/A | BO18: N/A | BP18: N/A | BQ18: N/A | BR18: N/A | BS18: N/A | BT18: N/A | BU18: N/A | BV18: N/A | BW18: N/A | BX18: N/A | BY18: N/A | BZ18: N/A
B19: Limited | C19: =C16*C22/100 -> 8.926210824 | D19: =D16*D22/100 -> 3.785489285 | E19: =E16*E22/100 -> 0.9930646939 | F19: 0.4989610052 | G19: 0.6 | H19: 0.1994199075 | I19: 0.4 | J19: 0 | K19: 0.5 | L19: 0.6 | M19: 13.28291564 | N19: 10.12570554 | O19: 9.052110565 | P19: 6.16628997 | Q19: 1.862745069 | R19: 0.6 | S19: 0 | T19: 1.350581832 | U19: 20.95314832 | V19: 0.7737791525 | W19: 8.401016244 | X19: 13.38913883 | Y19: 0.1 | Z19: 2.799260043 | BB19: Limited | BC19: N/A | BD19: N/A | BE19: N/A | BF19: N/A | BG19: N/A | BH19: N/A | BI19: N/A | BJ19: N/A | BK19: N/A | BL19: N/A | BM19: N/A | BN19: N/A | BO19: N/A | BP19: N/A | BQ19: N/A | BR19: N/A | BS19: N/A | BT19: N/A | BU19: N/A | BV19: N/A | BW19: N/A | BX19: N/A | BY19: N/A | BZ19: N/A
B20: Unimproved | C20: =100-C18-C19-C21 -> 8.69917966 | D20: =100-D18-D19-D21 -> 2.780673396 | E20: =100-E18-E19-E21 -> 0.6241271797 | F20: 0.2077989559 | G20: -5.662137426e-15 | H20: 0.1562764845 | I20: 5.662137426e-15 | J20: 0.01063023382 | K20: 0 | L20: -5.662137426e-15 | M20: 15.37276841 | N20: 8.693037451 | O20: 6.602398454 | P20: 3.528515684 | Q20: 1.755770934 | R20: -5.662137426e-15 | S20: 0 | T20: 3.340258939 | U20: 2.54349618 | V20: 2.866478005 | W20: 14.19645353 | X20: 6.683916764 | Y20: -5.689893001e-15 | Z20: 0.02642704659 | BB20: Unimproved | BC20: N/A | BD20: N/A | BE20: N/A | BF20: N/A | BG20: N/A | BH20: N/A | BI20: N/A | BJ20: N/A | BK20: N/A | BL20: N/A | BM20: N/A | BN20: N/A | BO20: N/A | BP20: N/A | BQ20: N/A | BR20: N/A | BS20: N/A | BT20: N/A | BU20: N/A | BV20: N/A | BW20: N/A | BX20: N/A | BY20: N/A | BZ20: N/A
B21: Surface water | C21: 0.2170364189 | D21: 0.1554987918 | E21: 0.06940342894 | F21: 0 | G21: 0 | H21: 0.1337697683 | I21: 0 | J21: 0 | K21: 0 | L21: 0 | M21: 0.5581452396 | N21: 0.08439008189 | O21: 0.07687407593 | P21: 0.1232035414 | Q21: 0.2050148915 | R21: 0 | S21: 0 | T21: 0.1896102298 | U21: 0 | V21: 0.4111279373 | W21: 0.07889091229 | X21: 0.335952467 | Y21: 0 | Z21: 0 | BB21: Surface water | BC21: N/A | BD21: N/A | BE21: N/A | BF21: N/A | BG21: N/A | BH21: N/A | BI21: N/A | BJ21: N/A | BK21: N/A | BL21: N/A | BM21: N/A | BN21: N/A | BO21: N/A | BP21: N/A | BQ21: N/A | BR21: N/A | BS21: N/A | BT21: N/A | BU21: N/A | BV21: N/A | BW21: N/A | BX21: N/A | BY21: N/A | BZ21: N/A
A22: Improved water point at more than 30 minutes | B22: Yes | C22: 9.8 | D22: 3.9 | E22: 1 | F22: 0.5 | G22: 0.6 | H22: 0.2 | I22: 0.4 | J22: 0 | K22: 0.5 | L22: 0.6 | M22: 15.8 | N22: 11.1 | O22: 9.7 | P22: 6.4 | Q22: 1.9 | R22: 0.6 | S22: 0 | T22: 1.4 | U22: 21.5 | V22: 0.8 | W22: 9.8 | X22: 14.4 | Y22: 0.1 | Z22: 2.8 | BA22: Improved water point at more than 30 minutes | BB22: Yes | BC22: N/A | BD22: N/A | BE22: N/A | BF22: N/A | BG22: N/A | BH22: N/A | BI22: N/A | BJ22: N/A | BK22: N/A | BL22: N/A | BM22: N/A | BN22: N/A | BO22: N/A | BP22: N/A | BQ22: N/A | BR22: N/A | BS22: N/A | BT22: N/A | BU22: N/A | BV22: N/A | BW22: N/A | BX22: N/A | BY22: N/A | BZ22: N/A
B23: No | C23: 90.2 | D23: 96.1 | E23: 99 | F23: 99.5 | G23: 99.4 | H23: 99.8 | I23: 99.6 | J23: 100 | K23: 99.5 | L23: 99.4 | M23: 84.2 | N23: 88.9 | O23: 90.3 | P23: 93.6 | Q23: 98.1 | R23: 99.4 | S23: 100 | T23: 98.6 | U23: 78.5 | V23: 99.2 | W23: 90.2 | X23: 85.6 | Y23: 99.9 | Z23: 97.2 | BB23: No | BC23: N/A | BD23: N/A | BE23: N/A | BF23: N/A | BG23: N/A | BH23: N/A | BI23: N/A | BJ23: N/A | BK23: N/A | BL23: N/A | BM23: N/A | BN23: N/A | BO23: N/A | BP23: N/A | BQ23: N/A | BR23: N/A | BS23: N/A | BT23: N/A | BU23: N/A | BV23: N/A | BW23: N/A | BX23: N/A | BY23: N/A | BZ23: N/A
A24: Manually calculated ratios | B24: Improved wells and springs | C24: =(C63+C65)/(C63+C64+C65+C66)*100 -> 34.47494518 | D24: 49.30168075 | E24: 65.6752832 | F24: 85.47257272 | G24: 100 | H24: 81.46251821 | I24: 100 | J24: 100 | K24: 100 | L24: 100 | M24: 28.87091843 | N24: 35.9726482 | O24: 43.82235573 | P24: 56.69702697 | Q24: 53.02228328 | R24: 100 | S24: 100 | T24: 50.26345202 | U24: 70.81109925 | V24: 52.34337451 | W24: 35.92197073 | X24: 29.89964506 | Y24: 100 | Z24: 100
B25: Improved springs
B26: Other
C27: NATIONAL wealth index quintile | H27: URBAN wealth index quintile | M27: RURAL wealth index quintile | R27: SUB-REGIONS: | BA27: Raw numbers of respondents: | BB27: Use of drinking water sources | BC27: NATIONAL wealth index quintile | BH27: URBAN wealth index quintile | BM27: RURAL wealth index quintile | BR27: SUB-REGIONS:
A28: Percentage based on weighted population | C28: Poorest | D28: Poor | E28: Middle | F28: Rich | G28: Richest | H28: Poorest | I28: Poor | J28: Middle | K28: Rich | L28: Richest | M28: Poorest | N28: Poor | O28: Middle | P28: Rich | Q28: Richest | R28: Centre Est | S28: District Tunis | T28: Kairouan | U28: Kasserine | V28: Nord Est | W28: Nord Ouest | X28: Sidi Bouzid | Y28: Sud Est | Z28: Sud Ouest | BA28: Water data, raw numbers (weighted) | BC28: Poorest | BD28: Poor | BE28: Middle | BF28: Rich | BG28: Richest | BH28: Poorest | BI28: Poor | BJ28: Middle | BK28: Rich | BL28: Richest | BM28: Poorest | BN28: Poor | BO28: Middle | BP28: Rich | BQ28: Richest | BR28: Centre Est | BS28: District Tunis | BT28: Kairouan | BU28: Kasserine | BV28: Nord Est | BW28: Nord Ouest | BX28: Sidi Bouzid | BY28: Sud Est | BZ28: Sud Ouest
A29: Piped water | B29: Yes | C29: 61.5 | D29: 81 | E29: 86.9 | F29: 86.1 | G29: 87.9 | H29: 89 | I29: 90 | J29: 87.3 | K29: 85.7 | L29: 90.2 | M29: 45.6 | N29: 58.5 | O29: 69.9 | P29: 73.3 | Q29: 80.6 | R29: 74.3 | S29: 98.8 | T29: 52.4 | U29: 79.1 | V29: 91.4 | W29: 76.5 | X29: 48 | Y29: 54.3 | Z29: 95.4 | BA29: Piped water | BB29: Yes | BC29: N/A | BD29: N/A | BE29: N/A | BF29: N/A | BG29: N/A | BH29: N/A | BI29: N/A | BJ29: N/A | BK29: N/A | BL29: N/A | BM29: N/A | BN29: N/A | BO29: N/A | BP29: N/A | BQ29: N/A | BR29: N/A | BS29: N/A | BT29: N/A | BU29: N/A | BV29: N/A | BW29: N/A | BX29: N/A | BY29: N/A | BZ29: N/A
B30: No | C30: 38.5 | D30: 19 | E30: 13.1 | F30: 13.9 | G30: 12.1 | H30: 11 | I30: 10 | J30: 12.7 | K30: 14.3 | L30: 9.8 | M30: 54.4 | N30: 41.5 | O30: 30.1 | P30: 26.7 | Q30: 19.4 | R30: 25.7 | S30: 1.2 | T30: 47.6 | U30: 20.9 | V30: 8.6 | W30: 23.5 | X30: 52 | Y30: 45.7 | Z30: 4.6 | BB30: No | BC30: N/A | BD30: N/A | BE30: N/A | BF30: N/A | BG30: N/A | BH30: N/A | BI30: N/A | BJ30: N/A | BK30: N/A | BL30: N/A | BM30: N/A | BN30: N/A | BO30: N/A | BP30: N/A | BQ30: N/A | BR30: N/A | BS30: N/A | BT30: N/A | BU30: N/A | BV30: N/A | BW30: N/A | BX30: N/A | BY30: N/A | BZ30: N/A
A31: Piped water on premises | B31: Yes | C31: 52 | D31: 77.5 | E31: 86.3 | F31: 85.8 | G31: 87.9 | H31: 87 | I31: 89.8 | J31: 87.2 | K31: 85.6 | L31: 90.2 | M31: 32.6 | N31: 50.1 | O31: 61.1 | P31: 68.8 | Q31: 78.9 | R31: 73.4 | S31: 98.7 | T31: 49.8 | U31: 63.4 | V31: 89.1 | W31: 68.1 | X31: 42.9 | Y31: 53.6 | Z31: 93 | BA31: Piped water on premises | BB31: Yes | BC31: N/A | BD31: N/A | BE31: N/A | BF31: N/A | BG31: N/A | BH31: N/A | BI31: N/A | BJ31: N/A | BK31: N/A | BL31: N/A | BM31: N/A | BN31: N/A | BO31: N/A | BP31: N/A | BQ31: N/A | BR31: N/A | BS31: N/A | BT31: N/A | BU31: N/A | BV31: N/A | BW31: N/A | BX31: N/A | BY31: N/A | BZ31: N/A
B32: No | C32: 48 | D32: 22.5 | E32: 13.7 | F32: 14.2 | G32: 12.1 | H32: 13 | I32: 10.2 | J32: 12.8 | K32: 14.4 | L32: 9.8 | M32: 67.4 | N32: 49.9 | O32: 38.9 | P32: 31.2 | Q32: 21.1 | R32: 26.6 | S32: 1.3 | T32: 50.2 | U32: 36.6 | V32: 10.9 | W32: 31.9 | X32: 57.1 | Y32: 46.4 | Z32: 7 | BB32: No | BC32: N/A | BD32: N/A | BE32: N/A | BF32: N/A | BG32: N/A | BH32: N/A | BI32: N/A | BJ32: N/A | BK32: N/A | BL32: N/A | BM32: N/A | BN32: N/A | BO32: N/A | BP32: N/A | BQ32: N/A | BR32: N/A | BS32: N/A | BT32: N/A | BU32: N/A | BV32: N/A | BW32: N/A | BX32: N/A | BY32: N/A | BZ32: N/A
A33: Piped water into dwelling | B33: Yes | C33: N/A | D33: N/A | E33: N/A | F33: N/A | G33: N/A | H33: N/A | I33: N/A | J33: N/A | K33: N/A | L33: N/A | M33: N/A | N33: N/A | O33: N/A | P33: N/A | Q33: N/A | R33: N/A | S33: N/A | T33: N/A | U33: N/A | V33: N/A | W33: N/A | X33: N/A | Y33: N/A | Z33: N/A | BA33: Piped water into dwelling | BB33: Yes | BC33: N/A | BD33: N/A | BE33: N/A | BF33: N/A | BG33: N/A | BH33: N/A | BI33: N/A | BJ33: N/A | BK33: N/A | BL33: N/A | BM33: N/A | BN33: N/A | BO33: N/A | BP33: N/A | BQ33: N/A | BR33: N/A | BS33: N/A | BT33: N/A | BU33: N/A | BV33: N/A | BW33: N/A | BX33: N/A | BY33: N/A | BZ33: N/A
B34: No | C34: N/A | D34: N/A | E34: N/A | F34: N/A | G34: N/A | H34: N/A | I34: N/A | J34: N/A | K34: N/A | L34: N/A | M34: N/A | N34: N/A | O34: N/A | P34: N/A | Q34: N/A | R34: N/A | S34: N/A | T34: N/A | U34: N/A | V34: N/A | W34: N/A | X34: N/A | Y34: N/A | Z34: N/A | BB34: No | BC34: N/A | BD34: N/A | BE34: N/A | BF34: N/A | BG34: N/A | BH34: N/A | BI34: N/A | BJ34: N/A | BK34: N/A | BL34: N/A | BM34: N/A | BN34: N/A | BO34: N/A | BP34: N/A | BQ34: N/A | BR34: N/A | BS34: N/A | BT34: N/A | BU34: N/A | BV34: N/A | BW34: N/A | BX34: N/A | BY34: N/A | BZ34: N/A
A35: Water source on premises | B35: Yes | C35: 74.6 | D35: 89.7 | E35: 95.7 | F35: 96.6 | G35: 97.2 | H35: 95.2 | I35: 97.3 | J35: 97.8 | K35: 95.6 | L35: 97.9 | M35: 62.1 | N35: 75.1 | O35: 76.9 | P35: 87.3 | Q35: 93.9 | R35: 92.7 | S35: 99.5 | T35: 93.2 | U35: 68.1 | V35: 93.1 | W35: 71.8 | X35: 71.8 | Y35: 97.2 | Z35: 95.4 | BA35: Water source on premises | BB35: Yes | BC35: N/A | BD35: N/A | BE35: N/A | BF35: N/A | BG35: N/A | BH35: N/A | BI35: N/A | BJ35: N/A | BK35: N/A | BL35: N/A | BM35: N/A | BN35: N/A | BO35: N/A | BP35: N/A | BQ35: N/A | BR35: N/A | BS35: N/A | BT35: N/A | BU35: N/A | BV35: N/A | BW35: N/A | BX35: N/A | BY35: N/A | BZ35: N/A
B36: No | C36: 25.4 | D36: 10.3 | E36: 4.3 | F36: 3.4 | G36: 2.8 | H36: 4.8 | I36: 2.7 | J36: 2.2 | K36: 4.4 | L36: 2.1 | M36: 37.9 | N36: 24.9 | O36: 23.1 | P36: 12.7 | Q36: 6.1 | R36: 7.3 | S36: 0.5 | T36: 6.8 | U36: 31.9 | V36: 6.9 | W36: 28.2 | X36: 28.2 | Y36: 2.8 | Z36: 4.6 | BB36: No | BC36: N/A | BD36: N/A | BE36: N/A | BF36: N/A | BG36: N/A | BH36: N/A | BI36: N/A | BJ36: N/A | BK36: N/A | BL36: N/A | BM36: N/A | BN36: N/A | BO36: N/A | BP36: N/A | BQ36: N/A | BR36: N/A | BS36: N/A | BT36: N/A | BU36: N/A | BV36: N/A | BW36: N/A | BX36: N/A | BY36: N/A | BZ36: N/A
A37: Improved Water source on premises | B37: Yes | C37: 73.5 | D37: 89.2 | E37: 95.6 | F37: 96.6 | G37: 97.2 | H37: 95.1 | I37: 97.3 | J37: 97.8 | K37: 95.6 | L37: 97.9 | M37: 60 | N37: 73.9 | O37: 76 | P37: 86.8 | Q37: 93.3 | R37: 92.7 | S37: 99.5 | T37: 92.2 | U37: 68 | V37: 92.8 | W37: 70.5 | X37: 67.4 | Y37: 97.2 | Z37: 95.4 | BA37: Improved water source on premises | BB37: Yes | BC37: N/A | BD37: N/A | BE37: N/A | BF37: N/A | BG37: N/A | BH37: N/A | BI37: N/A | BJ37: N/A | BK37: N/A | BL37: N/A | BM37: N/A | BN37: N/A | BO37: N/A | BP37: N/A | BQ37: N/A | BR37: N/A | BS37: N/A | BT37: N/A | BU37: N/A | BV37: N/A | BW37: N/A | BX37: N/A | BY37: N/A | BZ37: N/A
B38: No | C38: 26.5 | D38: 10.8 | E38: 4.4 | F38: 3.4 | G38: 2.8 | H38: 4.9 | I38: 2.7 | J38: 2.2 | K38: 4.4 | L38: 2.1 | M38: 40 | N38: 26.1 | O38: 24 | P38: 13.2 | Q38: 6.7 | R38: 7.3 | S38: 0.5 | T38: 7.8 | U38: 32 | V38: 7.2 | W38: 29.5 | X38: 32.6 | Y38: 2.8 | Z38: 4.6 | BB38: No | BC38: N/A | BD38: N/A | BE38: N/A | BF38: N/A | BG38: N/A | BH38: N/A | BI38: N/A | BJ38: N/A | BK38: N/A | BL38: N/A | BM38: N/A | BN38: N/A | BO38: N/A | BP38: N/A | BQ38: N/A | BR38: N/A | BS38: N/A | BT38: N/A | BU38: N/A | BV38: N/A | BW38: N/A | BX38: N/A | BY38: N/A | BZ38: N/A
A39: Piped water on premises available when needed | B39: Yes | C39: N/A | D39: N/A | E39: N/A | F39: N/A | G39: N/A | H39: N/A | I39: N/A | J39: N/A | K39: N/A | L39: N/A | M39: N/A | N39: N/A | O39: N/A | P39: N/A | Q39: N/A | R39: N/A | S39: N/A | T39: N/A | U39: N/A | V39: N/A | W39: N/A | X39: N/A | Y39: N/A | Z39: N/A | BA39: Piped water on premises available when needed | BB39: Yes | BC39: N/A | BD39: N/A | BE39: N/A | BF39: N/A | BG39: N/A | BH39: N/A | BI39: N/A | BJ39: N/A | BK39: N/A | BL39: N/A | BM39: N/A | BN39: N/A | BO39: N/A | BP39: N/A | BQ39: N/A | BR39: N/A | BS39: N/A | BT39: N/A | BU39: N/A | BV39: N/A | BW39: N/A | BX39: N/A | BY39: N/A | BZ39: N/A
B40: No | C40: N/A | D40: N/A | E40: N/A | F40: N/A | G40: N/A | H40: N/A | I40: N/A | J40: N/A | K40: N/A | L40: N/A | M40: N/A | N40: N/A | O40: N/A | P40: N/A | Q40: N/A | R40: N/A | S40: N/A | T40: N/A | U40: N/A | V40: N/A | W40: N/A | X40: N/A | Y40: N/A | Z40: N/A | BB40: No | BC40: N/A | BD40: N/A | BE40: N/A | BF40: N/A | BG40: N/A | BH40: N/A | BI40: N/A | BJ40: N/A | BK40: N/A | BL40: N/A | BM40: N/A | BN40: N/A | BO40: N/A | BP40: N/A | BQ40: N/A | BR40: N/A | BS40: N/A | BT40: N/A | BU40: N/A | BV40: N/A | BW40: N/A | BX40: N/A | BY40: N/A | BZ40: N/A
A41: Water point at more than 30 minutes | B41: Yes | C41: 15.7 | D41: 5.8 | E41: 1.4 | F41: 0.6 | G41: 0.6 | H41: 0.2 | I41: 0.4 | J41: 0 | K41: 0.5 | L41: 0.6 | M41: 25.3 | N41: 16.6 | O41: 14.6 | P41: 8.8 | Q41: 2.7 | R41: 0.6 | S41: 0 | T41: 3.3 | U41: 23.4 | V41: 2.9 | W41: 20.4 | X41: 14.4 | Y41: 0.1 | Z41: 2.8 | BA41: Water point at more than 30 minutes | BB41: Yes | BC41: N/A | BD41: N/A | BE41: N/A | BF41: N/A | BG41: N/A | BH41: N/A | BI41: N/A | BJ41: N/A | BK41: N/A | BL41: N/A | BM41: N/A | BN41: N/A | BO41: N/A | BP41: N/A | BQ41: N/A | BR41: N/A | BS41: N/A | BT41: N/A | BU41: N/A | BV41: N/A | BW41: N/A | BX41: N/A | BY41: N/A | BZ41: N/A
B42: No | C42: 84.3 | D42: 94.2 | E42: 98.6 | F42: 99.4 | G42: 99.4 | H42: 99.8 | I42: 99.6 | J42: 100 | K42: 99.5 | L42: 99.4 | M42: 74.7 | N42: 83.4 | O42: 85.4 | P42: 91.2 | Q42: 97.3 | R42: 99.4 | S42: 100 | T42: 96.7 | U42: 76.6 | V42: 97.1 | W42: 79.6 | X42: 85.6 | Y42: 99.9 | Z42: 97.2 | BB42: No | BC42: N/A | BD42: N/A | BE42: N/A | BF42: N/A | BG42: N/A | BH42: N/A | BI42: N/A | BJ42: N/A | BK42: N/A | BL42: N/A | BM42: N/A | BN42: N/A | BO42: N/A | BP42: N/A | BQ42: N/A | BR42: N/A | BS42: N/A | BT42: N/A | BU42: N/A | BV42: N/A | BW42: N/A | BX42: N/A | BY42: N/A | BZ42: N/A
A43: Water source available when needed | B43: Yes | C43: N/A | D43: N/A | E43: N/A | F43: N/A | G43: N/A | H43: N/A | I43: N/A | J43: N/A | K43: N/A | L43: N/A | M43: N/A | N43: N/A | O43: N/A | P43: N/A | Q43: N/A | R43: N/A | S43: N/A | T43: N/A | U43: N/A | V43: N/A | W43: N/A | X43: N/A | Y43: N/A | Z43: N/A | BA43: Water source available when needed | BB43: Yes | BC43: N/A | BD43: N/A | BE43: N/A | BF43: N/A | BG43: N/A | BH43: N/A | BI43: N/A | BJ43: N/A | BK43: N/A | BL43: N/A | BM43: N/A | BN43: N/A | BO43: N/A | BP43: N/A | BQ43: N/A | BR43: N/A | BS43: N/A | BT43: N/A | BU43: N/A | BV43: N/A | BW43: N/A | BX43: N/A | BY43: N/A | BZ43: N/A
B44: No | C44: N/A | D44: N/A | E44: N/A | F44: N/A | G44: N/A | H44: N/A | I44: N/A | J44: N/A | K44: N/A | L44: N/A | M44: N/A | N44: N/A | O44: N/A | P44: N/A | Q44: N/A | R44: N/A | S44: N/A | T44: N/A | U44: N/A | V44: N/A | W44: N/A | X44: N/A | Y44: N/A | Z44: N/A | BB44: No | BC44: N/A | BD44: N/A | BE44: N/A | BF44: N/A | BG44: N/A | BH44: N/A | BI44: N/A | BJ44: N/A | BK44: N/A | BL44: N/A | BM44: N/A | BN44: N/A | BO44: N/A | BP44: N/A | BQ44: N/A | BR44: N/A | BS44: N/A | BT44: N/A | BU44: N/A | BV44: N/A | BW44: N/A | BX44: N/A | BY44: N/A | BZ44: N/A
A45: Improved water source available when needed | B45: Yes | C45: N/A | D45: N/A | E45: N/A | F45: N/A | G45: N/A | H45: N/A | I45: N/A | J45: N/A | K45: N/A | L45: N/A | M45: N/A | N45: N/A | O45: N/A | P45: N/A | Q45: N/A | R45: N/A | S45: N/A | T45: N/A | U45: N/A | V45: N/A | W45: N/A | X45: N/A | Y45: N/A | Z45: N/A | BA45: Improved water source available when needed | BB45: Yes | BC45: N/A | BD45: N/A | BE45: N/A | BF45: N/A | BG45: N/A | BH45: N/A | BI45: N/A | BJ45: N/A | BK45: N/A | BL45: N/A | BM45: N/A | BN45: N/A | BO45: N/A | BP45: N/A | BQ45: N/A | BR45: N/A | BS45: N/A | BT45: N/A | BU45: N/A | BV45: N/A | BW45: N/A | BX45: N/A | BY45: N/A | BZ45: N/A
B46: No | C46: N/A | D46: N/A | E46: N/A | F46: N/A | G46: N/A | H46: N/A | I46: N/A | J46: N/A | K46: N/A | L46: N/A | M46: N/A | N46: N/A | O46: N/A | P46: N/A | Q46: N/A | R46: N/A | S46: N/A | T46: N/A | U46: N/A | V46: N/A | W46: N/A | X46: N/A | Y46: N/A | Z46: N/A | BB46: No | BC46: N/A | BD46: N/A | BE46: N/A | BF46: N/A | BG46: N/A | BH46: N/A | BI46: N/A | BJ46: N/A | BK46: N/A | BL46: N/A | BM46: N/A | BN46: N/A | BO46: N/A | BP46: N/A | BQ46: N/A | BR46: N/A | BS46: N/A | BT46: N/A | BU46: N/A | BV46: N/A | BW46: N/A | BX46: N/A | BY46: N/A | BZ46: N/A
A47: Microbiological quality at point of collection | B47: Not contaminated (No E. coli in 100 mL) | C47: N/A | D47: N/A | E47: N/A | F47: N/A | G47: N/A | H47: N/A | I47: N/A | J47: N/A | K47: N/A | L47: N/A | M47: N/A | N47: N/A | O47: N/A | P47: N/A | Q47: N/A | R47: N/A | S47: N/A | T47: N/A | U47: N/A | V47: N/A | W47: N/A | X47: N/A | Y47: N/A | Z47: N/A | BA47: Microbiological quality at point of collection | BB47: Not contaminated (No E. coli in 100 mL) | BC47: N/A | BD47: N/A | BE47: N/A | BF47: N/A | BG47: N/A | BH47: N/A | BI47: N/A | BJ47: N/A | BK47: N/A | BL47: N/A | BM47: N/A | BN47: N/A | BO47: N/A | BP47: N/A | BQ47: N/A | BR47: N/A | BS47: N/A | BT47: N/A | BU47: N/A | BV47: N/A | BW47: N/A | BX47: N/A | BY47: N/A | BZ47: N/A
B48: Contaminated (E. coli detected in 100 mL) | C48: N/A | D48: N/A | E48: N/A | F48: N/A | G48: N/A | H48: N/A | I48: N/A | J48: N/A | K48: N/A | L48: N/A | M48: N/A | N48: N/A | O48: N/A | P48: N/A | Q48: N/A | R48: N/A | S48: N/A | T48: N/A | U48: N/A | V48: N/A | W48: N/A | X48: N/A | Y48: N/A | Z48: N/A | BB48: Contaminated (E. coli detected in 100 mL) | BC48: N/A | BD48: N/A | BE48: N/A | BF48: N/A | BG48: N/A | BH48: N/A | BI48: N/A | BJ48: N/A | BK48: N/A | BL48: N/A | BM48: N/A | BN48: N/A | BO48: N/A | BP48: N/A | BQ48: N/A | BR48: N/A | BS48: N/A | BT48: N/A | BU48: N/A | BV48: N/A | BW48: N/A | BX48: N/A | BY48: N/A | BZ48: N/A
B49: Highly contaminated (>100 CFU/100 mL) | C49: N/A | D49: N/A | E49: N/A | F49: N/A | G49: N/A | H49: N/A | I49: N/A | J49: N/A | K49: N/A | L49: N/A | M49: N/A | N49: N/A | O49: N/A | P49: N/A | Q49: N/A | R49: N/A | S49: N/A | T49: N/A | U49: N/A | V49: N/A | W49: N/A | X49: N/A | Y49: N/A | Z49: N/A | BB49: Highly contaminated (>100 CFU/100 mL) | BC49: N/A | BD49: N/A | BE49: N/A | BF49: N/A | BG49: N/A | BH49: N/A | BI49: N/A | BJ49: N/A | BK49: N/A | BL49: N/A | BM49: N/A | BN49: N/A | BO49: N/A | BP49: N/A | BQ49: N/A | BR49: N/A | BS49: N/A | BT49: N/A | BU49: N/A | BV49: N/A | BW49: N/A | BX49: N/A | BY49: N/A | BZ49: N/A
A50: Microbiological quality of improved water sources at point of collection | B50: Not contaminated (No E. coli in 100 mL) | C50: N/A | D50: N/A | E50: N/A | F50: N/A | G50: N/A | H50: N/A | I50: N/A | J50: N/A | K50: N/A | L50: N/A | M50: N/A | N50: N/A | O50: N/A | P50: N/A | Q50: N/A | R50: N/A | S50: N/A | T50: N/A | U50: N/A | V50: N/A | W50: N/A | X50: N/A | Y50: N/A | Z50: N/A | BA50: Microbiological quality of improved water sources at point of collection | BB50: Not contaminated (No E. coli in 100 mL) | BC50: N/A | BD50: N/A | BE50: N/A | BF50: N/A | BG50: N/A | BH50: N/A | BI50: N/A | BJ50: N/A | BK50: N/A | BL50: N/A | BM50: N/A | BN50: N/A | BO50: N/A | BP50: N/A | BQ50: N/A | BR50: N/A | BS50: N/A | BT50: N/A | BU50: N/A | BV50: N/A | BW50: N/A | BX50: N/A | BY50: N/A | BZ50: N/A
B51: Contaminated (E. coli detected in 100 mL) | C51: N/A | D51: N/A | E51: N/A | F51: N/A | G51: N/A | H51: N/A | I51: N/A | J51: N/A | K51: N/A | L51: N/A | M51: N/A | N51: N/A | O51: N/A | P51: N/A | Q51: N/A | R51: N/A | S51: N/A | T51: N/A | U51: N/A | V51: N/A | W51: N/A | X51: N/A | Y51: N/A | Z51: N/A | BB51: Contaminated (E. coli detected in 100 mL) | BC51: N/A | BD51: N/A | BE51: N/A | BF51: N/A | BG51: N/A | BH51: N/A | BI51: N/A | BJ51: N/A | BK51: N/A | BL51: N/A | BM51: N/A | BN51: N/A | BO51: N/A | BP51: N/A | BQ51: N/A | BR51: N/A | BS51: N/A | BT51: N/A | BU51: N/A | BV51: N/A | BW51: N/A | BX51: N/A | BY51: N/A | BZ51: N/A
B52: Highly contaminated (>100 CFU/100 mL) | C52: N/A | D52: N/A | E52: N/A | F52: N/A | G52: N/A | H52: N/A | I52: N/A | J52: N/A | K52: N/A | L52: N/A | M52: N/A | N52: N/A | O52: N/A | P52: N/A | Q52: N/A | R52: N/A | S52: N/A | T52: N/A | U52: N/A | V52: N/A | W52: N/A | X52: N/A | Y52: N/A | Z52: N/A | BB52: Highly contaminated (>100 CFU/100 mL) | BC52: N/A | BD52: N/A | BE52: N/A | BF52: N/A | BG52: N/A | BH52: N/A | BI52: N/A | BJ52: N/A | BK52: N/A | BL52: N/A | BM52: N/A | BN52: N/A | BO52: N/A | BP52: N/A | BQ52: N/A | BR52: N/A | BS52: N/A | BT52: N/A | BU52: N/A | BV52: N/A | BW52: N/A | BX52: N/A | BY52: N/A | BZ52: N/A
A53: Microbiological quality of piped on premises at point of collection | B53: Not contaminated (No E. coli in 100 mL) | C53: N/A | D53: N/A | E53: N/A | F53: N/A | G53: N/A | H53: N/A | I53: N/A | J53: N/A | K53: N/A | L53: N/A | M53: N/A | N53: N/A | O53: N/A | P53: N/A | Q53: N/A | R53: N/A | S53: N/A | T53: N/A | U53: N/A | V53: N/A | W53: N/A | X53: N/A | Y53: N/A | Z53: N/A | BA53: Microbiological quality of piped on premises at point of collection | BB53: Not contaminated (No E. coli in 100 mL) | BC53: N/A | BD53: N/A | BE53: N/A | BF53: N/A | BG53: N/A | BH53: N/A | BI53: N/A | BJ53: N/A | BK53: N/A | BL53: N/A | BM53: N/A | BN53: N/A | BO53: N/A | BP53: N/A | BQ53: N/A | BR53: N/A | BS53: N/A | BT53: N/A | BU53: N/A | BV53: N/A | BW53: N/A | BX53: N/A | BY53: N/A | BZ53: N/A
B54: Contaminated (E. coli detected in 100 mL) | C54: N/A | D54: N/A | E54: N/A | F54: N/A | G54: N/A | H54: N/A | I54: N/A | J54: N/A | K54: N/A | L54: N/A | M54: N/A | N54: N/A | O54: N/A | P54: N/A | Q54: N/A | R54: N/A | S54: N/A | T54: N/A | U54: N/A | V54: N/A | W54: N/A | X54: N/A | Y54: N/A | Z54: N/A | BB54: Contaminated (E. coli detected in 100 mL) | BC54: N/A | BD54: N/A | BE54: N/A | BF54: N/A | BG54: N/A | BH54: N/A | BI54: N/A | BJ54: N/A | BK54: N/A | BL54: N/A | BM54: N/A | BN54: N/A | BO54: N/A | BP54: N/A | BQ54: N/A | BR54: N/A | BS54: N/A | BT54: N/A | BU54: N/A | BV54: N/A | BW54: N/A | BX54: N/A | BY54: N/A | BZ54: N/A
B55: Highly contaminated (>100 CFU/100 mL) | C55: N/A | D55: N/A | E55: N/A | F55: N/A | G55: N/A | H55: N/A | I55: N/A | J55: N/A | K55: N/A | L55: N/A | M55: N/A | N55: N/A | O55: N/A | P55: N/A | Q55: N/A | R55: N/A | S55: N/A | T55: N/A | U55: N/A | V55: N/A | W55: N/A | X55: N/A | Y55: N/A | Z55: N/A | BB55: Highly contaminated (>100 CFU/100 mL) | BC55: N/A | BD55: N/A | BE55: N/A | BF55: N/A | BG55: N/A | BH55: N/A | BI55: N/A | BJ55: N/A | BK55: N/A | BL55: N/A | BM55: N/A | BN55: N/A | BO55: N/A | BP55: N/A | BQ55: N/A | BR55: N/A | BS55: N/A | BT55: N/A | BU55: N/A | BV55: N/A | BW55: N/A | BX55: N/A | BY55: N/A | BZ55: N/A
C56: NATIONAL wealth index quintile | H56: URBAN wealth index quintile | M56: RURAL wealth index quintile | R56: SUB-REGIONS: | BA56: Raw numbers of respondents: | BB56: Use of drinking water sources | BC56: NATIONAL wealth index quintile | BH56: URBAN wealth index quintile | BM56: RURAL wealth index quintile | BR56: SUB-REGIONS:
A57: Percentage based on weighted population | C57: Poorest | D57: Poor | E57: Middle | F57: Rich | G57: Richest | H57: Poorest | I57: Poor | J57: Middle | K57: Rich | L57: Richest | M57: Poorest | N57: Poor | O57: Middle | P57: Rich | Q57: Richest | R57: Centre Est | S57: District Tunis | T57: Kairouan | U57: Kasserine | V57: Nord Est | W57: Nord Ouest | X57: Sidi Bouzid | Y57: Sud Est | Z57: Sud Ouest | BA57: Water data, raw numbers (weighted) | BC57: Poorest | BD57: Poor | BE57: Middle | BF57: Rich | BG57: Richest | BH57: Poorest | BI57: Poor | BJ57: Middle | BK57: Rich | BL57: Richest | BM57: Poorest | BN57: Poor | BO57: Middle | BP57: Rich | BQ57: Richest | BR57: Centre Est | BS57: District Tunis | BT57: Kairouan | BU57: Kasserine | BV57: Nord Est | BW57: Nord Ouest | BX57: Sidi Bouzid | BY57: Sud Est | BZ57: Sud Ouest
A58: Source principale d'eau potable | B58: Robinet dans le logement | C58: 48.25882564 | D58: 72.31278831 | E58: 78.38382608 | F58: 69.00597125 | G58: 49.23344078 | H58: 82.64433569 | I58: 81.6553829 | J58: 73.75465956 | K58: 61.93979573 | L58: 45.49906499 | M58: 26.75316038 | N58: 46.03355675 | O58: 57.79126982 | P58: 64.38601914 | Q58: 67.14950342 | R58: 60.87890251 | S58: 74.96103571 | T58: 48.19756518 | U58: 60.59254021 | V58: 68.61339276 | W58: 63.20989277 | X58: 36.97415959 | Y58: 45.65384606 | Z58: 71.13909575
B59: Robinet dans quartier, cour ou parcelle | C59: 3.208754583 | D59: 1.117470414 | E59: 0.4946625975 | F59: 0.02750541532 | G59: 0 | H59: 0.1386730565 | I59: 0.2319017913 | J59: 0.04162254343 | K59: 0 | L59: 0 | M59: 5.597071038 | N59: 3.662116414 | O59: 2.4753477 | P59: 1.463942101 | Q59: 0.288049552 | R59: 1.368942985 | S59: 0 | T59: 1.630372081 | U59: 2.529878611 | V59: 1.383500454 | W59: 2.158562649 | X59: 0 | Y59: 0.2829007875 | Z59: 0
B60: Robinet du voisin | C60: 2.879997377 | D60: 0.9543971959 | E60: 0.2116085381 | F60: 0.0180418553 | G60: 0 | H60: 1.510130462 | I60: 0.1467536778 | J60: 0 | K60: 0 | L60: 0 | M60: 3.518842114 | N60: 2.113623965 | O60: 2.280601116 | P60: 0.5172838483 | Q60: 0.3194490773 | R60: 0.5015066886 | S60: 0.0894176611 | T60: 1.554286825 | U60: 2.721644039 | V60: 1.218183637 | W60: 1.382555039 | X60: 1.56942577 | Y60: 0.6526006454 | Z60: 0.4778191864
B61: Robinet public / borne fontaine | C61: 6.541606096 | D61: 2.583583619 | E61: 0.3840968173 | F61: 0.3321763507 | G61: 0 | H61: 0.5575681406 | I61: 0 | J61: 0.04268978813 | K61: 0.05527308214 | L61: 0 | M61: 9.545776005 | N61: 6.293734886 | O61: 6.560546553 | P61: 3.953628187 | Q61: 1.372531828 | R61: 0.373640153 | S61: 0.02961960024 | T61: 0.9696311306 | U61: 12.97222908 | V61: 1.117666819 | W61: 7.028062322 | X61: 3.456085162 | Y61: 0 | Z61: 1.9770477
B62: Puits à pompe, forage | C62: 0.2692611174 | D62: 0.3757080291 | E62: 0.05349994096 | F62: 0 | G62: 0.1589696335 | H62: 0.2218233513 | I62: 0 | J62: 0 | K62: 0.07894836407 | L62: 0 | M62: 0.1466311335 | N62: 0.07926720087 | O62: 0.5605752637 | P62: 0.7474703105 | Q62: 0.4075696518 | R62: 0.2185471 | S62: 0.2052727601 | T62: 0.3479452611 | U62: 0.4374228871 | V62: 0.08133959509 | W62: 0.1308641131 | X62: 0.2523342637 | Y62: 0 | Z62: 0
B63: Puits protégé | C63: 2.682639221 | D63: 1.750774134 | E63: 0.5539695639 | F63: 0.4653485148 | G63: 0.4833956888 | H63: 0.2477143823 | I63: 0.2276883304 | J63: 0.2326772211 | K63: 0.285544665 | L63: 0.732046978 | M63: 3.486974852 | N63: 3.38231732 | O63: 3.445046363 | P63: 2.688384885 | Q63: 1.132983189 | R63: 0.3060966481 | S63: 0.05588603819 | T63: 3.353056169 | U63: 6.170419436 | V63: 1.69133505 | W63: 1.929081752 | X63: 2.120693923 | Y63: 0 | Z63: 1.980640755
B64: Puits non protégé | C64: 2.707045319 | D64: 0.9178605866 | E64: 0.2590744729 | F64: 0.1092980712 | G64: 0 | H64: 0.1585404406 | I64: 0 | J64: 0 | K64: 0 | L64: 0 | M64: 5.470526475 | N64: 2.038928919 | O64: 1.683983762 | P64: 1.268607866 | Q64: 0.9973692484 | R64: 0 | S64: 0 | T64: 2.06317338 | U64: 2.069206216 | V64: 0.9624627404 | W64: 2.484608466 | X64: 5.720483855 | Y64: 0 | Z64: 0
B65: Source protégée | C65: 1.707747531 | D65: 0.9492603249 | E65: 0.6412484363 | F65: 0.7159126577 | G65: 0.502595716 | H65: 0.4489877736 | I65: 0.5006855739 | J65: 0.4400907512 | K65: 0.8693024333 | L65: 0.3414592502 | M65: 2.46411248 | N65: 1.343972004 | O65: 1.654110132 | P65: 1.933333407 | Q65: 0.8508614277 | R65: 0.1093439228 | S65: 0 | T65: 0 | U65: 0 | V65: 1.464068089 | W65: 5.784415567 | X65: 0.4074673472 | Y65: 0.1305956076 | Z65: 0.2250074252
B66: Source non protégée | C66: 5.637575134 | D66: 1.858661571 | E66: 0.365597662 | F66: 0.09147610982 | G66: 0 | H66: 0 | I66: 0 | J66: 0 | K66: 0 | L66: 0 | M66: 9.191126123 | N66: 6.37334553 | O66: 4.852830494 | P66: 2.261279912 | Q66: 0.7603160998 | R66: 0 | S66: 0 | T66: 1.254733217 | U66: 0.4742899642 | V66: 1.910410227 | W66: 11.27481778 | X66: 0.2068441114 | Y66: 0 | Z66: 0
B67: Eau de pluie/Majel/Fasquia | C67: 20.10374423 | D67: 11.04358672 | E67: 9.629020114 | F67: 11.43820634 | G67: 9.901293963 | H67: 8.880223899 | I67: 8.651988418 | J67: 10.54820803 | K67: 12.46386616 | L67: 7.884703719 | M67: 26.43015632 | N67: 21.15084629 | O67: 14.21467285 | P67: 14.46490804 | Q67: 12.49068326 | R67: 23.41209315 | S67: 0 | T67: 37.05490584 | U67: 0.2869653565 | V67: 0.1964837909 | W67: 0.1984066802 | X67: 37.45000034 | Y67: 44.75290448 | Z67: 0.5219681653
B68: Camion-citerne | C68: 4.22285944 | D68: 1.251505004 | E68: 0.908218334 | F68: 0.7067026034 | G68: 0.3583002162 | H68: 0.2275495465 | I68: 0.2183075155 | J68: 0.8555622481 | K68: 0.3235466114 | L68: 0.3075905449 | M68: 4.974389398 | N68: 6.579108389 | O68: 2.922632565 | P68: 1.978069895 | Q68: 1.732236529 | R68: 1.527330428 | S68: 0.7621019421 | T68: 2.258093735 | U68: 10.83460289 | V68: 0.07186003871 | W68: 0.3561052742 | X68: 4.149512128 | Y68: 0.1158181395 | Z68: 1.751641289
B69: Charrette avec petite citerne / tonneau | C69: 0.4082606874 | D69: 0.2752210921 | E69: 0.1399448111 | F69: 0.06582492554 | G69: 0.1129776023 | H69: 0.04150634312 | I69: 0.05465445922 | J69: 0.09960950563 | K69: 0.05683775928 | L69: 0 | M69: 0.9188131915 | N69: 0.2031522895 | O69: 0.2608911186 | P69: 0.8568248381 | Q69: 0.2222406537 | R69: 0 | S69: 0.02926752664 | T69: 1.10427461 | U69: 0.4145055149 | V69: 0.255524057 | W69: 0.712112383 | X69: 0.2457245834 | Y69: 0 | Z69: 0
B70: Eau de surface (rivière, fleuve, barrage, lac, mare, canal, canal d'irrigation) | C70: 0.2085138997 | D70: 0.1534026868 | E70: 0.06885847376 | F70: 0 | G70: 0 | H70: 0.1315058121 | I70: 0 | J70: 0 | K70: 0 | L70: 0 | M70: 0.5330348203 | N70: 0.08127461768 | O70: 0.07440433792 | P70: 0.1218314467 | Q70: 0.2031004772 | R70: 0 | S70: 0 | T70: 0.186399247 | U70: 0 | V70: 0.4047329753 | W70: 0.07719173493 | X70: 0.3304840125 | Y70: 0 | Z70: 0
B71: Eau en bouteille | C71: 0.8000879966 | D71: 4.449532968 | E71: 7.906374158 | F71: 17.01651113 | G71: 39.2490264 | H71: 4.7914411 | I71: 8.312637338 | J71: 13.97425012 | K71: 23.92688519 | L71: 45.23513452 | M71: 0.2331594385 | N71: 0.3808769577 | O71: 1.155033985 | P71: 3.358416127 | Q71: 12.07310558 | R71: 11.30359641 | S71: 23.86739876 | T71: 0 | U71: 0.4962957988 | V71: 20.62903976 | W71: 2.834597004 | X71: 6.354727661 | Y71: 8.411334272 | Z71: 21.90035269
B72: Autre | C72: 0.3630817265 | D72: 0.00624734268 | E72: 0 | F72: 0.007024774844 | G72: 0 | H72: 0 | I72: 0 | J72: 0.01063023382 | K72: 0 | L72: 0 | M72: 0.7362262272 | N72: 0.2838784657 | O72: 0.0680539366 | P72: 0 | Q72: 0 | R72: 0 | S72: 0 | T72: 0.0255633253 | U72: 0 | V72: 0 | W72: 0.4387264622 | X72: 0.7620572525 | Y72: 0 | Z72: 0.02642704659
A108: =A1026 -> Tunisia
A109: =A1034 -> 2012
A110: Use of sanitation facilities
A111: by wealth quintile and sub-national region
A112: Notes:
A113: WHO/UNICEF JMP customised wealth index excludes water,
A114: sanitation and hygiene assets.
A115: Survey used for analysis: | B115: =A1025 -> MICS12
A116: =B1030 -> 
A117: =B1029 -> 
A120: Use of sanitation facilities | C120: NATIONAL wealth index quintile | H120: URBAN wealth index quintile | M120: RURAL wealth index quintile | R120: SUB-REGIONS: | BA120: Raw numbers of respondents: | BB120: Use of sanitation facilities | BC120: NATIONAL wealth index quintile | BH120: URBAN wealth index quintile | BM120: RURAL wealth index quintile | BR120: SUB-REGIONS:
A121: Weighted percentage (used in graphs) | C121: Poorest | D121: Poor | E121: Middle | F121: Rich | G121: Richest | H121: Poorest | I121: Poor | J121: Middle | K121: Rich | L121: Richest | M121: Poorest | N121: Poor | O121: Middle | P121: Rich | Q121: Richest | R121: Centre Est | S121: District Tunis | T121: Kairouan | U121: Kasserine | V121: Nord Est | W121: Nord Ouest | X121: Sidi Bouzid | Y121: Sud Est | Z121: Sud Ouest | BA121: Sanitation data, raw numbers (weighted) | BC121: Poorest | BD121: Poor | BE121: Middle | BF121: Rich | BG121: Richest | BH121: Poorest | BI121: Poor | BJ121: Middle | BK121: Rich | BL121: Richest | BM121: Poorest | BN121: Poor | BO121: Middle | BP121: Rich | BQ121: Richest | BR121: Centre Est | BS121: District Tunis | BT121: Kairouan | BU121: Kasserine | BV121: Nord Est | BW121: Nord Ouest | BX121: Sidi Bouzid | BY121: Sud Est | BZ121: Sud Ouest
A122: Sanitation | B122: Improved | C122: 83.31015296 | D122: 98.45140652 | E122: 99.35758498 | F122: 99.91077175 | G122: 99.87656503 | H122: 99.18445709 | I122: 99.88672433 | J122: 100 | K122: 100 | L122: 100 | M122: 68.12623516 | N122: 86.56517666 | O122: 95.20204013 | P122: 96.39362266 | Q122: 99.26169924 | R122: 97.09430344 | S122: 99.71059846 | T122: 81.78806064 | U122: 84.96454315 | V122: 98.8491671 | W122: 94.22388781 | X122: 82.11916407 | Y122: 99.43754984 | Z122: 98.67890059 | BA122: Sanitation | BB122: Improved | BC122: 6349.963726 | BD122: 7512.019208 | BE122: 7582.733202 | BF122: 7614.838116 | BG122: 7617.917684 | BH122: 4998.006842 | BI122: 5034.616822 | BJ122: 5036.605708 | BK122: 5043.868331 | BL122: 5036.588837 | BM122: 1762.608839 | BN122: 2238.877939 | BO122: 2463.23355 | BP122: 2494.722779 | BQ122: 2568.34229 | BR122: 8117.454101 | BS122: 9385.114024 | BT122: 1371.777074 | BU122: 1726.412913 | BV122: 5468.879822 | BW122: 3906.313142 | BX122: 1027.346648 | BY122: 3674.973296 | BZ122: 1999.200917
B123: Not Improved | C123: 16.68984704 | D123: 1.548593476 | E123: 0.6424150165 | F123: 0.08922824996 | G123: 0.1234349728 | H123: 0.8155429122 | I123: 0.1132756736 | J123: 0 | K123: 0 | L123: 0 | M123: 31.87376484 | N123: 13.43482334 | O123: 4.797959867 | P123: 3.606377344 | Q123: 0.7383007621 | R123: 2.905696564 | S123: 0.2894015435 | T123: 18.21193936 | U123: 15.03545685 | V123: 1.150832895 | W123: 5.776112188 | X123: 17.88083593 | Y123: 0.5624501601 | Z123: 1.32109941 | BB123: Not Improved | BC123: 1272.112936 | BD123: 118.1604646 | BE123: 49.02757727 | BF123: 6.800654894 | BG123: 9.414795775 | BH123: 41.09604644 | BI123: 5.709463553 | BJ123: 0 | BK123: 0 | BL123: 0 | BM123: 824.6599786 | BN123: 347.4714747 | BO123: 124.1412022 | BP123: 93.33513421 | BQ123: 19.10312925 | BR123: 242.9273155 | BS123: 27.23949637 | BT123: 305.4568197 | BU123: 305.508697 | BV123: 63.67040798 | BW123: 239.4647841 | BX123: 223.6970756 | BY123: 20.78680862 | BZ123: 26.7650241
A124: Sanitation ladder | B124: Basic | C124: =C122*C129/100 -> 77.32823657 | D124: =D122*D129/100 -> 93.54643697 | E124: =E122*E129/100 -> 97.43506047 | F124: 98.24605031 | G124: 99.4063579 | H124: 93.41099571 | I124: 98.06353137 | J124: 99.10136205 | K124: 99.25519468 | L124: 99.60373555 | M124: 62.58450661 | N124: 81.40153989 | O124: 88.07606595 | P124: 92.7289355 | Q124: 95.47950172 | R124: 95.83304793 | S124: 97.35267954 | T124: 80.10402593 | U124: 76.56750227 | V124: 94.25536031 | W124: 90.59952361 | X124: 79.61276433 | Y124: 96.27792498 | Z124: 95.68977819 | BA124: Sanitation ladder | BB124: Basic | BC124: 5887.037602 | BD124: 7137.761218 | BE124: 7430.98676 | BF124: 7481.648556 | BG124: 7581.239988 | BH124: 4707.076183 | BI124: 4942.486666 | BJ124: 4980.145534 | BK124: 5006.301332 | BL124: 5015.816582 | BM124: 1613.090729 | BN124: 2104.540658 | BO124: 2278.857893 | BP124: 2399.878553 | BQ124: 2470.479994 | BR124: 8006.600143 | BS124: 9152.144722 | BT124: 1342.35374 | BU124: 1555.791625 | BV124: 5214.725153 | BW124: 3755.249716 | BX124: 995.9904912 | BY124: 3558.201141 | BZ124: 1937.617392
B125: Limited | C125: =C122*C128/100 -> 5.981916386 | D125: =D122*D128/100 -> 4.904969559 | E125: =E122*E128/100 -> 1.922524518 | F125: 1.664721443 | G125: 0.4702071248 | H125: 5.773461375 | I125: 1.823192952 | J125: 0.8986379495 | K125: 0.744805316 | L125: 0.3962644475 | M125: 5.541728552 | N125: 5.163636768 | O125: 7.125974186 | P125: 3.664687155 | Q125: 3.782197519 | R125: 1.261255511 | S125: 2.357918915 | T125: 1.684034704 | U125: 8.397040875 | V125: 4.5938068 | W125: 3.624364203 | X125: 2.506399734 | Y125: 3.159624859 | Z125: 2.9891224 | BB125: Limited | BC125: 455.4063077 | BD125: 374.2579902 | BE125: 146.6233425 | BF125: 126.7721271 | BG125: 35.86041308 | BH125: 290.9306589 | BI125: 91.89049923 | BJ125: 45.15929629 | BK125: 37.56699946 | BL125: 19.95497233 | BM125: 142.835846 | BN125: 133.4997291 | BO125: 184.3756569 | BP125: 94.8442259 | BQ125: 97.86229646 | BR125: 105.3745944 | BS125: 221.6684251 | BT125: 28.22043284 | BU125: 170.6212881 | BV125: 254.1546687 | BW125: 150.2258743 | BX125: 31.35615655 | BY125: 116.772155 | BZ125: 60.52658557
B126: Unimproved | C126: =100-C124-C125-C127 -> 5.70107092 | D126: =100-D124-D125-D127 -> 1.108741981 | E126: =100-E124-E125-E127 -> 0.6424150165 | F126: 0.08922824996 | G126: 0.1234349728 | H126: 0.5329083995 | I126: 0.1132756736 | J126: -9.91429161e-14 | K126: 2.553512957e-14 | L126: -1.676436767e-14 | M126: 8.77828188 | N126: 6.177208075 | O126: 2.470051028 | P126: 3.13541944 | Q126: 0.7383007621 | R126: 2.074661971 | S126: 0.2360975883 | T126: 0.1638513839 | U126: 7.047922296 | V126: 1.112838742 | W126: 3.260541062 | X126: 1.280868388 | Y126: 0.4333195908 | Z126: 0.7158060902 | BB126: Unimproved | BC126: 435.3663318 | BD126: 84.59900525 | BE126: 49.02757727 | BF126: 6.800654894 | BG126: 9.414795775 | BH126: 26.85380255 | BI126: 5.709463553 | BJ126: 0 | BK126: 0 | BL126: 0 | BM126: 228.661051 | BN126: 159.8249711 | BO126: 63.90947666 | BP126: 81.14647091 | BQ126: 19.10312925 | BR126: 173.4951892 | BS126: 22.22836347 | BT126: 2.965271558 | BU126: 143.2082562 | BV126: 61.56836239 | BW126: 135.1958608 | BX126: 16.02422357 | BY126: 16.01445256 | BZ126: 14.50838518
B127: Open defecation | C127: 10.98877612 | D127: 0.439851495 | E127: 0 | F127: 0 | G127: 0 | H127: 0.2826345127 | I127: 0 | J127: 0 | K127: 0 | L127: 0 | M127: 23.09548295 | N127: 7.257615269 | O127: 2.327908839 | P127: 0.4709579038 | Q127: 0 | R127: 0.831034593 | S127: 0.05330395528 | T127: 18.04808798 | U127: 7.987534557 | V127: 0.03799415297 | W127: 2.515571126 | X127: 16.59996754 | Y127: 0.1291305693 | Z127: 0.6052933199 | BB127: Open defecation | BC127: 836.7466046 | BD127: 33.56145936 | BE127: 0 | BF127: 0 | BG127: 0 | BH127: 14.24224389 | BI127: 0 | BJ127: 0 | BK127: 0 | BL127: 0 | BM127: 595.9989276 | BN127: 187.6465036 | BO127: 60.23172555 | BP127: 12.1886633 | BQ127: 0 | BR127: 69.43212628 | BS127: 5.011132897 | BT127: 302.4915482 | BU127: 162.3004408 | BV127: 2.102045598 | BW127: 104.2689232 | BX127: 207.672852 | BY127: 4.772356063 | BZ127: 12.25663892
A128: Shared among Improved Sanitation | B128: Yes | C128: 7.180296967 | D128: 4.982122381 | E128: 1.934954959 | F128: 1.666208171 | G128: 0.4707882421 | H128: 5.820933586 | I128: 1.825260528 | J128: 0.8986379495 | K128: 0.744805316 | L128: 0.3962644475 | M128: 8.134499931 | N128: 5.965027702 | O128: 7.485106596 | P128: 3.8017942 | Q128: 3.810329208 | R128: 1.299000525 | S128: 2.364762575 | T128: 2.059022663 | U128: 9.882994204 | V128: 4.647289334 | W128: 3.846544955 | X128: 3.052149595 | Y128: 3.177496695 | Z128: 3.029140356 | BA128: Shared among improved sanitation facilities | BB128: Yes | BC128: N/A | BD128: N/A | BE128: N/A | BF128: N/A | BG128: N/A | BH128: N/A | BI128: N/A | BJ128: N/A | BK128: N/A | BL128: N/A | BM128: N/A | BN128: N/A | BO128: N/A | BP128: N/A | BQ128: N/A | BR128: N/A | BS128: N/A | BT128: N/A | BU128: N/A | BV128: N/A | BW128: N/A | BX128: N/A | BY128: N/A | BZ128: N/A
B129: No | C129: 92.81970303 | D129: 95.01787762 | E129: 98.06504504 | F129: 98.33379183 | G129: 99.52921176 | H129: 94.17906641 | I129: 98.17473947 | J129: 99.10136205 | K129: 99.25519468 | L129: 99.60373555 | M129: 91.86550007 | N129: 94.0349723 | O129: 92.5148934 | P129: 96.1982058 | Q129: 96.18967079 | R129: 98.70099948 | S129: 97.63523743 | T129: 97.94097734 | U129: 90.1170058 | V129: 95.35271067 | W129: 96.15345504 | X129: 96.9478504 | Y129: 96.82250331 | Z129: 96.97085964 | BB129: No | BC129: N/A | BD129: N/A | BE129: N/A | BF129: N/A | BG129: N/A | BH129: N/A | BI129: N/A | BJ129: N/A | BK129: N/A | BL129: N/A | BM129: N/A | BN129: N/A | BO129: N/A | BP129: N/A | BQ129: N/A | BR129: N/A | BS129: N/A | BT129: N/A | BU129: N/A | BV129: N/A | BW129: N/A | BX129: N/A | BY129: N/A | BZ129: N/A
A130: Manually calculated ratios | B130: Improved latrines
B131: Other
B132: Other
C133: NATIONAL wealth index quintile | H133: URBAN wealth index quintile | M133: RURAL wealth index quintile | R133: SUB-REGIONS: | BA133: Raw numbers of respondents: | BB133: Use of sanitation facilities | BC133: NATIONAL wealth index quintile | BH133: URBAN wealth index quintile | BM133: RURAL wealth index quintile | BR133: SUB-REGIONS:
A134: Percentage based on weighted population | C134: Poorest | D134: Poor | E134: Middle | F134: Rich | G134: Richest | H134: Poorest | I134: Poor | J134: Middle | K134: Rich | L134: Richest | M134: Poorest | N134: Poor | O134: Middle | P134: Rich | Q134: Richest | R134: Centre Est | S134: District Tunis | T134: Kairouan | U134: Kasserine | V134: Nord Est | W134: Nord Ouest | X134: Sidi Bouzid | Y134: Sud Est | Z134: Sud Ouest | BA134: Sanitation data, raw numbers (weighted) | BC134: Poorest | BD134: Poor | BE134: Middle | BF134: Rich | BG134: Richest | BH134: Poorest | BI134: Poor | BJ134: Middle | BK134: Rich | BL134: Richest | BM134: Poorest | BN134: Poor | BO134: Middle | BP134: Rich | BQ134: Richest | BR134: Centre Est | BS134: District Tunis | BT134: Kairouan | BU134: Kasserine | BV134: Nord Est | BW134: Nord Ouest | BX134: Sidi Bouzid | BY134: Sud Est | BZ134: Sud Ouest
A135: Sanitation type | B135: Sewer connection | C135: 13.58965975 | D135: 42.03069124 | E135: 64.36930068 | F135: 74.84049947 | G135: 85.8758813 | H135: 65.7882932 | I135: 80.83866066 | J135: 86.56416305 | K135: 86.6332595 | L135: 91.56801421 | M135: 0.5019896645 | N135: 2.492832703 | O135: 4.077682824 | P135: 5.752237867 | Q135: 13.39070503 | R135: 62.3355004 | S135: 87.51566376 | T135: 29.35447819 | U135: 27.69494218 | V135: 53.05913346 | W135: 40.30217585 | X135: 15.30585652 | Y135: 31.60312298 | Z135: 46.38684028 | BA135: Sanitation type | BB135: Sewer connection | BC135: N/A | BD135: N/A | BE135: N/A | BF135: N/A | BG135: N/A | BH135: N/A | BI135: N/A | BJ135: N/A | BK135: N/A | BL135: N/A | BM135: N/A | BN135: N/A | BO135: N/A | BP135: N/A | BQ135: N/A | BR135: N/A | BS135: N/A | BT135: N/A | BU135: N/A | BV135: N/A | BW135: N/A | BX135: N/A | BY135: N/A | BZ135: N/A
B136: Septic tank connection | C136: 19.92161927 | D136: 17.10457045 | E136: 13.51628396 | F136: 12.30706862 | G136: 8.63502018 | H136: 14.7431052 | I136: 10.96367271 | J136: 9.398304076 | K136: 9.338095775 | L136: 6.136083223 | M136: 19.87687714 | N136: 21.18866179 | O136: 22.6447275 | P136: 21.27527679 | Q136: 27.20715658 | R136: 16.19939892 | S136: 5.657090444 | T136: 24.89143085 | U136: 5.825679717 | V136: 3.85030135 | W136: 5.828773951 | X136: 22.00420258 | Y136: 45.72775726 | Z136: 30.06502116 | BB136: Septic tank connection | BC136: N/A | BD136: N/A | BE136: N/A | BF136: N/A | BG136: N/A | BH136: N/A | BI136: N/A | BJ136: N/A | BK136: N/A | BL136: N/A | BM136: N/A | BN136: N/A | BO136: N/A | BP136: N/A | BQ136: N/A | BR136: N/A | BS136: N/A | BT136: N/A | BU136: N/A | BV136: N/A | BW136: N/A | BX136: N/A | BY136: N/A | BZ136: N/A
B137: Improved latrines | C137: 49.79887394 | D137: 39.31614483 | E137: 21.47200035 | F137: 12.76320366 | G137: 5.365663551 | H137: 18.6530587 | I137: 8.084390966 | J137: 4.037532873 | K137: 4.028644728 | L137: 2.295902568 | M137: 47.74736836 | N137: 62.88368217 | O137: 68.47962981 | P137: 69.366108 | Q137: 58.66383762 | R137: 18.55940411 | S137: 6.537844249 | T137: 27.5421516 | U137: 51.44392125 | V137: 41.9397323 | W137: 48.09293801 | X137: 44.80910497 | Y137: 22.1066696 | Z137: 22.22703915 | BB137: Improved latrines | BC137: N/A | BD137: N/A | BE137: N/A | BF137: N/A | BG137: N/A | BH137: N/A | BI137: N/A | BJ137: N/A | BK137: N/A | BL137: N/A | BM137: N/A | BN137: N/A | BO137: N/A | BP137: N/A | BQ137: N/A | BR137: N/A | BS137: N/A | BT137: N/A | BU137: N/A | BV137: N/A | BW137: N/A | BX137: N/A | BY137: N/A | BZ137: N/A
B138: Unimproved facilities | C138: 5.711912266 | D138: 1.108741981 | E138: 0.6424150165 | F138: 0.08922824996 | G138: 0.1234349728 | H138: 0.5329083995 | I138: 0.1132756736 | J138: 0 | K138: 0 | L138: 0 | M138: 8.837931699 | N138: 6.179558349 | O138: 2.470051028 | P138: 3.13541944 | Q138: 0.7383007621 | R138: 2.075206628 | S138: 0.2361615873 | T138: 0.1767953515 | U138: 7.047922296 | V138: 1.112838742 | W138: 3.261049271 | X138: 1.280868388 | Y138: 0.4333195908 | Z138: 0.7161218698 | BB138: Unimproved facilities | BC138: N/A | BD138: N/A | BE138: N/A | BF138: N/A | BG138: N/A | BH138: N/A | BI138: N/A | BJ138: N/A | BK138: N/A | BL138: N/A | BM138: N/A | BN138: N/A | BO138: N/A | BP138: N/A | BQ138: N/A | BR138: N/A | BS138: N/A | BT138: N/A | BU138: N/A | BV138: N/A | BW138: N/A | BX138: N/A | BY138: N/A | BZ138: N/A
B139: Open defecation | C139: 10.97793478 | D139: 0.439851495 | E139: 0 | F139: 0 | G139: 0 | H139: 0.2826345127 | I139: 0 | J139: 0 | K139: 0 | L139: 0 | M139: 23.03583314 | N139: 7.255264995 | O139: 2.327908839 | P139: 0.4709579038 | Q139: 0 | R139: 0.830489936 | S139: 0.05323995625 | T139: 18.03514401 | U139: 7.987534557 | V139: 0.03799415297 | W139: 2.515062917 | X139: 16.59996754 | Y139: 0.1291305693 | Z139: 0.6049775403 | BB139: Open defecation | BC139: N/A | BD139: N/A | BE139: N/A | BF139: N/A | BG139: N/A | BH139: N/A | BI139: N/A | BJ139: N/A | BK139: N/A | BL139: N/A | BM139: N/A | BN139: N/A | BO139: N/A | BP139: N/A | BQ139: N/A | BR139: N/A | BS139: N/A | BT139: N/A | BU139: N/A | BV139: N/A | BW139: N/A | BX139: N/A | BY139: N/A | BZ139: N/A
A140: Septic tank emptying practices | B140: Not emptied/treated and disposed in situ | C140: N/A | D140: N/A | E140: N/A | F140: N/A | G140: N/A | H140: N/A | I140: N/A | J140: N/A | K140: N/A | L140: N/A | M140: N/A | N140: N/A | O140: N/A | P140: N/A | Q140: N/A | R140: N/A | S140: N/A | T140: N/A | U140: N/A | V140: N/A | W140: N/A | X140: N/A | Y140: N/A | Z140: N/A | BA140: Septic tank emptying practices | BB140: Not emptied/treated and disposed in situ | BC140: N/A | BD140: N/A | BE140: N/A | BF140: N/A | BG140: N/A | BH140: N/A | BI140: N/A | BJ140: N/A | BK140: N/A | BL140: N/A | BM140: N/A | BN140: N/A | BO140: N/A | BP140: N/A | BQ140: N/A | BR140: N/A | BS140: N/A | BT140: N/A | BU140: N/A | BV140: N/A | BW140: N/A | BX140: N/A | BY140: N/A | BZ140: N/A
B141: Emptied and buried on site | C141: N/A | D141: N/A | E141: N/A | F141: N/A | G141: N/A | H141: N/A | I141: N/A | J141: N/A | K141: N/A | L141: N/A | M141: N/A | N141: N/A | O141: N/A | P141: N/A | Q141: N/A | R141: N/A | S141: N/A | T141: N/A | U141: N/A | V141: N/A | W141: N/A | X141: N/A | Y141: N/A | Z141: N/A | BB141: Emptied and buried on site | BC141: N/A | BD141: N/A | BE141: N/A | BF141: N/A | BG141: N/A | BH141: N/A | BI141: N/A | BJ141: N/A | BK141: N/A | BL141: N/A | BM141: N/A | BN141: N/A | BO141: N/A | BP141: N/A | BQ141: N/A | BR141: N/A | BS141: N/A | BT141: N/A | BU141: N/A | BV141: N/A | BW141: N/A | BX141: N/A | BY141: N/A | BZ141: N/A
B142: Emptied and discharged locally | C142: N/A | D142: N/A | E142: N/A | F142: N/A | G142: N/A | H142: N/A | I142: N/A | J142: N/A | K142: N/A | L142: N/A | M142: N/A | N142: N/A | O142: N/A | P142: N/A | Q142: N/A | R142: N/A | S142: N/A | T142: N/A | U142: N/A | V142: N/A | W142: N/A | X142: N/A | Y142: N/A | Z142: N/A | BB142: Emptied and discharged locally | BC142: N/A | BD142: N/A | BE142: N/A | BF142: N/A | BG142: N/A | BH142: N/A | BI142: N/A | BJ142: N/A | BK142: N/A | BL142: N/A | BM142: N/A | BN142: N/A | BO142: N/A | BP142: N/A | BQ142: N/A | BR142: N/A | BS142: N/A | BT142: N/A | BU142: N/A | BV142: N/A | BW142: N/A | BX142: N/A | BY142: N/A | BZ142: N/A
B143: Emptied and removed offsite | C143: N/A | D143: N/A | E143: N/A | F143: N/A | G143: N/A | H143: N/A | I143: N/A | J143: N/A | K143: N/A | L143: N/A | M143: N/A | N143: N/A | O143: N/A | P143: N/A | Q143: N/A | R143: N/A | S143: N/A | T143: N/A | U143: N/A | V143: N/A | W143: N/A | X143: N/A | Y143: N/A | Z143: N/A | BB143: Emptied and removed offsite | BC143: N/A | BD143: N/A | BE143: N/A | BF143: N/A | BG143: N/A | BH143: N/A | BI143: N/A | BJ143: N/A | BK143: N/A | BL143: N/A | BM143: N/A | BN143: N/A | BO143: N/A | BP143: N/A | BQ143: N/A | BR143: N/A | BS143: N/A | BT143: N/A | BU143: N/A | BV143: N/A | BW143: N/A | BX143: N/A | BY143: N/A | BZ143: N/A
A144: Latrine emptying practices | B144: Not emptied/treated and disposed in situ | C144: N/A | D144: N/A | E144: N/A | F144: N/A | G144: N/A | H144: N/A | I144: N/A | J144: N/A | K144: N/A | L144: N/A | M144: N/A | N144: N/A | O144: N/A | P144: N/A | Q144: N/A | R144: N/A | S144: N/A | T144: N/A | U144: N/A | V144: N/A | W144: N/A | X144: N/A | Y144: N/A | Z144: N/A | BA144: Latrine emptying practices | BB144: Not emptied/treated and disposed in situ | BC144: N/A | BD144: N/A | BE144: N/A | BF144: N/A | BG144: N/A | BH144: N/A | BI144: N/A | BJ144: N/A | BK144: N/A | BL144: N/A | BM144: N/A | BN144: N/A | BO144: N/A | BP144: N/A | BQ144: N/A | BR144: N/A | BS144: N/A | BT144: N/A | BU144: N/A | BV144: N/A | BW144: N/A | BX144: N/A | BY144: N/A | BZ144: N/A
B145: Emptied and buried on site | C145: N/A | D145: N/A | E145: N/A | F145: N/A | G145: N/A | H145: N/A | I145: N/A | J145: N/A | K145: N/A | L145: N/A | M145: N/A | N145: N/A | O145: N/A | P145: N/A | Q145: N/A | R145: N/A | S145: N/A | T145: N/A | U145: N/A | V145: N/A | W145: N/A | X145: N/A | Y145: N/A | Z145: N/A | BB145: Emptied and buried on site | BC145: N/A | BD145: N/A | BE145: N/A | BF145: N/A | BG145: N/A | BH145: N/A | BI145: N/A | BJ145: N/A | BK145: N/A | BL145: N/A | BM145: N/A | BN145: N/A | BO145: N/A | BP145: N/A | BQ145: N/A | BR145: N/A | BS145: N/A | BT145: N/A | BU145: N/A | BV145: N/A | BW145: N/A | BX145: N/A | BY145: N/A | BZ145: N/A
B146: Emptied and discharged locally | C146: N/A | D146: N/A | E146: N/A | F146: N/A | G146: N/A | H146: N/A | I146: N/A | J146: N/A | K146: N/A | L146: N/A | M146: N/A | N146: N/A | O146: N/A | P146: N/A | Q146: N/A | R146: N/A | S146: N/A | T146: N/A | U146: N/A | V146: N/A | W146: N/A | X146: N/A | Y146: N/A | Z146: N/A | BB146: Emptied and discharged locally | BC146: N/A | BD146: N/A | BE146: N/A | BF146: N/A | BG146: N/A | BH146: N/A | BI146: N/A | BJ146: N/A | BK146: N/A | BL146: N/A | BM146: N/A | BN146: N/A | BO146: N/A | BP146: N/A | BQ146: N/A | BR146: N/A | BS146: N/A | BT146: N/A | BU146: N/A | BV146: N/A | BW146: N/A | BX146: N/A | BY146: N/A | BZ146: N/A
B147: Emptied and removed offsite | C147: N/A | D147: N/A | E147: N/A | F147: N/A | G147: N/A | H147: N/A | I147: N/A | J147: N/A | K147: N/A | L147: N/A | M147: N/A | N147: N/A | O147: N/A | P147: N/A | Q147: N/A | R147: N/A | S147: N/A | T147: N/A | U147: N/A | V147: N/A | W147: N/A | X147: N/A | Y147: N/A | Z147: N/A | BB147: Emptied and removed offsite | BC147: N/A | BD147: N/A | BE147: N/A | BF147: N/A | BG147: N/A | BH147: N/A | BI147: N/A | BJ147: N/A | BK147: N/A | BL147: N/A | BM147: N/A | BN147: N/A | BO147: N/A | BP147: N/A | BQ147: N/A | BR147: N/A | BS147: N/A | BT147: N/A | BU147: N/A | BV147: N/A | BW147: N/A | BX147: N/A | BY147: N/A | BZ147: N/A
A148: Shared among improved sanitation facilities | B148: Yes | C148: 5.974832422 | D148: 4.904969559 | E148: 1.921225608 | F148: 1.663318492 | G148: 0.4701566789 | H148: 5.773461375 | I148: 1.823106165 | J148: 0.8966216318 | K148: 0.744805316 | L148: 0.396200146 | M148: 5.520719187 | N148: 5.16170508 | O148: 7.125974186 | P148: 3.664687155 | Q148: 3.782197519 | R148: 1.260404151 | S148: 2.355079679 | T148: 1.682557987 | U148: 8.397040875 | V148: 4.5938068 | W148: 3.623587104 | X148: 2.506399734 | Y148: 3.159624859 | Z148: 2.987542107 | BA148: Shared among improved sanitation facilities | BB148: Yes | BC148: N/A | BD148: N/A | BE148: N/A | BF148: N/A | BG148: N/A | BH148: N/A | BI148: N/A | BJ148: N/A | BK148: N/A | BL148: N/A | BM148: N/A | BN148: N/A | BO148: N/A | BP148: N/A | BQ148: N/A | BR148: N/A | BS148: N/A | BT148: N/A | BU148: N/A | BV148: N/A | BW148: N/A | BX148: N/A | BY148: N/A | BZ148: N/A
B149: No | C149: 77.23666217 | D149: 93.54643697 | E149: 97.3692307 | F149: 98.16325308 | G149: 99.39569316 | H149: 93.41099571 | I149: 98.05886338 | J149: 98.8790035 | K149: 99.25519468 | L149: 99.58757293 | M149: 62.34724115 | N149: 81.37108802 | O149: 88.07606595 | P149: 92.7289355 | Q149: 95.47950172 | R149: 95.76835965 | S149: 97.23545447 | T149: 80.03378332 | U149: 76.56750227 | V149: 94.25536031 | W149: 90.58009818 | X149: 79.61276433 | Y149: 96.27792498 | Z149: 95.63918881 | BB149: No | BC149: N/A | BD149: N/A | BE149: N/A | BF149: N/A | BG149: N/A | BH149: N/A | BI149: N/A | BJ149: N/A | BK149: N/A | BL149: N/A | BM149: N/A | BN149: N/A | BO149: N/A | BP149: N/A | BQ149: N/A | BR149: N/A | BS149: N/A | BT149: N/A | BU149: N/A | BV149: N/A | BW149: N/A | BX149: N/A | BY149: N/A | BZ149: N/A
B150: DK/missing | C150: 16.7885054 | D150: 1.548593476 | E150: 0.7095436956 | F150: 0.1734284305 | G150: 0.1341501646 | H150: 0.8155429122 | I150: 0.1180304564 | J150: 0.2243748647 | K150: 0 | L150: 0.01622692115 | M150: 32.13203966 | N150: 13.4672069 | O150: 4.797959867 | P150: 3.606377344 | Q150: 0.7383007621 | R150: 2.971236195 | S150: 0.4094658528 | T150: 18.28365869 | U150: 15.03545685 | V150: 1.150832895 | W150: 5.796314712 | X150: 17.88083593 | Y150: 0.5624501601 | Z150: 1.373269086 | BB150: DK/missing | BC150: N/A | BD150: N/A | BE150: N/A | BF150: N/A | BG150: N/A | BH150: N/A | BI150: N/A | BJ150: N/A | BK150: N/A | BL150: N/A | BM150: N/A | BN150: N/A | BO150: N/A | BP150: N/A | BQ150: N/A | BR150: N/A | BS150: N/A | BT150: N/A | BU150: N/A | BV150: N/A | BW150: N/A | BX150: N/A | BY150: N/A | BZ150: N/A
A151: Shared among all sanitation facilities | B151: Yes | C151: 7.374849946 | D151: 5.292541988 | E151: 1.921225608 | F151: 1.663318492 | G151: 0.4701566789 | H151: 5.78982542 | I151: 1.823106165 | J151: 0.8966216318 | K151: 0.744805316 | L151: 0.396200146 | M151: 9.280535829 | N151: 5.692103902 | O151: 8.308128447 | P151: 3.767963476 | Q151: 3.782197519 | R151: 1.596542341 | S151: 2.356334191 | T151: 2.052779776 | U151: 10.70269135 | V151: 4.635702764 | W151: 3.71707385 | X151: 3.626242739 | Y151: 3.370319635 | Z151: 3.005726075 | BA151: Shared among all sanitation facilities | BB151: Yes | BC151: N/A | BD151: N/A | BE151: N/A | BF151: N/A | BG151: N/A | BH151: N/A | BI151: N/A | BJ151: N/A | BK151: N/A | BL151: N/A | BM151: N/A | BN151: N/A | BO151: N/A | BP151: N/A | BQ151: N/A | BR151: N/A | BS151: N/A | BT151: N/A | BU151: N/A | BV151: N/A | BW151: N/A | BX151: N/A | BY151: N/A | BZ151: N/A
B152: No | C152: 92.51432544 | D152: 94.70745801 | E152: 97.97071123 | F152: 98.25248133 | G152: 99.51912813 | H152: 94.21017458 | I152: 98.1101585 | J152: 98.8790035 | K152: 99.25519468 | L152: 99.58757293 | M152: 90.38388615 | N152: 94.27297924 | O152: 91.69187155 | P152: 96.23203652 | Q152: 96.21780248 | R152: 98.33736917 | S152: 97.52353754 | T152: 97.85972013 | U152: 89.29730865 | V152: 95.30780955 | W152: 96.26220241 | X152: 96.37375726 | Y152: 96.62968037 | Z152: 96.94178671 | BB152: No | BC152: N/A | BD152: N/A | BE152: N/A | BF152: N/A | BG152: N/A | BH152: N/A | BI152: N/A | BJ152: N/A | BK152: N/A | BL152: N/A | BM152: N/A | BN152: N/A | BO152: N/A | BP152: N/A | BQ152: N/A | BR152: N/A | BS152: N/A | BT152: N/A | BU152: N/A | BV152: N/A | BW152: N/A | BX152: N/A | BY152: N/A | BZ152: N/A
A153: Type de toilettes | B153: Chasse connectée à système d'égouts | C153: 13.58965975 | D153: 42.03069124 | E153: 64.36930068 | F153: 74.84049947 | G153: 85.8758813 | H153: 65.7882932 | I153: 80.83866066 | J153: 86.56416305 | K153: 86.6332595 | L153: 91.56801421 | M153: 0.5019896645 | N153: 2.492832703 | O153: 4.077682824 | P153: 5.752237867 | Q153: 13.39070503 | R153: 62.3355004 | S153: 87.51566376 | T153: 29.35447819 | U153: 27.69494218 | V153: 53.05913346 | W153: 40.30217585 | X153: 15.30585652 | Y153: 31.60312298 | Z153: 46.38684028 | BA153: Type de toilettes | BB153: Chasse connectée à système d'égouts | BC153: 1035.814284 | BD153: 3207.017259 | BE153: 4912.511043 | BF153: 5704.072524 | BG153: 6550.038987 | BH153: 3315.139783 | BI153: 4074.532262 | BJ153: 4359.895577 | BK153: 4369.66754 | BL153: 4611.904382 | BM153: 12.98782206 | BN153: 64.473364 | BO153: 105.5049359 | BP153: 148.8712473 | BQ153: 346.4771839 | BR153: 5211.485592 | BS153: 8237.283659 | BT153: 492.3432575 | BU153: 562.7395151 | BV153: 2935.52321 | BW153: 1670.83871 | BX153: 191.4829573 | BY153: 1167.975611 | BZ153: 939.7815853
B154: Chasse connectée à fosse septique | C154: 19.92161927 | D154: 17.10457045 | E154: 13.51628396 | F154: 12.30706862 | G154: 8.63502018 | H154: 14.7431052 | I154: 10.96367271 | J154: 9.398304076 | K154: 9.338095775 | L154: 6.136083223 | M154: 19.87687714 | N154: 21.18866179 | O154: 22.6447275 | P154: 21.27527679 | Q154: 27.20715658 | R154: 16.19939892 | S154: 5.657090444 | T154: 24.89143085 | U154: 5.825679717 | V154: 3.85030135 | W154: 5.828773951 | X154: 22.00420258 | Y154: 45.72775726 | Z154: 30.06502116 | BB154: Chasse connectée à fosse septique | BC154: 1518.441093 | BD154: 1305.109458 | BE154: 1031.530458 | BF154: 938.0003139 | BG154: 658.6216988 | BH154: 742.9202397 | BI154: 552.6048773 | BJ154: 473.3555195 | BK154: 471.0012556 | BL154: 309.0492827 | BM154: 514.2682441 | BN154: 548.0128298 | BO154: 585.903962 | BP154: 550.6164845 | BQ154: 703.9703268 | BR154: 1354.331537 | BS154: 532.4653516 | BT154: 417.4875149 | BU154: 118.3732451 | BV154: 213.0198562 | BW154: 241.6480238 | BX154: 275.2821952 | BY154: 1689.988209 | BZ154: 609.1070889
B155: Chasse reliée à des latrines | C155: 19.30421866 | D155: 21.73488858 | E155: 13.71866119 | F155: 9.150030547 | G155: 4.57065097 | H155: 12.04840276 | I155: 6.256971653 | J155: 3.258515931 | K155: 3.514193377 | L155: 1.655328983 | M155: 16.14859131 | N155: 22.910867 | O155: 32.3044497 | P155: 37.48857747 | Q155: 40.9322184 | R155: 4.889560899 | S155: 6.023674449 | T155: 26.55330437 | U155: 0.3467498057 | V155: 35.51205112 | W155: 23.02411584 | X155: 30.56422542 | Y155: 1.31289467 | Z155: 21.93835512 | BB155: Chasse reliée à des latrines | BC155: 1471.382345 | BD155: 1658.411051 | BE155: 1046.975404 | BF155: 697.3822757 | BG155: 348.618746 | BH155: 607.1314113 | BI155: 315.3717869 | BJ155: 164.1185994 | BK155: 177.2512869 | BL155: 83.37211479 | BM155: 417.8074674 | BN155: 592.5550742 | BO155: 835.8371754 | BP155: 970.2260956 | BQ155: 1059.09881 | BR155: 408.7859407 | BS155: 566.9695341 | BT155: 445.3610208 | BU155: 7.045684235 | BV155: 1964.722066 | BW155: 954.528712 | BX155: 382.3718238 | BY155: 48.52143742 | BZ155: 444.4636028
B156: Chasse reliée à autre chose | C156: 0.2993499249 | D156: 0.09944679658 | E156: 0.3455442601 | F156: 0.0647214345 | G156: 0.1234349728 | H156: 0.02294448799 | I156: 0 | J156: 0 | K156: 0 | L156: 0 | M156: 0.2641614777 | N156: 0.4069694094 | O156: 0.4155047443 | P156: 0.9513312267 | Q156: 0.6661129225 | R156: 0 | S156: 0.05240808194 | T156: 0 | U156: 0 | V156: 0.5739538062 | W156: 0.7954367061 | X156: 0.1166414162 | Y156: 0 | Z156: 0 | BB156: Chasse reliée à autre chose | BC156: 22.81668077 | BD156: 7.587969258 | BE156: 26.37111132 | BF156: 4.932833945 | BG156: 9.414795775 | BH156: 1.156196357 | BI156: 0 | BJ156: 0 | BK156: 0 | BL156: 0 | BM156: 6.834567539 | BN156: 10.52565093 | BO156: 10.75066485 | BP156: 24.62100309 | BQ156: 17.2353083 | BR156: 0 | BS156: 4.932833945 | BT156: 0 | BU156: 0 | BV156: 31.75428263 | BW156: 32.97703938 | BX156: 1.459235116 | BY156: 0 | BZ156: 0
B157: Chasse reliée à endroit inconnu / Pas sûr / NSP où | C157: 0.04142624397 | D157: 0 | E157: 0.185663995 | F157: 0 | G157: 0 | H157: 0 | I157: 0.2811213233 | J157: 0 | K157: 0 | L157: 0 | M157: 0.02782429561 | N157: 0.09425063518 | O157: 0 | P157: 0 | Q157: 0 | R157: 0.1694830803 | S157: 0 | T157: 0 | U157: 0 | V157: 0 | W157: 0.05879839184 | X157: 0.05754309865 | Y157: 0 | Z157: 0 | BB157: Chasse reliée à endroit inconnu / Pas sûr / NSP où | BC157: 3.157540074 | BD157: 0 | BE157: 14.16943195 | BF157: 0 | BG157: 0 | BH157: 0 | BI157: 14.16943195 | BJ157: 0 | BK157: 0 | BL157: 0 | BM157: 0.719889324 | BN157: 2.43765075 | BO157: 0 | BP157: 0 | BQ157: 0 | BR157: 14.16943195 | BS157: 0 | BT157: 0 | BU157: 0 | BV157: 0 | BW157: 2.43765075 | BX157: 0.719889324 | BY157: 0 | BZ157: 0
B158: Latrines améliorées ventilées (LAV) | C158: 6.020125554 | D158: 3.73351576 | E158: 1.330209918 | F158: 0.9799558292 | G158: 0.3821149567 | H158: 2.303415371 | I158: 0.5289490811 | J158: 0.4050265304 | K158: 0.1996962796 | L158: 0.4695306948 | M158: 6.432808665 | N158: 7.148784065 | O158: 7.222145512 | P158: 4.164323459 | Q158: 4.107009485 | R158: 0.4798515996 | S158: 0.1289086745 | T158: 0.3319681828 | U158: 4.185215247 | V158: 1.422670576 | W158: 10.2185062 | X158: 0 | Y158: 8.064125617 | Z158: 0.2886840232 | BB158: Latrines améliorées ventilées (LAV) | BC158: 458.8585849 | BD158: 284.8739606 | BE158: 101.5184388 | BF158: 74.68869342 | BG158: 29.1451782 | BH158: 116.0714705 | BI158: 26.66075957 | BJ158: 20.39958935 | BK158: 10.07241741 | BL158: 23.64833056 | BM158: 166.4340527 | BN158: 184.8925347 | BO158: 186.8639695 | BP158: 107.7751028 | BQ158: 106.2666288 | BR158: 40.11742396 | BS158: 12.13334016 | BT158: 5.567882878 | BU158: 85.04029301 | BV158: 78.70996422 | BW158: 423.6365744 | BX158: 0 | BY158: 298.0307373 | BZ158: 5.848639988
B159: Latrines à fosse avec dalle | C159: 24.43310348 | D159: 13.84774049 | E159: 6.237465242 | F159: 2.633217283 | G159: 0.4128976243 | H159: 4.301240569 | I159: 1.017348909 | J159: 0.3739904113 | K159: 0.3147550706 | L159: 0.1710428905 | M159: 25.13814409 | N159: 32.72978047 | O159: 28.9530346 | P159: 27.71320707 | Q159: 13.62460974 | R159: 13.02050853 | S159: 0.3852611249 | T159: 0.656879044 | U159: 46.91195619 | V159: 5.005010601 | W159: 14.79151759 | X159: 14.18733645 | Y159: 12.72964931 | Z159: 0 | BB159: Latrines à fosse avec dalle | BC159: 1862.309878 | BD159: 1056.60748 | BE159: 476.0284259 | BF159: 200.6943094 | BG159: 31.4930746 | BH159: 216.7439377 | BI159: 51.27770446 | BJ159: 18.8364224 | BK159: 15.87583132 | BL159: 8.614727128 | BM159: 650.3913633 | BN159: 846.5064851 | BO159: 749.1235071 | BP159: 717.2338485 | BQ159: 352.5293407 | BR159: 1088.564176 | BS159: 36.26213905 | BT159: 11.01739797 | BU159: 953.2141755 | BV159: 276.9047255 | BW159: 613.2234711 | BX159: 177.4897822 | BY159: 470.4573006 | BZ159: 0
B160: Latrines à fosse sans dalle / trou ouvert | C160: 5.211704292 | D160: 0.9382460408 | E160: 0.2400223193 | F160: 0 | G160: 0 | H160: 0.2961815135 | I160: 0 | J160: 0 | K160: 0 | L160: 0 | M160: 8.522123077 | N160: 5.64883965 | O160: 2.054546284 | P160: 2.027590538 | Q160: 0 | R160: 2.075206628 | S160: 0.09312394841 | T160: 0.1043835783 | U160: 6.982159402 | V160: 0.4824187169 | W160: 2.367916775 | X160: 0.6947940358 | Y160: 0.4333195908 | Z160: 0.5774785612 | BB160: Latrines à fosse sans dalle / trou ouvert | BC160: 397.2400966 | BD160: 71.58985869 | BE160: 18.31792922 | BF160: 0 | BG160: 0 | BH160: 14.9248912 | BI160: 0 | BJ160: 0 | BK160: 0 | BL160: 0 | BM160: 220.490233 | BN160: 146.0987311 | BO160: 53.15881181 | BP160: 52.47521735 | BQ160: 0 | BR160: 173.4951892 | BS160: 8.765155237 | BT160: 1.750756755 | BU160: 141.8720057 | BV160: 26.69005783 | BW160: 98.16857098 | BX160: 8.692177175 | BY160: 16.01445256 | BZ160: 11.69951897
B161: Seaux | C161: 0.02808488898 | D161: 0 | E161: 0 | F161: 0 | G161: 0 | H161: 0.01596318488 | I161: 0 | J161: 0 | K161: 0 | L161: 0 | M161: 0.05164714425 | N161: 0 | O161: 0 | P161: 0 | Q161: 0 | R161: 0 | S161: 0 | T161: 0 | U161: 0.06576289419 | V161: 0 | W161: 0 | X161: 0.06429841703 | Y161: 0 | Z161: 0 | BB161: Seaux | BC161: 2.140651769 | BD161: 0 | BE161: 0 | BF161: 0 | BG161: 0 | BH161: 0.8044013104 | BI161: 0 | BJ161: 0 | BK161: 0 | BL161: 0 | BM161: 1.336250458 | BN161: 0 | BO161: 0 | BP161: 0 | BQ161: 0 | BR161: 0 | BS161: 0 | BT161: 0 | BU161: 1.336250458 | BV161: 0 | BW161: 0 | BX161: 0.8044013104 | BY161: 0 | BZ161: 0
B162: Toilettes / Latrines suspendues | C162: 0.04199103687 | D162: 0 | E162: 0 | F162: 0.02450681546 | G162: 0 | H162: 0 | I162: 0 | J162: 0 | K162: 0 | L162: 0 | M162: 0 | N162: 0.1237492894 | O162: 0 | P162: 0 | Q162: 0.07218783958 | R162: 0 | S162: 0 | T162: 0 | U162: 0 | V162: 0 | W162: 0 | X162: 0.4051345189 | Y162: 0 | Z162: 0 | BB162: Toilettes / Latrines suspendues | BC162: 3.200589021 | BD162: 0 | BE162: 0 | BF162: 1.867820949 | BG162: 0 | BH162: 0 | BI162: 0 | BJ162: 0 | BK162: 0 | BL162: 0 | BM162: 0 | BN162: 3.200589021 | BO162: 0 | BP162: 0 | BQ162: 1.867820949 | BR162: 0 | BS162: 0 | BT162: 0 | BU162: 0 | BV162: 0 | BW162: 0 | BX162: 5.06840997 | BY162: 0 | BZ162: 0
B163: Pas de toilettes ou brousse ou champ | C163: 10.97793478 | D163: 0.439851495 | E163: 0 | F163: 0 | G163: 0 | H163: 0.2826345127 | I163: 0 | J163: 0 | K163: 0 | L163: 0 | M163: 23.03583314 | N163: 7.255264995 | O163: 2.327908839 | P163: 0.4709579038 | Q163: 0 | R163: 0.830489936 | S163: 0.05323995625 | T163: 18.03514401 | U163: 7.987534557 | V163: 0.03799415297 | W163: 2.515062917 | X163: 16.59996754 | Y163: 0.1291305693 | Z163: 0.6049775403 | BB163: Pas de toilettes ou brousse ou champ | BC163: 836.7466046 | BD163: 33.56145936 | BE163: 0 | BF163: 0 | BG163: 0 | BH163: 14.24224389 | BI163: 0 | BJ163: 0 | BK163: 0 | BL163: 0 | BM163: 595.9989276 | BN163: 187.6465036 | BO163: 60.23172555 | BP163: 12.1886633 | BQ163: 0 | BR163: 69.43212628 | BS163: 5.011132897 | BT163: 302.4915482 | BU163: 162.3004408 | BV163: 2.102045598 | BW163: 104.2689232 | BX163: 207.672852 | BY163: 4.772356063 | BZ163: 12.25663892
B164: Manquant | C164: 0.130782123 | D164: 0.07104914345 | E164: 0.05684843713 | F164: 0 | G164: 0 | H164: 0.1978192131 | I164: 0.1132756736 | J164: 0 | K164: 0 | L164: 0 | M164: 0 | N164: 0 | O164: 0 | P164: 0.1564976756 | Q164: 0 | R164: 0 | S164: 0.09062955693 | T164: 0.0724117732 | U164: 0 | V164: 0.05646621893 | W164: 0.09769578952 | X164: 0 | Y164: 0 | Z164: 0.1386433086 | BB164: Manquant | BC164: 9.968313679 | BD164: 5.421177301 | BE164: 4.338536729 | BF164: 0 | BG164: 0 | BH164: 9.968313679 | BI164: 5.709463553 | BJ164: 0 | BK164: 0 | BL164: 0 | BM164: 0 | BN164: 0 | BO164: 0 | BP164: 4.050250477 | BQ164: 0 | BR164: 0 | BS164: 8.530374293 | BT164: 1.214514803 | BU164: 0 | BV164: 3.124021926 | BW164: 4.050250477 | BX164: 0 | BY164: 0 | BZ164: 2.808866211
BB165: Total | BC165: 7622.076662 | BD165: 7630.179673 | BE165: 7631.76078 | BF165: 7621.638771 | BG165: 7627.33248 | BH165: 5039.102888 | BI165: 5040.326286 | BJ165: 5036.605708 | BK165: 5043.868331 | BL165: 5036.588837 | BM165: 2587.268818 | BN165: 2586.349413 | BO165: 2587.374752 | BP165: 2588.057913 | BQ165: 2587.44542 | BR165: 8360.381416 | BS165: 9412.353521 | BT165: 1677.233894 | BU165: 2031.92161 | BV165: 5532.55023 | BW165: 4145.777926 | BX165: 1251.043723 | BY165: 3695.760104 | BZ165: 2025.965941
A208: =A1026 -> Tunisia
A209: =A1034 -> 2012
A210: Access to hygiene facilities
A211: by wealth quintile and sub-national region
A212: Notes:
A213: WHO/UNICEF JMP customised wealth index excludes water,
A214: sanitation and hygiene assets.
A215: Survey used for analysis: | B215: =A1025 -> MICS12
A220: Access to handwashing | C220: NATIONAL wealth index quintile | H220: URBAN wealth index quintile | M220: RURAL wealth index quintile | R220: SUB-REGIONS: | BA220: Raw numbers of respondents: | BB220: Access to handwashing | BC220: NATIONAL wealth index quintile | BH220: URBAN wealth index quintile | BM220: RURAL wealth index quintile | BR220: SUB-REGIONS:
A221: Weighted percentage (used in graphs) | C221: Poorest | D221: Poor | E221: Middle | F221: Rich | G221: Richest | H221: Poorest | I221: Poor | J221: Middle | K221: Rich | L221: Richest | M221: Poorest | N221: Poor | O221: Middle | P221: Rich | Q221: Richest | R221: Centre Est | S221: District Tunis | T221: Kairouan | U221: Kasserine | V221: Nord Est | W221: Nord Ouest | X221: Sidi Bouzid | Y221: Sud Est | Z221: Sud Ouest | BA221: Hygiene data, raw numbers (weighted) | BC221: Poorest | BD221: Poor | BE221: Middle | BF221: Rich | BG221: Richest | BH221: Poorest | BI221: Poor | BJ221: Middle | BK221: Rich | BL221: Richest | BM221: Poorest | BN221: Poor | BO221: Middle | BP221: Rich | BQ221: Richest | BR221: Centre Est | BS221: District Tunis | BT221: Kairouan | BU221: Kasserine | BV221: Nord Est | BW221: Nord Ouest | BX221: Sidi Bouzid | BY221: Sud Est | BZ221: Sud Ouest
A222: Hygiene ladder | B222: Basic | C222: 56.44924074 | D222: 83.05527303 | E222: 94.53887001 | F222: 97.29700613 | G222: 98.59835703 | H222: 89.35311378 | I222: 96.22023558 | J222: 97.13714424 | K222: 97.88751289 | L222: 99.0812152 | M222: 39.36504056 | N222: 57.07670567 | O222: 64.32056161 | P222: 78.89226642 | Q222: 94.39930456 | R222: 86.40933426 | S222: 98.88392879 | T222: 55.97176264 | U222: 76.61049373 | V222: 89.76830955 | W222: 77.47946501 | X222: 44.71710143 | Y222: 87.56887408 | Z222: 85.53974992 | BA222: Hygiene ladder | BB222: Basic | BC222: 3977.065378 | BD222: 5967.509397 | BE222: 6565.074871 | BF222: 6641.919506 | BG222: 6775.009541 | BH222: 4183.665762 | BI222: 4317.732699 | BJ222: 4388.340544 | BK222: 4447.844318 | BL222: 4421.868367 | BM222: 929.5155922 | BN222: 1399.567484 | BO222: 1559.386333 | BP222: 1960.818063 | BQ222: 2317.839529 | BR222: 6052.764208 | BS222: 8628.852726 | BT222: 843.8531726 | BU222: 1397.856427 | BV222: 4730.429426 | BW222: 3048.586575 | BX222: 545.4651656 | BY222: 3124.821559 | BZ222: 1553.949433
B223: Limited | C223: 23.23605777 | D223: 10.36977495 | E223: 3.136024352 | F223: 1.579013167 | G223: 0.4730404687 | H223: 7.464326118 | I223: 2.811303936 | J223: 1.247750992 | K223: 0.9721676143 | L223: 0.1308985221 | M223: 32.12066103 | N223: 20.63436319 | O223: 19.95660955 | P223: 12.94859109 | Q223: 3.58772433 | R223: 3.845624391 | S223: 0.7319171989 | T223: 17.68513084 | U223: 1.198679817 | V223: 6.526713581 | W223: 17.38604043 | X223: 47.00464081 | Y223: 7.308875543 | Z223: 14.10627221 | BB223: Limited | BC223: 1637.069333 | BD223: 745.0668353 | BE223: 217.7753411 | BF223: 107.7903501 | BG223: 32.50412872 | BH223: 349.492528 | BI223: 126.1528706 | BJ223: 56.36933543 | BK223: 44.17366498 | BL223: 5.841834225 | BM223: 758.456103 | BN223: 505.9714543 | BO223: 483.827619 | BP223: 321.8291533 | BQ223: 88.09142514 | BR223: 269.3766578 | BS223: 63.86887934 | BT223: 266.6282615 | BU223: 21.87144613 | BV223: 343.931596 | BW223: 684.0889964 | BX223: 573.368876 | BY223: 260.8110714 | BZ223: 256.2602033
B224: No facility | C224: 20.31470149 | D224: 6.574952029 | E224: 2.325105641 | F224: 1.123980702 | G224: 0.928602505 | H224: 3.182560106 | I224: 0.9684604894 | J224: 1.615104768 | K224: 1.140319495 | L224: 0.787886275 | M224: 28.51429841 | N224: 22.28893114 | O224: 15.72282885 | P224: 8.159142487 | Q224: 2.012971107 | R224: 9.745041345 | S224: 0.384154007 | T224: 26.34310652 | U224: 22.19082645 | V224: 3.704976872 | W224: 5.134494559 | X224: 8.278257766 | Y224: 5.122250381 | Z224: 0.3539778685 | BB224: No facility | BC224: 1431.248586 | BD224: 472.4093556 | BE224: 161.4626091 | BF224: 76.72784237 | BG224: 63.80725826 | BH224: 149.0129128 | BI224: 43.45815096 | BJ224: 72.96518537 | BK224: 51.81420427 | BL224: 35.16236038 | BM224: 673.3000802 | BN224: 546.5428131 | BO224: 381.1839294 | BP224: 202.7903963 | BQ224: 49.42561837 | BR224: 682.6165017 | BS224: 33.5222153 | BT224: 397.1594418 | BU224: 404.900006 | BV224: 195.2374029 | BW224: 202.0270943 | BX224: 100.979292 | BY224: 182.7831931 | BZ224: 6.430504046
A225: Lieu où les membres du ménage se lavent les mains la plupart du temps | B225: Observé | C225: 73.65623517 | D225: 87.97402577 | E225: 88.87660932 | F225: 88.55982366 | G225: 89.25156583 | H225: 89.95962953 | I225: 88.16662489 | J225: 88.24812061 | K225: 89.05898585 | L225: 87.91089255 | M225: 65.24145012 | N225: 73.67677889 | O225: 78.96861288 | P225: 88.19923253 | Q225: 92.98480022 | R225: 75.62024448 | S225: 92.35438922 | T225: 66.2090981 | U225: 69.87119317 | V225: 91.71830007 | W225: 90.03558892 | X225: 89.43204947 | Y225: 91.60856049 | Z225: 89.35044757 | BA225: Observed handwashing place | BB225: Fixed | BC225: N/A | BD225: N/A | BE225: N/A | BF225: N/A | BG225: N/A | BH225: N/A | BI225: N/A | BJ225: N/A | BK225: N/A | BL225: N/A | BM225: N/A | BN225: N/A | BO225: N/A | BP225: N/A | BQ225: N/A | BR225: N/A | BS225: N/A | BT225: N/A | BU225: N/A | BV225: N/A | BW225: N/A | BX225: N/A | BY225: N/A | BZ225: N/A
B226: Pas dans le logement/terrain/jardin/cour | C226: 18.40365296 | D226: 5.492355753 | E226: 1.989517299 | F226: 0.4879256284 | G226: 0.6057268543 | H226: 1.899637848 | I226: 0.7844035556 | J226: 0.7475705775 | K226: 0.7682789643 | L226: 0.4107236557 | M226: 25.69738152 | N226: 20.52126972 | O226: 14.56542621 | P226: 7.835620496 | Q226: 1.91020912 | R226: 7.257461041 | S226: 0.2769959 | T226: 23.63825563 | U226: 19.73394799 | V226: 3.074259859 | W226: 4.487929904 | X226: 7.288162232 | Y226: 4.729525971 | Z226: 0.229817568 | BB226: Mobile | BC226: N/A | BD226: N/A | BE226: N/A | BF226: N/A | BG226: N/A | BH226: N/A | BI226: N/A | BJ226: N/A | BK226: N/A | BL226: N/A | BM226: N/A | BN226: N/A | BO226: N/A | BP226: N/A | BQ226: N/A | BR226: N/A | BS226: N/A | BT226: N/A | BU226: N/A | BV226: N/A | BW226: N/A | BX226: N/A | BY226: N/A | BZ226: N/A
B227: Pas de permission de voir | C227: 7.566092433 | D227: 5.83464747 | E227: 8.891219605 | F227: 10.38433557 | G227: 9.911873568 | H227: 7.083238691 | I227: 10.79476182 | J227: 10.22883556 | K227: 9.913742998 | L227: 11.39096905 | M227: 8.734965637 | N227: 5.191396835 | O227: 6.298927928 | P227: 3.965146973 | Q227: 5.104990659 | R227: 16.06371895 | S227: 7.28945952 | T227: 10.11147095 | U227: 10.2018567 | V227: 4.752813704 | W227: 5.09133061 | X227: 2.496346783 | Y227: 3.445685778 | Z227: 10.33214808 | BA227: Water / Soap | BB227: Water and soap | BC227: N/A | BD227: N/A | BE227: N/A | BF227: N/A | BG227: N/A | BH227: N/A | BI227: N/A | BJ227: N/A | BK227: N/A | BL227: N/A | BM227: N/A | BN227: N/A | BO227: N/A | BP227: N/A | BQ227: N/A | BR227: N/A | BS227: N/A | BT227: N/A | BU227: N/A | BV227: N/A | BW227: N/A | BX227: N/A | BY227: N/A | BZ227: N/A
B228: Autre raison | C228: 0.3740194386 | D228: 0.6989710032 | E228: 0.1261492394 | F228: 0.5187849318 | G228: 0.2308337445 | H228: 1.05749393 | I228: 0.07780552563 | J228: 0.7011270099 | K228: 0.2589921869 | L228: 0.2874147376 | M228: 0.3262027158 | N228: 0.6105545553 | O228: 0.1670329845 | P228: 0 | Q228: 0 | R228: 0.9074356027 | S228: 0.07915535615 | T228: 0.04117532202 | U228: 0.1930021484 | V228: 0.4546263642 | W228: 0.3851505614 | X228: 0.7834415121 | Y228: 0.2162277565 | Z228: 0.08758678298 | BB228: Water only | BC228: N/A | BD228: N/A | BE228: N/A | BF228: N/A | BG228: N/A | BH228: N/A | BI228: N/A | BJ228: N/A | BK228: N/A | BL228: N/A | BM228: N/A | BN228: N/A | BO228: N/A | BP228: N/A | BQ228: N/A | BR228: N/A | BS228: N/A | BT228: N/A | BU228: N/A | BV228: N/A | BW228: N/A | BX228: N/A | BY228: N/A | BZ228: N/A
B229: Manquant | C229: 0 | D229: 0 | E229: 0.1165045349 | F229: 0.04913021221 | G229: 0 | H229: 0 | I229: 0.1764042028 | J229: 0.07434624665 | K229: 0 | L229: 0 | M229: 0 | N229: 0 | O229: 0 | P229: 0 | Q229: 0 | R229: 0.151139931 | S229: 0 | T229: 0 | U229: 0 | V229: 0 | W229: 0 | X229: 0 | Y229: 0 | Z229: 0 | BB229: Soap only | BC229: N/A | BD229: N/A | BE229: N/A | BF229: N/A | BG229: N/A | BH229: N/A | BI229: N/A | BJ229: N/A | BK229: N/A | BL229: N/A | BM229: N/A | BN229: N/A | BO229: N/A | BP229: N/A | BQ229: N/A | BR229: N/A | BS229: N/A | BT229: N/A | BU229: N/A | BV229: N/A | BW229: N/A | BX229: N/A | BY229: N/A | BZ229: N/A
BB230: Neither | BC230: N/A | BD230: N/A | BE230: N/A | BF230: N/A | BG230: N/A | BH230: N/A | BI230: N/A | BJ230: N/A | BK230: N/A | BL230: N/A | BM230: N/A | BN230: N/A | BO230: N/A | BP230: N/A | BQ230: N/A | BR230: N/A | BS230: N/A | BT230: N/A | BU230: N/A | BV230: N/A | BW230: N/A | BX230: N/A | BY230: N/A | BZ230: N/A
BA231: Lieu où les membres du ménage se lavent les mains la plupart du temps | BB231: Observé | BC231: 5614.134711 | BD231: 6712.576232 | BE231: 6782.850212 | BF231: 6749.709856 | BG231: 6807.51367 | BH231: 4533.15829 | BI231: 4443.88557 | BJ231: 4444.70988 | BK231: 4492.017983 | BL231: 4427.710201 | BM231: 1687.971695 | BN231: 1905.538939 | BO231: 2043.213952 | BP231: 2282.647217 | BQ231: 2405.930954 | BR231: 6322.140866 | BS231: 8692.721606 | BT231: 1110.481434 | BU231: 1419.727873 | BV231: 5074.361022 | BW231: 3732.675572 | BX231: 1118.834042 | BY231: 3385.632631 | BZ231: 1810.209636
BB232: Pas dans le logement/terrain/jardin/cour | BC232: 1402.740537 | BD232: 419.0766122 | BE232: 151.8352009 | BF232: 37.18792887 | BG232: 46.2008011 | BH232: 95.72470564 | BI232: 39.5364986 | BJ232: 37.65218237 | BK232: 38.75097937 | BL232: 20.6864618 | BM232: 664.8603391 | BN232: 530.7517389 | BO232: 376.8621602 | BP232: 202.7903963 | BQ232: 49.42561837 | BR232: 606.7514242 | BS232: 26.07183335 | BT232: 396.4688354 | BU232: 400.9783537 | BV232: 170.0849709 | BW232: 186.0596073 | BX232: 91.17809616 | BY232: 174.791934 | BZ232: 4.656025653
BB233: Pas de permission de voir | BC233: 576.6933656 | BD233: 445.1940853 | BE233: 678.5566107 | BF233: 791.4565458 | BG233: 756.011552 | BH233: 356.9316855 | BI233: 544.0912176 | BJ233: 515.1861154 | BK233: 500.0361435 | BL233: 573.7162759 | BM233: 225.9970421 | BN233: 134.2676616 | BO233: 162.9768709 | BP233: 102.6203 | BQ233: 132.088847 | BR233: 1342.988174 | BS233: 686.1096998 | BT233: 169.5930179 | BU233: 207.2937308 | BV233: 262.9518055 | BW233: 211.0752606 | BX233: 31.23038975 | BY233: 127.3442803 | BZ233: 209.3258011
BB234: Autre raison | BC234: 28.50804834 | BD234: 53.3327434 | BE234: 9.627408173 | BF234: 39.5399135 | BG234: 17.60645717 | BH234: 53.28820717 | BI234: 3.92165236 | BJ234: 35.313003 | BK234: 13.0632249 | BL234: 14.47589859 | BM234: 8.439741149 | BN234: 15.79107416 | BO234: 4.321769269 | BP234: 0 | BQ234: 0 | BR234: 75.86507749 | BS234: 7.450381951 | BT234: 0.6906064567 | BU234: 3.92165236 | BV234: 25.15243196 | BW234: 15.96748696 | BX234: 9.801195863 | BY234: 7.991259159 | BZ234: 1.774478392
BB235: Manquant | BC235: 0 | BD235: 0 | BE235: 8.891347404 | BF235: 3.744527302 | BG235: 0 | BH235: 0 | BI235: 8.891347404 | BJ235: 3.744527302 | BK235: 0 | BL235: 0 | BM235: 0 | BN235: 0 | BO235: 0 | BP235: 0 | BQ235: 0 | BR235: 12.63587471 | BS235: 0 | BT235: 0 | BU235: 0 | BV235: 0 | BW235: 0 | BX235: 0 | BY235: 0 | BZ235: 0
BB236: Total | BC236: 7622.076662 | BD236: 7630.179673 | BE236: 7631.76078 | BF236: 7621.638771 | BG236: 7627.33248 | BH236: 5039.102888 | BI236: 5040.326286 | BJ236: 5036.605708 | BK236: 5043.868331 | BL236: 5036.588837 | BM236: 2587.268818 | BN236: 2586.349413 | BO236: 2587.374752 | BP236: 2588.057913 | BQ236: 2587.44542 | BR236: 8360.381416 | BS236: 9412.353521 | BT236: 1677.233894 | BU236: 2031.92161 | BV236: 5532.55023 | BW236: 4145.777926 | BX236: 1251.043723 | BY236: 3695.760104 | BZ236: 2025.965941
BA259: Raw numbers of respondents: | BB259: Menstrual health and hygiene | BC259: NATIONAL wealth index quintile | BH259: URBAN wealth index quintile | BM259: RURAL wealth index quintile | BR259: SUB-REGIONS:
BA260: MHH data, raw numbers (weighted) | BC260: Poorest | BD260: Poor | BE260: Middle | BF260: Rich | BG260: Richest | BH260: Poorest | BI260: Poor | BJ260: Middle | BK260: Rich | BL260: Richest | BM260: Poorest | BN260: Poor | BO260: Middle | BP260: Rich | BQ260: Richest | BR260: Centre Est | BS260: District Tunis | BT260: Kairouan | BU260: Kasserine | BV260: Nord Est | BW260: Nord Ouest | BX260: Sidi Bouzid | BY260: Sud Est | BZ260: Sud Ouest
BA261: Private place to wash and change | BB261: Yes | BC261: N/A | BD261: N/A | BE261: N/A | BF261: N/A | BG261: N/A | BH261: N/A | BI261: N/A | BJ261: N/A | BK261: N/A | BL261: N/A | BM261: N/A | BN261: N/A | BO261: N/A | BP261: N/A | BQ261: N/A | BR261: N/A | BS261: N/A | BT261: N/A | BU261: N/A | BV261: N/A | BW261: N/A | BX261: N/A | BY261: N/A | BZ261: N/A
BB262: No | BC262: N/A | BD262: N/A | BE262: N/A | BF262: N/A | BG262: N/A | BH262: N/A | BI262: N/A | BJ262: N/A | BK262: N/A | BL262: N/A | BM262: N/A | BN262: N/A | BO262: N/A | BP262: N/A | BQ262: N/A | BR262: N/A | BS262: N/A | BT262: N/A | BU262: N/A | BV262: N/A | BW262: N/A | BX262: N/A | BY262: N/A | BZ262: N/A
BB263: DK/not sure/missing | BC263: N/A | BD263: N/A | BE263: N/A | BF263: N/A | BG263: N/A | BH263: N/A | BI263: N/A | BJ263: N/A | BK263: N/A | BL263: N/A | BM263: N/A | BN263: N/A | BO263: N/A | BP263: N/A | BQ263: N/A | BR263: N/A | BS263: N/A | BT263: N/A | BU263: N/A | BV263: N/A | BW263: N/A | BX263: N/A | BY263: N/A | BZ263: N/A
BA264: Use of menstrual materials | BB264: Materials reusable | BC264: N/A | BD264: N/A | BE264: N/A | BF264: N/A | BG264: N/A | BH264: N/A | BI264: N/A | BJ264: N/A | BK264: N/A | BL264: N/A | BM264: N/A | BN264: N/A | BO264: N/A | BP264: N/A | BQ264: N/A | BR264: N/A | BS264: N/A | BT264: N/A | BU264: N/A | BV264: N/A | BW264: N/A | BX264: N/A | BY264: N/A | BZ264: N/A
BB265: Materials not reusable | BC265: N/A | BD265: N/A | BE265: N/A | BF265: N/A | BG265: N/A | BH265: N/A | BI265: N/A | BJ265: N/A | BK265: N/A | BL265: N/A | BM265: N/A | BN265: N/A | BO265: N/A | BP265: N/A | BQ265: N/A | BR265: N/A | BS265: N/A | BT265: N/A | BU265: N/A | BV265: N/A | BW265: N/A | BX265: N/A | BY265: N/A | BZ265: N/A
BB266: No materials used | BC266: N/A | BD266: N/A | BE266: N/A | BF266: N/A | BG266: N/A | BH266: N/A | BI266: N/A | BJ266: N/A | BK266: N/A | BL266: N/A | BM266: N/A | BN266: N/A | BO266: N/A | BP266: N/A | BQ266: N/A | BR266: N/A | BS266: N/A | BT266: N/A | BU266: N/A | BV266: N/A | BW266: N/A | BX266: N/A | BY266: N/A | BZ266: N/A
BB267: DK/not sure/missing | BC267: N/A | BD267: N/A | BE267: N/A | BF267: N/A | BG267: N/A | BH267: N/A | BI267: N/A | BJ267: N/A | BK267: N/A | BL267: N/A | BM267: N/A | BN267: N/A | BO267: N/A | BP267: N/A | BQ267: N/A | BR267: N/A | BS267: N/A | BT267: N/A | BU267: N/A | BV267: N/A | BW267: N/A | BX267: N/A | BY267: N/A | BZ267: N/A
BA268: Use of menstrual materials with private place to wash and change | BB268: Materials reusable | BC268: N/A | BD268: N/A | BE268: N/A | BF268: N/A | BG268: N/A | BH268: N/A | BI268: N/A | BJ268: N/A | BK268: N/A | BL268: N/A | BM268: N/A | BN268: N/A | BO268: N/A | BP268: N/A | BQ268: N/A | BR268: N/A | BS268: N/A | BT268: N/A | BU268: N/A | BV268: N/A | BW268: N/A | BX268: N/A | BY268: N/A | BZ268: N/A
BB269: Materials not reusable | BC269: N/A | BD269: N/A | BE269: N/A | BF269: N/A | BG269: N/A | BH269: N/A | BI269: N/A | BJ269: N/A | BK269: N/A | BL269: N/A | BM269: N/A | BN269: N/A | BO269: N/A | BP269: N/A | BQ269: N/A | BR269: N/A | BS269: N/A | BT269: N/A | BU269: N/A | BV269: N/A | BW269: N/A | BX269: N/A | BY269: N/A | BZ269: N/A
BB270: No materials used | BC270: N/A | BD270: N/A | BE270: N/A | BF270: N/A | BG270: N/A | BH270: N/A | BI270: N/A | BJ270: N/A | BK270: N/A | BL270: N/A | BM270: N/A | BN270: N/A | BO270: N/A | BP270: N/A | BQ270: N/A | BR270: N/A | BS270: N/A | BT270: N/A | BU270: N/A | BV270: N/A | BW270: N/A | BX270: N/A | BY270: N/A | BZ270: N/A
BA271: Awareness of menstruation before menarche | BB271: Yes | BC271: N/A | BD271: N/A | BE271: N/A | BF271: N/A | BG271: N/A | BH271: N/A | BI271: N/A | BJ271: N/A | BK271: N/A | BL271: N/A | BM271: N/A | BN271: N/A | BO271: N/A | BP271: N/A | BQ271: N/A | BR271: N/A | BS271: N/A | BT271: N/A | BU271: N/A | BV271: N/A | BW271: N/A | BX271: N/A | BY271: N/A | BZ271: N/A
BB272: No | BC272: N/A | BD272: N/A | BE272: N/A | BF272: N/A | BG272: N/A | BH272: N/A | BI272: N/A | BJ272: N/A | BK272: N/A | BL272: N/A | BM272: N/A | BN272: N/A | BO272: N/A | BP272: N/A | BQ272: N/A | BR272: N/A | BS272: N/A | BT272: N/A | BU272: N/A | BV272: N/A | BW272: N/A | BX272: N/A | BY272: N/A | BZ272: N/A
BB273: DK/not sure/missing | BC273: N/A | BD273: N/A | BE273: N/A | BF273: N/A | BG273: N/A | BH273: N/A | BI273: N/A | BJ273: N/A | BK273: N/A | BL273: N/A | BM273: N/A | BN273: N/A | BO273: N/A | BP273: N/A | BQ273: N/A | BR273: N/A | BS273: N/A | BT273: N/A | BU273: N/A | BV273: N/A | BW273: N/A | BX273: N/A | BY273: N/A | BZ273: N/A
BA274: Participation in (all) activities during menstruation | BB274: Yes | BC274: N/A | BD274: N/A | BE274: N/A | BF274: N/A | BG274: N/A | BH274: N/A | BI274: N/A | BJ274: N/A | BK274: N/A | BL274: N/A | BM274: N/A | BN274: N/A | BO274: N/A | BP274: N/A | BQ274: N/A | BR274: N/A | BS274: N/A | BT274: N/A | BU274: N/A | BV274: N/A | BW274: N/A | BX274: N/A | BY274: N/A | BZ274: N/A
BB275: No | BC275: N/A | BD275: N/A | BE275: N/A | BF275: N/A | BG275: N/A | BH275: N/A | BI275: N/A | BJ275: N/A | BK275: N/A | BL275: N/A | BM275: N/A | BN275: N/A | BO275: N/A | BP275: N/A | BQ275: N/A | BR275: N/A | BS275: N/A | BT275: N/A | BU275: N/A | BV275: N/A | BW275: N/A | BX275: N/A | BY275: N/A | BZ275: N/A
BB276: DK/not sure/missing/no such activity | BC276: N/A | BD276: N/A | BE276: N/A | BF276: N/A | BG276: N/A | BH276: N/A | BI276: N/A | BJ276: N/A | BK276: N/A | BL276: N/A | BM276: N/A | BN276: N/A | BO276: N/A | BP276: N/A | BQ276: N/A | BR276: N/A | BS276: N/A | BT276: N/A | BU276: N/A | BV276: N/A | BW276: N/A | BX276: N/A | BY276: N/A | BZ276: N/A
BA277: Participation in specific activities during menstruation | BB277: Did not go to school (amongst those usually attending school) | BC277: N/A | BD277: N/A | BE277: N/A | BF277: N/A | BG277: N/A | BH277: N/A | BI277: N/A | BJ277: N/A | BK277: N/A | BL277: N/A | BM277: N/A | BN277: N/A | BO277: N/A | BP277: N/A | BQ277: N/A | BR277: N/A | BS277: N/A | BT277: N/A | BU277: N/A | BV277: N/A | BW277: N/A | BX277: N/A | BY277: N/A | BZ277: N/A
BB278: Did not go to work (amongst those who usually work) | BC278: N/A | BD278: N/A | BE278: N/A | BF278: N/A | BG278: N/A | BH278: N/A | BI278: N/A | BJ278: N/A | BK278: N/A | BL278: N/A | BM278: N/A | BN278: N/A | BO278: N/A | BP278: N/A | BQ278: N/A | BR278: N/A | BS278: N/A | BT278: N/A | BU278: N/A | BV278: N/A | BW278: N/A | BX278: N/A | BY278: N/A | BZ278: N/A
BB279: Did not participate in social activities | BC279: N/A | BD279: N/A | BE279: N/A | BF279: N/A | BG279: N/A | BH279: N/A | BI279: N/A | BJ279: N/A | BK279: N/A | BL279: N/A | BM279: N/A | BN279: N/A | BO279: N/A | BP279: N/A | BQ279: N/A | BR279: N/A | BS279: N/A | BT279: N/A | BU279: N/A | BV279: N/A | BW279: N/A | BX279: N/A | BY279: N/A | BZ279: N/A
BB280: Did not cook food | BC280: N/A | BD280: N/A | BE280: N/A | BF280: N/A | BG280: N/A | BH280: N/A | BI280: N/A | BJ280: N/A | BK280: N/A | BL280: N/A | BM280: N/A | BN280: N/A | BO280: N/A | BP280: N/A | BQ280: N/A | BR280: N/A | BS280: N/A | BT280: N/A | BU280: N/A | BV280: N/A | BW280: N/A | BX280: N/A | BY280: N/A | BZ280: N/A
BB281: Did not eat with others | BC281: N/A | BD281: N/A | BE281: N/A | BF281: N/A | BG281: N/A | BH281: N/A | BI281: N/A | BJ281: N/A | BK281: N/A | BL281: N/A | BM281: N/A | BN281: N/A | BO281: N/A | BP281: N/A | BQ281: N/A | BR281: N/A | BS281: N/A | BT281: N/A | BU281: N/A | BV281: N/A | BW281: N/A | BX281: N/A | BY281: N/A | BZ281: N/A
BB282: Did not bathe in regular place | BC282: N/A | BD282: N/A | BE282: N/A | BF282: N/A | BG282: N/A | BH282: N/A | BI282: N/A | BJ282: N/A | BK282: N/A | BL282: N/A | BM282: N/A | BN282: N/A | BO282: N/A | BP282: N/A | BQ282: N/A | BR282: N/A | BS282: N/A | BT282: N/A | BU282: N/A | BV282: N/A | BW282: N/A | BX282: N/A | BY282: N/A | BZ282: N/A
BB283: Did not participate in other activities | BC283: N/A | BD283: N/A | BE283: N/A | BF283: N/A | BG283: N/A | BH283: N/A | BI283: N/A | BJ283: N/A | BK283: N/A | BL283: N/A | BM283: N/A | BN283: N/A | BO283: N/A | BP283: N/A | BQ283: N/A | BR283: N/A | BS283: N/A | BT283: N/A | BU283: N/A | BV283: N/A | BW283: N/A | BX283: N/A | BY283: N/A | BZ283: N/A
BB284: DK/not sure/missing/no such activity | BC284: N/A | BD284: N/A | BE284: N/A | BF284: N/A | BG284: N/A | BH284: N/A | BI284: N/A | BJ284: N/A | BK284: N/A | BL284: N/A | BM284: N/A | BN284: N/A | BO284: N/A | BP284: N/A | BQ284: N/A | BR284: N/A | BS284: N/A | BT284: N/A | BU284: N/A | BV284: N/A | BW284: N/A | BX284: N/A | BY284: N/A | BZ284: N/A
BA339: Raw numbers of respondents: | BB339: Basic water, sanitation and hygiene | BC339: NATIONAL wealth index quintile | BH339: URBAN wealth index quintile | BM339: RURAL wealth index quintile | BR339: SUB-REGIONS:
BA340: WatSan data, raw numbers (weighted) | BC340: Poorest | BD340: Poor | BE340: Middle | BF340: Rich | BG340: Richest | BH340: Poorest | BI340: Poor | BJ340: Middle | BK340: Rich | BL340: Richest | BM340: Poorest | BN340: Poor | BO340: Middle | BP340: Rich | BQ340: Richest | BR340: Centre Est | BS340: District Tunis | BT340: Kairouan | BU340: Kasserine | BV340: Nord Est | BW340: Nord Ouest | BX340: Sidi Bouzid | BY340: Sud Est | BZ340: Sud Ouest
BA341: Use of Basic Water Sanitation and Hygiene | BB341: Yes | BC341: N/A | BD341: N/A | BE341: N/A | BF341: N/A | BG341: N/A | BH341: N/A | BI341: N/A | BJ341: N/A | BK341: N/A | BL341: N/A | BM341: N/A | BN341: N/A | BO341: N/A | BP341: N/A | BQ341: N/A | BR341: N/A | BS341: N/A | BT341: N/A | BU341: N/A | BV341: N/A | BW341: N/A | BX341: N/A | BY341: N/A | BZ341: N/A
BB342: No | BC342: N/A | BD342: N/A | BE342: N/A | BF342: N/A | BG342: N/A | BH342: N/A | BI342: N/A | BJ342: N/A | BK342: N/A | BL342: N/A | BM342: N/A | BN342: N/A | BO342: N/A | BP342: N/A | BQ342: N/A | BR342: N/A | BS342: N/A | BT342: N/A | BU342: N/A | BV342: N/A | BW342: N/A | BX342: N/A | BY342: N/A | BZ342: N/A
BA343: Use of Basic Water and Sanitation | BB343: Yes | BC343: N/A | BD343: N/A | BE343: N/A | BF343: N/A | BG343: N/A | BH343: N/A | BI343: N/A | BJ343: N/A | BK343: N/A | BL343: N/A | BM343: N/A | BN343: N/A | BO343: N/A | BP343: N/A | BQ343: N/A | BR343: N/A | BS343: N/A | BT343: N/A | BU343: N/A | BV343: N/A | BW343: N/A | BX343: N/A | BY343: N/A | BZ343: N/A
BB344: No | BC344: N/A | BD344: N/A | BE344: N/A | BF344: N/A | BG344: N/A | BH344: N/A | BI344: N/A | BJ344: N/A | BK344: N/A | BL344: N/A | BM344: N/A | BN344: N/A | BO344: N/A | BP344: N/A | BQ344: N/A | BR344: N/A | BS344: N/A | BT344: N/A | BU344: N/A | BV344: N/A | BW344: N/A | BX344: N/A | BY344: N/A | BZ344: N/A
BA345: Use of Basic Water and Hygiene | BB345: Yes | BC345: N/A | BD345: N/A | BE345: N/A | BF345: N/A | BG345: N/A | BH345: N/A | BI345: N/A | BJ345: N/A | BK345: N/A | BL345: N/A | BM345: N/A | BN345: N/A | BO345: N/A | BP345: N/A | BQ345: N/A | BR345: N/A | BS345: N/A | BT345: N/A | BU345: N/A | BV345: N/A | BW345: N/A | BX345: N/A | BY345: N/A | BZ345: N/A
BB346: No | BC346: N/A | BD346: N/A | BE346: N/A | BF346: N/A | BG346: N/A | BH346: N/A | BI346: N/A | BJ346: N/A | BK346: N/A | BL346: N/A | BM346: N/A | BN346: N/A | BO346: N/A | BP346: N/A | BQ346: N/A | BR346: N/A | BS346: N/A | BT346: N/A | BU346: N/A | BV346: N/A | BW346: N/A | BX346: N/A | BY346: N/A | BZ346: N/A
BA347: Use of Basic Sanitation and Hygiene | BB347: Yes | BC347: N/A | BD347: N/A | BE347: N/A | BF347: N/A | BG347: N/A | BH347: N/A | BI347: N/A | BJ347: N/A | BK347: N/A | BL347: N/A | BM347: N/A | BN347: N/A | BO347: N/A | BP347: N/A | BQ347: N/A | BR347: N/A | BS347: N/A | BT347: N/A | BU347: N/A | BV347: N/A | BW347: N/A | BX347: N/A | BY347: N/A | BZ347: N/A
BB348: No | BC348: N/A | BD348: N/A | BE348: N/A | BF348: N/A | BG348: N/A | BH348: N/A | BI348: N/A | BJ348: N/A | BK348: N/A | BL348: N/A | BM348: N/A | BN348: N/A | BO348: N/A | BP348: N/A | BQ348: N/A | BR348: N/A | BS348: N/A | BT348: N/A | BU348: N/A | BV348: N/A | BW348: N/A | BX348: N/A | BY348: N/A | BZ348: N/A
BA349: Use of Basic Water | BB349: Yes | BC349: N/A | BD349: N/A | BE349: N/A | BF349: N/A | BG349: N/A | BH349: N/A | BI349: N/A | BJ349: N/A | BK349: N/A | BL349: N/A | BM349: N/A | BN349: N/A | BO349: N/A | BP349: N/A | BQ349: N/A | BR349: N/A | BS349: N/A | BT349: N/A | BU349: N/A | BV349: N/A | BW349: N/A | BX349: N/A | BY349: N/A | BZ349: N/A
BB350: No | BC350: N/A | BD350: N/A | BE350: N/A | BF350: N/A | BG350: N/A | BH350: N/A | BI350: N/A | BJ350: N/A | BK350: N/A | BL350: N/A | BM350: N/A | BN350: N/A | BO350: N/A | BP350: N/A | BQ350: N/A | BR350: N/A | BS350: N/A | BT350: N/A | BU350: N/A | BV350: N/A | BW350: N/A | BX350: N/A | BY350: N/A | BZ350: N/A
BA351: Use of Basic Sanitation | BB351: Yes | BC351: N/A | BD351: N/A | BE351: N/A | BF351: N/A | BG351: N/A | BH351: N/A | BI351: N/A | BJ351: N/A | BK351: N/A | BL351: N/A | BM351: N/A | BN351: N/A | BO351: N/A | BP351: N/A | BQ351: N/A | BR351: N/A | BS351: N/A | BT351: N/A | BU351: N/A | BV351: N/A | BW351: N/A | BX351: N/A | BY351: N/A | BZ351: N/A
BB352: No | BC352: N/A | BD352: N/A | BE352: N/A | BF352: N/A | BG352: N/A | BH352: N/A | BI352: N/A | BJ352: N/A | BK352: N/A | BL352: N/A | BM352: N/A | BN352: N/A | BO352: N/A | BP352: N/A | BQ352: N/A | BR352: N/A | BS352: N/A | BT352: N/A | BU352: N/A | BV352: N/A | BW352: N/A | BX352: N/A | BY352: N/A | BZ352: N/A
BA353: Access to Basic Hygiene | BB353: Yes | BC353: N/A | BD353: N/A | BE353: N/A | BF353: N/A | BG353: N/A | BH353: N/A | BI353: N/A | BJ353: N/A | BK353: N/A | BL353: N/A | BM353: N/A | BN353: N/A | BO353: N/A | BP353: N/A | BQ353: N/A | BR353: N/A | BS353: N/A | BT353: N/A | BU353: N/A | BV353: N/A | BW353: N/A | BX353: N/A | BY353: N/A | BZ353: N/A
BB354: No | BC354: N/A | BD354: N/A | BE354: N/A | BF354: N/A | BG354: N/A | BH354: N/A | BI354: N/A | BJ354: N/A | BK354: N/A | BL354: N/A | BM354: N/A | BN354: N/A | BO354: N/A | BP354: N/A | BQ354: N/A | BR354: N/A | BS354: N/A | BT354: N/A | BU354: N/A | BV354: N/A | BW354: N/A | BX354: N/A | BY354: N/A | BZ354: N/A
C399: INITIAL (national) Wealth Index | H399: URBAN Wealth Index | M399: RURAL Wealth Index
C400: Component Matrix | H400: Component Matrix | M400: Component Matrix
E401: Component | J401: Component | O401: Component
B402: Note: The INITIAL (national) Wealth Index is based on the first component of the Principal Component Analysis (PCA) which has been obtained at national level. The final national-level (NATIONAL) Wealth Index is based on the URBAN and RURAL specific wealth indexes. Regression procedures are used to establish the relationships between the two sets of scores (urban and rural) and the initial (national) wealth factors. This allows best use of the available information for each area and a better precision of the FINAL (NATIONAL) Wealth Index. For dependency reasons, all WASH variables (contained in the generic MICS and DHS scripts) have been excluded from the sets of asset variables used in the PCAs. The PCA can extracts as many components as there are asset variables in the input. Only the first of the components is used to represent the Wealth Index. The scores represent the weights of the asset variables on the Wealth Index (correlations between the variables and the component). The communalities are the proportion of each variable's variance that can be explained by the component. Proportion of explained variance is the part of the model's total variance that is explained by the component. For more information on the procedure used: The DHS Wealth Index, DHS Comparative Reports No. 6, Shea Oscar Rutstein, Kiersten Johnson, ORC Macro International Inc., 2004. The DHS Wealth Index: Approaches for Rural and Urban Areas, Shea O. Rutstein, ORC Macro International Inc., 2008. MICS Methodological Paper No. 4, Review of options for reporting water, sanitation and hygiene coverage by wealth quintile, UNICEF, 2016. | E402: 1 | J402: 1 | O402: 1
C403: Household has: chauffeau | E403: 0.7478183066 | H403: Household has: chauffeau | J403: 0.6926784857 | M403: Has ceramic tile floor | O403: 0.6977177229
C404: Household has: mixeur | E404: 0.7044310676 | H404: Household has: mixeur | J404: 0.6890009045 | M404: Household has: chauffeau | O404: 0.6734760478
C405: Has ceramic tile floor | E405: 0.7000149207 | H405: Household has:ordinateur | J405: 0.649550852 | M405: Has cement floor | O405: -0.6731325495
C406: Household has: machine lave linge | E406: 0.6923768529 | H406: Household has:climatiseur | J406: 0.6310573391 | M406: Household has: machine lave linge | O406: 0.6540867895
... 229 more rows

Sheet MICS18
A2: =A1026 -> Tunisia
A3: =A1034 -> 2018
A4: Use of drinking water sources
A5: by wealth quintile and sub-national region
A6: Notes:
A7: WHO/UNICEF JMP customised wealth index excludes water,
A8: sanitation and hygiene assets.
A9: Survey used for analysis: | B9: =A1025 -> MICS18
A10: =B1028 -> 
A11: =B1027 -> 
A14: Use of drinking water sources | C14: NATIONAL wealth index quintile | H14: URBAN wealth index quintile | M14: RURAL wealth index quintile | R14: SUB-REGIONS: | BA14: Raw numbers of respondents: | BB14: Use of drinking water sources | BC14: NATIONAL wealth index quintile | BH14: URBAN wealth index quintile | BM14: RURAL wealth index quintile | BR14: SUB-REGIONS:
A15: Weighted percentage (used in graphs) | C15: Poorest | D15: Poor | E15: Middle | F15: Rich | G15: Richest | H15: Poorest | I15: Poor | J15: Middle | K15: Rich | L15: Richest | M15: Poorest | N15: Poor | O15: Middle | P15: Rich | Q15: Richest | R15: CENTRE EST | S15: CENTRE OUEST | T15: DISTRICT TUNIS | U15: NORD EST | V15: NORD OUEST | W15: SUD EST | X15: SUD OUEST | BA15: Water data, raw numbers (weighted) | BC15: Poorest | BD15: Poor | BE15: Middle | BF15: Rich | BG15: Richest | BH15: Poorest | BI15: Poor | BJ15: Middle | BK15: Rich | BL15: Richest | BM15: Poorest | BN15: Poor | BO15: Middle | BP15: Rich | BQ15: Richest | BR15: CENTRE EST | BS15: CENTRE OUEST | BT15: DISTRICT TUNIS | BU15: NORD EST | BV15: NORD OUEST | BW15: SUD EST | BX15: SUD OUEST
A16: Water | B16: Improved | C16: 95.14750537 | D16: 98.34862829 | E16: 98.93606572 | F16: 98.78474306 | G16: 98.81657488 | H16: 99.39903502 | I16: 99.13885252 | J16: 98.58574054 | K16: 98.8376629 | L16: 98.83803786 | M16: 92.80202156 | N16: 95.19134089 | O16: 96.07433366 | P16: 97.79914661 | Q16: 97.84683153 | R16: 98.46850239 | S16: 97.77180243 | T16: 98.75680036 | U16: 99.16497297 | V16: 93.19749301 | W16: 99.73116365 | X16: 97.11994778 | BA16: Water | BB16: Improved | BC16: 8303.333202 | BD16: 8583.176084 | BE16: 8637.277515 | BF16: 8622.561199 | BG16: 8621.529982 | BH16: 5933.266626 | BI16: 5921.802749 | BJ16: 5883.263414 | BK16: 5904.630042 | BL16: 5899.095482 | BM16: 2559.625121 | BN16: 2622.834357 | BO16: 2648.154131 | BP16: 2694.851422 | BQ16: 2700.354636 | BR16: 10131.59419 | BS16: 5459.978421 | BT16: 10268.7702 | BU16: 6094.488275 | BV16: 4452.160996 | BW16: 3946.513377 | BX16: 2414.372523
B17: Not Improved | C17: 4.852494635 | D17: 1.651371706 | E17: 1.063934279 | F17: 1.215256939 | G17: 1.183425124 | H17: 0.6009649803 | I17: 0.8611474755 | J17: 1.414259462 | K17: 1.162337104 | L17: 1.161962138 | M17: 7.197978441 | N17: 4.808659114 | O17: 3.925666338 | P17: 2.200853389 | Q17: 2.153168472 | R17: 1.531497611 | S17: 2.228197572 | T17: 1.243199636 | U17: 0.8350270278 | V17: 6.802506994 | W17: 0.2688363467 | X17: 2.880052225 | BB17: Not Improved | BC17: 423.4675377 | BD17: 144.1200999 | BE17: 92.88317216 | BF17: 106.0753615 | BG17: 103.2512531 | BH17: 35.87243539 | BI17: 51.4384155 | BJ17: 84.39821933 | BK17: 69.43881898 | BL17: 69.35108936 | BM17: 198.5315204 | BN17: 132.4943657 | BO17: 108.2054814 | BP17: 60.64442372 | BQ17: 59.42265452 | BR17: 157.5784329 | BS17: 124.4316905 | BT17: 129.2683778 | BU17: 51.3191531 | BV17: 324.9642811 | BW17: 10.6382619 | BX17: 71.59722709
A18: Water ladder | B18: Basic | C18: 87.91097283 | D18: 95.770838 | E18: 97.41324475 | F18: 98.01536808 | G18: 98.34746427 | H18: 98.41831078 | I18: 97.67729594 | J18: 97.59778195 | K18: 98.52853019 | L18: 98.24867795 | M18: 83.49118216 | N18: 88.25870356 | O18: 89.00792626 | P18: 93.66879467 | Q18: 95.77677042 | R18: 97.5510972 | S18: 87.93970048 | T18: 98.55586855 | U18: 98.16653111 | V18: 87.5890982 | W18: 98.75882145 | X18: 95.28867293 | BA18: Water ladder | BB18: Basic | BC18: 7296.495714 | BD18: 7588.950303 | BE18: 7525.088527 | BF18: 7457.270372 | BG18: 7832.636769 | BH18: 5099.460346 | BI18: 5173.177131 | BJ18: 5150.892188 | BK18: 5051.675578 | BL18: 5481.609948 | BM18: 2245.018214 | BN18: 2339.940181 | BO18: 2373.291754 | BP18: 2414.091694 | BQ18: 2371.284652 | BR18: 9979.534499 | BS18: 4735.448176 | BT18: 8822.0205 | BU18: 4653.38112 | BV18: 4066.243135 | BW18: 3811.007715 | BX18: 1632.806541
B19: Limited | C19: 6.986928213 | D19: 2.410398905 | E19: 1.384370563 | F19: 0.5904199567 | G19: 0.3561014367 | H19: 0.8893601831 | I19: 1.351470095 | J19: 0.8030622713 | K19: 0.1171261536 | L19: 0.508319923 | M19: 9.125523028 | N19: 6.7438264 | O19: 6.933935715 | P19: 3.978150515 | Q19: 1.823133951 | R19: 0.908555501 | S19: 9.749539236 | T19: 0 | U19: 0.7508532389 | V19: 5.410993686 | W19: 0.9654976052 | X19: 0.5329969445 | BB19: Limited | BC19: 579.9058994 | BD19: 191.0017484 | BE19: 106.9414233 | BF19: 44.92072352 | BG19: 28.36080449 | BH19: 46.08143496 | BI19: 71.57645103 | BJ19: 42.38300397 | BK19: 6.005197972 | BL19: 28.36080449 | BM19: 245.3787919 | BN19: 178.7942688 | BO19: 184.8852472 | BP19: 102.5274228 | BQ19: 45.13797593 | BR19: 92.94576101 | BS19: 525.0010807 | BT19: 0 | BU19: 35.59264289 | BV19: 251.2003934 | BW19: 37.25762184 | BX19: 9.133099143
B20: Unimproved | C20: 4.914638786 | D20: 1.778337388 | E20: 1.202384683 | F20: 1.394211968 | G20: 1.296434295 | H20: 0.6923290417 | I20: 0.9712339643 | J20: 1.599155779 | K20: 1.354343656 | L20: 1.24300213 | M20: 6.952792142 | N20: 4.847236307 | O20: 4.058138026 | P20: 2.228761654 | Q20: 2.400095633 | R20: 1.5403473 | S20: 2.249669131 | T20: 1.444131449 | U20: 1.015038348 | V20: 6.735621491 | W20: 0.2756809448 | X20: 4.178330124 | BB20: Unimproved | BC20: 407.9085885 | BD20: 140.9167377 | BE20: 92.88317216 | BF20: 106.0753615 | BG20: 103.2512531 | BH20: 35.87243539 | BI20: 51.4384155 | BJ20: 84.39821933 | BK20: 69.43881898 | BL20: 69.35108936 | BM20: 186.9556113 | BN20: 128.5113257 | BO20: 108.2054814 | BP20: 57.4410615 | BQ20: 59.42265452 | BR20: 157.5784329 | BS20: 121.1420044 | BT20: 129.2683778 | BU20: 48.11579088 | BV20: 312.6950181 | BW20: 10.6382619 | BX20: 71.59722709
B21: Surface water | C21: 0.187460174 | D21: 0.04042570738 | E21: 0 | F21: 0 | G21: 0 | H21: 0 | I21: 0 | J21: 0 | K21: 0 | L21: 0 | M21: 0.430502671 | N21: 0.1502337331 | O21: 0 | P21: 0.1242931571 | Q21: 0 | R21: 0 | S21: 0.0610911577 | T21: 0 | U21: 0.06757730539 | V21: 0.2642866276 | W21: 0 | X21: 0 | BB21: Surface water | BC21: 15.55894915 | BD21: 3.20336222 | BE21: 0 | BF21: 0 | BG21: 0 | BH21: 0 | BI21: 0 | BJ21: 0 | BK21: 0 | BL21: 0 | BM21: 11.57590913 | BN21: 3.983040023 | BO21: 0 | BP21: 3.20336222 | BQ21: 0 | BR21: 0 | BS21: 3.289686111 | BT21: 0 | BU21: 3.20336222 | BV21: 12.26926304 | BW21: 0 | BX21: 0
A22: Improved water point at more than 30 minutes | B22: Yes | C22: 7.362574026 | D22: 2.455050457 | E22: 1.4012186 | F22: 0.5987680526 | G22: 0.3607786954 | H22: 0.8955604079 | I22: 1.364724766 | J22: 0.8161131926 | K22: 0.118734223 | L22: 0.5147178772 | M22: 9.852998991 | N22: 7.098575589 | O22: 7.227226543 | P22: 4.074014305 | Q22: 1.867966944 | R22: 0.9227693538 | S22: 9.980156734 | T22: 0 | U22: 0.759071061 | V22: 5.818267033 | W22: 0.9681666562 | X22: 0.556238422 | BA22: Improved water point at more than 30 minutes | BB22: Yes | BC22: 579.9058994 | BD22: 191.0017484 | BE22: 106.9414233 | BF22: 44.92072352 | BG22: 28.36080449 | BH22: 46.08143496 | BI22: 71.57645103 | BJ22: 42.38300397 | BK22: 6.005197972 | BL22: 28.36080449 | BM22: 245.3787919 | BN22: 178.7942688 | BO22: 184.8852472 | BP22: 102.5274228 | BQ22: 45.13797593 | BR22: 92.94576101 | BS22: 525.0010807 | BT22: 0 | BU22: 35.59264289 | BV22: 251.2003934 | BW22: 37.25762184 | BX22: 9.133099143
B23: No | C23: 92.63742597 | D23: 97.54494954 | E23: 98.5987814 | F23: 99.40123195 | G23: 99.6392213 | H23: 99.10443959 | I23: 98.63527523 | J23: 99.18388681 | K23: 99.88126578 | L23: 99.48528212 | M23: 90.14700101 | N23: 92.90142441 | O23: 92.77277346 | P23: 95.9259857 | Q23: 98.13203306 | R23: 99.07723065 | S23: 90.01984327 | T23: 100 | U23: 99.24092894 | V23: 94.18173297 | W23: 99.03183334 | X23: 99.44376158 | BB23: No | BC23: 7296.495714 | BD23: 7588.950303 | BE23: 7525.088527 | BF23: 7457.270372 | BG23: 7832.636769 | BH23: 5099.460346 | BI23: 5173.177131 | BJ23: 5150.892188 | BK23: 5051.675578 | BL23: 5481.609948 | BM23: 2245.018214 | BN23: 2339.940181 | BO23: 2373.291754 | BP23: 2414.091694 | BQ23: 2371.284652 | BR23: 9979.534499 | BS23: 4735.448176 | BT23: 8822.0205 | BU23: 4653.38112 | BV23: 4066.243135 | BW23: 3811.007715 | BX23: 1632.806541
A24: Manually calculated ratios | B24: Improved wells
B25: Improved springs
B26: Other
C27: NATIONAL wealth index quintile | H27: URBAN wealth index quintile | M27: RURAL wealth index quintile | R27: SUB-REGIONS: | BA27: Raw numbers of respondents: | BB27: Use of drinking water sources | BC27: NATIONAL wealth index quintile | BH27: URBAN wealth index quintile | BM27: RURAL wealth index quintile | BR27: SUB-REGIONS:
A28: Percentage based on weighted population | C28: Poorest | D28: Poor | E28: Middle | F28: Rich | G28: Richest | H28: Poorest | I28: Poor | J28: Middle | K28: Rich | L28: Richest | M28: Poorest | N28: Poor | O28: Middle | P28: Rich | Q28: Richest | R28: CENTRE EST | S28: CENTRE OUEST | T28: DISTRICT TUNIS | U28: NORD EST | V28: NORD OUEST | W28: SUD EST | X28: SUD OUEST | BA28: Water data, raw numbers (weighted) | BC28: Poorest | BD28: Poor | BE28: Middle | BF28: Rich | BG28: Richest | BH28: Poorest | BI28: Poor | BJ28: Middle | BK28: Rich | BL28: Richest | BM28: Poorest | BN28: Poor | BO28: Middle | BP28: Rich | BQ28: Richest | BR28: CENTRE EST | BS28: CENTRE OUEST | BT28: DISTRICT TUNIS | BU28: NORD EST | BV28: NORD OUEST | BW28: SUD EST | BX28: SUD OUEST
A29: Piped water | B29: Yes | C29: 52.72162442 | D29: 60.49116001 | E29: 68.09596449 | F29: 72.49687501 | G29: 81.68823354 | H29: 59.98717148 | I29: 68.47850212 | J29: 72.4366848 | K29: 72.73446447 | L29: 85.33425019 | M29: 51.88493045 | N29: 53.63893757 | O29: 59.29333673 | P29: 57.232816 | Q29: 62.59748023 | R29: 65.07488647 | S29: 64.86913725 | T29: 80.31995371 | U29: 68.72042301 | V29: 78.58267392 | W29: 36.56075572 | X29: 47.70940269 | BA29: Piped water | BB29: Yes | BC29: 4600.91111 | BD29: 5279.242699 | BE29: 5944.887121 | BF29: 6327.988738 | BG29: 7127.119672 | BH29: 3580.717685 | BI29: 4090.386077 | BJ29: 4322.776248 | BK29: 4345.206993 | BL29: 5093.12913 | BM29: 1431.067655 | BN29: 1477.929054 | BO29: 1634.337586 | BP29: 1577.047868 | BQ29: 1727.551044 | BR29: 6695.667401 | BS29: 3622.55866 | BT29: 8351.699773 | BU29: 4223.424862 | BV29: 3753.99278 | BW29: 1446.764544 | BX29: 1186.041319
B30: No | C30: 47.27837558 | D30: 39.50883999 | E30: 31.90403551 | F30: 27.50312499 | G30: 18.31176646 | H30: 40.01282852 | I30: 31.52149788 | J30: 27.5633152 | K30: 27.26553553 | L30: 14.66574981 | M30: 48.11506955 | N30: 46.36106243 | O30: 40.70666327 | P30: 42.767184 | Q30: 37.40251977 | R30: 34.92511353 | S30: 35.13086275 | T30: 19.68004629 | U30: 31.27957699 | V30: 21.41732608 | W30: 63.43924428 | X30: 52.29059731 | BB30: No | BC30: 4125.88963 | BD30: 3448.053485 | BE30: 2785.273566 | BF30: 2400.647823 | BG30: 1597.661564 | BH30: 2388.421377 | BI30: 1882.855087 | BJ30: 1644.885386 | BK30: 1628.861868 | BL30: 875.317442 | BM30: 1327.088986 | BN30: 1277.399669 | BO30: 1122.022026 | BP30: 1178.447978 | BQ30: 1032.226247 | BR30: 3593.505219 | BS30: 1961.851451 | BT30: 2046.338806 | BU30: 1922.382566 | BV30: 1023.132498 | BW30: 2510.387094 | BX30: 1299.928431
A31: Piped water on premises | B31: Yes | C31: 46.16460988 | D31: 57.50193159 | E31: 67.48029688 | F31: 72.28232988 | G31: 81.64628147 | H31: 58.89242529 | I31: 67.7319328 | J31: 72.19331794 | K31: 72.57527 | L31: 85.33425019 | M31: 44.50138104 | N31: 46.65842903 | O31: 50.86999837 | P31: 53.17745188 | Q31: 61.31663177 | R31: 64.07969612 | S31: 58.67366393 | T31: 79.97392173 | U31: 67.94065831 | V31: 71.05085117 | W31: 36.31246654 | X31: 47.4148851 | BA31: Piped water on premises | BB31: Yes | BC31: 4028.693517 | BD31: 5018.363881 | BE31: 5891.13835 | BF31: 6309.261872 | BG31: 7123.459445 | BH31: 3515.370762 | BI31: 4045.791691 | BJ31: 4308.252937 | BK31: 4335.696606 | BL31: 5093.12913 | BM31: 1227.417797 | BN31: 1285.593097 | BO31: 1402.16009 | BP31: 1465.302477 | BQ31: 1692.202479 | BR31: 6593.270548 | BS31: 3276.578021 | BT31: 8315.719234 | BU31: 4175.502025 | BV31: 3394.188171 | BW31: 1436.939365 | BX31: 1178.719701
B32: No | C32: 53.83539012 | D32: 42.49806841 | E32: 32.51970312 | F32: 27.71767012 | G32: 18.35371853 | H32: 41.10757471 | I32: 32.2680672 | J32: 27.80668206 | K32: 27.42473 | L32: 14.66574981 | M32: 55.49861896 | N32: 53.34157097 | O32: 49.13000163 | P32: 46.82254812 | Q32: 38.68336823 | R32: 35.92030388 | S32: 41.32633607 | T32: 20.02607827 | U32: 32.05934169 | V32: 28.94914883 | W32: 63.68753346 | X32: 52.5851149 | BB32: No | BC32: 4698.107223 | BD32: 3708.932302 | BE32: 2839.022337 | BF32: 2419.374688 | BG32: 1601.32179 | BH32: 2453.7683 | BI32: 1927.449473 | BJ32: 1659.408697 | BK32: 1638.372255 | BL32: 875.317442 | BM32: 1530.738845 | BN32: 1469.735626 | BO32: 1354.199523 | BP32: 1290.193369 | BQ32: 1067.574812 | BR32: 3695.902073 | BS32: 2307.83209 | BT32: 2082.319345 | BU32: 1970.305403 | BV32: 1382.937106 | BW32: 2520.212274 | BX32: 1307.250049
A33: Piped water into dwelling | B33: Yes | C33: 41.52443146 | D33: 63.43117893 | E33: 78.06657868 | F33: 84.81985281 | G33: 89.8355173 | H33: 69.36693006 | I33: 78.09821468 | J33: 83.40487569 | K33: 86.48153604 | L33: 91.36995659 | M33: 34.75921203 | N33: 42.03590699 | O33: 45.38039164 | P33: 55.13533531 | Q33: 69.81327487 | R33: 61.07663378 | S33: 57.04552738 | T33: 92.82938315 | U33: 88.99308714 | V33: 69.86523726 | W33: 36.58403421 | X33: 73.99676196 | BA33: Piped water into dwelling | BB33: Yes | BC33: 3623.754391 | BD33: 5535.826858 | BE33: 6815.337762 | BF33: 7403.616683 | BG33: 7837.952356 | BH33: 4140.608518 | BI33: 4664.994708 | BJ33: 4977.320767 | BK33: 5166.466515 | BL33: 5453.367041 | BM33: 958.7135152 | BN33: 1158.227419 | BO33: 1250.846787 | BP33: 1519.251874 | BQ33: 1926.690906 | BR33: 6284.280281 | BS33: 3185.656199 | BT33: 9652.435073 | BU33: 5469.34376 | BV33: 3337.54991 | BW33: 1447.685709 | BX33: 1839.537118
B34: No | C34: 58.47556854 | D34: 36.56882107 | E34: 21.93342132 | F34: 15.18014719 | G34: 10.1644827 | H34: 30.63306994 | I34: 21.90178532 | J34: 16.59512431 | K34: 13.51846396 | L34: 8.630043414 | M34: 65.24078797 | N34: 57.96409301 | O34: 54.61960836 | P34: 44.86466469 | Q34: 30.18672513 | R34: 38.92336622 | S34: 42.95447262 | T34: 7.170616847 | U34: 11.00691286 | V34: 30.13476274 | W34: 63.41596579 | X34: 26.00323804 | BB34: No | BC34: 5103.046348 | BD34: 3191.469326 | BE34: 1914.822925 | BF34: 1325.019877 | BG34: 886.8288793 | BH34: 1828.530544 | BI34: 1308.246457 | BJ34: 990.3408667 | BK34: 807.6023457 | BL34: 515.0795303 | BM34: 1799.443126 | BN34: 1597.101304 | BO34: 1505.512825 | BP34: 1236.243972 | BQ34: 833.086385 | BR34: 4004.89234 | BS34: 2398.753913 | BT34: 745.6035061 | BU34: 676.463668 | BV34: 1439.575368 | BW34: 2509.465929 | BX34: 646.4326316
A35: Water source on premises | B35: Yes | C35: 72.93275574 | D35: 79.27108753 | E35: 81.94504267 | F35: 82.62463213 | G35: 88.70627277 | H35: 79.82122735 | I35: 81.9406416 | J35: 82.77901393 | K35: 82.24377035 | L35: 91.22592136 | M35: 72.39704663 | N35: 72.72784417 | O35: 73.99249974 | P35: 76.7417819 | Q35: 82.4798522 | R35: 88.46690794 | S35: 75.29414253 | T35: 84.95497425 | U35: 73.97149626 | V35: 74.07804102 | W35: 89.16394825 | X35: 65.73242103 | BA35: Water source on premises | BB35: Yes | BC35: 6364.696268 | BD35: 6918.222596 | BE35: 7153.9339 | BF35: 7212.003848 | BG35: 7739.428241 | BH35: 4764.640061 | BI35: 4894.512134 | BJ35: 4939.971455 | BK35: 4913.299475 | BL35: 5444.770376 | BM35: 1996.82395 | BN35: 2003.89118 | BO35: 2039.499379 | BP35: 2114.616613 | BQ35: 2276.260231 | BR35: 9102.51287 | BS35: 4204.733709 | BT35: 8833.650997 | BU35: 4546.145712 | BV35: 3538.800823 | BW35: 3528.352639 | BX35: 1634.088103
B36: No | C36: 27.06724426 | D36: 20.72891247 | E36: 18.05495733 | F36: 17.37536787 | G36: 11.29372723 | H36: 20.17877265 | I36: 18.0593584 | J36: 17.22098607 | K36: 17.75622965 | L36: 8.774078643 | M36: 27.60295337 | N36: 27.27215583 | O36: 26.00750026 | P36: 23.2582181 | Q36: 17.5201478 | R36: 11.53309206 | S36: 24.70585747 | T36: 15.04502575 | U36: 26.02850374 | V36: 25.92195898 | W36: 10.83605175 | X36: 34.26757897 | BB36: No | BC36: 2362.104472 | BD36: 1809.073587 | BE36: 1576.226787 | BF36: 1516.632713 | BG36: 985.352994 | BH36: 1204.499 | BI36: 1078.72903 | BJ36: 1027.690178 | BK36: 1060.769386 | BL36: 523.676196 | BM36: 761.3326916 | BN36: 751.437543 | BO36: 716.8602333 | BP36: 640.8792335 | BQ36: 483.5170602 | BR36: 1186.65975 | BS36: 1379.676403 | BT36: 1564.387582 | BU36: 1599.661716 | BV36: 1238.324455 | BW36: 428.7989993 | BX36: 851.8816472
A37: Improved water source on premises | B37: Yes | C37: 74.96897472 | D37: 79.76161237 | E37: 81.89730711 | F37: 82.51961713 | G37: 88.73032663 | H37: 79.95938866 | I37: 81.78377302 | J37: 82.62448411 | K37: 82.42635608 | L37: 91.12277132 | M37: 75.26748292 | N37: 75.52777073 | O37: 75.37095826 | P37: 77.12402614 | Q37: 82.85513074 | R37: 88.28753177 | S37: 75.6371743 | T37: 84.81611937 | U37: 74.14184107 | V37: 78.8438235 | W37: 89.28877335 | X37: 65.1524944 | BA37: Improved water source on premises | BB37: Yes | BC37: 6224.923769 | BD37: 6846.079637 | BE37: 7073.697692 | BF37: 7115.304489 | BG37: 7649.911714 | BH37: 4744.203722 | BI37: 4843.073719 | BJ37: 4861.016044 | BK37: 4866.971383 | BL37: 5375.419286 | BM37: 1926.565401 | BN37: 1980.96832 | BO37: 1995.939145 | BP37: 2078.377915 | BQ37: 2237.382365 | BR37: 8944.934437 | BS37: 4129.773395 | BT37: 8709.572392 | BU37: 4518.565811 | BV37: 3510.253958 | BW37: 3523.793384 | BX37: 1573.023923
B38: No | C38: 25.03102528 | D38: 20.23838763 | E38: 18.10269289 | F38: 17.48038287 | G38: 11.26967337 | H38: 20.04061134 | I38: 18.21622698 | J38: 17.37551589 | K38: 17.57364392 | L38: 8.87722868 | M38: 24.73251708 | N38: 24.47222927 | O38: 24.62904174 | P38: 22.87597386 | Q38: 17.14486926 | R38: 11.71246823 | S38: 24.3628257 | T38: 15.18388063 | U38: 25.85815893 | V38: 21.1561765 | W38: 10.71122665 | X38: 34.8475056 | BB38: No | BC38: 2078.409433 | BD38: 1737.096447 | BE38: 1563.579822 | BF38: 1507.256711 | BG38: 971.6182685 | BH38: 1189.062904 | BI38: 1078.72903 | BJ38: 1022.24737 | BK38: 1037.658658 | BL38: 523.676196 | BM38: 633.0597202 | BN38: 641.8660372 | BO38: 652.2149862 | BP38: 616.473507 | BQ38: 462.9722719 | BR38: 1186.65975 | BS38: 1330.205026 | BT38: 1559.197809 | BU38: 1575.922464 | BV38: 941.9070385 | BW38: 422.7199925 | BX38: 841.3486002
A39: Piped water on premises available when needed | B39: Yes | C39: 58.98710404 | D39: 74.01661492 | E39: 75.17403475 | F39: 82.87480266 | G39: 87.98431319 | H39: 73.73339014 | I39: 74.90682658 | J39: 81.48796258 | K39: 82.75623217 | L39: 90.18605737 | M39: 54.71817104 | N39: 54.1289758 | O39: 66.85086114 | P39: 72.2606423 | Q39: 79.0220777 | R39: 67.35543907 | S39: 80.87829531 | T39: 89.30133256 | U39: 76.53519702 | V39: 72.59836427 | W39: 69.97006638 | X39: 70.93897223 | BA39: Piped water on premises available when needed | BB39: Yes | BC39: 2349.665167 | BD39: 3698.556687 | BE39: 4416.459192 | BF39: 5183.138754 | BG39: 6230.570481 | BH39: 2574.418628 | BI39: 3019.159125 | BJ39: 3486.387233 | BK39: 3554.952127 | BL39: 4572.784618 | BM39: 665.6752328 | BN39: 687.8532148 | BO39: 928.270803 | BP39: 1058.836982 | BQ39: 1330.052316 | BR39: 4432.998048 | BS39: 2623.434319 | BT39: 7390.946747 | BU39: 3168.999138 | BV39: 2444.553446 | BW39: 998.5996313 | BX39: 818.8589514
B40: No | C40: 41.01289596 | D40: 25.98338508 | E40: 24.82596525 | F40: 17.12519734 | G40: 12.01568681 | H40: 26.26660986 | I40: 25.09317342 | J40: 18.51203742 | K40: 17.24376783 | L40: 9.813942627 | M40: 45.28182896 | N40: 45.8710242 | O40: 33.14913886 | P40: 27.7393577 | Q40: 20.9779223 | R40: 32.64456093 | S40: 19.12170469 | T40: 10.69866744 | U40: 23.46480298 | V40: 27.40163573 | W40: 30.02993362 | X40: 29.06102777 | BB40: No | BC40: 1633.688831 | BD40: 1298.37095 | BE40: 1458.520389 | BF40: 1071.040547 | BG40: 850.8855823 | BH40: 917.1048505 | BI40: 1011.39358 | BJ40: 792.0204273 | BK40: 740.7390058 | BL40: 497.605142 | BM40: 550.8771851 | BN40: 582.9138829 | BO40: 460.2988985 | BP40: 406.4654956 | BQ40: 353.0878326 | BR40: 2148.501693 | BS40: 620.2472012 | BT40: 885.4658612 | BU40: 971.5783496 | BV40: 922.6759271 | BW40: 428.5815664 | BX40: 335.455702
A41: Water point at more than 30 minutes | B41: Yes | C41: 8.546489019 | D41: 2.690731348 | E41: 1.415994125 | F41: 0.5904199567 | G41: 0.3561014367 | H41: 0.9249100709 | I41: 1.351470095 | J41: 0.8030622713 | K41: 0.1171261536 | L41: 0.508319923 | M41: 11.07769554 | N41: 8.352948469 | O41: 8.671732114 | P41: 4.309765841 | Q41: 1.921802991 | R41: 0.908555501 | S41: 10.26935464 | T41: 0 | U41: 0.8640283106 | V41: 7.818004448 | W41: 1.123029574 | X41: 0.689610625 | BA41: Water point at more than 30 minutes | BB41: Yes | BC41: 708.3357287 | BD41: 213.1348586 | BE41: 109.384316 | BF41: 44.92072352 | BG41: 28.36080449 | BH41: 47.89570454 | BI41: 71.57645103 | BJ41: 42.38300397 | BK41: 6.005197972 | BL41: 28.36080449 | BM41: 296.6536953 | BN41: 221.3851356 | BO41: 231.221546 | BP41: 111.0740237 | BQ41: 47.58086869 | BR41: 92.94576101 | BS41: 552.9925213 | BT41: 0 | BU41: 40.93157992 | BV41: 362.1223989 | BW41: 43.33662864 | BX41: 11.80754158
B42: No | C42: 91.45351098 | D42: 97.30926865 | E42: 98.58400587 | F42: 99.40958004 | G42: 99.64389856 | H42: 99.07508993 | I42: 98.6485299 | J42: 99.19693773 | K42: 99.88287385 | L42: 99.49168008 | M42: 88.92230446 | N42: 91.64705153 | O42: 91.32826789 | P42: 95.69023416 | Q42: 98.07819701 | R42: 99.0914445 | S42: 89.73064536 | T42: 100 | U42: 99.13597169 | V42: 92.18199555 | W42: 98.87697043 | X42: 99.31038937 | BB42: No | BC42: 7579.696083 | BD42: 7707.94053 | BE42: 7615.528807 | BF42: 7563.345733 | BG42: 7935.888022 | BH42: 5130.521749 | BI42: 5224.615546 | BJ42: 5235.290407 | BK42: 5121.114397 | BL42: 5550.961037 | BM42: 2381.283194 | BN42: 2428.997977 | BO42: 2435.160936 | BP42: 2466.189516 | BQ42: 2428.264414 | BR42: 10137.11293 | BS42: 4831.888426 | BT42: 8951.288878 | BU42: 4696.364573 | BV42: 4269.78081 | BW42: 3815.56697 | BX42: 1700.396586
A43: Water source available when needed | B43: Yes | C43: 72.37440648 | D43: 80.11364224 | E43: 80.08117707 | F43: 84.44183611 | G43: 88.44725312 | H43: 81.61662783 | I43: 79.49659675 | J43: 83.45604122 | K43: 84.9694781 | L43: 90.21854578 | M43: 69.59609302 | N43: 69.21351671 | O43: 74.60056799 | P43: 78.22791178 | Q43: 82.85189104 | R43: 75.52428064 | S43: 82.93657987 | T43: 89.40029553 | U43: 77.13390788 | V43: 75.77121094 | W43: 87.93863035 | X43: 74.26814046 | BA43: Water source available when needed | BB43: Yes | BC43: 6266.531629 | BD43: 6957.309006 | BE43: 6957.447885 | BF43: 7310.315649 | BG43: 7678.059162 | BH43: 4834.557147 | BI43: 4718.711346 | BJ43: 4946.594198 | BK43: 5035.445682 | BL43: 5362.4788 | BM43: 1902.173814 | BN43: 1896.798311 | BO43: 2040.486969 | BP43: 2155.56686 | BQ43: 2276.850205 | BR43: 7754.343977 | BS43: 4590.39592 | BT43: 9251.956934 | BU43: 4699.412828 | BV43: 3597.032951 | BW43: 3471.283753 | BX43: 1805.236968
B44: No | C44: 27.62559352 | D44: 19.88635776 | E44: 19.91882293 | F44: 15.55816389 | G44: 11.55274688 | H44: 18.38337217 | I44: 20.50340325 | J44: 16.54395878 | K44: 15.0305219 | L44: 9.781454218 | M44: 30.40390698 | N44: 30.78648329 | O44: 25.39943201 | P44: 21.77208822 | Q44: 17.14810896 | R44: 24.47571936 | S44: 17.06342013 | T44: 10.59970447 | U44: 22.86609212 | V44: 24.22878906 | W44: 12.06136965 | X44: 25.73185954 | BB44: No | BC44: 2391.959588 | BD44: 1726.99096 | BE44: 1730.546147 | BF44: 1346.904498 | BG44: 1002.887833 | BH44: 1088.938194 | BI44: 1217.028722 | BJ44: 980.591091 | BK44: 890.7360416 | BL44: 581.3975433 | BM44: 830.9879649 | BN44: 843.704413 | BO44: 694.7294295 | BP44: 599.9289865 | BQ44: 471.2466416 | BR44: 2513.008338 | BS44: 944.4307239 | BT44: 1096.953972 | BU44: 1393.125405 | BV44: 1150.196117 | BW44: 476.1097182 | BX44: 625.4647526
A45: Improved water source available when needed | B45: Yes | C45: 71.89057655 | D45: 80.27638664 | E45: 80.07867064 | F45: 84.48984978 | G45: 88.30819065 | H45: 81.50462061 | I45: 79.49949541 | J45: 83.59043131 | K45: 84.89991313 | L45: 90.10307185 | M45: 68.22032242 | N45: 68.51786119 | O45: 74.91788792 | P45: 78.66123166 | Q45: 82.88609255 | R45: 75.3165684 | S45: 82.91803834 | T45: 89.51850088 | U45: 77.14706987 | V45: 74.745174 | W45: 87.90603701 | X45: 75.53802887 | BA45: Improved water source available when needed | BB45: Yes | BC45: 5925.050915 | BD45: 6855.747809 | BE45: 6882.850517 | BF45: 7224.849384 | BG45: 7574.807909 | BH45: 4798.684712 | BI45: 4677.990122 | BJ45: 4884.010912 | BK45: 4972.369638 | BL45: 5293.127711 | BM45: 1733.730498 | BN45: 1786.951547 | BO45: 1968.101095 | BP45: 2119.80332 | BQ45: 2228.53698 | BR45: 7614.334761 | BS45: 4491.781447 | BT45: 9148.470787 | BU45: 4660.623504 | BV45: 3305.42951 | BW45: 3460.645492 | BX45: 1782.021033
B46: No | C46: 28.10942345 | D46: 19.72361336 | E46: 19.92132936 | F46: 15.51015022 | G46: 11.69180935 | H46: 18.49537939 | I46: 20.50050459 | J46: 16.40956869 | K46: 15.10008687 | L46: 9.896928145 | M46: 31.77967758 | N46: 31.48213881 | O46: 25.08211208 | P46: 21.33876834 | Q46: 17.11390745 | R46: 24.6834316 | S46: 17.08196166 | T46: 10.48149912 | U46: 22.85293013 | V46: 25.254826 | W46: 12.09396299 | X46: 24.46197113 | BB46: No | BC46: 2316.712052 | BD46: 1684.432058 | BE46: 1712.260344 | BF46: 1326.295402 | BG46: 1002.887833 | BH46: 1088.938194 | BI46: 1206.31153 | BJ46: 958.7761574 | BK46: 884.3732664 | BL46: 581.3975433 | BM46: 807.6390479 | BN46: 821.0568114 | BO46: 658.9098226 | BP46: 575.0481021 | BQ46: 460.1372129 | BR46: 2495.439121 | BS46: 925.3527938 | BT46: 1071.171741 | BU46: 1380.595576 | BV46: 1116.835278 | BW46: 476.1097182 | BX46: 577.0834603
A47: Microbiological quality at point of collection | B47: Not contaminated (No E. coli in 100 mL) | C47: 66.17819683 | D47: 74.2957511 | E47: 81.96765666 | F47: 84.1839451 | G47: 90.27012193 | H47: 79.25727509 | I47: 82.82982022 | J47: 82.18687578 | K47: 85.66562489 | L47: 90.52670377 | M47: 64.67205077 | N47: 63.11635592 | O47: 72.0281752 | P47: 66.60060247 | Q47: 80.86132728 | R47: 74.77314034 | S47: 78.35905281 | T47: 81.05175909 | U47: 89.19997955 | V47: 78.22172636 | W47: 74.05405307 | X47: 82.87015459 | BA47: Microbiological quality at point of collection | BB47: Not contaminated (No E. coli in 100 mL) | BC47: 1303.567644 | BD47: 1503.167832 | BE47: 1777.629089 | BF47: 1785.082492 | BG47: 1845.097303 | BH47: 1090.19972 | BI47: 1223.277519 | BJ47: 1183.614837 | BK47: 1238.320323 | BL47: 1234.157073 | BM47: 400.2351159 | BN47: 425.7550209 | BO47: 422.6106009 | BP47: 424.514844 | BQ47: 571.8593064 | BR47: 1803.06612 | BS47: 977.124381 | BT47: 2026.872271 | BU47: 1327.229526 | BV47: 899.0424234 | BW47: 726.7251699 | BX47: 454.4844694
B48: Contaminated (E. coli detected in 100 mL) | C48: 25.85568255 | D48: 18.97250033 | E48: 13.99938553 | F48: 12.82393604 | G48: 7.989369502 | H48: 14.80289119 | I48: 12.92355675 | J48: 12.64219551 | K48: 12.49934075 | L48: 8.115198803 | M48: 27.26357707 | N48: 28.87428117 | O48: 20.82107414 | P48: 24.08126448 | Q48: 17.67054323 | R48: 17.83874204 | S48: 17.75275099 | T48: 13.26916852 | U48: 9.939235688 | V48: 16.60644022 | W48: 22.58246348 | X48: 16.09374656 | BB48: Contaminated (E. coli detected in 100 mL) | BC48: 509.3011414 | BD48: 383.8557626 | BE48: 303.6040796 | BF48: 271.9257653 | BG48: 163.3005895 | BH48: 203.6167381 | BI48: 190.8623777 | BJ48: 182.0666625 | BK48: 180.6814308 | BL48: 110.6350898 | BM48: 168.7257602 | BN48: 194.7731298 | BO48: 122.1633983 | BP48: 153.4949213 | BQ48: 124.9678299 | BR48: 430.1602318 | BS48: 221.3738579 | BT48: 331.8238868 | BU48: 147.888454 | BV48: 190.8663355 | BW48: 221.6117002 | BX48: 88.26287222
B49: Highly contaminated (>100 CFU/100 mL) | C49: 7.966120627 | D49: 6.731748571 | E49: 4.032957811 | F49: 2.992118859 | G49: 1.740508569 | H49: 5.939833717 | I49: 4.246623033 | J49: 5.170928706 | K49: 1.835034368 | L49: 1.358097427 | M49: 8.064372164 | N49: 8.009362908 | O49: 7.150750652 | P49: 9.31813305 | Q49: 1.468129494 | R49: 7.388117625 | S49: 3.888196194 | T49: 5.679072395 | U49: 0.8607847578 | V49: 5.171833417 | W49: 3.36348345 | X49: 1.036098853 | BB49: Highly contaminated (>100 CFU/100 mL) | BC49: 156.9153829 | BD49: 136.1982046 | BE49: 87.4625848 | BF49: 63.44652752 | BG49: 35.57553261 | BH49: 81.70360446 | BI49: 62.71652497 | BJ49: 74.46916406 | BK49: 26.52592981 | BL49: 18.51504005 | BM49: 49.90787967 | BN49: 54.02761966 | BO49: 41.95556838 | BP49: 59.39414437 | BQ49: 10.38275703 | BR49: 178.1557457 | BS49: 48.4851611 | BT49: 142.0173293 | BU49: 12.80783866 | BV49: 59.44253426 | BW49: 33.00735045 | BX49: 5.682272944
A50: Microbiological quality of improved water sources at point of collection | B50: Not contaminated (No E. coli in 100 mL) | C50: 67.25474401 | D50: 74.90350151 | E50: 81.7957678 | F50: 84.62198755 | G50: 90.20718163 | H50: 79.17487194 | I50: 82.63445446 | J50: 82.55133791 | K50: 85.84735346 | L50: 90.49692742 | M50: 64.88872523 | N50: 64.63100905 | O50: 74.22670914 | P50: 67.92942799 | Q50: 80.8457531 | R50: 74.49395739 | S50: 79.24859101 | T50: 81.5386322 | U50: 89.19997955 | V50: 80.53977801 | W50: 74.05405307 | X50: 83.74374714 | BA50: Microbiological quality of improved water sources at point of collection | BB50: Not contaminated (No E. coli in 100 mL) | BC50: 1269.153345 | BD50: 1477.122807 | BE50: 1757.151728 | BF50: 1773.147566 | BG50: 1831.960298 | BH50: 1084.756911 | BI50: 1206.662597 | BJ50: 1177.20728 | BK50: 1223.927655 | BL50: 1229.885369 | BM50: 379.3743266 | BN50: 416.5810923 | BO50: 416.1252044 | BP50: 416.0743698 | BQ50: 557.9409404 | BR50: 1776.671717 | BS50: 971.990802 | BT50: 2009.688105 | BU50: 1327.229526 | BV50: 846.6969971 | BW50: 726.7251699 | BX50: 449.5334282
B51: Contaminated (E. coli detected in 100 mL) | C51: 25.73289369 | D51: 18.19001625 | E51: 14.13283122 | F51: 12.35007988 | G51: 8.041050862 | H51: 14.86169758 | I51: 13.07060358 | J51: 12.22653237 | K51: 12.29209468 | L51: 8.140706402 | M51: 27.87768673 | N51: 28.5766313 | O51: 19.48856579 | P51: 22.37372321 | Q51: 17.64978334 | R51: 18.03616148 | S51: 16.79830501 | T51: 12.69933002 | U51: 9.939235688 | V51: 15.86972675 | W51: 22.58246348 | X51: 15.73603966 | BB51: Contaminated (E. coli detected in 100 mL) | BC51: 485.6012553 | BD51: 358.7133756 | BE51: 303.6040796 | BF51: 258.7804271 | BG51: 163.3005895 | BH51: 203.6167381 | BI51: 190.8623777 | BJ51: 174.354084 | BK51: 175.2486711 | BL51: 110.6350898 | BM51: 162.9879242 | BN51: 184.1915275 | BO51: 109.255597 | BP51: 137.0412361 | BQ51: 121.8064813 | BR51: 430.1602318 | BS51: 206.0326594 | BT51: 313.0012338 | BU51: 147.888454 | BV51: 166.8349518 | BW51: 221.6117002 | BX51: 84.47049597
B52: Highly contaminated (>100 CFU/100 mL) | C52: 7.012362298 | D52: 6.906482231 | E52: 4.071400986 | F52: 3.027932567 | G52: 1.751767511 | H52: 5.963430473 | I52: 4.294941965 | J52: 5.222129723 | K52: 1.860551858 | L52: 1.362366183 | M52: 7.233588033 | N52: 6.79235965 | O52: 6.284725072 | P52: 9.6968488 | Q52: 1.504463556 | R52: 7.469881131 | S52: 3.953103974 | T52: 5.762037778 | U52: 0.8607847578 | V52: 3.590495242 | W52: 3.36348345 | X52: 0.5202132007 | BB52: Highly contaminated (>100 CFU/100 mL) | BC52: 132.3291494 | BD52: 136.1982046 | BE52: 87.4625848 | BF52: 63.44652752 | BG52: 35.57553261 | BH52: 81.70360446 | BI52: 62.71652497 | BJ52: 74.46916406 | BK52: 26.52592981 | BL52: 18.51504005 | BM52: 42.29143937 | BN52: 43.78035627 | BO52: 35.23303855 | BP52: 59.39414437 | BQ52: 10.38275703 | BR52: 178.1557457 | BS52: 48.4851611 | BT52: 142.0173293 | BU52: 12.80783866 | BV52: 37.74608789 | BW52: 33.00735045 | BX52: 2.792485786
A53: Microbiological quality of piped on premises at point of collection | B53: Not contaminated (No E. coli in 100 mL) | C53: 85.01588943 | D53: 90.90590143 | E53: 89.97464442 | F53: 95.31055799 | G53: 94.66761056 | H53: 92.26229547 | I53: 89.87661479 | J53: 93.40417032 | K53: 94.56290733 | L53: 94.27893617 | M53: 79.20095464 | N53: 85.8454163 | O53: 93.71056283 | P53: 88.18761042 | Q53: 93.65809819 | R53: 91.61731167 | S53: 94.05144341 | T53: 90.04288453 | U53: 96.52766947 | V53: 88.17863021 | W53: 95.55976659 | X53: 87.03871484 | BA53: Microbiological quality of piped on premises at point of collection | BB53: Not contaminated (No E. coli in 100 mL) | BC53: 774.873915 | BD53: 1072.472705 | BE53: 1376.888299 | BF53: 1444.535592 | BG53: 1543.317391 | BH53: 752.5726854 | BI53: 945.938866 | BJ53: 954.2995986 | BK53: 986.1097304 | BL53: 1068.920174 | BM53: 245.9275522 | BN53: 276.3911972 | BO53: 255.8635537 | BP53: 304.6387545 | BQ53: 421.4257898 | BR53: 1376.517121 | BS53: 748.741001 | BT53: 1733.010805 | BU53: 996.0449428 | BV53: 735.8159505 | BW53: 358.7327474 | BX53: 263.2253343
B54: Contaminated (E. coli detected in 100 mL) | C54: 13.76382551 | D54: 7.016314474 | E54: 8.473632598 | F54: 3.71274675 | G54: 5.065974656 | H54: 6.611388036 | I54: 8.271756012 | J54: 5.146964951 | K54: 5.437092672 | L54: 5.337990819 | M54: 19.46775107 | N54: 13.39762776 | O54: 5.776779223 | P54: 7.211225615 | Q54: 4.821602507 | R54: 7.284209354 | S54: 5.948556589 | T54: 8.282188432 | U54: 3.051424597 | V54: 9.790332614 | W54: 2.921137333 | X54: 12.03791517 | BB54: Contaminated (E. coli detected in 100 mL) | BC54: 125.4498357 | BD54: 82.7757675 | BE54: 129.6725944 | BF54: 56.27073158 | BG54: 82.58798064 | BH54: 53.92831408 | BI54: 87.05908117 | BJ54: 52.58594525 | BK54: 56.69844699 | BL54: 60.52132433 | BM54: 60.44947802 | BN54: 43.13551656 | BO54: 15.77268577 | BP54: 24.91074176 | BQ54: 21.69537589 | BR54: 109.4426229 | BS54: 47.35629835 | BT54: 159.403179 | BU54: 31.48688924 | BV54: 81.69647091 | BW54: 10.96599184 | BX54: 36.40545764
B55: Highly contaminated (>100 CFU/100 mL) | C55: 1.220285064 | D55: 2.0777841 | E55: 1.551722983 | F55: 0.976695259 | G55: 0.2664147868 | H55: 1.126316492 | I55: 1.851629198 | J55: 1.44886473 | K55: 0 | L55: 0.3830730152 | M55: 1.331294286 | N55: 0.7569559458 | O55: 0.5126579485 | P55: 4.601163965 | Q55: 1.520299307 | R55: 1.098478973 | S55: 0 | T55: 1.674927043 | U55: 0.420905932 | V55: 2.031037179 | W55: 1.519096076 | X55: 0.9233699887 | BB55: Highly contaminated (>100 CFU/100 mL) | BC55: 11.12223928 | BD55: 24.51289409 | BE55: 23.74612573 | BF55: 14.80288327 | BG55: 4.343223318 | BH55: 9.187231063 | BI55: 19.48813969 | BJ55: 14.80288327 | BK55: 0 | BL55: 4.343223318 | BM55: 4.133813113 | BN55: 2.437124417 | BO55: 1.399740655 | BP55: 15.89444201 | BQ55: 6.840768162 | BR55: 16.50425106 | BS55: 0 | BT55: 32.23649128 | BU55: 4.343223318 | BV55: 16.94820558 | BW55: 5.702708663 | BX55: 2.792485786
C56: NATIONAL wealth index quintile | H56: URBAN wealth index quintile | M56: RURAL wealth index quintile | R56: SUB-REGIONS: | BA56: Raw numbers of respondents: | BB56: Use of drinking water sources | BC56: NATIONAL wealth index quintile | BH56: URBAN wealth index quintile | BM56: RURAL wealth index quintile | BR56: SUB-REGIONS:
A57: Percentage based on weighted population | C57: Poorest | D57: Poor | E57: Middle | F57: Rich | G57: Richest | H57: Poorest | I57: Poor | J57: Middle | K57: Rich | L57: Richest | M57: Poorest | N57: Poor | O57: Middle | P57: Rich | Q57: Richest | R57: CENTRE EST | S57: CENTRE OUEST | T57: DISTRICT TUNIS | U57: NORD EST | V57: NORD OUEST | W57: SUD EST | X57: SUD OUEST | BA57: Water data, raw numbers (weighted) | BC57: Poorest | BD57: Poor | BE57: Middle | BF57: Rich | BG57: Richest | BH57: Poorest | BI57: Poor | BJ57: Middle | BK57: Rich | BL57: Richest | BM57: Poorest | BN57: Poor | BO57: Middle | BP57: Rich | BQ57: Richest | BR57: CENTRE EST | BS57: CENTRE OUEST | BT57: DISTRICT TUNIS | BU57: NORD EST | BV57: NORD OUEST | BW57: SUD EST | BX57: SUD OUEST
A58: Main source of drinking water | B58: ROBINET: DANS LE LOGEMENT | C58: 35.72017529 | D58: 48.12156819 | E58: 51.5163218 | F58: 38.31891197 | G58: 21.72104338 | H58: 47.65147246 | I58: 52.42539463 | J58: 42.30420408 | K58: 33.20176521 | L58: 17.58408479 | M58: 31.78966197 | N58: 38.26152548 | O58: 41.55185839 | P58: 45.383369 | Q58: 43.26046186 | R58: 34.19049773 | S58: 49.32897227 | T58: 32.61529723 | U58: 44.46243791 | V58: 55.80533234 | W58: 25.63272617 | X58: 39.31806197 | BA58: Main source of drinking water | BB58: ROBINET: DANS LE LOGEMENT | BC58: 3117.228521 | BD58: 4199.711784 | BE58: 4497.457673 | BF58: 3344.71856 | BG58: 1895.113517 | BH58: 2844.382656 | BI58: 3131.495253 | BJ58: 2524.571756 | BK58: 1983.496317 | BL58: 1049.496706 | BM58: 876.8086728 | BN58: 1054.230801 | BO58: 1145.318643 | BP58: 1250.536848 | BQ58: 1193.892402 | BR58: 3517.919331 | BS58: 2754.732115 | BT58: 3391.351189 | BU58: 2732.575812 | BV58: 2665.890637 | BW58: 1014.325844 | BX58: 977.4351268
B59: ROBINET: DANS LA CONCESSION/JARDIN/ PARCELLE | C59: 8.382986031 | D59: 2.849840373 | E59: 0.5526943422 | F59: 0.1380754846 | G59: 0.21989614 | H59: 1.346813014 | I59: 0.6497975364 | J59: 0.206369873 | K59: 0.1291009307 | L59: 0.1446644649 | M59: 11.60290132 | N59: 7.604881139 | O59: 8.304885504 | P59: 4.351033346 | Q59: 1.214919542 | R59: 3.265784377 | S59: 5.176548333 | T59: 0.7213608648 | U59: 1.701879576 | V59: 3.885028326 | W59: 1.463380106 | X59: 0.4652036732 | BB59: ROBINET: DANS LA CONCESSION/JARDIN/ PARCELLE | BC59: 731.5664869 | BD59: 248.7140101 | BE59: 48.25110418 | BF59: 12.05210723 | BG59: 19.18545716 | BH59: 80.39314171 | BI59: 38.81397393 | BJ59: 12.31545573 | BK59: 7.712578497 | BL59: 8.634221297 | BM59: 320.0261934 | BN59: 209.5394744 | BO59: 228.9125099 | BP59: 119.8925431 | BQ59: 33.52907362 | BR59: 336.022192 | BS59: 289.0796885 | BT59: 75.00738102 | BU59: 104.5942414 | BV59: 185.5926702 | BW59: 57.90816984 | BX59: 11.56482259
B60: ROBINET: CHEZ LE VOISIN | C60: 1.050765444 | D60: 1.153656279 | E60: 0.3792696987 | F60: 0 | G60: 0 | H60: 0.6726503853 | I60: 0.5543197274 | J60: 0 | K60: 0 | L60: 0 | M60: 1.170437307 | N60: 0.6424211595 | O60: 2.227257673 | P60: 1.021234184 | Q60: 0.4607315446 | R60: 0.6349388075 | S60: 0.5524023968 | T60: 0.2430133728 | U60: 0.2519445346 | V60: 1.545262282 | W60: 0.1875165026 | X60: 0.2945175923 | BB60: ROBINET: CHEZ LE VOISIN | BC60: 91.69820655 | BD60: 100.6830004 | BE60: 33.11085414 | BF60: 0 | BG60: 0 | BH60: 40.1514369 | BI60: 33.11085414 | BJ60: 0 | BK60: 0 | BL60: 0 | BM60: 32.28249432 | BN60: 17.70081473 | BO60: 61.39123095 | BP60: 28.14006551 | BQ60: 12.71516454 | BR60: 65.32994994 | BS60: 30.8484153 | BT60: 25.26862425 | BU60: 15.48402592 | BV60: 73.81911506 | BW60: 7.420312357 | BX60: 7.321618253
